Workbook

Sheet RIS
A1: BridgeMania 2016-17 | E1: 1 | F1: 2 | G1: 3 | H1: 4 | I1: 5 | J1: 6 | K1: 7 | L1: 8 | M1: 9 | N1: 10 | O1: 11 | P1: 12 | Q1: 13 | R1: 14 | S1: 15 | T1: 16 | U1: 17 | V1: 18 | W1: 19 | X1: 20 | Y1: 21 | Z1: 22 | AA1: 23 | AB1: 24 | AC1: 25 | AD1: 26 | AE1: 27 | AF1: 28 | AG1: 29 | AH1: 30 | AI1: 31 | AJ1: 32 | AK1: 33 | AL1: 34 | AM1: 35 | AN1: 36 | AO1: 37 | AP1: 38 | AQ1: 39 | AR1: 40 | AS1: 41 | AT1: 42 | AU1: 43 | AV1: 44 | AW1: 45 | AX1: 46 | AY1: 47 | AZ1: 48 | BA1: 49 | BB1: 50
A2: ctrl+q | C2: ctrl+s | D2: data | E2: 2016-09-17 | F2: 2016-09-24 | G2: 2016-10-08 | H2: 2016-10-15 | I2: 2016-10-22 | J2: 2016-10-29 | K2: 2016-11-05 | L2: 2016-11-19 | M2: 2016-12-03 | N2: 2016-12-11 | O2: 2017-01-07 | P2: 2017-01-14 | Q2: 2017-01-21 | R2: 2017-01-28 | S2: 2017-02-04 | T2: 2017-02-11 | U2: 2017-02-18 | V2: 2017-02-25 | W2: 2017-03-11 | X2: 2017-03-18 | Y2: 2017-03-25 | Z2: 2017-04-01 | AA2: 2017-04-29 | AB2: 2017-05-13 | AC2: 2017-05-20 | AD2: 2017-05-27 | AE2: 2017-06-10 | AF2: 2017-06-17 | AG2: 2017-06-24 | AH2: 2017-07-01 | AI2: 2017-07-08
B3: selez. cella | D3: luogo | E3: Pre | F3: DeS | G3: Cat | H3: Pol | I3: Sav | J3: Bia | K3: Tor | L3: Sim | M3: Ban | N3: H.Polo | O3: Dej | P3: Pre | Q3: Sav | R3: DeS | S3: Mal | T3: Pol | U3: Bia | V3: Tor | W3: Mal | X3: Sim | Y3: Padova | Z3: Cat | AA3: Ban | AB3: Sav | AC3: DeS | AD3: Pre | AE3: Dej | AF3: Pol | AG3: Sim | AH3: Tor | AI3: Bia
A4: ctrl+r | B4: (riga 6) | C4: ctrl+t | D4: coppie-mani | E4: 12-22 | F4: 11-22 | G4: 8-21 | H4: 11-22 | I4: 9-18 | J4: 11-22 | K4: 8-21 | L4: 12-22 | M4: 11-22 | N4: 16-21 | O4: 10-18 | P4: 11-22 | Q4: 11-22 | R4: 11-22 | S4: 7-21 | T4: 11-22 | U4: 12-22 | V4: 8-21 | W4: 9-18 | X4: 10-18 | Y4: 23-24 | Z4: 8-21 | AA4: 8-21 | AB4: 11-22 | AC4: 10-18 | AD4: 8-21 | AE4: 9-18 | AF4: 9-18 | AG4: 10-18 | AH4: 7-21 | AI4: 7-21
A5: Punteggio | B5: Class. | C5: Coppie | E5: =IF(SUM(E6:E55)=0,"",SUM(E6:E55)) -> 600 | F5: =IF(SUM(F6:F55)=0,"",SUM(F6:F55)) -> 550 | G5: 400 | H5: 550 | I5: 450 | J5: 550 | K5: 400 | L5: 550 | M5: 545.4545455 | N5: 800 | O5: 500 | P5: 550 | Q5: 550 | R5: 550 | S5: 350 | T5: 550 | U5: 597.2727273 | V5: 400 | W5: 450 | X5: 500 | Y5: 1150.76 | Z5: 400 | AA5: 400 | AB5: 550 | AC5: 500 | AD5: 400 | AE5: 450 | AF5: 450 | AG5: 500 | AH5: 350 | AI5: 350 | BF5: coppia | BG5: handicap
A6: =IF(SUM(E6:BB6)=0,0,SUMIF(E6:BB6,">0")/COUNTIF(E6:BB6,">0")) -> 60.41666667 | B6: 1 | C6: Carla | D6: Mario | N6: 60.41666667 | BF6: 15 | BG6: 0
A7: 59.72222222 | B7: 2 | C7: Cristina | D7: Sauro | X7: 59.72222222 | BF7: 24 | BG7: 0
A8: 59.54861111 | B8: 3 | C8: Marinella | D8: Giorgio | N8: 59.54861111 | BF8: 14 | BG8: 0
A9: 57.41251954 | B9: 4 | C9: Stefania | D9: Massimo | E9: 60.91 | F9: 51.14 | H9: 62.5 | I9: 50 | J9: 60.22727273 | K9: 63.49206349 | L9: 52.84090909 | M9: 49.43181818 | N9: 56.59722222 | O9: 64.58333333 | P9: 56.25 | Q9: 58.52272727 | R9: 59.09090909 | S9: 66.66666667 | T9: 50 | U9: 50 | V9: 60.31746032 | Z9: 57.14285714 | AB9: 50.56818182 | AC9: 53.47222222 | AD9: 64.28571429 | AE9: 75.92592593 | AF9: 46.2962963 | AG9: 57.63888889 | BF9: 10 | BG9: -2.57
A10: 55.96330275 | B10: 5 | C10: Memo | D10: Roberto | Y10: 55.96330275 | BF10: 31 | BG10: 0
A11: 55.04587156 | B11: 6 | C11: Franca | D11: Giancarlo | Y11: 55.04587156 | BF11: 29 | BG11: 0
A12: 53.99285837 | B12: 7 | C12: Barbara | D12: Elio | E12: 55.91 | F12: 60.8 | G12: 63.49206349 | H12: 48.29545455 | I12: 52.77777778 | J12: 52.84090909 | L12: 53.40909091 | M12: 51.13636364 | N12: 49.65277778 | O12: 57.63888889 | P12: 46.59090909 | Q12: 44.31818182 | T12: 40.90909091 | U12: 65 | V12: 53.17460317 | W12: 57.40740741 | X12: 50 | Y12: 51.49550459 | Z12: 59.52380952 | AA12: 66.66666667 | AB12: 48.29545455 | AC12: 51.38888889 | AD12: 53.17460317 | AF12: 44.44444444 | AG12: 60.41666667 | AH12: 70.23809524 | AI12: 48.80952381 | BF12: 2 | BG12: -0.11
A13: 53.97727273 | B13: 8 | C13: LetiziaM | D13: EnzoM | L13: 53.97727273 | BF13: 13 | BG13: 0
A14: 53.89908257 | B14: 9 | C14: Alberto | D14: Riccardo | Y14: 53.89908257 | BF14: 30 | BG14: 0
A15: 53.79977277 | B15: 10 | C15: Manuela | D15: Roberto | E15: 56.36 | F15: 65.34 | G15: 63.49206349 | H15: 59.09090909 | I15: 47.22222222 | J15: 43.75 | M15: 51.70454545 | N15: 59.89583333 | O15: 52.08333333 | P15: 44.88636364 | Q15: 46.59090909 | R15: 40.34090909 | T15: 61.93181818 | U15: 57.27272727 | V15: 50 | W15: 53.7037037 | X15: 40.97222222 | Y15: 66.10311927 | Z15: 69.84126984 | AA15: 53.17460317 | AB15: 45.45454545 | AC15: 51.38888889 | AD15: 55.55555556 | AE15: 52.77777778 | AF15: 58.33333333 | AG15: 63.88888889 | AH15: 50 | AI15: 45.23809524 | BF15: 7 | BG15: -0.64
A16: 53.44036697 | B16: 11 | C16: Guglielmo | D16: Pietro | Y16: 53.44036697 | BF16: 37 | BG16: 0
A17: 53.34502721 | B17: 12 | C17: Isolde | D17: Letizia | E17: 57.73 | F17: 50 | J17: 55.68181818 | K17: 44.44444444 | L17: 52.27272727 | M17: 50.56818182 | P17: 61.36363636 | Q17: 59.65909091 | R17: 53.97727273 | S17: 45.23809524 | T17: 61.93181818 | U17: 51.81818182 | W17: 51.85185185 | X17: 48.61111111 | AB17: 48.86363636 | AC17: 63.19444444 | AD17: 56.34920635 | AE17: 44.44444444 | AG17: 55.55555556 | BF17: 5 | BG17: -1
A18: 53.29861111 | B18: 13 | C18: Annagrazia | D18: EnzoM | N18: 53.29861111 | BF18: 17 | BG18: 0
A19: 53.03786084 | B19: 14 | C19: Renata | D19: Sandro | E19: 49.09 | F19: 55.68 | G19: 49.20634921 | H19: 53.97727273 | I19: 52.77777778 | J19: 50 | K19: 58.73015873 | L19: 51.70454545 | M19: 51.70454545 | N19: 58.68055556 | O19: 45.83333333 | P19: 53.97727273 | Q19: 68.75 | R19: 51.13636364 | S19: 57.14285714 | T19: 60.79545455 | U19: 39.09090909 | V19: 55.55555556 | W19: 53.7037037 | X19: 59.72222222 | Z19: 42.06349206 | AB19: 46.59090909 | AC19: 54.16666667 | AE19: 65.74074074 | AF19: 53.7037037 | AG19: 39.58333333 | AH19: 48.80952381 | AI19: 57.14285714 | BF19: 9 | BG19: -1.22
A20: 52.52293578 | B20: 15 | C20: Esterina | D20: M.Teresa | Y20: 52.52293578 | BF20: 39 | BG20: 0
A21: 51.60550459 | B21: 16 | C21: Felice | D21: Gerardo | Y21: 51.60550459 | BF21: 36 | BG21: 0
A22: 51.37614679 | B22: 17 | C22: Elsa | D22: Sauro | Y22: 51.37614679 | BF22: 34 | BG22: 0
A23: 51.14678899 | B23: 18 | C23: M.Teresa | D23: Piero | Y23: 51.14678899 | BF23: 26 | BG23: 0
A24: 50 | B24: 19 | C24: Carola | D24: Silvano | N24: 50 | BF24: 16 | BG24: 0
A25: 49.93802605 | B25: 20 | C25: Elena | D25: Stefano | E25: 54.55 | F25: 42.61 | G25: 42.85714286 | H25: 51.13636364 | I25: 65.74074074 | J25: 60.22727273 | K25: 50.79365079 | L25: 51.70454545 | M25: 32.38636364 | N25: 46.00694444 | O25: 50 | P25: 52.84090909 | Q25: 36.36363636 | R25: 46.02272727 | U25: 52.27272727 | V25: 48.41269841 | W25: 58.33333333 | X25: 56.25 | Y25: 56.84880734 | AB25: 56.25 | AC25: 43.75 | AD25: 49.20634921 | AG25: 45.13888889 | AI25: 48.80952381 | BF25: 4 | BG25: -0.72
A26: 49.51804025 | B26: 21 | C26: Tatiana | D26: Julio | E26: 57.27 | F26: 37.5 | G26: 44.44444444 | H26: 47.72727273 | I26: 53.7037037 | J26: 47.15909091 | K26: 46.03174603 | L26: 51.13636364 | M26: 61.93181818 | N26: 42.01388889 | P26: 52.84090909 | Q26: 56.25 | R26: 46.59090909 | S26: 57.14285714 | T26: 48.86363636 | U26: 50.90909091 | V26: 53.17460317 | X26: 47.91666667 | Y26: 45.82284404 | Z26: 40.47619048 | AA26: 48.41269841 | AB26: 51.70454545 | AF26: 50.92592593 | AG26: 45.13888889 | AH26: 52.38095238 | AI26: 50 | BF26: 11 | BG26: 0.41
A27: 49.31192661 | B27: 22 | C27: Alberto | D27: Giuseppe | Y27: 49.31192661 | BF27: 25 | BG27: 0
A28: 49.06205757 | B28: 23 | C28: Antonella | D28: Dino | E28: 53.18 | F28: 63.07 | G28: 41.26984127 | H28: 41.47727273 | I28: 64.81481481 | J28: 42.61363636 | K28: 55.55555556 | L28: 44.88636364 | M28: 58.52272727 | N28: 51.21527778 | O28: 54.86111111 | P28: 48.86363636 | Q28: 50 | R28: 48.29545455 | S28: 40.47619048 | T28: 50.56818182 | U28: 55.45454545 | W28: 39.81481481 | X28: 41.66666667 | Y28: 53.98036697 | AA28: 47.61904762 | AB28: 47.15909091 | AC28: 42.36111111 | AE28: 49.07407407 | AF28: 48.14814815 | AG28: 42.36111111 | AH28: 42.85714286 | AI28: 53.57142857 | BF28: 1 | BG28: 0.54
A29: 48.15785641 | B29: 24 | C29: Gill | D29: Isolde | Y29: 55.04587156 | AA29: 41.26984127 | BF29: 28 | BG29: 0
A30: 46.35416667 | B30: 25 | C30: Cristina | D30: RenataT | N30: 46.35416667 | BF30: 18 | BG30: 0
A31: 46.18055556 | B31: 26 | C31: Loredana | D31: Nicola | N31: 46.18055556 | BF31: 19 | BG31: 0
A32: 45.53304029 | B32: 27 | C32: Lilli | D32: Gianni | E32: 47.73 | F32: 31.25 | H32: 47.72727273 | J32: 57.38636364 | K32: 42.85714286 | L32: 48.86363636 | M32: 52.84090909 | O32: 36.80555556 | P32: 41.47727273 | Q32: 42.04545455 | R32: 51.13636364 | S32: 40.47619048 | T32: 38.06818182 | U32: 51.36363636 | V32: 38.0952381 | W32: 60.18518519 | X32: 40.97222222 | Y32: 51.7387156 | Z32: 50 | AA32: 54.76190476 | AB32: 47.72727273 | AC32: 47.91666667 | AD32: 44.44444444 | AE32: 32.40740741 | AF32: 46.2962963 | AH32: 39.28571429 | BF32: 6 | BG32: 1.28
A33: 44.49541284 | B33: 28 | C33: Marina | D33: Enzo | Y33: 44.49541284 | BF33: 27 | BG33: 0
A34: 44.49541284 | B34: 29 | C34: Carla | D34: Alberto | Y34: 44.49541284 | BF34: 35 | BG34: 0
A35: 44.38503247 | B35: 30 | C35: Cesarina | D35: Gaetano | E35: 34.09 | F35: 43.18 | G35: 49.20634921 | H35: 42.61363636 | I35: 25 | J35: 36.93181818 | L35: 49.43181818 | M35: 40.34090909 | O35: 47.22222222 | P35: 50 | Q35: 50 | R35: 48.29545455 | T35: 46.59090909 | U35: 42.27272727 | W35: 32.40740741 | X35: 54.16666667 | Z35: 38.0952381 | AA35: 46.03174603 | AB35: 57.38636364 | AC35: 59.72222222 | AD35: 42.85714286 | AE35: 43.51851852 | AF35: 40.74074074 | AG35: 45.13888889 | BF35: 3 | BG35: 1.03
A36: 43.92732279 | B36: 31 | C36: Olimpia | D36: Sauro | E36: 36.36 | F36: 49.43 | G36: 46.03174603 | H36: 43.18181818 | I36: 37.96296296 | J36: 43.18181818 | K36: 38.0952381 | L36: 39.77272727 | M36: 44.88636364 | O36: 53.47222222 | P36: 40.90909091 | Q36: 37.5 | R36: 53.40909091 | S36: 42.85714286 | T36: 45.45454545 | U36: 46.36363636 | V36: 41.26984127 | W36: 42.59259259 | AA36: 42.06349206 | AB36: 50 | AC36: 32.63888889 | AD36: 34.12698413 | AE36: 45.37037037 | AF36: 61.11111111 | AG36: 45.13888889 | AH36: 46.42857143 | AI36: 46.42857143 | BF36: 8 | BG36: 1.08
A37: 43.66064498 | B37: 32 | C37: Anna | D37: M.Elena | E37: 36.82 | H37: 52.27272727 | R37: 51.70454545 | T37: 44.88636364 | U37: 35.45454545 | Y37: 40.82568807 | BF37: 12 | BG37: 0
A38: =IF(SUM(E38:BB38)=0,0,SUMIF(E38:BB38,">0")/COUNTIF(E38:BB38,">0")) -> 43.34862385 | B38: 33 | C38: Ennio | D38: Giorgio | Y38: 43.34862385 | BF38: 38 | BG38: 0
A39: 42.85714286 | B39: 34 | C39: Anna | D39: Benedetto | Z39: 42.85714286 | BF39: 41 | BG39: 0
A40: 42.1875 | B40: 35 | C40: LetiziaM | D40: GiovanniF | N40: 42.1875 | BF40: 22 | BG40: 0
A41: 41.97247706 | B41: 36 | C41: Fiorella | D41: Dario | Y41: 41.97247706 | BF41: 33 | BG41: 0
A42: 40.59633028 | B42: 37 | C42: Milena | D42: Giovanni | Y42: 40.59633028 | BF42: 32 | BG42: 0
A43: 39.75694444 | B43: 38 | C43: Giulia | D43: GianniS | N43: 39.75694444 | BF43: 20 | BG43: 0
A44: 39.67889908 | B44: 39 | C44: Mauro | D44: Paolo | Y44: 39.67889908 | BF44: 40 | BG44: 0
A45: 39.12037037 | B45: 40 | C45: Claudia | D45: Simonetta | O45: 37.5 | AE45: 40.74074074 | BF45: 23 | BG45: 0
A46: 38.19444444 | B46: 41 | C46: AnnaG | D46: GianniP | N46: 38.19444444 | BF46: 21 | BG46: 0
A47: 0 | B47: 42 | BF47: 42 | BG47: 0
A48: 0 | B48: 43 | BF48: 43 | BG48: 0
A49: 0 | B49: 44 | BF49: 44 | BG49: 0
A50: 0 | B50: 45 | BF50: 45 | BG50: 0
A51: 0 | B51: 46 | BF51: 46 | BG51: 0
A52: 0 | B52: 47 | BF52: 47 | BG52: 0
A53: 0 | B53: 48 | BF53: 48 | BG53: 0
A54: 0 | B54: 49 | BF54: 49 | BG54: 0
A55: 0 | B55: 50 | BF55: 50 | BG55: 0
A58: Punteggi campionato aggiornati delle 11 coppie base (con scarti)
A59: pronti per essere copiati in P (con la macro ctrl+u)
A60: I punteggi (col.A) sono elencati nello stesso ordine (alfabetico) che le coppie corrispondenti hanno nel foglio P
A61: =IF(P!C6="","",INDEX(A$81:A$91,B61)) -> 49.79978575 | B61: =IF(P!C6="","",MATCH(P!C6,$D$81:$D$91,0)) -> 7 | C61: Antonella | D61: Dino
A62: =IF(P!C7="","",INDEX(A$81:A$91,B62)) -> 53.6488189 | B62: =IF(P!C7="","",MATCH(P!C7,$D$81:$D$91,0)) -> 2 | C62: Barbara | D62: Elio
A63: =IF(P!C8="","",INDEX(A$81:A$91,B63)) -> 45.4151461 | B63: =IF(P!C8="","",MATCH(P!C8,$D$81:$D$91,0)) -> 10 | C63: Cesarina | D63: Gaetano
A64: =IF(P!C9="","",INDEX(A$81:A$91,B64)) -> 49.02374049 | B64: =IF(P!C9="","",MATCH(P!C9,$D$81:$D$91,0)) -> 8 | C64: Elena | D64: Stefano
A65: =IF(P!C10="","",INDEX(A$81:A$91,B65)) -> 52.34488367 | B65: =IF(P!C10="","",MATCH(P!C10,$D$81:$D$91,0)) -> 4 | C65: Isolde | D65: Letizia
A66: =IF(P!C11="","",INDEX(A$81:A$91,B66)) -> 46.76370462 | B66: =IF(P!C11="","",MATCH(P!C11,$D$81:$D$91,0)) -> 9 | C66: Lilli | D66: Gianni
A67: =IF(P!C12="","",INDEX(A$81:A$91,B67)) -> 53.25719701 | B67: =IF(P!C12="","",MATCH(P!C12,$D$81:$D$91,0)) -> 3 | C67: Manuela | D67: Roberto
A68: =IF(P!C13="","",INDEX(A$81:A$91,B68)) -> 45.00752481 | B68: =IF(P!C13="","",MATCH(P!C13,$D$81:$D$91,0)) -> 11 | C68: Olimpia | D68: Sauro
A69: =IF(P!C14="","",INDEX(A$81:A$91,B69)) -> 51.87996221 | B69: =IF(P!C14="","",MATCH(P!C14,$D$81:$D$91,0)) -> 5 | C69: Renata | D69: Sandro
A70: =IF(P!C15="","",INDEX(A$81:A$91,B70)) -> 55.08827922 | B70: =IF(P!C15="","",MATCH(P!C15,$D$81:$D$91,0)) -> 1 | C70: Stefania | D70: Massimo
A71: =IF(P!C16="","",INDEX(A$81:A$91,B71)) -> 49.99918147 | B71: =IF(P!C16="","",MATCH(P!C16,$D$81:$D$91,0)) -> 6 | C71: Tatiana | D71: Julio
A76: BridgeMania 2016-17 | E76: 1 | F76: 2 | G76: 3 | H76: 4 | I76: 5 | J76: 6 | K76: 7 | L76: 8 | M76: 9 | N76: 10 | O76: 11 | P76: 12 | Q76: 13 | R76: 14 | S76: 15 | T76: 16 | U76: 17 | V76: 18 | W76: 19 | X76: 20 | Y76: 21 | Z76: 22 | AA76: 23 | AB76: 24 | AC76: 25 | AD76: 26 | AE76: 27 | AF76: 28 | AG76: 29 | AH76: 30 | AI76: 31 | AJ76: 32 | AK76: 33 | AL76: 34 | AM76: 35 | AN76: 36 | AO76: 37 | AP76: 38 | AQ76: 39 | AR76: 40 | AS76: 41 | AT76: 42 | AU76: 43 | AV76: 44 | AW76: 45 | AX76: 46 | AY76: 47 | AZ76: 48 | BA76: 49 | BB76: 50
D77: data | E77: =IF(E2="","",E2) -> 2016-09-17 | F77: =IF(F2="","",F2) -> 2016-09-24 | G77: 2016-10-08 | H77: 2016-10-15 | I77: 2016-10-22 | J77: 2016-10-29 | K77: 2016-11-05 | L77: 2016-11-19 | M77: 2016-12-03 | N77: 2016-12-11 | O77: =IF(O2="","",O2) -> 2017-01-07 | P77: 2017-01-14 | Q77: 2017-01-21 | R77: 2017-01-28 | S77: 2017-02-04 | T77: =IF(T2="","",T2) -> 2017-02-11 | U77: 2017-02-18 | V77: 2017-02-25 | W77: 2017-03-11 | X77: 2017-03-18 | Y77: 2017-03-25 | Z77: 2017-04-01 | AA77: 2017-04-29 | AB77: 2017-05-13 | AC77: 2017-05-20 | AD77: 2017-05-27 | AE77: 2017-06-10 | AF77: 2017-06-17 | AG77: 2017-06-24 | AH77: 2017-07-01 | AI77: 2017-07-08 | AJ77: =IF(AJ2="","",AJ2) -> 
B78: selez. cella | C78: ctrl+c | D78: luogo | E78: =IF(E3="","",E3) -> Pre | F78: DeS | G78: Cat | H78: Pol | I78: Sav | J78: Bia | K78: Tor | L78: Sim | M78: Ban | N78: H.Polo | O78: =IF(O3="","",O3) -> Dej | P78: Pre | Q78: Sav | R78: DeS | S78: Mal | T78: =IF(T3="","",T3) -> Pol | U78: Bia | V78: Tor | W78: Mal | X78: Sim | Y78: Padova | Z78: Cat | AA78: Ban | AB78: Sav | AC78: DeS | AD78: Pre | AE78: Dej | AF78: Pol | AG78: Sim | AH78: Tor | AI78: Bia | AJ78: =IF(AJ3="","",AJ3) -> 
B79: (riga 81) | D79: coppie-mani | E79: =IF(E4="","",E4) -> 12-22 | F79: 11-22 | G79: 8-21 | H79: 11-22 | I79: 9-18 | J79: 11-22 | K79: 8-21 | L79: 12-22 | M79: 11-22 | N79: 16-21 | O79: =IF(O4="","",O4) -> 10-18 | P79: 11-22 | Q79: 11-22 | R79: 11-22 | S79: 7-21 | T79: =IF(T4="","",T4) -> 11-22 | U79: 12-22 | V79: 8-21 | W79: 9-18 | X79: 10-18 | Y79: 23-24 | Z79: 8-21 | AA79: 8-21 | AB79: 11-22 | AC79: 10-18 | AD79: 8-21 | AE79: 9-18 | AF79: 9-18 | AG79: 10-18 | AH79: 7-21 | AI79: 7-21 | AJ79: =IF(AJ4="","",AJ4) ->  | BF79: # coppia | BG79: tornei
A80: Punteggio | B80: Class. | C80: Coppie base | E80: =IF(E5="","",SUM(E81:E91)) -> 561.2618182 | F80: 548.08 | G80: 400.37 | H80: 496.8072727 | I80: 447.8 | J80: 548.08 | K80: =IF(K5="","",SUM(K81:K91)) -> 397.8 | L80: =IF(L5="","",SUM(L81:L91)) -> 494.7427273 | M80: 543.5345455 | N80: 366.0025 | O80: 461.17 | P80: 548.08 | Q80: 548.08 | R80: 496.4854545 | S80: 348.52 | T80: 503.9136364 | U80: 559.8981818 | V80: 397.51 | W80: 450.24 | X80: 439.8477778 | Y80: 325.9893578 | Z80: 355.3228571 | AA80: 362.3201587 | AB80: 548.08 | AC80: 497.67 | AD80: 398.35 | AE80: 407.7592593 | AF80: 449.8 | AG80: 496.8 | AH80: 351.34 | AI80: 349.34 | BF80: base | BG80: giocati
A81: =IF(SUM(E81:BB81)=0,-0.001,AVERAGE(E81:BB81)) -> 55.08827922 | B81: 1 | C81: Stefania | D81: Massimo | E81: 58.33909091 | F81: 48.56636364 | H81: 59.93 | I81: 47.43 | J81: 57.65727273 | K81: 60.92206349 | L81: 50.27090909 | M81: 46.86181818 | N81: 59.93 | O81: 62.01333333 | P81: 53.68 | Q81: 55.95272727 | R81: 56.52090909 | S81: 64.09666667 | T81: 47.43 | U81: 47.43 | V81: 57.74746032 | Z81: 54.57285714 | AB81: 47.99818182 | AC81: 50.90222222 | AD81: 61.71571429 | AE81: 73.35592593 | AF81: 43.7262963 | AG81: 55.06888889 | BF81: 10 | BG81: =COUNT(E81:BB81,"<>0") -> 24
A82: 53.6488189 | B82: 2 | C82: Barbara | D82: Elio | E82: 55.79909091 | F82: 60.68545455 | G82: 63.38206349 | H82: 48.18545455 | I82: 52.66777778 | J82: 52.73090909 | L82: 53.29909091 | M82: 51.02636364 | N82: 43.11916667 | O82: 57.52888889 | P82: 46.48090909 | Q82: 44.20818182 | T82: 40.79909091 | U82: 64.89 | V82: 53.06460317 | W82: 57.29740741 | X82: 49.89 | Y82: 51.49550459 | Z82: 59.41380952 | AA82: 66.55666667 | AB82: 48.18545455 | AC82: 51.27888889 | AD82: 53.06460317 | AF82: 44.33444444 | AG82: 60.30666667 | AH82: 70.12809524 | AI82: 48.69952381 | BF82: 2 | BG82: 27
A83: 53.25719701 | B83: 3 | C83: Manuela | D83: Roberto | E83: 55.72363636 | F83: 64.70090909 | G83: 62.85206349 | H83: 58.45090909 | I83: 46.58222222 | J83: 43.11 | M83: 51.06454545 | N83: 61.33916667 | O83: 51.44333333 | P83: 44.24636364 | Q83: 45.95090909 | R83: 39.70090909 | T83: 61.29181818 | U83: 56.63272727 | V83: 49.36 | W83: 53.0637037 | X83: 40.33222222 | Y83: 66.10311927 | Z83: 69.20126984 | AA83: 52.53460317 | AB83: 44.81454545 | AC83: 50.74888889 | AD83: 54.91555556 | AE83: 52.13777778 | AF83: 57.69333333 | AG83: 63.24888889 | AH83: 49.36 | AI83: 44.59809524 | BF83: 7 | BG83: 28
A84: 52.34488367 | B84: 4 | C84: Isolde | D84: Letizia | E84: 56.72727273 | F84: 49 | J84: 54.68181818 | K84: 43.44444444 | L84: 51.27272727 | M84: 49.56818182 | P84: 60.36363636 | Q84: 58.65909091 | R84: 52.97727273 | S84: 44.23809524 | T84: 60.93181818 | U84: 50.81818182 | W84: 50.85185185 | X84: 47.61111111 | AB84: 47.86363636 | AC84: 62.19444444 | AD84: 55.34920635 | AE84: 43.44444444 | AG84: 54.55555556 | BF84: 5 | BG84: 19
A85: 51.87996221 | B85: 5 | C85: Renata | D85: Sandro | E85: 47.87090909 | F85: 54.46181818 | G85: 47.98634921 | H85: 52.75727273 | I85: 51.55777778 | J85: 48.78 | K85: 57.51015873 | L85: 50.48454545 | M85: 50.48454545 | N85: 59.19666667 | O85: 44.61333333 | P85: 52.75727273 | Q85: 67.53 | R85: 49.91636364 | S85: 55.92285714 | T85: 59.57545455 | U85: 37.87090909 | V85: 54.33555556 | W85: 52.4837037 | X85: 58.50222222 | Z85: 40.84349206 | AB85: 45.37090909 | AC85: 52.94666667 | AE85: 64.52074074 | AF85: 52.4837037 | AG85: 38.36333333 | AH85: 47.58952381 | AI85: 55.92285714 | BF85: 9 | BG85: 28
A86: 49.99918147 | B86: 6 | C86: Tatiana | D86: Julio | E86: 57.68272727 | F86: 37.91 | G86: 44.85444444 | H86: 48.13727273 | I86: 54.1137037 | J86: 47.56909091 | K86: 46.44174603 | L86: 51.54636364 | M86: 62.34181818 | N86: 44.68083333 | P86: 53.25090909 | Q86: 56.66 | R86: 47.00090909 | S86: 57.55285714 | T86: 49.27363636 | U86: 51.31909091 | V86: 53.58460317 | X86: 48.32666667 | Y86: 45.82284404 | Z86: 40.88619048 | AA86: 48.82269841 | AB86: 52.11454545 | AF86: 51.33592593 | AG86: 45.54888889 | AH86: 52.79095238 | AI86: 50.41 | BF86: 11 | BG86: 26
A87: 49.79978575 | B87: 7 | C87: Antonella | D87: Dino | E87: 53.72181818 | F87: 63.60818182 | G87: 41.80984127 | H87: 42.01727273 | I87: 65.35481481 | J87: 43.15363636 | K87: 56.09555556 | L87: 45.42636364 | M87: 59.06272727 | N87: 57.83166667 | O87: 55.40111111 | P87: 49.40363636 | Q87: 50.54 | R87: 48.83545455 | S87: 41.01619048 | T87: 51.10818182 | U87: 55.99454545 | W87: 40.35481481 | X87: 42.20666667 | Y87: 53.98036697 | AA87: 48.15904762 | AB87: 47.69909091 | AC87: 42.90111111 | AE87: 49.61407407 | AF87: 48.68814815 | AG87: 42.90111111 | AH87: 43.39714286 | AI87: 54.11142857 | BF87: 1 | BG87: 28
A88: 49.02374049 | B88: 8 | C88: Elena | D88: Stefano | E88: 53.82545455 | F88: 41.89363636 | G88: 42.13714286 | H88: 50.41636364 | I88: 65.02074074 | J88: 59.50727273 | K88: 50.07365079 | L88: 50.98454545 | M88: 31.66636364 | N88: 39.905 | O88: 49.28 | P88: 52.12090909 | Q88: 35.64363636 | R88: 45.30272727 | U88: 51.55272727 | V88: 47.69269841 | W88: 57.61333333 | X88: 55.53 | Y88: 56.84880734 | AB88: 55.53 | AC88: 43.03 | AD88: 48.48634921 | AG88: 44.41888889 | AI88: 48.08952381 | BF88: 4 | BG88: 24
A89: 46.76370462 | B89: 9 | C89: Lilli | D89: Gianni | E89: 49.00727273 | F89: 32.53 | H89: 49.00727273 | J89: 58.66636364 | K89: 44.13714286 | L89: 50.14363636 | M89: 54.12090909 | O89: 38.08555556 | P89: 42.75727273 | Q89: 43.32545455 | R89: 52.41636364 | S89: 41.75619048 | T89: 39.34818182 | U89: 52.64363636 | V89: 39.3752381 | W89: 61.46518519 | X89: 42.25222222 | Y89: 51.7387156 | Z89: 51.28 | AA89: 56.04190476 | AB89: 49.00727273 | AC89: 49.19666667 | AD89: 45.72444444 | AE89: 33.68740741 | AF89: 47.5762963 | AH89: 40.56571429 | BF89: 6 | BG89: 26
A90: 45.4151461 | B90: 10 | C90: Cesarina | D90: Gaetano | E90: 35.12090909 | F90: 44.21181818 | G90: 50.23634921 | H90: 43.64363636 | I90: 26.03 | J90: 37.96181818 | L90: 50.46181818 | M90: 41.37090909 | O90: 48.25222222 | P90: 51.03 | Q90: 51.03 | R90: 49.32545455 | T90: 47.62090909 | U90: 43.30272727 | W90: 33.43740741 | X90: 55.19666667 | Z90: 39.1252381 | AA90: 47.06174603 | AB90: 58.41636364 | AC90: 60.75222222 | AD90: 43.88714286 | AE90: 44.54851852 | AF90: 41.77074074 | AG90: 46.16888889 | BF90: 3 | BG90: 24
A91: 45.00752481 | B91: 11 | C91: Olimpia | D91: Sauro | E91: 37.44363636 | F91: 50.51181818 | G91: 47.11174603 | H91: 44.26181818 | I91: 39.04296296 | J91: 44.26181818 | K91: 39.1752381 | L91: 40.85272727 | M91: 45.96636364 | O91: 54.55222222 | P91: 41.98909091 | Q91: 38.58 | R91: 54.48909091 | S91: 43.93714286 | T91: 46.53454545 | U91: 47.44363636 | V91: 42.34984127 | W91: 43.67259259 | AA91: 43.14349206 | AB91: 51.08 | AC91: 33.71888889 | AD91: 35.20698413 | AE91: 46.45037037 | AF91: 62.19111111 | AG91: 46.21888889 | AH91: 47.50857143 | AI91: 47.50857143 | BF91: 8 | BG91: 27
A140: Calcolo dei punteggi "con scarti" delle coppie base
A141: n° ordinale tornei (da 1 a 50) | E141: 1 | F141: 2 | G141: 3 | H141: 4 | I141: 5 | J141: 6 | K141: 7 | L141: 8 | M141: 9 | N141: 10 | O141: 11 | P141: 12 | Q141: 13 | R141: 14 | S141: 15 | T141: 16 | U141: 17 | V141: 18 | W141: 19 | X141: 20 | Y141: 21 | Z141: 22 | AA141: 23 | AB141: 24 | AC141: 25 | AD141: 26 | AE141: 27 | AF141: 28 | AG141: 29 | AH141: 30 | AI141: 31 | AJ141: 32 | AK141: 33 | AL141: 34 | AM141: 35 | AN141: 36 | AO141: 37 | AP141: 38 | AQ141: 39 | AR141: 40 | AS141: 41 | AT141: 42 | AU141: 43 | AV141: 44 | AW141: 45 | AX141: 46 | AY141: 47 | AZ141: 48 | BA141: 49 | BB141: 50
A142: risultati della stessa coppia con assenze = 0 | E142: =IF(E143="",0,E143) -> 61.9047619 | F142: 48.41269841 | G142: 0 | H142: 53.7037037 | I142: 46.42857143 | J142: 50.56818182 | K142: 53.57142857 | L142: 61.80555556 | M142: 53.7037037 | N142: 46.36363636 | O142: 40.45454545 | P142: 37.1 | Q142: 45 | R142: 0 | S142: 48.86363636 | T142: 33.33333333 | U142: 52.5 | V142: 0 | W142: 53.96825397 | X142: 38.06818182 | Y142: 37.72727273 | Z142: 40.97222222 | AA142: 54.54545455 | AB142: 52.77777778 | AC142: 50 | AD142: 47.61904762 | AE142: 55.55555556 | AF142: 50 | AG142: 50.92592593 | AH142: 38.19444444 | AI142: 39.58333333 | AJ142: 56.94444444 | AK142: 0 | AL142: 0 | AM142: 0 | AN142: 0 | AO142: 0 | AP142: 0 | AQ142: 0 | AR142: 0 | AS142: 0 | AT142: 0 | AU142: 0 | AV142: 0 | AW142: 0 | AX142: 0 | AY142: 0 | AZ142: 0 | BA142: 0 | BB142: 0
A143: copia dei risultati di una coppia (assenze = vuoto) | E143: 61.9047619 | F143: 48.41269841 | H143: 53.7037037 | I143: 46.42857143 | J143: 50.56818182 | K143: 53.57142857 | L143: 61.80555556 | M143: 53.7037037 | N143: 46.36363636 | O143: 40.45454545 | P143: 37.1 | Q143: 45 | S143: 48.86363636 | T143: 33.33333333 | U143: 52.5 | W143: 53.96825397 | X143: 38.06818182 | Y143: 37.72727273 | Z143: 40.97222222 | AA143: 54.54545455 | AB143: 52.77777778 | AC143: 50 | AD143: 47.61904762 | AE143: 55.55555556 | AF143: 50 | AG143: 50.92592593 | AH143: 38.19444444 | AI143: 39.58333333 | AJ143: 56.94444444
A144: righe 141+142 ordinate per riga 142 decrescente | E144: 1 | F144: 8 | G144: 32 | H144: 27 | I144: 23 | J144: 19 | K144: 4 | L144: 9 | M144: 7 | N144: 24 | O144: 17 | P144: 29 | Q144: 6 | R144: 25 | S144: 28 | T144: 15 | U144: 2 | V144: 26 | W144: 5 | X144: 10 | Y144: 13 | Z144: 22 | AA144: 11 | AB144: 31 | AC144: 30 | AD144: 20 | AE144: 21 | AF144: 12 | AG144: 16 | AH144: 3 | AI144: 14 | AJ144: 18 | AK144: 33 | AL144: 34 | AM144: 35 | AN144: 36 | AO144: 37 | AP144: 38 | AQ144: 39 | AR144: 40 | AS144: 41 | AT144: 42 | AU144: 43 | AV144: 44 | AW144: 45 | AX144: 46 | AY144: 47 | AZ144: 48 | BA144: 49 | BB144: 50
E145: 61.9047619 | F145: 61.80555556 | G145: 56.94444444 | H145: 55.55555556 | I145: 54.54545455 | J145: 53.96825397 | K145: 53.7037037 | L145: 53.7037037 | M145: 53.57142857 | N145: 52.77777778 | O145: 52.5 | P145: 50.92592593 | Q145: 50.56818182 | R145: 50 | S145: 50 | T145: 48.86363636 | U145: 48.41269841 | V145: 47.61904762 | W145: 46.42857143 | X145: 46.36363636 | Y145: 45 | Z145: 40.97222222 | AA145: 40.45454545 | AB145: 39.58333333 | AC145: 38.19444444 | AD145: 38.06818182 | AE145: 37.72727273 | AF145: 37.1 | AG145: 33.33333333 | AH145: 0 | AI145: 0 | AJ145: 0 | AK145: 0 | AL145: 0 | AM145: 0 | AN145: 0 | AO145: 0 | AP145: 0 | AQ145: 0 | AR145: 0 | AS145: 0 | AT145: 0 | AU145: 0 | AV145: 0 | AW145: 0 | AX145: 0 | AY145: 0 | AZ145: 0 | BA145: 0 | BB145: 0
A146: riga 146 = riga 144 se riga 145>0; altrimenti =9999 | E146: =IF(E145>0,E144,9999) -> 1 | F146: =IF(F145>0,F144,9999) -> 8 | G146: 32 | H146: 27 | I146: 23 | J146: 19 | K146: 4 | L146: 9 | M146: 7 | N146: 24 | O146: 17 | P146: 29 | Q146: 6 | R146: 25 | S146: 28 | T146: 15 | U146: 2 | V146: 26 | W146: =IF(W145>0,W144,9999) -> 5 | X146: 10 | Y146: 13 | Z146: 22 | AA146: 11 | AB146: 31 | AC146: 30 | AD146: 20 | AE146: 21 | AF146: 12 | AG146: 16 | AH146: 9999 | AI146: 9999 | AJ146: 9999 | AK146: 9999 | AL146: 9999 | AM146: 9999 | AN146: 9999 | AO146: 9999 | AP146: 9999 | AQ146: 9999 | AR146: 9999 | AS146: 9999 | AT146: 9999 | AU146: 9999 | AV146: 9999 | AW146: 9999 | AX146: 9999 | AY146: 9999 | AZ146: 9999 | BA146: 9999 | BB146: 9999
A147: righe 145+146 ordinate per riga 146 crescente | E147: 61.9047619 | F147: 48.41269841 | G147: 53.7037037 | H147: 46.42857143 | I147: 50.56818182 | J147: 53.57142857 | K147: 61.80555556 | L147: 53.7037037 | M147: 46.36363636 | N147: 40.45454545 | O147: 37.1 | P147: 45 | Q147: 48.86363636 | R147: 33.33333333 | S147: 52.5 | T147: 53.96825397 | U147: 38.06818182 | V147: 37.72727273 | W147: 40.97222222 | X147: 54.54545455 | Y147: 52.77777778 | Z147: 50 | AA147: 47.61904762 | AB147: 55.55555556 | AC147: 50 | AD147: 50.92592593 | AE147: 38.19444444 | AF147: 39.58333333 | AG147: 56.94444444 | AH147: 0 | AI147: 0 | AJ147: 0 | AK147: 0 | AL147: 0 | AM147: 0 | AN147: 0 | AO147: 0 | AP147: 0 | AQ147: 0 | AR147: 0 | AS147: 0 | AT147: 0 | AU147: 0 | AV147: 0 | AW147: 0 | AX147: 0 | AY147: 0 | AZ147: 0 | BA147: 0 | BB147: 0
E148: 1 | F148: 2 | G148: 4 | H148: 5 | I148: 6 | J148: 7 | K148: 8 | L148: 9 | M148: 10 | N148: 11 | O148: 12 | P148: 13 | Q148: 15 | R148: 16 | S148: 17 | T148: 19 | U148: 20 | V148: 21 | W148: 22 | X148: 23 | Y148: 24 | Z148: 25 | AA148: 26 | AB148: 27 | AC148: 28 | AD148: 29 | AE148: 30 | AF148: 31 | AG148: 32 | AH148: 9999 | AI148: 9999 | AJ148: 9999 | AK148: 9999 | AL148: 9999 | AM148: 9999 | AN148: 9999 | AO148: 9999 | AP148: 9999 | AQ148: 9999 | AR148: 9999 | AS148: 9999 | AT148: 9999 | AU148: 9999 | AV148: 9999 | AW148: 9999 | AX148: 9999 | AY148: 9999 | AZ148: 9999 | BA148: 9999 | BB148: 9999
A149: come riga 147 ma gli scarti (1 ogni 4) = celle vuote | E149: =IF(E147=0,"",IF(E147=MIN($E147:$H147),IF(COUNTIF($E147:E147,MIN($E147:$H147))>1,E147,""),E147)) -> 61.9047619 | F149: =IF(F147=0,"",IF(F147=MIN($E147:$H147),IF(COUNTIF($E147:F147,MIN($E147:$H147))>1,F147,""),F147)) -> 48.41269841 | G149: =IF(G147=0,"",IF(G147=MIN($E147:$H147),IF(COUNTIF($E147:G147,MIN($E147:$H147))>1,G147,""),G147)) -> 53.7037037 | H149: =IF(H147=0,"",IF(H147=MIN($E147:$H147),IF(COUNTIF($E147:H147,MIN($E147:$H147))>1,H147,""),H147)) ->  | I149: =IF(I147=0,"",IF(I147=MIN($I147:$L147),IF(COUNTIF($I147:I147,MIN($I147:$L147))>1,I147,""),I147)) ->  | J149: =IF(J147=0,"",IF(J147=MIN($I147:$L147),IF(COUNTIF($I147:J147,MIN($I147:$L147))>1,J147,""),J147)) -> 53.57142857 | K149: =IF(K147=0,"",IF(K147=MIN($I147:$L147),IF(COUNTIF($I147:K147,MIN($I147:$L147))>1,K147,""),K147)) -> 61.80555556 | L149: =IF(L147=0,"",IF(L147=MIN($I147:$L147),IF(COUNTIF($I147:L147,MIN($I147:$L147))>1,L147,""),L147)) -> 53.7037037 | M149: =IF(M147=0,"",IF(M147=MIN($M147:$P147),IF(COUNTIF($M147:M147,MIN($M147:$P147))>1,M147,""),M147)) -> 46.36363636 | N149: =IF(N147=0,"",IF(N147=MIN($M147:$P147),IF(COUNTIF($M147:N147,MIN($M147:$P147))>1,N147,""),N147)) -> 40.45454545 | O149: =IF(O147=0,"",IF(O147=MIN($M147:$P147),IF(COUNTIF($M147:O147,MIN($M147:$P147))>1,O147,""),O147)) ->  | P149: =IF(P147=0,"",IF(P147=MIN($M147:$P147),IF(COUNTIF($M147:P147,MIN($M147:$P147))>1,P147,""),P147)) -> 45 | Q149: =IF(Q147=0,"",IF(Q147=MIN($Q147:$T147),IF(COUNTIF($Q147:Q147,MIN($Q147:$T147))>1,Q147,""),Q147)) -> 48.86363636 | R149: =IF(R147=0,"",IF(R147=MIN($Q147:$T147),IF(COUNTIF($Q147:R147,MIN($Q147:$T147))>1,R147,""),R147)) ->  | S149: =IF(S147=0,"",IF(S147=MIN($Q147:$T147),IF(COUNTIF($Q147:S147,MIN($Q147:$T147))>1,S147,""),S147)) -> 52.5 | T149: =IF(T147=0,"",IF(T147=MIN($Q147:$T147),IF(COUNTIF($Q147:T147,MIN($Q147:$T147))>1,T147,""),T147)) -> 53.96825397 | U149: =IF(U147=0,"",IF(U147=MIN($U147:$X147),IF(COUNTIF($U147:U147,MIN($U147:$X147))>1,U147,""),U147)) -> 38.06818182 | V149: =IF(V147=0,"",IF(V147=MIN($U147:$X147),IF(COUNTIF($U147:V147,MIN($U147:$X147))>1,V147,""),V147)) ->  | W149: =IF(W147=0,"",IF(W147=MIN($U147:$X147),IF(COUNTIF($U147:W147,MIN($U147:$X147))>1,W147,""),W147)) -> 40.97222222 | X149: =IF(X147=0,"",IF(X147=MIN($U147:$X147),IF(COUNTIF($U147:X147,MIN($U147:$X147))>1,X147,""),X147)) -> 54.54545455 | Y149: =IF(Y147=0,"",IF(Y147=MIN($Y147:$AB147),IF(COUNTIF($Y147:Y147,MIN($Y147:$AB147))>1,Y147,""),Y147)) -> 52.77777778 | Z149: =IF(Z147=0,"",IF(Z147=MIN($Y147:$AB147),IF(COUNTIF($Y147:Z147,MIN($Y147:$AB147))>1,Z147,""),Z147)) -> 50 | AA149: =IF(AA147=0,"",IF(AA147=MIN($Y147:$AB147),IF(COUNTIF($Y147:AA147,MIN($Y147:$AB147))>1,AA147,""),AA147)) ->  | AB149: =IF(AB147=0,"",IF(AB147=MIN($Y147:$AB147),IF(COUNTIF($Y147:AB147,MIN($Y147:$AB147))>1,AB147,""),AB147)) -> 55.55555556 | AC149: =IF(AC147=0,"",IF(AC147=MIN($AC147:$AF147),IF(COUNTIF($AC147:AC147,MIN($AC147:$AF147))>1,AC147,""),AC147)) -> 50 | AD149: =IF(AD147=0,"",IF(AD147=MIN($AC147:$AF147),IF(COUNTIF($AC147:AD147,MIN($AC147:$AF147))>1,AD147,""),AD147)) -> 50.92592593 | AE149: =IF(AE147=0,"",IF(AE147=MIN($AC147:$AF147),IF(COUNTIF($AC147:AE147,MIN($AC147:$AF147))>1,AE147,""),AE147)) ->  | AF149: =IF(AF147=0,"",IF(AF147=MIN($AC147:$AF147),IF(COUNTIF($AC147:AF147,MIN($AC147:$AF147))>1,AF147,""),AF147)) -> 39.58333333 | AG149: =IF(AG147=0,"",IF(AG147=MIN($AG147:$AJ147),IF(COUNTIF($AG147:AG147,MIN($AG147:$AJ147))>1,AG147,""),AG147)) -> 56.94444444 | AH149: =IF(AH147=0,"",IF(AH147=MIN($AG147:$AJ147),IF(COUNTIF($AG147:AH147,MIN($AG147:$AJ147))>1,AH147,""),AH147)) ->  | AI149: =IF(AI147=0,"",IF(AI147=MIN($AG147:$AJ147),IF(COUNTIF($AG147:AI147,MIN($AG147:$AJ147))>1,AI147,""),AI147)) ->  | AJ149: =IF(AJ147=0,"",IF(AJ147=MIN($AG147:$AJ147),IF(COUNTIF($AG147:AJ147,MIN($AG147:$AJ147))>1,AJ147,""),AJ147)) ->  | AK149: =IF(AK147=0,"",IF(AK147=MIN($AK147:$AN147),IF(COUNTIF($AK147:AK147,MIN($AK147:$AN147))>1,AK147,""),AK147)) ->  | AL149: =IF(AL147=0,"",IF(AL147=MIN($AK147:$AN147),IF(COUNTIF($AK147:AL147,MIN($AK147:$AN147))>1,AL147,""),AL147)) ->  | AM149: =IF(AM147=0,"",IF(AM147=MIN($AK147:$AN147),IF(COUNTIF($AK147:AM147,MIN($AK147:$AN147))>1,AM147,""),AM147)) ->  | AN149: =IF(AN147=0,"",IF(AN147=MIN($AK147:$AN147),IF(COUNTIF($AK147:AN147,MIN($AK147:$AN147))>1,AN147,""),AN147)) ->  | AO149: =IF(AO147=0,"",IF(AO147=MIN($AO147:$AR147),IF(COUNTIF($AO147:AO147,MIN($AO147:$AR147))>1,AO147,""),AO147)) ->  | AP149: =IF(AP147=0,"",IF(AP147=MIN($AO147:$AR147),IF(COUNTIF($AO147:AP147,MIN($AO147:$AR147))>1,AP147,""),AP147)) ->  | AQ149: =IF(AQ147=0,"",IF(AQ147=MIN($AO147:$AR147),IF(COUNTIF($AO147:AQ147,MIN($AO147:$AR147))>1,AQ147,""),AQ147)) ->  | AR149: =IF(AR147=0,"",IF(AR147=MIN($AO147:$AR147),IF(COUNTIF($AO147:AR147,MIN($AO147:$AR147))>1,AR147,""),AR147)) ->  | AS149: =IF(AS147=0,"",IF(AS147=MIN($AS147:$AV147),IF(COUNTIF($AS147:AS147,MIN($AS147:$AV147))>1,AS147,""),AS147)) ->  | AT149: =IF(AT147=0,"",IF(AT147=MIN($AS147:$AV147),IF(COUNTIF($AS147:AT147,MIN($AS147:$AV147))>1,AT147,""),AT147)) ->  | AU149: =IF(AU147=0,"",IF(AU147=MIN($AS147:$AV147),IF(COUNTIF($AS147:AU147,MIN($AS147:$AV147))>1,AU147,""),AU147)) ->  | AV149: =IF(AV147=0,"",IF(AV147=MIN($AS147:$AV147),IF(COUNTIF($AS147:AV147,MIN($AS147:$AV147))>1,AV147,""),AV147)) ->  | AW149: =IF(AW147=0,"",IF(AW147=MIN($AW147:$AZ147),IF(COUNTIF($AW147:AW147,MIN($AW147:$AZ147))>1,AW147,""),AW147)) ->  | AX149: =IF(AX147=0,"",IF(AX147=MIN($AW147:$AZ147),IF(COUNTIF($AW147:AX147,MIN($AW147:$AZ147))>1,AX147,""),AX147)) ->  | AY149: =IF(AY147=0,"",IF(AY147=MIN($AW147:$AZ147),IF(COUNTIF($AW147:AY147,MIN($AW147:$AZ147))>1,AY147,""),AY147)) ->  | AZ149: =IF(AZ147=0,"",IF(AZ147=MIN($AW147:$AZ147),IF(COUNTIF($AW147:AZ147,MIN($AW147:$AZ147))>1,AZ147,""),AZ147)) ->  | BA149: =IF(BA147>0,BA147,"") ->  | BB149: =IF(BB147>0,BB147,"") -> 
A150: =IF(SUM(E149:BB149)=0,0,AVERAGE(E149:BB149)) -> 50.4374918 | B150: punt.campionato=media numeri riga 149
A171: 52.85519711 | B171: 7 | C171: Antonella | D171: Dino | E171: 45.23809524 | F171: 54.76190476 | G171: 59.52380952 | H171: 47.22222222 | I171: 51.19047619 | J171: 46.59090909 | L171: 51.38888889 | M171: 55.55555556 | N171: 44.09090909 | O171: 56.81818182 | P171: 50.99 | Q171: 61.36363636 | R171: 51.58730159 | S171: 44.88636364 | T171: 62.03703704 | U171: 50 | V171: 54.7979798 | W171: 59.52380952 | X171: 51.13636364 | Y171: 46.81818182 | Z171: 55.55555556 | AA171: 48.86363636 | AB171: 34.72222222 | AC171: 49.07407407 | AD171: 50.79365079 | AE171: 34.92063492 | AF171: 51.58730159 | AG171: 48.14814815 | AH171: 56.25 | AI171: 37.5 | AJ171: 46.52777778 | BF171: 1
A172: 54.29276827 | B172: 4 | C172: Barbara | D172: Elio | E172: 40.47619048 | F172: 60.31746032 | G172: 57.14285714 | H172: 55.55555556 | J172: 43.75 | K172: 41.66666667 | L172: 43.05555556 | M172: 62.03703704 | N172: 65 | O172: 53.63636364 | P172: 46.43 | Q172: 37.27272727 | S172: 55.11363636 | T172: 50.92592593 | V172: 62.37373737 | X172: 36.93181818 | Y172: 66.36363636 | Z172: 50 | AA172: 55.68181818 | AB172: 47.22222222 | AC172: 54.62962963 | AD172: 51.58730159 | AE172: 52.38095238 | AF172: 45.23809524 | AG172: 50 | AH172: 53.47222222 | AI172: 50.69444444 | AJ172: 50 | BF172: 2
A173: 48.47734334 | B173: 10 | C173: Cesarina | D173: Gaetano | E173: 49.20634921 | F173: 38.88888889 | G173: 33.33333333 | H173: 39.81481481 | I173: 36.9047619 | J173: 44.31818182 | K173: 55.95238095 | L173: 43.05555556 | M173: 37.96296296 | N173: 53.18181818 | O173: 55 | Q173: 49.09090909 | R173: 53.17460317 | S173: 50 | T173: 34.25925926 | V173: 44.6969697 | X173: 42.61363636 | Y173: 45.97875569 | Z173: 47.22222222 | AA173: 52.84090909 | AB173: 43.05555556 | AC173: 44.44444444 | AD173: 57.14285714 | AF173: 48.41269841 | AG173: 54.62962963 | AH173: 35.41666667 | AI173: 55.55555556 | AJ173: 52.77777778 | BF173: 3
A174: 54.69596486 | B174: 3 | C174: Elena | D174: Stefano | E174: 59.52380952 | F174: 60.31746032 | G174: 53.17460317 | H174: 54.62962963 | J174: 50.56818182 | K174: 54.76190476 | L174: 50 | N174: 61.36363636 | O174: 58.63636364 | P174: 41.47 | Q174: 53.18181818 | R174: 36.50793651 | S174: 52.84090909 | U174: 52.5 | V174: 53.03030303 | W174: 42.85714286 | X174: 47.15909091 | Y174: 46.81818182 | Z174: 61.11111111 | AA174: 48.86363636 | AB174: 61.11111111 | AC174: 53.7037037 | AE174: 48.41269841 | AF174: 61.11111111 | AG174: 56.48148148 | AH174: 54.86111111 | AI174: 51.38888889 | BF174: 4
A175: 56.48789482 | B175: 2 | C175: Isolde | D175: Letizia | I175: 55.95238095 | J175: 52.27272727 | K175: 42.85714286 | M175: 61.11111111 | N175: 55.45454545 | Q175: 59.54545455 | T175: 52.77777778 | X175: 63.63636364 | Y175: 48.25493171 | Z175: 59.02777778 | AA175: 55.11363636 | AB175: 50 | AD175: 51.58730159 | AE175: 59.52380952 | AG175: 54.62962963 | AJ175: 51.38888889 | BF175: 5
A176: 47.18102224 | B176: 11 | C176: Lilli | D176: Gianni | E176: 43.65079365 | F176: 41.26984127 | G176: 51.58730159 | H176: 38.88888889 | J176: 48.29545455 | K176: 46.42857143 | L176: 59.02777778 | M176: 37.96296296 | N176: 39.54545455 | O176: 55.90909091 | Q176: 47.72727273 | S176: 48.86363636 | T176: 62.03703704 | U176: 52.5 | V176: 50.75757576 | W176: 50 | X176: 48.29545455 | Y176: 38.69499241 | Z176: 44.44444444 | AA176: 49.43181818 | AB176: 53.47222222 | AC176: 41.66666667 | AD176: 35.71428571 | AF176: 32.53968254 | AG176: 38.88888889 | AH176: 38.19444444 | AI176: 32.63888889 | AJ176: 38.19444444 | BF176: 6
A177: 54.22375132 | B177: 5 | C177: Manuela | D177: Roberto | E177: 63.49206349 | F177: 38.0952381 | G177: 43.65079365 | H177: 53.7037037 | I177: 54.76190476 | J177: 65.34090909 | L177: 57.63888889 | M177: 49.07407407 | N177: 50 | O177: 44.09090909 | P177: 48.02 | Q177: 40.90909091 | R177: 65.07936508 | S177: 60.79545455 | U177: 33.75 | V177: 53.28282828 | X177: 51.70454545 | Y177: 59.09090909 | Z177: 48.61111111 | AA177: 46.02272727 | AB177: 61.11111111 | AC177: 53.7037037 | AD177: 48.41269841 | AE177: 47.61904762 | AF177: 54.76190476 | AG177: 47.22222222 | AJ177: 56.94444444 | BF177: 7
A178: 48.87393017 | B178: 9 | C178: Olimpia | D178: Sauro | E178: 36.50793651 | F178: 57.93650794 | H178: 40.74074074 | I178: 40.47619048 | J178: 46.02272727 | L178: 40.97222222 | M178: 36.11111111 | N178: 44.09090909 | O178: 44.09090909 | P178: 46.83 | Q178: 44.54545455 | R178: 38.0952381 | T178: 47.22222222 | U178: 58.75 | V178: 53.78787879 | W178: 53.96825397 | X178: 63.06818182 | Y178: 54.17298938 | Z178: 45.83333333 | AA178: 44.88636364 | AB178: 40.97222222 | AC178: 39.81481481 | AH178: 40.27777778 | AI178: 63.19444444 | AJ178: 53.47222222 | BF178: 8
A179: 53.9520182 | B179: 6 | C179: Renata | D179: Sandro | N179: 41.36363636 | O179: 49.54545455 | P179: 44.05 | Q179: 60 | R179: 59.52380952 | S179: 44.31818182 | T179: 52.77777778 | W179: 47.61904762 | X179: 52.27272727 | Y179: 59.54545455 | Z179: 47.22222222 | AA179: 47.15909091 | AB179: 55.55555556 | AC179: 62.96296296 | AE179: 56.34920635 | AJ179: 57.63888889 | BF179: 9
A180: 58.53650703 | B180: 1 | C180: Stefania | D180: Massimo | H180: 65.74074074 | I180: 64.28571429 | J180: 54.54545455 | K180: 54.76190476 | N180: 59.54545455 | O180: 50.45454545 | P180: 65.28 | Q180: 60 | R180: 60.31746032 | S180: 57.38636364 | T180: 54.62962963 | V180: 54.54545455 | W180: 51.58730159 | X180: 55.11363636 | Y180: 56.81818182 | AD180: 57.14285714 | AE180: 45.23809524 | AF180: 56.34920635 | AG180: 49.07407407 | AH180: 60.41666667 | AI180: 59.72222222 | BF180: 10
A181: 50.12763691 | B181: 8 | C181: Tatiana | D181: Julio | E181: 61.9047619 | F181: 48.41269841 | H181: 53.7037037 | I181: 46.42857143 | J181: 50.56818182 | K181: 53.57142857 | L181: 61.80555556 | M181: 53.7037037 | N181: 46.36363636 | O181: 40.45454545 | P181: 37.1 | Q181: 45 | S181: 48.86363636 | T181: 33.33333333 | U181: 52.5 | W181: 53.96825397 | X181: 38.06818182 | Y181: 37.72727273 | Z181: 40.97222222 | AA181: 54.54545455 | AB181: 52.77777778 | AC181: 50 | AD181: 47.61904762 | AE181: 55.55555556 | AF181: 50 | AG181: 50.92592593 | AH181: 38.19444444 | AI181: 39.58333333 | AJ181: 56.94444444 | BF181: 11

Sheet CSTD
A1: Data | D1: BridgeMania 2016-17 - Torneo Howell
A2: luogo | D2: Coppie Ctrl+e | E2: Calcola Ctr+f | F2: Duplica Ctrl+g | G2: Clear Ctrl+h
A3: # coppie | C3: =IF(B5="","",COUNT(B5:B25)) ->  | E3: =IF(E5="","",SUMIF(E5:E25,">0")) ->  | G3: =IF(G5="","",SUM(G5:G25)) ->  | H3: =IF(H5="","",SUM(H5:H25)) ->  | I3: =SUM(I5:I25) -> 0 | J3: =SUM(J5:J25) -> 0 | K3: =SUM(K5:K25) -> 0 | L3: =SUM(L5:L25) -> 0 | M3: 0 | N3: 0 | O3: 0 | P3: 0 | Q3: 0 | R3: 0 | S3: 0 | T3: 0 | U3: 0 | V3: 0 | W3: 0 | X3: 0 | Y3: 0 | Z3: 0 | AA3: 0 | AB3: 0 | AC3: 0 | AD3: 0 | AE3: 0 | AF3: 0 | AG3: 0 | AH3: 0 | AI3: 0 | AJ3: 0 | AK3: 0 | AL3: 0 | AM3: 0 | AN3: 0 | AO3: 0 | AP3: 0 | AQ3: 0 | AR3: 0 | AS3: 0 | AT3: 0 | AU3: 0 | AV3: 0 | AW3: 0 | AX3: 0
A4: Class. | B4: # | C4: Coppie | E4: Punteggio Serata | F4: Handicap | G4: Punteggio % | H4: Punteggio Torneo | I4: Penalità (-) | J4: Totale punti mano | K4: 1 | L4: 2 | M4: 3 | N4: 4 | O4: 5 | P4: 6 | Q4: 7 | R4: 8 | S4: 9 | T4: 10 | U4: 11 | V4: 12 | W4: 13 | X4: 14 | Y4: 15 | Z4: 16 | AA4: 17 | AB4: 18 | AC4: 19 | AD4: 20 | AE4: 21 | AF4: 22 | AG4: 23 | AH4: 24 | AI4: 25 | AJ4: 26 | AK4: 27 | AL4: 28 | AM4: 29 | AN4: 30 | AO4: 31 | AP4: 32 | AQ4: 33 | AR4: 34 | AS4: 35 | AT4: 36 | AU4: 37 | AV4: 38 | AW4: 39 | AX4: 40 | BF4: coppia | BG4: handicap
A5: =IF(J$2="","",IF($E5="","",IF($E5=MAX($E$5:$E$54),1,IF($E5=$E4,$A4,COUNT($E$5:$E5))))) ->  | E5: =IF(J$2="","",IF(G5=0,0,F5+G5)) ->  | F5: =IF(C5="","",IF(BG5=0,0,BG5)) ->  | G5: =IF(J$2="","",IF($J5=0,0,(H5*$C$3/$J$3)*50)) ->  | H5: =IF(J$2="","",IF(SUM($K5:$AX5)=0,0,SUM($K5:$AX5)+$I5)) ->  | J5: =IF(B5="",0,IF(SUM($K5:$AX5)=0,0,SUM($K5:$AX5))) -> 0
A6: =IF(J$2="","",IF($E6="","",IF($E6=MAX($E$5:$E$54),1,IF($E6=$E5,$A5,COUNT($E$5:$E6))))) ->  | J6: 0
A7: =IF(J$2="","",IF($E7="","",IF($E7=MAX($E$5:$E$54),1,IF($E7=$E6,$A6,COUNT($E$5:$E7))))) ->  | J7: 0
A8: =IF(J$2="","",IF($E8="","",IF($E8=MAX($E$5:$E$54),1,IF($E8=$E7,$A7,COUNT($E$5:$E8))))) ->  | J8: 0
A9: =IF(J$2="","",IF($E9="","",IF($E9=MAX($E$5:$E$54),1,IF($E9=$E8,$A8,COUNT($E$5:$E9))))) ->  | J9: 0
A10: =IF(J$2="","",IF($E10="","",IF($E10=MAX($E$5:$E$54),1,IF($E10=$E9,$A9,COUNT($E$5:$E10))))) ->  | J10: 0
A11: =IF(J$2="","",IF($E11="","",IF($E11=MAX($E$5:$E$54),1,IF($E11=$E10,$A10,COUNT($E$5:$E11))))) ->  | J11: 0
A12: =IF(J$2="","",IF($E12="","",IF($E12=MAX($E$5:$E$54),1,IF($E12=$E11,$A11,COUNT($E$5:$E12))))) ->  | J12: 0
A13: =IF(J$2="","",IF($E13="","",IF($E13=MAX($E$5:$E$54),1,IF($E13=$E12,$A12,COUNT($E$5:$E13))))) ->  | J13: 0
A14: =IF(J$2="","",IF($E14="","",IF($E14=MAX($E$5:$E$54),1,IF($E14=$E13,$A13,COUNT($E$5:$E14))))) ->  | J14: 0
A15: =IF(J$2="","",IF($E15="","",IF($E15=MAX($E$5:$E$54),1,IF($E15=$E14,$A14,COUNT($E$5:$E15))))) ->  | J15: 0
A16: =IF(J$2="","",IF($E16="","",IF($E16=MAX($E$5:$E$54),1,IF($E16=$E15,$A15,COUNT($E$5:$E16))))) ->  | J16: 0
A17: =IF(J$2="","",IF($E17="","",IF($E17=MAX($E$5:$E$54),1,IF($E17=$E16,$A16,COUNT($E$5:$E17))))) ->  | J17: 0
A18: =IF(J$2="","",IF($E18="","",IF($E18=MAX($E$5:$E$54),1,IF($E18=$E17,$A17,COUNT($E$5:$E18))))) ->  | J18: 0
A19: =IF(J$2="","",IF($E19="","",IF($E19=MAX($E$5:$E$54),1,IF($E19=$E18,$A18,COUNT($E$5:$E19))))) ->  | J19: 0
A20: =IF(J$2="","",IF($E20="","",IF($E20=MAX($E$5:$E$54),1,IF($E20=$E19,$A19,COUNT($E$5:$E20))))) ->  | J20: 0
A21: =IF(J$2="","",IF($E21="","",IF($E21=MAX($E$5:$E$54),1,IF($E21=$E20,$A20,COUNT($E$5:$E21))))) ->  | J21: 0
A22: =IF(J$2="","",IF($E22="","",IF($E22=MAX($E$5:$E$54),1,IF($E22=$E21,$A21,COUNT($E$5:$E22))))) ->  | J22: 0
A23: =IF(J$2="","",IF($E23="","",IF($E23=MAX($E$5:$E$54),1,IF($E23=$E22,$A22,COUNT($E$5:$E23))))) ->  | J23: 0
A24: =IF(J$2="","",IF($E24="","",IF($E24=MAX($E$5:$E$54),1,IF($E24=$E23,$A23,COUNT($E$5:$E24))))) ->  | J24: 0
A25: =IF(J$2="","",IF($E25="","",IF($E25=MAX($E$5:$E$54),1,IF($E25=$E24,$A24,COUNT($E$5:$E25))))) ->  | J25: 0
A26: =IF(J$2="","",IF($E26="","",IF($E26=MAX($E$5:$E$54),1,IF($E26=$E25,$A25,COUNT($E$5:$E26))))) ->  | J26: 0
A27: =IF(J$2="","",IF($E27="","",IF($E27=MAX($E$5:$E$54),1,IF($E27=$E26,$A26,COUNT($E$5:$E27))))) ->  | J27: 0
A28: =IF(J$2="","",IF($E28="","",IF($E28=MAX($E$5:$E$54),1,IF($E28=$E27,$A27,COUNT($E$5:$E28))))) ->  | J28: 0
A29: =IF(J$2="","",IF($E29="","",IF($E29=MAX($E$5:$E$54),1,IF($E29=$E28,$A28,COUNT($E$5:$E29))))) ->  | J29: 0
A30: =IF(J$2="","",IF($E30="","",IF($E30=MAX($E$5:$E$54),1,IF($E30=$E29,$A29,COUNT($E$5:$E30))))) ->  | J30: 0
A31: =IF(J$2="","",IF($E31="","",IF($E31=MAX($E$5:$E$54),1,IF($E31=$E30,$A30,COUNT($E$5:$E31))))) ->  | J31: 0
A32: =IF(J$2="","",IF($E32="","",IF($E32=MAX($E$5:$E$54),1,IF($E32=$E31,$A31,COUNT($E$5:$E32))))) ->  | J32: 0
A33: =IF(J$2="","",IF($E33="","",IF($E33=MAX($E$5:$E$54),1,IF($E33=$E32,$A32,COUNT($E$5:$E33))))) ->  | J33: 0
A34: =IF(J$2="","",IF($E34="","",IF($E34=MAX($E$5:$E$54),1,IF($E34=$E33,$A33,COUNT($E$5:$E34))))) ->  | J34: 0
A35: =IF(J$2="","",IF($E35="","",IF($E35=MAX($E$5:$E$54),1,IF($E35=$E34,$A34,COUNT($E$5:$E35))))) ->  | J35: 0
A36: =IF(J$2="","",IF($E36="","",IF($E36=MAX($E$5:$E$54),1,IF($E36=$E35,$A35,COUNT($E$5:$E36))))) ->  | J36: 0
A37: =IF(J$2="","",IF($E37="","",IF($E37=MAX($E$5:$E$54),1,IF($E37=$E36,$A36,COUNT($E$5:$E37))))) ->  | G37: =IF(J$2="","",IF($J37=0,0,(H37*$C$3/$J$3)*50)) ->  | H37: =IF(J$2="","",IF(SUM($K37:$AX37)=0,0,SUM($K37:$AX37)+$I37)) ->  | J37: =IF(B37="",0,IF(SUM($K37:$AX37)=0,0,SUM($K37:$AX37))) -> 0
A38: =IF(J$2="","",IF($E38="","",IF($E38=MAX($E$5:$E$54),1,IF($E38=$E37,$A37,COUNT($E$5:$E38))))) ->  | J38: 0
A39: =IF(J$2="","",IF($E39="","",IF($E39=MAX($E$5:$E$54),1,IF($E39=$E38,$A38,COUNT($E$5:$E39))))) ->  | J39: 0
A40: =IF(J$2="","",IF($E40="","",IF($E40=MAX($E$5:$E$54),1,IF($E40=$E39,$A39,COUNT($E$5:$E40))))) ->  | J40: 0
A41: =IF(J$2="","",IF($E41="","",IF($E41=MAX($E$5:$E$54),1,IF($E41=$E40,$A40,COUNT($E$5:$E41))))) ->  | J41: 0
A42: =IF(J$2="","",IF($E42="","",IF($E42=MAX($E$5:$E$54),1,IF($E42=$E41,$A41,COUNT($E$5:$E42))))) ->  | J42: 0
A43: =IF(J$2="","",IF($E43="","",IF($E43=MAX($E$5:$E$54),1,IF($E43=$E42,$A42,COUNT($E$5:$E43))))) ->  | J43: 0
A44: =IF(J$2="","",IF($E44="","",IF($E44=MAX($E$5:$E$54),1,IF($E44=$E43,$A43,COUNT($E$5:$E44))))) ->  | J44: 0
A45: =IF(J$2="","",IF($E45="","",IF($E45=MAX($E$5:$E$54),1,IF($E45=$E44,$A44,COUNT($E$5:$E45))))) ->  | J45: 0
A46: =IF(J$2="","",IF($E46="","",IF($E46=MAX($E$5:$E$54),1,IF($E46=$E45,$A45,COUNT($E$5:$E46))))) ->  | J46: 0
A47: =IF(J$2="","",IF($E47="","",IF($E47=MAX($E$5:$E$54),1,IF($E47=$E46,$A46,COUNT($E$5:$E47))))) ->  | J47: 0
A48: =IF(J$2="","",IF($E48="","",IF($E48=MAX($E$5:$E$54),1,IF($E48=$E47,$A47,COUNT($E$5:$E48))))) ->  | J48: 0
A49: =IF(J$2="","",IF($E49="","",IF($E49=MAX($E$5:$E$54),1,IF($E49=$E48,$A48,COUNT($E$5:$E49))))) ->  | J49: 0
A50: =IF(J$2="","",IF($E50="","",IF($E50=MAX($E$5:$E$54),1,IF($E50=$E49,$A49,COUNT($E$5:$E50))))) ->  | J50: 0
A51: =IF(J$2="","",IF($E51="","",IF($E51=MAX($E$5:$E$54),1,IF($E51=$E50,$A50,COUNT($E$5:$E51))))) ->  | J51: 0
A52: =IF(J$2="","",IF($E52="","",IF($E52=MAX($E$5:$E$54),1,IF($E52=$E51,$A51,COUNT($E$5:$E52))))) ->  | J52: 0
A53: =IF(J$2="","",IF($E53="","",IF($E53=MAX($E$5:$E$54),1,IF($E53=$E52,$A52,COUNT($E$5:$E53))))) ->  | J53: 0
A54: =IF(J$2="","",IF($E54="","",IF($E54=MAX($E$5:$E$54),1,IF($E54=$E53,$A53,COUNT($E$5:$E54))))) ->  | J54: 0
D59: punteggi % ordinati per # di coppia
B60: # coppia | E60: con zeri | F60: senza zeri | G60: senza zeri
F61: =IF(E61=0,"",E61) -> 
I63: =IF(H63=0,"",H63) -> 
I65: =IF(H65=0,"",H65) -> 
I68: =IF(H68=0,"",H68) -> 
I70: =IF(H70=0,"",H70) -> 
I71: =IF(H71=0,"",H71) -> 
I73: =IF(H73=0,"",H73) -> 
I74: =IF(H74=0,"",H74) -> 
I75: =IF(H75=0,"",H75) -> 
I76: =IF(H76=0,"",H76) -> 
I79: =IF(H79=0,"",H79) -> 
I80: =IF(H80=0,"",H80) -> 
F93: =IF(E93=0,"",E93) -> 
A119: punteggi con handicap ordinati per numero standard di coppia base
B120: # coppia | E120: con zeri | F120: senza zeri | G120: senza zeri
F121: =IF(E121=0,"",E121) -> 
I122: =IF(H122=0,"",H122) -> 
I130: =IF(H130=0,"",H130) -> 

Sheet P
A1: BridgeMania 2016-17 | D1: =IF(RIS!E1="","",RIS!E1) -> 1 | E1: =IF(RIS!F1="","",RIS!F1) -> 2 | F1: =IF(RIS!G1="","",RIS!G1) -> 3 | G1: =IF(RIS!H1="","",RIS!H1) -> 4 | H1: =IF(RIS!I1="","",RIS!I1) -> 5 | I1: =IF(RIS!J1="","",RIS!J1) -> 6 | J1: =IF(RIS!K1="","",RIS!K1) -> 7 | K1: =IF(RIS!L1="","",RIS!L1) -> 8 | L1: =IF(RIS!M1="","",RIS!M1) -> 9 | M1: =IF(RIS!N1="","",RIS!N1) -> 10 | N1: =IF(RIS!O1="","",RIS!O1) -> 11 | O1: =IF(RIS!P1="","",RIS!P1) -> 12 | P1: =IF(RIS!Q1="","",RIS!Q1) -> 13 | Q1: =IF(RIS!R1="","",RIS!R1) -> 14 | R1: =IF(RIS!S1="","",RIS!S1) -> 15 | S1: =IF(RIS!T1="","",RIS!T1) -> 16 | T1: =IF(RIS!U1="","",RIS!U1) -> 17 | U1: =IF(RIS!V1="","",RIS!V1) -> 18 | V1: =IF(RIS!W1="","",RIS!W1) -> 19 | W1: =IF(RIS!X1="","",RIS!X1) -> 20 | X1: =IF(RIS!Y1="","",RIS!Y1) -> 21 | Y1: =IF(RIS!Z1="","",RIS!Z1) -> 22 | Z1: =IF(RIS!AA1="","",RIS!AA1) -> 23 | AA1: =IF(RIS!AB1="","",RIS!AB1) -> 24 | AB1: =IF(RIS!AC1="","",RIS!AC1) -> 25 | AC1: =IF(RIS!AD1="","",RIS!AD1) -> 26 | AD1: =IF(RIS!AE1="","",RIS!AE1) -> 27 | AE1: =IF(RIS!AF1="","",RIS!AF1) -> 28 | AF1: =IF(RIS!AG1="","",RIS!AG1) -> 29 | AG1: =IF(RIS!AH1="","",RIS!AH1) -> 30 | AH1: =IF(RIS!AI1="","",RIS!AI1) -> 31 | AI1: =IF(RIS!AJ1="","",RIS!AJ1) -> 32 | AJ1: =IF(RIS!AK1="","",RIS!AK1) -> 33 | AK1: =IF(RIS!AL1="","",RIS!AL1) -> 34 | AL1: =IF(RIS!AM1="","",RIS!AM1) -> 35 | AM1: =IF(RIS!AN1="","",RIS!AN1) -> 36 | AN1: =IF(RIS!AO1="","",RIS!AO1) -> 37 | AO1: =IF(RIS!AP1="","",RIS!AP1) -> 38 | AP1: =IF(RIS!AQ1="","",RIS!AQ1) -> 39 | AQ1: =IF(RIS!AR1="","",RIS!AR1) -> 40 | AR1: =IF(RIS!AS1="","",RIS!AS1) -> 41 | AS1: =IF(RIS!AT1="","",RIS!AT1) -> 42 | AT1: =IF(RIS!AU1="","",RIS!AU1) -> 43 | AU1: =IF(RIS!AV1="","",RIS!AV1) -> 44 | AV1: =IF(RIS!AW1="","",RIS!AW1) -> 45 | AW1: =IF(RIS!AX1="","",RIS!AX1) -> 46 | AX1: =IF(RIS!AY1="","",RIS!AY1) -> 47 | AY1: =IF(RIS!AZ1="","",RIS!AZ1) -> 48 | AZ1: =IF(RIS!BA1="","",RIS!BA1) -> 49 | BA1: =IF(RIS!BB1="","",RIS!BB1) -> 50
A2: Andamento Punteggi Campionato | C2: data | D2: =IF(RIS!E2="","",RIS!E2) -> 2016-09-17 | E2: =IF(RIS!F2="","",RIS!F2) -> 2016-09-24 | F2: =IF(RIS!G2="","",RIS!G2) -> 2016-10-08 | G2: =IF(RIS!H2="","",RIS!H2) -> 2016-10-15 | H2: =IF(RIS!I2="","",RIS!I2) -> 2016-10-22 | I2: =IF(RIS!J2="","",RIS!J2) -> 2016-10-29 | J2: =IF(RIS!K2="","",RIS!K2) -> 2016-11-05 | K2: =IF(RIS!L2="","",RIS!L2) -> 2016-11-19 | L2: =IF(RIS!M2="","",RIS!M2) -> 2016-12-03 | M2: =IF(RIS!N2="","",RIS!N2) -> 2016-12-11 | N2: =IF(RIS!O2="","",RIS!O2) -> 2017-01-07 | O2: =IF(RIS!P2="","",RIS!P2) -> 2017-01-14 | P2: =IF(RIS!Q2="","",RIS!Q2) -> 2017-01-21 | Q2: =IF(RIS!R2="","",RIS!R2) -> 2017-01-28 | R2: =IF(RIS!S2="","",RIS!S2) -> 2017-02-04 | S2: =IF(RIS!T2="","",RIS!T2) -> 2017-02-11 | T2: =IF(RIS!U2="","",RIS!U2) -> 2017-02-18 | U2: =IF(RIS!V2="","",RIS!V2) -> 2017-02-25 | V2: =IF(RIS!W2="","",RIS!W2) -> 2017-03-11 | W2: =IF(RIS!X2="","",RIS!X2) -> 2017-03-18 | X2: =IF(RIS!Y2="","",RIS!Y2) -> 2017-03-25 | Y2: =IF(RIS!Z2="","",RIS!Z2) -> 2017-04-01 | Z2: =IF(RIS!AA2="","",RIS!AA2) -> 2017-04-29 | AA2: =IF(RIS!AB2="","",RIS!AB2) -> 2017-05-13 | AB2: =IF(RIS!AC2="","",RIS!AC2) -> 2017-05-20 | AC2: =IF(RIS!AD2="","",RIS!AD2) -> 2017-05-27 | AD2: =IF(RIS!AE2="","",RIS!AE2) -> 2017-06-10 | AE2: =IF(RIS!AF2="","",RIS!AF2) -> 2017-06-17 | AF2: =IF(RIS!AG2="","",RIS!AG2) -> 2017-06-24 | AG2: =IF(RIS!AH2="","",RIS!AH2) -> 2017-07-01 | AH2: =IF(RIS!AI2="","",RIS!AI2) -> 2017-07-08 | AI2: =IF(RIS!AJ2="","",RIS!AJ2) ->  | AJ2: =IF(RIS!AK2="","",RIS!AK2) -> 
C3: luogo | D3: =IF(RIS!E3="","",RIS!E3) -> Pre | E3: =IF(RIS!F3="","",RIS!F3) -> DeS | F3: =IF(RIS!G3="","",RIS!G3) -> Cat | G3: =IF(RIS!H3="","",RIS!H3) -> Pol | H3: =IF(RIS!I3="","",RIS!I3) -> Sav | I3: =IF(RIS!J3="","",RIS!J3) -> Bia | J3: =IF(RIS!K3="","",RIS!K3) -> Tor | K3: =IF(RIS!L3="","",RIS!L3) -> Sim | L3: =IF(RIS!M3="","",RIS!M3) -> Ban | M3: =IF(RIS!N3="","",RIS!N3) -> H.Polo | N3: =IF(RIS!O3="","",RIS!O3) -> Dej | O3: =IF(RIS!P3="","",RIS!P3) -> Pre | P3: =IF(RIS!Q3="","",RIS!Q3) -> Sav | Q3: =IF(RIS!R3="","",RIS!R3) -> DeS | R3: =IF(RIS!S3="","",RIS!S3) -> Mal | S3: =IF(RIS!T3="","",RIS!T3) -> Pol | T3: =IF(RIS!U3="","",RIS!U3) -> Bia | U3: =IF(RIS!V3="","",RIS!V3) -> Tor | V3: =IF(RIS!W3="","",RIS!W3) -> Mal | W3: =IF(RIS!X3="","",RIS!X3) -> Sim | X3: =IF(RIS!Y3="","",RIS!Y3) -> Padova | Y3: =IF(RIS!Z3="","",RIS!Z3) -> Cat | Z3: =IF(RIS!AA3="","",RIS!AA3) -> Ban | AA3: =IF(RIS!AB3="","",RIS!AB3) -> Sav | AB3: =IF(RIS!AC3="","",RIS!AC3) -> DeS | AC3: =IF(RIS!AD3="","",RIS!AD3) -> Pre | AD3: =IF(RIS!AE3="","",RIS!AE3) -> Dej | AE3: =IF(RIS!AF3="","",RIS!AF3) -> Pol | AF3: =IF(RIS!AG3="","",RIS!AG3) -> Sim | AG3: =IF(RIS!AH3="","",RIS!AH3) -> Tor | AH3: =IF(RIS!AI3="","",RIS!AI3) -> Bia | AI3: =IF(RIS!AJ3="","",RIS!AJ3) ->  | AJ3: =IF(RIS!AK3="","",RIS!AK3) -> 
A4: ctrl+u | C4: # coppie - mani | D4: =IF(RIS!E4="","",RIS!E4) -> 12-22 | E4: =IF(RIS!F4="","",RIS!F4) -> 11-22 | F4: =IF(RIS!G4="","",RIS!G4) -> 8-21 | G4: =IF(RIS!H4="","",RIS!H4) -> 11-22 | H4: =IF(RIS!I4="","",RIS!I4) -> 9-18 | I4: =IF(RIS!J4="","",RIS!J4) -> 11-22 | J4: =IF(RIS!K4="","",RIS!K4) -> 8-21 | K4: =IF(RIS!L4="","",RIS!L4) -> 12-22 | L4: =IF(RIS!M4="","",RIS!M4) -> 11-22 | M4: =IF(RIS!N4="","",RIS!N4) -> 16-21 | N4: =IF(RIS!O4="","",RIS!O4) -> 10-18 | O4: =IF(RIS!P4="","",RIS!P4) -> 11-22 | P4: =IF(RIS!Q4="","",RIS!Q4) -> 11-22 | Q4: =IF(RIS!R4="","",RIS!R4) -> 11-22 | R4: =IF(RIS!S4="","",RIS!S4) -> 7-21 | S4: =IF(RIS!T4="","",RIS!T4) -> 11-22 | T4: =IF(RIS!U4="","",RIS!U4) -> 12-22 | U4: =IF(RIS!V4="","",RIS!V4) -> 8-21 | V4: =IF(RIS!W4="","",RIS!W4) -> 9-18 | W4: =IF(RIS!X4="","",RIS!X4) -> 10-18 | X4: =IF(RIS!Y4="","",RIS!Y4) -> 23-24 | Y4: =IF(RIS!Z4="","",RIS!Z4) -> 8-21 | Z4: =IF(RIS!AA4="","",RIS!AA4) -> 8-21 | AA4: =IF(RIS!AB4="","",RIS!AB4) -> 11-22 | AB4: =IF(RIS!AC4="","",RIS!AC4) -> 10-18 | AC4: =IF(RIS!AD4="","",RIS!AD4) -> 8-21 | AD4: =IF(RIS!AE4="","",RIS!AE4) -> 9-18 | AE4: =IF(RIS!AF4="","",RIS!AF4) -> 9-18 | AF4: =IF(RIS!AG4="","",RIS!AG4) -> 10-18 | AG4: =IF(RIS!AH4="","",RIS!AH4) -> 7-21 | AH4: =IF(RIS!AI4="","",RIS!AI4) -> 7-21 | AI4: =IF(RIS!AJ4="","",RIS!AJ4) ->  | AJ4: =IF(RIS!AK4="","",RIS!AK4) -> 
B5: Coppie base | D5: andamenti dei punteggi speciali campionato
A6: 1 | B6: Antonella | C6: Dino | D6: 53.72181818 | E6: 58.665 | F6: 53.04661376 | G6: 50.2892785 | H6: 53.30238576 | I6: 51.61092753 | J6: 52.25158868 | K6: 51.39843555 | L6: 52.25002352 | M6: 52.80818783 | N6: 53.04390813 | O6: 52.74055215 | P6: 52.57127891 | Q6: 52.30443431 | R6: 51.55188472 | S6: 51.52415329 | T6: 51.78711753 | U6: 51.78711753 | V6: 51.15198961 | W6: 50.68118313 | X6: 50.84614233 | Y6: 50.84614233 | Z6: 50.71818544 | AA6: 50.58095387 | AB6: 50.24704766 | AC6: 50.24704766 | AD6: 50.22067376 | AE6: 50.15937274 | AF6: 49.88020883 | AG6: 49.64009527 | AH6: 49.79978575
A7: 2 | B7: Barbara | C7: Elio | D7: 55.79909091 | E7: 58.24227273 | F7: 59.95553632 | G7: 57.01301587 | H7: 56.14396825 | I7: 55.57512506 | J7: 55.57512506 | K7: 55.24997732 | L7: 54.72202561 | M7: 53.43281906 | N7: 53.84242605 | O7: 53.17319723 | P7: 52.42611261 | Q7: 52.42611261 | R7: 52.42611261 | S7: 51.53172633 | T7: 52.48588873 | U7: 52.5244697 | V7: 52.8227783 | W7: 52.65026193 | X7: 52.58610875 | Y7: 52.94546142 | Z7: 53.62602168 | AA7: 53.36694706 | AB7: 53.27203532 | AC7: 53.26301653 | AD7: 53.26301653 | AE7: 52.8909927 | AF7: 53.18761965 | AG7: 53.83917641 | AH7: 53.6488189
A8: 3 | B8: Cesarina | C8: Gaetano | D8: 35.12090909 | E8: 39.66636364 | F8: 43.18969216 | G8: 43.30317821 | H8: 39.84854257 | I8: 39.5340885 | J8: 39.5340885 | K8: 41.09519274 | L8: 41.12965729 | M8: 41.12965729 | N8: 41.92105339 | O8: 42.83194805 | P8: 43.5772255 | Q8: 44.05624459 | R8: 44.05624459 | S8: 44.33044955 | T8: 44.25704082 | U8: 44.25704082 | V8: 43.53573192 | W8: 44.26454034 | X8: 44.26454034 | Y8: 43.96222845 | Z8: 44.13442387 | AA8: 44.88610491 | AB8: 45.67941077 | AC8: 45.59406468 | AD8: 45.54653986 | AE8: 45.38237468 | AF8: 45.4151461 | AG8: 45.4151461 | AH8: 45.4151461
A9: 4 | B9: Elena | C9: Stefano | D9: 53.82545455 | E9: 47.85954545 | F9: 45.95207792 | G9: 47.06814935 | H9: 50.65866763 | I9: 52.13343515 | J9: 51.83918024 | K9: 51.73235089 | L9: 49.50279675 | M9: 48.54301708 | N9: 48.61001552 | O9: 48.90258999 | P9: 47.88267048 | Q9: 47.69838882 | R9: 47.69838882 | S9: 47.69838882 | T9: 47.95534472 | U9: 47.93892932 | V9: 48.50801191 | W9: 48.89812236 | X9: 49.31657947 | Y9: 49.31657947 | Z9: 49.31657947 | AA9: 49.62725049 | AB9: 49.31309571 | AC9: 49.27551632 | AD9: 49.27551632 | AE9: 49.27551632 | AF9: 49.06435861 | AG9: 49.06435861 | AH9: 49.02374049
A10: 5 | B10: Isolde | C10: Letizia | D10: 56.72727273 | E10: 52.86363636 | F10: 52.86363636 | G10: 52.86363636 | H10: 52.86363636 | I10: 53.46969697 | J10: 50.96338384 | K10: 51.02525253 | L10: 50.78240741 | M10: 50.78240741 | N10: 50.78240741 | O10: 52.1511544 | P10: 52.96464646 | Q10: 52.96604938 | R10: 52.09325397 | S10: 52.89675981 | T10: 52.72354497 | U10: 52.72354497 | V10: 52.57956858 | W10: 52.22467876 | X10: 52.22467876 | Y10: 52.22467876 | Z10: 52.22467876 | AA10: 51.9339426 | AB10: 52.57522397 | AC10: 52.7383994 | AD10: 52.22206857 | AE10: 52.22206857 | AF10: 52.34488367 | AG10: 52.34488367 | AH10: 52.34488367
A11: 6 | B11: Lilli | C11: Gianni | D11: 49.00727273 | E11: 40.76863636 | F11: 40.76863636 | G11: 43.51484848 | H11: 43.51484848 | I11: 47.30272727 | J11: 46.66961039 | K11: 47.24861472 | L11: 48.23037106 | M11: 48.23037106 | N11: 46.96226912 | O11: 46.96226912 | P11: 46.17808802 | Q11: 46.74520399 | R11: 46.32945286 | S11: 45.79243201 | T11: 46.28180375 | U11: 45.82136604 | V11: 46.79910474 | W11: 46.53164106 | X11: 46.82092298 | Y11: 47.05561124 | Z11: 47.50492592 | AA11: 47.57646624 | AB11: 47.65011172 | AC11: 47.56638705 | AD11: 46.98809623 | AE11: 47.01162424 | AF11: 47.01162424 | AG11: 46.76370462 | AH11: 46.76370462
A12: 7 | B12: Manuela | C12: Roberto | D12: 55.72363636 | E12: 60.21227273 | F12: 61.09220298 | G12: 60.43187951 | H12: 57.66194805 | I12: 55.23662338 | J12: 55.23662338 | K12: 55.23662338 | L12: 54.64061224 | M12: 55.47793155 | N12: 55.02964286 | O12: 53.95131494 | P12: 53.22400531 | Q12: 52.09708063 | R12: 52.09708063 | S12: 52.80436813 | T12: 53.07782236 | U12: 52.82996753 | V12: 52.84457604 | W12: 52.10855523 | X12: 52.88603101 | Y12: 53.74472779 | Z12: 53.68422156 | AA12: 53.26185603 | AB12: 53.14763025 | AC12: 53.22449657 | AD12: 53.17921662 | AE12: 53.35978129 | AF12: 53.74013158 | AG12: 53.57790448 | AH12: 53.25719701
A13: 8 | B13: Olimpia | C13: Sauro | D13: 37.44363636 | E13: 43.97772727 | F13: 45.02240019 | G13: 44.83225469 | H13: 43.67439634 | I13: 43.77229998 | J13: 43.11557686 | K13: 42.83272066 | L13: 43.18090321 | M13: 43.18090321 | N13: 44.31803511 | O13: 44.10631291 | P13: 43.64578684 | Q13: 44.47988715 | R13: 44.47988715 | S13: 44.58068142 | T13: 44.7596161 | U13: 44.61786464 | V13: 44.56534953 | W13: 44.56534953 | X13: 44.56534953 | Y13: 44.56534953 | Z13: 44.49051492 | AA13: 44.81998918 | AB13: 44.29136535 | AC13: 43.87843893 | AD13: 43.99026204 | AE13: 44.74863075 | AF13: 44.80744108 | AG13: 44.91133071 | AH13: 45.00752481
A14: 9 | B14: Renata | C14: Sandro | D14: 47.87090909 | E14: 51.16636364 | F14: 50.10635883 | G14: 50.7690873 | H14: 50.9268254 | I14: 50.56902116 | J14: 51.56061224 | K14: 51.4261039 | L14: 51.32148629 | M14: 52.10900433 | N14: 51.42757969 | O14: 51.53838745 | P14: 52.76851149 | Q14: 52.56478664 | R14: 52.78865801 | S14: 53.21283279 | T14: 52.31036669 | U14: 52.42287718 | V14: 52.42607858 | W14: 52.72988576 | X14: 52.72988576 | Y14: 52.16386701 | Z14: 52.16386701 | AA14: 51.8550962 | AB14: 51.90255579 | AC14: 51.90255579 | AD14: 52.42831349 | AE14: 52.4305291 | AF14: 51.88948311 | AG14: 51.73022536 | AH14: 51.87996221
A15: 10 | B15: Stefania | C15: Massimo | D15: 58.33909091 | E15: 53.45272727 | F15: 53.45272727 | G15: 55.61181818 | H15: 53.56636364 | I15: 54.38454545 | J15: 55.47413179 | K15: 54.73081427 | L15: 53.74718975 | M15: 54.43416867 | N15: 55.19208514 | O15: 55.05462285 | P15: 55.12946489 | Q15: 55.23649906 | R15: 55.86936817 | S15: 55.30674363 | T15: 54.81444715 | U15: 54.98697734 | V15: 54.98697734 | W15: 54.98697734 | X15: 54.98697734 | Y15: 54.96397066 | Z15: 54.96397066 | AA15: 54.59735019 | AB15: 54.4125938 | AC15: 54.76036144 | AD15: 55.60561437 | AE15: 55.08912228 | AF15: 55.08827922 | AG15: 55.08827922 | AH15: 55.08827922
A16: 11 | B16: Tatiana | C16: Julio | D16: 57.68272727 | E16: 47.79636364 | F16: 46.81572391 | G16: 47.14611111 | H16: 48.53962963 | I16: 48.37787318 | J16: 48.10128358 | K16: 48.53191859 | L16: 50.06635188 | M16: 49.52780002 | N16: 49.52780002 | O16: 49.86626448 | P16: 50.43240911 | Q16: 50.16844757 | R16: 50.6959054 | S16: 50.60108746 | T16: 50.64596268 | U16: 50.81882388 | V16: 50.81882388 | W16: 50.6803707 | X16: 50.42471141 | Y16: 49.94778536 | Z16: 49.89420979 | AA16: 49.99513414 | AB16: 49.99513414 | AC16: 49.99513414 | AD16: 49.99513414 | AE16: 50.05342943 | AF16: 49.86574024 | AG16: 49.98274873 | AH16: 49.99918147
D17: variazioni dei punteggi speciali campionato
A18: 1 | B18: Antonella | C18: Dino | E18: =IF(E6="","",E6-D6) -> 4.943181818 | F18: =IF(F6="","",F6-E6) -> -5.618386243 | G18: -2.757335257 | H18: 3.013107263 | I18: -1.691458233 | J18: 0.6406611466 | K18: -0.8531531299 | L18: 0.8515879696 | M18: 0.5581643151 | N18: 0.2357202982 | O18: -0.3033559804 | P18: -0.1692732422 | Q18: -0.2668445972 | R18: -0.7525495889 | S18: -0.02773143138 | T18: 0.262964245 | U18: 0 | V18: -0.6351279288 | W18: -0.4708064704 | X18: 0.1649591919 | Y18: 0 | Z18: -0.1279568908 | AA18: -0.1372315694 | AB18: -0.3339062067 | AC18: 0 | AD18: -0.02637389939 | AE18: -0.06130102448 | AF18: -0.2791639086 | AG18: -0.2401135544 | AH18: 0.159690475 | BB18: =IF(BB7="","",BB7-BA7) -> 
A19: 2 | B19: Barbara | C19: Elio | E19: =IF(E7="","",E7-D7) -> 2.443181818 | F19: 1.713263588 | G19: -2.942520443 | H19: -0.869047619 | I19: -0.5688431938 | J19: 0 | K19: -0.3251477359 | L19: -0.527951711 | M19: -1.28920655 | N19: 0.4096069825 | O19: -0.6692288141 | P19: -0.7470846178 | Q19: 0 | R19: 0 | S19: -0.894386285 | T19: 0.9541624051 | U19: 0.03858096269 | V19: 0.2983086069 | W19: -0.1725163708 | X19: -0.06415318588 | Y19: 0.3593526725 | Z19: 0.6805602624 | AA19: -0.2590746255 | AB19: -0.09491173489 | AC19: -0.009018788997 | AD19: 0 | AE19: -0.372023837 | AF19: 0.2966269588 | AG19: 0.6515567532 | AH19: -0.1903575036
A20: 3 | B20: Cesarina | C20: Gaetano | E20: =IF(E8="","",E8-D8) -> 4.545454545 | F20: 3.523328523 | G20: 0.113486051 | H20: -3.454635642 | I20: -0.3144540645 | J20: 0 | K20: 1.56110424 | L20: 0.03446454339 | M20: 0 | N20: 0.7913961039 | O20: 0.9108946609 | P20: 0.7452774498 | Q20: 0.479019087 | R20: 0 | S20: 0.2742049617 | T20: -0.07340873412 | U20: 0 | V20: -0.7213088939 | W20: 0.7288084215 | X20: 0 | Y20: -0.302311897 | Z20: 0.1721954214 | AA20: 0.7516810404 | AB20: 0.7933058657 | AC20: -0.0853460913 | AD20: -0.04752482566 | AE20: -0.164165179 | AF20: 0.03277142543 | AG20: 0 | AH20: 0
A21: 4 | B21: Elena | C21: Stefano | E21: =IF(E9="","",E9-D9) -> -5.965909091 | F21: -1.907467532 | G21: 1.116071429 | H21: 3.590518278 | I21: 1.474767516 | J21: -0.2942549074 | K21: -0.1068293479 | L21: -2.229554139 | M21: -0.9597796751 | N21: 0.06699844768 | O21: 0.292574464 | P21: -1.01991951 | Q21: -0.1842816575 | R21: 0 | S21: 0 | T21: 0.2569558968 | U21: -0.01641539402 | V21: 0.5690825888 | W21: 0.3901104493 | X21: 0.4184571041 | Y21: 0 | Z21: 0 | AA21: 0.3106710267 | AB21: -0.3141547853 | AC21: -0.03757938638 | AD21: 0 | AE21: 0 | AF21: -0.2111577144 | AG21: 0 | AH21: -0.04061811652
A22: 5 | B22: Isolde | C22: Letizia | E22: =IF(E10="","",E10-D10) -> -3.863636364 | F22: 0 | G22: 0 | H22: 0 | I22: 0.6060606061 | J22: -2.506313131 | K22: 0.06186868687 | L22: -0.2428451178 | M22: 0 | N22: 0 | O22: 1.368746994 | P22: 0.8134920635 | Q22: 0.00140291807 | R22: -0.8727954145 | S22: 0.8035058376 | T22: -0.1732148323 | U22: 0 | V22: -0.143976394 | W22: -0.3548898192 | X22: 0 | Y22: 0 | Z22: 0 | AA22: -0.2907361598 | AB22: 0.6412813652 | AC22: 0.1631754343 | AD22: -0.5163308309 | AE22: 0 | AF22: 0.1228151045 | AG22: 0 | AH22: 0
A23: 6 | B23: Lilli | C23: Gianni | E23: =IF(E11="","",E11-D11) -> -8.238636364 | F23: 0 | G23: 2.746212121 | H23: 0 | I23: 3.787878788 | J23: -0.6331168831 | K23: 0.579004329 | L23: 0.9817563389 | M23: 0 | N23: -1.268101938 | O23: 0 | P23: -0.7841810967 | Q23: 0.5671159648 | R23: -0.415751126 | S23: -0.5370208495 | T23: 0.4893717394 | U23: -0.4604377104 | V23: 0.9777386965 | W23: -0.2674636774 | X23: 0.2892819187 | Y23: 0.2346882643 | Z23: 0.4493146759 | AA23: 0.07154032419 | AB23: 0.07364547378 | AC23: -0.08372466404 | AD23: -0.5782908186 | AE23: 0.02352800247 | AF23: 0 | AG23: -0.2479196135 | AH23: 0
A24: 7 | B24: Manuela | C24: Roberto | E24: =IF(E12="","",E12-D12) -> 4.488636364 | F24: 0.8799302549 | G24: -0.6603234728 | H24: -2.769931457 | I24: -2.425324675 | J24: 0 | K24: 0 | L24: -0.5960111317 | M24: 0.8373193027 | N24: -0.4482886905 | O24: -1.078327922 | P24: -0.7273096222 | Q24: -1.126924685 | R24: 0 | S24: 0.7072875042 | T24: 0.2734542243 | U24: -0.2478548237 | V24: 0.0146085107 | W24: -0.736020813 | X24: 0.7774757798 | Y24: 0.8586967806 | Z24: -0.0605062308 | AA24: -0.4223655288 | AB24: -0.1142257792 | AC24: 0.07686631756 | AD24: -0.04527994965 | AE24: 0.1805646685 | AF24: 0.3803502923 | AG24: -0.1622270956 | AH24: -0.3207074731
A25: 8 | B25: Olimpia | C25: Sauro | E25: =IF(E13="","",E13-D13) -> 6.534090909 | F25: 1.04467292 | G25: -0.1901455026 | H25: -1.157858345 | I25: 0.09790363957 | J25: -0.656723127 | K25: -0.282856198 | L25: 0.348182553 | M25: 0 | N25: 1.137131901 | O25: -0.2117222004 | P25: -0.4605260761 | Q25: 0.8341003133 | R25: 0 | S25: 0.1007942675 | T25: 0.1789346841 | U25: -0.1417514607 | V25: -0.05251511379 | W25: 0 | X25: 0 | Y25: 0 | Z25: -0.07483460334 | AA25: 0.3294742538 | AB25: -0.5286238233 | AC25: -0.4129264194 | AD25: 0.1118231059 | AE25: 0.7583687113 | AF25: 0.05881032548 | AG25: 0.1038896289 | AH25: 0.09619410082
A26: 9 | B26: Renata | C26: Sandro | E26: =IF(E14="","",E14-D14) -> 3.295454545 | F26: -1.06000481 | G26: 0.6627284752 | H26: 0.1577380952 | I26: -0.3578042328 | J26: 0.9915910809 | K26: -0.1345083488 | L26: -0.1046176046 | M26: 0.7875180375 | N26: -0.681424636 | O26: 0.1108077529 | P26: 1.230124043 | Q26: -0.2037248466 | R26: 0.2238713667 | S26: 0.4241747835 | T26: -0.9024661001 | U26: 0.1125104924 | V26: 0.003201395745 | W26: 0.3038071821 | X26: 0 | Y26: -0.5660187476 | Z26: 0 | AA26: -0.3087708147 | AB26: 0.0474595855 | AC26: 0 | AD26: 0.5257577065 | AE26: 0.002215608466 | AF26: -0.541045991 | AG26: -0.1592577519 | AH26: 0.1497368495 | BB26: =IF(BB15="","",BB15-BA15) -> 
A27: 10 | B27: Stefania | C27: Massimo | E27: =IF(E15="","",E15-D15) -> -4.886363636 | F27: 0 | G27: 2.159090909 | H27: -2.045454545 | I27: 0.8181818182 | J27: 1.08958634 | K27: -0.743317529 | L27: -0.9836245104 | M27: 0.6869789161 | N27: 0.7579164662 | O27: -0.1374622852 | P27: 0.07484203507 | Q27: 0.1070341695 | R27: 0.632869115 | S27: -0.5626245448 | T27: -0.4922964767 | U27: 0.1725301863 | V27: 0 | W27: 0 | X27: 0 | Y27: -0.02300667742 | Z27: 0 | AA27: -0.3666204653 | AB27: -0.1847563986 | AC27: 0.3477676424 | AD27: 0.8452529313 | AE27: -0.5164920901 | AF27: -0.0008430579083 | AG27: 0 | AH27: 0 | BB27: =IF(BB16="","",BB16-BA16) -> 
A28: 11 | B28: Tatiana | C28: Julio | E28: =IF(E16="","",E16-D16) -> -9.886363636 | F28: -0.9806397306 | G28: 0.3303872054 | H28: 1.393518519 | I28: -0.1617564534 | J28: -0.2765895921 | K28: 0.4306350065 | L28: 1.534433288 | M28: -0.5385518545 | N28: 0 | O28: 0.3384644606 | P28: 0.5661446263 | Q28: -0.26396154 | R28: 0.5274578266 | S28: -0.09481793559 | T28: 0.04487521545 | U28: 0.1728612057 | V28: 0 | W28: -0.1384531787 | X28: -0.2556592983 | Y28: -0.4769260465 | Z28: -0.0535755689 | AA28: 0.1009243484 | AB28: 0 | AC28: 0 | AD28: 0 | AE28: 0.05829529508 | AF28: -0.1876891894 | AG28: 0.1170084854 | AH28: 0.01643274115 | BB28: =IF(BB17="","",BB17-BA17) -> 
A141: 54.11142857
A142: 48.69952381
A143: 0
A144: 48.08952381
A145: 0
A146: 0
A147: 44.59809524
A148: 47.50857143
A149: 55.92285714
A150: 0
A151: 50.41
A152: 0
A153: 0
A154: 0
A155: 0
A156: 0
A157: 0
A158: 0
A159: 0
A160: 0
A161: 0
A162: 0
A163: 0
A164: 0
A165: 0
A166: 0
A167: 0
A168: 0
A169: 0
A170: 0
A171: 0
A172: 0
A173: 0
A174: 0
A175: 0
A176: 0
A177: 0
A178: 0
A179: 0
A180: 0
A181: 0
A182: 0
A183: 0
A184: 0
A185: 0
A186: 0
A187: 0
A188: 0

Sheet toto
A1: BridgeMania 2016-17 | D1: =IF(RIS!E1="","",RIS!E1) -> 1 | E1: =IF(RIS!F1="","",RIS!F1) -> 2 | F1: =IF(RIS!G1="","",RIS!G1) -> 3 | G1: =IF(RIS!H1="","",RIS!H1) -> 4 | H1: =IF(RIS!I1="","",RIS!I1) -> 5 | I1: =IF(RIS!J1="","",RIS!J1) -> 6 | J1: =IF(RIS!K1="","",RIS!K1) -> 7 | K1: =IF(RIS!L1="","",RIS!L1) -> 8 | L1: =IF(RIS!M1="","",RIS!M1) -> 9 | M1: =IF(RIS!N1="","",RIS!N1) -> 10 | N1: =IF(RIS!O1="","",RIS!O1) -> 11 | O1: =IF(RIS!P1="","",RIS!P1) -> 12 | P1: =IF(RIS!Q1="","",RIS!Q1) -> 13 | Q1: =IF(RIS!R1="","",RIS!R1) -> 14 | R1: =IF(RIS!S1="","",RIS!S1) -> 15 | S1: =IF(RIS!T1="","",RIS!T1) -> 16 | T1: =IF(RIS!U1="","",RIS!U1) -> 17 | U1: =IF(RIS!V1="","",RIS!V1) -> 18 | V1: =IF(RIS!W1="","",RIS!W1) -> 19 | W1: =IF(RIS!X1="","",RIS!X1) -> 20 | X1: =IF(RIS!Y1="","",RIS!Y1) -> 21 | Y1: =IF(RIS!Z1="","",RIS!Z1) -> 22 | Z1: =IF(RIS!AA1="","",RIS!AA1) -> 23 | AA1: =IF(RIS!AB1="","",RIS!AB1) -> 24 | AB1: =IF(RIS!AC1="","",RIS!AC1) -> 25 | AC1: =IF(RIS!AD1="","",RIS!AD1) -> 26 | AD1: =IF(RIS!AE1="","",RIS!AE1) -> 27 | AE1: =IF(RIS!AF1="","",RIS!AF1) -> 28 | AF1: =IF(RIS!AG1="","",RIS!AG1) -> 29 | AG1: =IF(RIS!AH1="","",RIS!AH1) -> 30 | AH1: =IF(RIS!AI1="","",RIS!AI1) -> 31 | AI1: =IF(RIS!AJ1="","",RIS!AJ1) -> 32 | AJ1: =IF(RIS!AK1="","",RIS!AK1) -> 33 | AK1: =IF(RIS!AL1="","",RIS!AL1) -> 34 | AL1: =IF(RIS!AM1="","",RIS!AM1) -> 35 | AM1: =IF(RIS!AN1="","",RIS!AN1) -> 36 | AN1: =IF(RIS!AO1="","",RIS!AO1) -> 37 | AO1: =IF(RIS!AP1="","",RIS!AP1) -> 38 | AP1: =IF(RIS!AQ1="","",RIS!AQ1) -> 39 | AQ1: =IF(RIS!AR1="","",RIS!AR1) -> 40 | AR1: =IF(RIS!AS1="","",RIS!AS1) -> 41 | AS1: =IF(RIS!AT1="","",RIS!AT1) -> 42 | AT1: =IF(RIS!AU1="","",RIS!AU1) -> 43 | AU1: =IF(RIS!AV1="","",RIS!AV1) -> 44 | AV1: =IF(RIS!AW1="","",RIS!AW1) -> 45 | AW1: =IF(RIS!AX1="","",RIS!AX1) -> 46 | AX1: =IF(RIS!AY1="","",RIS!AY1) -> 47 | AY1: =IF(RIS!AZ1="","",RIS!AZ1) -> 48 | AZ1: =IF(RIS!BA1="","",RIS!BA1) -> 49 | BA1: =IF(RIS!BB1="","",RIS!BB1) -> 50 | BB1: almeno 2/3 dei tornei totali
A2: ctrl+a Totobridge ctrl+b | D2: =IF(RIS!E2="","",RIS!E2) -> 2016-09-17 | E2: =IF(RIS!F2="","",RIS!F2) -> 2016-09-24 | F2: =IF(RIS!G2="","",RIS!G2) -> 2016-10-08 | G2: =IF(RIS!H2="","",RIS!H2) -> 2016-10-15 | H2: =IF(RIS!I2="","",RIS!I2) -> 2016-10-22 | I2: =IF(RIS!J2="","",RIS!J2) -> 2016-10-29 | J2: 2016-11-05 | K2: =IF(RIS!L2="","",RIS!L2) -> 2016-11-19 | L2: =IF(RIS!M2="","",RIS!M2) -> 2016-12-03 | M2: =IF(RIS!O2="","",RIS!O2) -> 2017-01-07 | N2: =IF(RIS!P2="","",RIS!P2) -> 2017-01-14 | O2: =IF(RIS!Q2="","",RIS!Q2) -> 2017-01-21 | P2: =IF(RIS!R2="","",RIS!R2) -> 2017-01-28 | Q2: =IF(RIS!S2="","",RIS!S2) -> 2017-02-04 | R2: =IF(RIS!T2="","",RIS!T2) -> 2017-02-11 | S2: =IF(RIS!U2="","",RIS!U2) -> 2017-02-18 | T2: =IF(RIS!V2="","",RIS!V2) -> 2017-02-25 | U2: =IF(RIS!W2="","",RIS!W2) -> 2017-03-11 | V2: =IF(RIS!X2="","",RIS!X2) -> 2017-03-18 | W2: =IF(RIS!Z2="","",RIS!Z2) -> 2017-04-01 | X2: =IF(RIS!AA2="","",RIS!AA2) -> 2017-04-29 | Y2: =IF(RIS!AB2="","",RIS!AB2) -> 2017-05-13 | Z2: =IF(RIS!AC2="","",RIS!AC2) -> 2017-05-20 | AA2: =IF(RIS!AD2="","",RIS!AD2) -> 2017-05-27 | AB2: =IF(RIS!AE2="","",RIS!AE2) -> 2017-06-10 | AC2: =IF(RIS!AF2="","",RIS!AF2) -> 2017-06-17 | AD2: =IF(RIS!AG2="","",RIS!AG2) -> 2017-06-24 | AE2: =IF(RIS!AH2="","",RIS!AH2) -> 2017-07-01 | AF2: =IF(RIS!AI2="","",RIS!AI2) -> 2017-07-08 | AG2: =IF(RIS!AJ2="","",RIS!AJ2) ->  | AH2: =IF(RIS!AK2="","",RIS!AK2) ->  | AI2: =IF(RIS!AL2="","",RIS!AL2) ->  | AJ2: =IF(RIS!AM2="","",RIS!AM2) ->  | AK2: =IF(RIS!AN2="","",RIS!AN2) ->  | AL2: =IF(RIS!AO2="","",RIS!AO2) ->  | AM2: =IF(RIS!AP2="","",RIS!AP2) ->  | AN2: =IF(RIS!AQ2="","",RIS!AQ2) ->  | AO2: =IF(RIS!AR2="","",RIS!AR2) ->  | AP2: =IF(RIS!AS2="","",RIS!AS2) ->  | AQ2: =IF(RIS!AT2="","",RIS!AT2) ->  | AR2: =IF(RIS!AU2="","",RIS!AU2) ->  | AS2: =IF(RIS!AV2="","",RIS!AV2) ->  | AT2: =IF(RIS!AW2="","",RIS!AW2) ->  | AU2: =IF(RIS!AX2="","",RIS!AX2) ->  | AV2: =IF(RIS!AY2="","",RIS!AY2) ->  | AW2: =IF(RIS!AZ2="","",RIS!AZ2) ->  | AX2: =IF(RIS!BA2="","",RIS!BA2) ->  | AY2: =IF(RIS!BB2="","",RIS!BB2) ->  | AZ2: =IF(RIS!BC2="","",RIS!BC2) ->  | BA2: =IF(RIS!BD2="","",RIS!BD2) -> 
D3: =IF(RIS!E3="","",RIS!E3) -> Pre | E3: =IF(RIS!F3="","",RIS!F3) -> DeS | F3: =IF(RIS!G3="","",RIS!G3) -> Cat | G3: =IF(RIS!H3="","",RIS!H3) -> Pol | H3: =IF(RIS!I3="","",RIS!I3) -> Sav | I3: =IF(RIS!J3="","",RIS!J3) -> Bia | J3: Tor | K3: =IF(RIS!L3="","",RIS!L3) -> Sim | L3: =IF(RIS!M3="","",RIS!M3) -> Ban | M3: =IF(RIS!O3="","",RIS!O3) -> Dej | N3: =IF(RIS!P3="","",RIS!P3) -> Pre | O3: =IF(RIS!Q3="","",RIS!Q3) -> Sav | P3: =IF(RIS!R3="","",RIS!R3) -> DeS | Q3: =IF(RIS!S3="","",RIS!S3) -> Mal | R3: =IF(RIS!T3="","",RIS!T3) -> Pol | S3: =IF(RIS!U3="","",RIS!U3) -> Bia | T3: =IF(RIS!V3="","",RIS!V3) -> Tor | U3: =IF(RIS!W3="","",RIS!W3) -> Mal | V3: =IF(RIS!X3="","",RIS!X3) -> Sim | W3: =IF(RIS!Z3="","",RIS!Z3) -> Cat | X3: =IF(RIS!AA3="","",RIS!AA3) -> Ban | Y3: =IF(RIS!AB3="","",RIS!AB3) -> Sav | Z3: =IF(RIS!AC3="","",RIS!AC3) -> DeS | AA3: =IF(RIS!AD3="","",RIS!AD3) -> Pre | AB3: =IF(RIS!AE3="","",RIS!AE3) -> Dej | AC3: =IF(RIS!AF3="","",RIS!AF3) -> Pol | AD3: =IF(RIS!AG3="","",RIS!AG3) -> Sim | AE3: =IF(RIS!AH3="","",RIS!AH3) -> Tor | AF3: =IF(RIS!AI3="","",RIS!AI3) -> Bia | AG3: =IF(RIS!AJ3="","",RIS!AJ3) ->  | AH3: =IF(RIS!AK3="","",RIS!AK3) ->  | AI3: =IF(RIS!AL3="","",RIS!AL3) ->  | AJ3: =IF(RIS!AM3="","",RIS!AM3) ->  | AK3: =IF(RIS!AN3="","",RIS!AN3) ->  | AL3: =IF(RIS!AO3="","",RIS!AO3) ->  | AM3: =IF(RIS!AP3="","",RIS!AP3) ->  | AN3: =IF(RIS!AQ3="","",RIS!AQ3) ->  | AO3: =IF(RIS!AR3="","",RIS!AR3) ->  | AP3: =IF(RIS!AS3="","",RIS!AS3) ->  | AQ3: =IF(RIS!AT3="","",RIS!AT3) ->  | AR3: =IF(RIS!AU3="","",RIS!AU3) ->  | AS3: =IF(RIS!AV3="","",RIS!AV3) ->  | AT3: =IF(RIS!AW3="","",RIS!AW3) ->  | AU3: =IF(RIS!AX3="","",RIS!AX3) ->  | AV3: =IF(RIS!AY3="","",RIS!AY3) ->  | AW3: =IF(RIS!AZ3="","",RIS!AZ3) ->  | AX3: =IF(RIS!BA3="","",RIS!BA3) ->  | AY3: =IF(RIS!BB3="","",RIS!BB3) ->  | AZ3: =IF(RIS!BC3="","",RIS!BC3) ->  | BA3: =IF(RIS!BD3="","",RIS!BD3) -> 
A4: class. | B4: media punti | D4: =IF(RIS!E4="","",RIS!E4) -> 12-22 | E4: =IF(RIS!F4="","",RIS!F4) -> 11-22 | F4: =IF(RIS!G4="","",RIS!G4) -> 8-21 | G4: =IF(RIS!H4="","",RIS!H4) -> 11-22 | H4: =IF(RIS!I4="","",RIS!I4) -> 9-18 | I4: =IF(RIS!J4="","",RIS!J4) -> 11-22 | J4: 44409 | K4: =IF(RIS!L4="","",RIS!L4) -> 12-22 | L4: =IF(RIS!M4="","",RIS!M4) -> 11-22 | M4: =IF(RIS!O4="","",RIS!O4) -> 10-18 | N4: =IF(RIS!P4="","",RIS!P4) -> 11-22 | O4: =IF(RIS!Q4="","",RIS!Q4) -> 11-22 | P4: =IF(RIS!R4="","",RIS!R4) -> 11-22 | Q4: =IF(RIS!S4="","",RIS!S4) -> 7-21 | R4: =IF(RIS!T4="","",RIS!T4) -> 11-22 | S4: =IF(RIS!U4="","",RIS!U4) -> 12-22 | T4: =IF(RIS!V4="","",RIS!V4) -> 8-21 | U4: =IF(RIS!W4="","",RIS!W4) -> 9-18 | V4: =IF(RIS!X4="","",RIS!X4) -> 10-18 | W4: =IF(RIS!Z4="","",RIS!Z4) -> 8-21 | X4: =IF(RIS!AA4="","",RIS!AA4) -> 8-21 | Y4: =IF(RIS!AB4="","",RIS!AB4) -> 11-22 | Z4: =IF(RIS!AC4="","",RIS!AC4) -> 10-18 | AA4: =IF(RIS!AD4="","",RIS!AD4) -> 8-21 | AB4: =IF(RIS!AE4="","",RIS!AE4) -> 9-18 | AC4: =IF(RIS!AF4="","",RIS!AF4) -> 9-18 | AD4: =IF(RIS!AG4="","",RIS!AG4) -> 10-18 | AE4: =IF(RIS!AH4="","",RIS!AH4) -> 7-21 | AF4: =IF(RIS!AI4="","",RIS!AI4) -> 7-21 | AG4: =IF(RIS!AJ4="","",RIS!AJ4) ->  | AH4: =IF(RIS!AK4="","",RIS!AK4) ->  | AI4: =IF(RIS!AL4="","",RIS!AL4) ->  | AJ4: =IF(RIS!AM4="","",RIS!AM4) ->  | AK4: =IF(RIS!AN4="","",RIS!AN4) ->  | AL4: =IF(RIS!AO4="","",RIS!AO4) ->  | AM4: =IF(RIS!AP4="","",RIS!AP4) ->  | AN4: =IF(RIS!AQ4="","",RIS!AQ4) ->  | AO4: =IF(RIS!AR4="","",RIS!AR4) ->  | AP4: =IF(RIS!AS4="","",RIS!AS4) ->  | AQ4: =IF(RIS!AT4="","",RIS!AT4) ->  | AR4: =IF(RIS!AU4="","",RIS!AU4) ->  | AS4: =IF(RIS!AV4="","",RIS!AV4) ->  | AT4: =IF(RIS!AW4="","",RIS!AW4) ->  | AU4: =IF(RIS!AX4="","",RIS!AX4) ->  | AV4: =IF(RIS!AY4="","",RIS!AY4) ->  | AW4: =IF(RIS!AZ4="","",RIS!AZ4) ->  | AX4: =IF(RIS!BA4="","",RIS!BA4) ->  | AY4: =IF(RIS!BB4="","",RIS!BB4) ->  | AZ4: =IF(RIS!BC4="","",RIS!BC4) ->  | BA4: =IF(RIS!BD4="","",RIS!BD4) -> 
A5: =IF(B5=B4,A4,COUNT(B$5:B5)) -> 1 | B5: =IF(COUNT(D5:BA5)=0,-999.99,IF(BB5="si",AVERAGE(D5:BA5),-AVERAGE(D5:BA5))) -> 5.357142857 | C5: Stefania | D5: 4 | E5: 4 | F5: 5 | G5: 7 | H5: 3 | I5: 6 | J5: 9 | K5: 3 | L5: 6 | M5: 8 | N5: 4 | O5: // | P5: 5 | Q5: 6 | R5: 5 | S5: 1 | T5: 7 | U5: 4 | V5: 8 | W5: 4 | X5: 4 | Y5: 5 | Z5: 3 | AA5: 8 | AB5: 7 | AC5: 8 | AD5: 5 | AE5: 8 | AF5: 3 | BB5: =IF(COUNT(D5:BA5)=0,"",IF(COUNT(D5:BA5)>=(COUNT(D$2:BA$2)*2/3),"si","no")) -> si
A6: =IF(B6=B5,A5,COUNT(B$5:B6)) -> 2 | B6: 5.344827586 | C6: Olimpia | D6: 6 | E6: 6 | F6: 5 | G6: 2 | H6: 2 | I6: 1 | J6: 10 | K6: 7 | L6: 8 | M6: 7 | N6: 3 | O6: 6 | P6: 8 | Q6: 5 | R6: 7 | S6: 4 | T6: 6 | U6: 4 | V6: 5 | W6: 4 | X6: 6 | Y6: 5 | Z6: 5 | AA6: 4 | AB6: 6 | AC6: 2 | AD6: 6 | AE6: 9 | AF6: 6 | BB6: si
A7: =IF(B7=B6,A6,COUNT(B$5:B7)) -> 3 | B7: 5.206896552 | C7: Sauro | D7: 3 | E7: 4 | F7: 5 | G7: 6 | H7: 2 | I7: 3 | J7: 9 | K7: 7 | L7: 6 | M7: 8 | N7: 6 | O7: 4 | P7: 5 | Q7: 6 | R7: 5 | S7: 4 | T7: 4 | U7: 7 | V7: 5 | W7: 5 | X7: 2 | Y7: 4 | Z7: 4 | AA7: 6 | AB7: 3 | AC7: 6 | AD7: 9 | AE7: 7 | AF7: 6 | BB7: si
A8: =IF(B8=B7,A7,COUNT(B$5:B8)) -> 4 | B8: 5.178571429 | C8: Sandro | D8: 2 | E8: 4 | F8: 8 | G8: 4 | H8: 5 | I8: 4 | J8: 5 | K8: 4 | L8: // | M8: 6 | N8: 3 | O8: 6 | P8: 5 | Q8: 6 | R8: 5 | S8: 3 | T8: 6 | U8: 9 | V8: 3 | W8: 8 | X8: 4 | Y8: 3 | Z8: 3 | AA8: 8 | AB8: 5 | AC8: 5 | AD8: 7 | AE8: 9 | AF8: 5 | BB8: si
A9: =IF(B9=B8,A8,COUNT(B$5:B9)) -> 5 | B9: 5.103448276 | C9: Dino | D9: 5 | E9: 4 | F9: 8 | G9: 5 | H9: 3 | I9: 5 | J9: 7 | K9: 6 | L9: 6 | M9: 6 | N9: 7 | O9: 3 | P9: 3 | Q9: 7 | R9: 5 | S9: 3 | T9: 7 | U9: 7 | V9: 6 | W9: 5 | X9: 2 | Y9: 5 | Z9: 3 | AA9: 6 | AB9: 8 | AC9: 3 | AD9: 5 | AE9: 4 | AF9: 4 | BB9: si
A10: =IF(B10=B9,A9,COUNT(B$5:B10)) -> 6 | B10: 4.965517241 | C10: Antonella | D10: 5 | E10: 3 | F10: 6 | G10: 9 | H10: 6 | I10: 5 | J10: 5 | K10: 3 | L10: 4 | M10: 7 | N10: 4 | O10: 4 | P10: 9 | Q10: 7 | R10: 4 | S10: 3 | T10: 6 | U10: 2 | V10: 5 | W10: 4 | X10: 2 | Y10: 6 | Z10: 4 | AA10: 8 | AB10: 8 | AC10: 3 | AD10: 4 | AE10: 5 | AF10: 3 | BB10: si
A11: =IF(B11=B10,A10,COUNT(B$5:B11)) -> 6 | B11: 4.965517241 | C11: Lilli | D11: 6 | E11: 4 | F11: 6 | G11: 6 | H11: 6 | I11: 2 | J11: 6 | K11: 6 | L11: 4 | M11: 4 | N11: 4 | O11: 1 | P11: 3 | Q11: 3 | R11: 6 | S11: 5 | T11: 3 | U11: 5 | V11: 5 | W11: 5 | X11: 4 | Y11: 3 | Z11: 6 | AA11: 7 | AB11: 5 | AC11: 5 | AD11: 7 | AE11: 7 | AF11: 10 | BB11: si
A12: =IF(B12=B11,A11,COUNT(B$5:B12)) -> 8 | B12: 4.884615385 | C12: Manuela | D12: 5 | E12: 8 | F12: 8 | G12: 7 | H12: 2 | I12: 6 | J12: 9 | K12: // | L12: 3 | M12: 6 | N12: 1 | O12: 3 | P12: 8 | Q12: // | R12: 4 | S12: 6 | T12: 6 | U12: 2 | V12: 3 | X12: 2 | Y12: 7 | Z12: 2 | AA12: 6 | AB12: 4 | AC12: 6 | AD12: 5 | AE12: 6 | AF12: 2 | BB12: si
A13: =IF(B13=B12,A12,COUNT(B$5:B13)) -> 9 | B13: 4.863636364 | C13: Julio | D13: 5 | E13: 5 | F13: 6 | G13: 5 | H13: 5 | I13: 7 | J13: 7 | K13: 5 | L13: 4 | M13: // | N13: 2 | O13: 5 | P13: 8 | Q13: 7 | R13: 5 | S13: 1 | T13: 6 | U13: // | V13: 3 | X13: 4 | Y13: 3 | AC13: 6 | AE13: 4 | AF13: 4 | BB13: si
A14: =IF(B14=B13,A13,COUNT(B$5:B14)) -> 10 | B14: 4.821428571 | C14: Cesarina | D14: 3 | E14: 4 | F14: 8 | G14: 7 | H14: 5 | I14: 8 | J14: 8 | K14: 5 | L14: 4 | M14: 6 | N14: 3 | O14: 5 | P14: 6 | Q14: 5 | R14: 6 | S14: 5 | T14: 5 | U14: 4 | V14: 4 | W14: 6 | X14: 3 | Y14: 4 | Z14: 1 | AA14: 3 | AB14: 5 | AD14: 4 | AE14: 6 | AF14: 2 | BB14: si
A15: =IF(B15=B14,A14,COUNT(B$5:B15)) -> 11 | B15: 4.807692308 | C15: Roberto | D15: 6 | E15: 4 | F15: 5 | G15: 4 | H15: 5 | I15: 5 | J15: 4 | K15: // | L15: 4 | M15: 6 | N15: 3 | O15: 6 | P15: 6 | Q15: // | R15: 4 | S15: 3 | T15: 8 | U15: 2 | V15: 4 | X15: 4 | Y15: 3 | Z15: 7 | AA15: 6 | AB15: 6 | AC15: 5 | AD15: 4 | AE15: 6 | AF15: 5 | BB15: si
A16: =IF(B16=B15,A15,COUNT(B$5:B16)) -> 12 | B16: 4.642857143 | C16: Massimo | D16: 4 | E16: 3 | F16: 9 | G16: 3 | H16: 3 | I16: 2 | J16: 7 | K16: 5 | L16: 3 | M16: 5 | N16: 3 | O16: // | P16: 3 | Q16: 5 | R16: 6 | S16: 6 | T16: 8 | U16: 2 | V16: 4 | W16: 5 | X16: 2 | Y16: 2 | Z16: 4 | AA16: 8 | AB16: 7 | AC16: 6 | AD16: 6 | AE16: 6 | AF16: 3 | BB16: si
A17: =IF(B17=B16,A16,COUNT(B$5:B17)) -> 13 | B17: 4.62962963 | C17: Gaetano | D17: 4 | E17: 5 | F17: 8 | G17: 6 | H17: 8 | I17: 5 | J17: 7 | K17: 5 | L17: 5 | M17: 5 | N17: 4 | O17: 3 | P17: 8 | Q17: 4 | R17: 2 | S17: 4 | T17: 4 | U17: // | V17: 6 | W17: 4 | X17: 3 | Y17: 3 | Z17: 3 | AA17: 6 | AB17: 3 | AD17: 2 | AE17: 4 | AF17: 4 | BB17: si
A18: =IF(B18=B17,A17,COUNT(B$5:B18)) -> 14 | B18: 4.590909091 | C18: Tatiana | D18: 4 | E18: 6 | F18: 5 | G18: 4 | H18: 6 | I18: 6 | J18: 7 | K18: 5 | L18: 5 | M18: // | N18: 3 | O18: 3 | P18: 8 | Q18: 5 | R18: 3 | S18: 3 | T18: 6 | U18: // | V18: 4 | X18: 4 | Y18: 3 | AC18: 2 | AD18: 6 | AF18: 3 | BB18: si
A19: =IF(B19=B18,A18,COUNT(B$5:B19)) -> 15 | B19: 4.551724138 | C19: Gianni | D19: 7 | E19: 4 | F19: 5 | G19: 6 | H19: 5 | I19: 6 | J19: 9 | K19: 3 | L19: 2 | M19: 3 | N19: 2 | O19: 5 | P19: 6 | Q19: 4 | R19: 2 | S19: 2 | T19: 6 | U19: 2 | V19: 3 | W19: 5 | X19: 2 | Y19: 4 | Z19: 5 | AA19: 6 | AB19: 5 | AC19: 6 | AD19: 5 | AE19: 2 | AF19: 10 | BB19: si
A20: =IF(B20=B19,A19,COUNT(B$5:B20)) -> 16 | B20: 4.5 | C20: Elio | D20: 2 | E20: 5 | F20: 5 | G20: 6 | H20: 3 | I20: 5 | J20: // | K20: 3 | L20: 3 | M20: 3 | N20: 7 | O20: 3 | P20: 5 | Q20: 4 | R20: 7 | S20: 3 | T20: 5 | U20: 2 | V20: 6 | X20: 4 | Y20: 4 | Z20: 3 | AA20: 7 | AC20: 2 | AD20: 8 | AE20: 6 | AF20: 6 | BB20: si
A21: =IF(B21=B20,A20,COUNT(B$5:B21)) -> 17 | B21: 4.4 | C21: Elena | D21: 5 | E21: 5 | F21: 3 | G21: 2 | H21: 8 | I21: 4 | J21: 8 | K21: 8 | L21: 4 | M21: 4 | N21: 6 | O21: 3 | P21: 3 | Q21: 1 | R21: 4 | S21: 4 | T21: 4 | U21: 5 | V21: 7 | X21: 4 | Y21: 4 | Z21: 3 | AA21: 6 | AD21: 3 | AF21: 2 | BB21: si
A22: =IF(B22=B21,A21,COUNT(B$5:B22)) -> 18 | B22: 4.28 | C22: Stefano | D22: 4 | E22: 1 | F22: 6 | G22: 9 | H22: 8 | I22: 5 | J22: 4 | K22: 3 | L22: 5 | M22: 2 | N22: 3 | O22: 5 | P22: 6 | Q22: 4 | R22: 5 | S22: 3 | T22: 4 | U22: 2 | V22: 3 | X22: 2 | Y22: 3 | Z22: 4 | AA22: 6 | AD22: 3 | AF22: 7 | BB22: si
A23: =IF(B23=B22,A22,COUNT(B$5:B23)) -> 19 | B23: 4.214285714 | C23: Renata | D23: 3 | E23: 2 | F23: 3 | G23: 5 | H23: 3 | I23: 6 | J23: 5 | K23: 4 | L23: // | M23: 8 | N23: 4 | O23: 5 | P23: 4 | Q23: 6 | R23: 4 | S23: 3 | T23: 7 | U23: 0 | V23: 5 | W23: 4 | X23: 2 | Y23: 3 | Z23: 1 | AA23: 7 | AB23: 4 | AC23: 3 | AD23: 6 | AE23: 8 | AF23: 3 | BB23: si
A24: =IF(B24=B23,A23,COUNT(B$5:B24)) -> 20 | B24: 4.08 | C24: Barbara | D24: 2 | E24: 3 | F24: 5 | G24: 5 | H24: 5 | I24: 6 | J24: // | K24: 2 | L24: 6 | M24: 3 | N24: 3 | O24: 6 | P24: 2 | Q24: 1 | R24: 4 | S24: 5 | T24: 4 | U24: 5 | V24: 5 | X24: 7 | Y24: 5 | Z24: 3 | AA24: 7 | AC24: 0 | AD24: 3 | AE24: 5 | BB24: si
A25: =IF(B25=B24,A24,COUNT(B$5:B25)) -> 21 | B25: -5 | C25: Letizia | D25: 6 | E25: 4 | F25: // | G25: // | H25: // | I25: // | J25: // | K25: // | L25: // | M25: // | N25: // | O25: // | P25: // | Q25: // | R25: // | S25: // | T25: // | U25: // | V25: // | BB25: no
A26: =IF(B26=B25,A25,COUNT(B$5:B26)) -> 22 | B26: -6 | C26: Isolde | D26: 5 | E26: 7 | F26: // | G26: // | H26: // | I26: // | J26: // | K26: // | L26: // | M26: // | N26: // | O26: // | P26: // | Q26: // | R26: // | S26: // | T26: // | U26: // | V26: // | BB26: no

Sheet turni
A1: BridgeMania 2016-17 | F1: ctrl+d | G1: ctrl+k | J1: ctrl+w | L1: BridgeMania 2016-17
A2: 2017-07-01 | L2: 2017-07-08
A3: coppie base | C3: 11 | F3: tornei | L3: coppie base | N3: 11
A4: # | B4: coppie | C4: status | D4: # c. base | F4: giocati | G4: status code (*) | I4: O / I | J4: indice | L4: # | M4: coppie | N4: status | O4: # coppia base
A5: 1 | B5: tj | C5: O | D5: 11 | F5: =INDEX(RIS!$BG$81:$BG$91,MATCH(D5,RIS!$BF$81:$BF$91,0)) -> 26 | G5: =IF(C5="A",0,IF(C5="I",1,IF(C5="O",2,3))) -> 2 | J5: =IF(I5="O",0,IF(I5="I",(MAX($F$5:$F$15)+1)*10000+A5,F5*10000+G5*100+A5)) -> 260201 | K5: 0 | L5: 1 | M5: rs | N5: =IF(K5="","",IF(K5=0,"O",IF(INT(K5/10000)=MAX(F$5:F$15)+1,"I",IF(COUNT(K$5:K5)<=$N$3,"P","A")))) -> O | O5: 9
A6: 2 | B6: lg | C6: P | D6: 6 | F6: =INDEX(RIS!$BG$81:$BG$91,MATCH(D6,RIS!$BF$81:$BF$91,0)) -> 26 | G6: =IF(C6="A",0,IF(C6="I",1,IF(C6="O",2,3))) -> 3 | I6: I | J6: =IF(I6="O",0,IF(I6="I",(MAX($F$5:$F$15)+1)*10000+A6,F6*10000+G6*100+A6)) -> 290002 | K6: 230108 | L6: 2 | M6: es | N6: =IF(K6="","",IF(K6=0,"O",IF(INT(K6/10000)=MAX(F$5:F$15)+1,"I",IF(COUNT(K$5:K6)<=$N$3,"P","A")))) -> P | O6: 4
A7: 3 | B7: be | C7: P | D7: 2 | F7: =INDEX(RIS!$BG$81:$BG$91,MATCH(D7,RIS!$BF$81:$BF$91,0)) -> 27 | G7: 3 | J7: 270303 | K7: 250201 | L7: 3 | M7: tj | N7: =IF(K7="","",IF(K7=0,"O",IF(INT(K7/10000)=MAX(F$5:F$15)+1,"I",IF(COUNT(K$5:K7)<=$N$3,"P","A")))) -> P | O7: 11
A8: 4 | B8: os | C8: P | D8: 8 | F8: =INDEX(RIS!$BG$81:$BG$91,MATCH(D8,RIS!$BF$81:$BF$91,0)) -> 27 | G8: 3 | J8: 270304 | K8: 260303 | L8: 4 | M8: be | N8: =IF(K8="","",IF(K8=0,"O",IF(INT(K8/10000)=MAX(F$5:F$15)+1,"I",IF(COUNT(K$5:K8)<=$N$3,"P","A")))) -> P | O8: 2
A9: 5 | B9: mr | C9: P | D9: 7 | F9: =INDEX(RIS!$BG$81:$BG$91,MATCH(D9,RIS!$BF$81:$BF$91,0)) -> 28 | G9: 3 | J9: 280305 | K9: 260304 | L9: 5 | M9: os | N9: =IF(K9="","",IF(K9=0,"O",IF(INT(K9/10000)=MAX(F$5:F$15)+1,"I",IF(COUNT(K$5:K9)<=$N$3,"P","A")))) -> P | O9: 8
A10: 6 | B10: ad | C10: P | D10: 1 | F10: =INDEX(RIS!$BG$81:$BG$91,MATCH(D10,RIS!$BF$81:$BF$91,0)) -> 28 | G10: 3 | J10: 280306 | K10: 270305 | L10: 6 | M10: mr | N10: =IF(K10="","",IF(K10=0,"O",IF(INT(K10/10000)=MAX(F$5:F$15)+1,"I",IF(COUNT(K$5:K10)<=$N$3,"P","A")))) -> P | O10: 7
A11: 7 | B11: rs | C11: P | D11: 9 | F11: =INDEX(RIS!$BG$81:$BG$91,MATCH(D11,RIS!$BF$81:$BF$91,0)) -> 28 | G11: 3 | I11: O | J11: 0 | K11: 270306 | L11: 7 | M11: ad | N11: =IF(K11="","",IF(K11=0,"O",IF(INT(K11/10000)=MAX(F$5:F$15)+1,"I",IF(COUNT(K$5:K11)<=$N$3,"P","A")))) -> P | O11: 1
A12: 8 | B12: es | C12: I | D12: 4 | F12: =INDEX(RIS!$BG$81:$BG$91,MATCH(D12,RIS!$BF$81:$BF$91,0)) -> 24 | G12: 1 | J12: 240108 | K12: 280002 | L12: 8 | M12: lg | N12: =IF(K12="","",IF(K12=0,"O",IF(INT(K12/10000)=MAX(F$5:F$15)+1,"I",IF(COUNT(K$5:K12)<=$N$3,"P","A")))) -> P | O12: 6
A13: 9 | B13: il | C13: I | D13: 5 | F13: =INDEX(RIS!$BG$81:$BG$91,MATCH(D13,RIS!$BF$81:$BF$91,0)) -> 19 | G13: 1 | I13: I | J13: 290009 | K13: 280009 | L13: 9 | M13: il | N13: =IF(K13="","",IF(K13=0,"O",IF(INT(K13/10000)=MAX(F$5:F$15)+1,"I",IF(COUNT(K$5:K13)<=$N$3,"P","A")))) -> P | O13: 5
A14: 10 | B14: sm | C14: I | D14: 10 | F14: =INDEX(RIS!$BG$81:$BG$91,MATCH(D14,RIS!$BF$81:$BF$91,0)) -> 24 | G14: 1 | I14: I | J14: 290010 | K14: 280010 | L14: 10 | M14: sm | N14: =IF(K14="","",IF(K14=0,"O",IF(INT(K14/10000)=MAX(F$5:F$15)+1,"I",IF(COUNT(K$5:K14)<=$N$3,"P","A")))) -> P | O14: 10
A15: 11 | B15: cg | C15: I | D15: 3 | F15: =INDEX(RIS!$BG$81:$BG$91,MATCH(D15,RIS!$BF$81:$BF$91,0)) -> 24 | G15: 1 | I15: I | J15: 290011 | K15: 280011 | L15: 11 | M15: cg | N15: =IF(K15="","",IF(K15=0,"O",IF(INT(K15/10000)=MAX(F$5:F$15)+1,"I",IF(COUNT(K$5:K15)<=$N$3,"P","A")))) -> P | O15: 3
G16: (*) status code
G17: A = 0 | H17: in lista di attesa
G18: I = 1 | H18: impossibilitata
G19: O = 2 | H19: ospitante/organizzatrice
G20: P = 3 | H20: partecipante
A21: Istruzioni:
A22: Copiare manualmente L1:N15 nelle prime colonne libere dell'area "colonne da A a O" e "righe da 38 in poi" (per avere una memoria delle convocazioni passate)
A23: ctrl+d (solo la prima volta, per inizializzare il processo)
A24: ctrl+k
A25: Per il torneo successivo inserire la data in L2:N2 e il numero delle coppie base partecipanti in N3
A26: Facendo riferimento alla colonna B, in colonna I inserire O per la coppia ospitante e I per le coppie impossibilitate.
A27: ctrl+w
A28: In colonna N lo status delle coppie (O - P - A - I )
A29: Se bisogna cambiare la coppia ospitante O e/o le coppie impossibilitate I e/o il numero delle coppie base, digitare ctrl+k e poi inserire ex-novo i dati.
A38: BridgeMania 2016-17 | D38: BridgeMania 2016-17 | G38: BridgeMania 2016-17 | J38: BridgeMania 2016-17 | M38: BridgeMania 2016-17
A39: 2016-09-17 | D39: 2016-09-24 | G39: 2016-10-08 | J39: 2016-10-15 | M39: 2016-10-22
A40: coppie base | C40: 11 | D40: coppie base | F40: 11 | G40: coppie base | I40: 8 | J40: coppie base | L40: 11 | M40: coppie base | O40: 11
A41: # | B41: coppie | C41: status | D41: # | E41: coppie | F41: status | G41: # | H41: coppie | I41: status | J41: # | K41: coppie | L41: status | M41: # | N41: coppie | O41: status
A42: 1 | B42: os | C42: O | D42: 1 | E42: ad | F42: O | G42: 1 | H42: cg | I42: O | J42: 1 | K42: be | L42: O | M42: 1 | N42: sm | O42: O
A43: 2 | B43: ad | C43: P | D43: 2 | E43: os | F43: P | G43: 2 | H43: ad | I43: P | J43: 2 | K43: sm | L43: =IF($N$3="","",IF(I43="","",IF(G43="O","O",IF(G43="I","I",IF((11-COUNTIF($I$5:$I$15,"I")-$N$3)>0,"A","P"))))) -> P | M43: 2 | N43: be | O43: P
A44: 3 | B44: cg | C44: P | D44: 3 | E44: cg | F44: P | G44: 3 | H44: os | I44: P | J44: 3 | K44: lg | L44: =IF($N$3="","",IF(I44="","",IF(G44="O","O",IF(G44="I","I",IF((11-COUNTIF($I$5:$I$15,"I")-$N$3)>0,"A","P"))))) -> P | M44: 3 | N44: cg | O44: P
A45: 4 | B45: es | C45: P | D45: 4 | E45: es | F45: P | G45: 4 | H45: es | I45: P | J45: 4 | K45: cg | L45: P | M45: 4 | N45: ad | O45: P
A46: 5 | B46: sm | C46: P | D46: 5 | E46: sm | F46: P | G46: 5 | H46: tj | I46: P | J46: 5 | K46: ad | L46: P | M46: 5 | N46: os | O46: P
A47: 6 | B47: tj | C47: P | D47: 6 | E47: tj | F47: P | G47: 6 | H47: rs | I47: P | J47: 6 | K47: os | L47: P | M47: 6 | N47: es | O47: P
A48: 7 | B48: il | C48: P | D48: 7 | E48: il | F48: P | G48: 7 | H48: be | I48: P | J48: 7 | K48: es | L48: P | M48: 7 | N48: tj | O48: P
A49: 8 | B49: rs | C49: P | D49: 8 | E49: rs | F49: P | G49: 8 | H49: mr | I49: P | J49: 8 | K49: tj | L49: P | M49: 8 | N49: rs | O49: P
A50: 9 | B50: lg | C50: P | D50: 9 | E50: lg | F50: P | G50: 9 | H50: sm | I50: I | J50: 9 | K50: rs | L50: P | M50: 9 | N50: mr | O50: P
A51: 10 | B51: be | C51: P | D51: 10 | E51: be | F51: P | G51: 10 | H51: il | I51: I | J51: 10 | K51: mr | L51: P | M51: 10 | N51: lg | O51: I
A52: 11 | B52: mr | C52: P | D52: 11 | E52: mr | F52: P | G52: 11 | H52: lg | I52: I | J52: 11 | K52: il | L52: I | M52: 11 | N52: il | O52: I
A54: BridgeMania 2016-17 | D54: BridgeMania 2016-17 | G54: BridgeMania 2016-17 | J54: BridgeMania 2016-17 | M54: BridgeMania 2016-17
A55: 2016-10-29 | D55: 2016-11-05 | G55: 2016-11-19 | J55: 2016-12-03 | M55: 2017-01-07
A56: coppie base | C56: 11 | D56: coppie base | F56: 8 | G56: coppie base | I56: 11 | J56: coppie base | L56: 11 | M56: coppie base | O56: 11
A57: # | B57: coppie | C57: status | D57: # | E57: coppie | F57: status | G57: # | H57: coppie | I57: status | J57: # | K57: coppie | L57: status | M57: # | N57: coppie | O57: status
A58: 1 | B58: rs | C58: O | D58: 1 | E58: tj | F58: O | G58: 1 | H58: es | I58: O | J58: 1 | K58: il | L58: O | M58: 1 | N58: mr | O58: O
A59: 2 | B59: il | C59: P | D59: 2 | E59: il | F59: P | G59: 2 | H59: il | I59: P | J59: 2 | K59: mr | L59: P | M59: 2 | N59: lg | O59: P
A60: 3 | B60: lg | C60: P | D60: 3 | E60: lg | F60: P | G60: 3 | H60: lg | I60: P | J60: 3 | K60: lg | L60: P | M60: 3 | N60: cg | O60: P
A61: 4 | B61: sm | C61: P | D61: 4 | E61: sm | F61: P | G61: 4 | H61: be | I61: P | J61: 4 | K61: be | L61: P | M61: 4 | N61: be | O61: P
A62: 5 | B62: be | C62: P | D62: 5 | E62: rs | F62: P | G62: 5 | H62: cg | I62: P | J62: 5 | K62: cg | L62: P | M62: 5 | N62: sm | O62: P
A63: 6 | B63: cg | C63: P | D63: 6 | E63: ad | F63: P | G63: 6 | H63: sm | I63: P | J63: 6 | K63: sm | L63: P | M63: 6 | N63: os | O63: P
A64: 7 | B64: ad | C64: P | D64: 7 | E64: os | F64: P | G64: 7 | H64: tj | I64: P | J64: 7 | K64: es | L64: P | M64: 7 | N64: es | O64: P
A65: 8 | B65: os | C65: P | D65: 8 | E65: es | F65: P | G65: 8 | H65: rs | I65: P | J65: 8 | K65: tj | L65: P | M65: 8 | N65: rs | O65: P
A66: 9 | B66: es | C66: P | D66: 9 | E66: mr | F66: A | G66: 9 | H66: ad | I66: P | J66: 9 | K66: rs | L66: P | M66: 9 | N66: ad | O66: P
A67: 10 | B67: tj | C67: P | D67: 10 | E67: be | F67: A | G67: 10 | H67: os | I67: P | J67: 10 | K67: ad | L67: P | M67: 10 | N67: il | O67: I
A68: 11 | B68: mr | C68: P | D68: 11 | E68: cg | F68: A | G68: 11 | H68: mr | I68: I | J68: 11 | K68: os | L68: P | M68: 11 | N68: tj | O68: I
A70: BridgeMania 2016-17 | D70: BridgeMania 2016-17 | G70: BridgeMania 2016-17 | J70: BridgeMania 2016-17 | M70: BridgeMania 2016-17
A71: 2017-01-14 | D71: 2017-01-21 | G71: 2017-01-28 | J71: 2017-02-04 | M71: 2017-02-11
A72: coppie base | C72: 11 | D72: coppie base | F72: 11 | G72: coppie base | I72: 11 | J72: coppie base | L72: 9 | M72: coppie base | O72: 11
A73: # | B73: coppie | C73: status | D73: # | E73: coppie | F73: status | G73: # | H73: coppie | I73: status | J73: # | K73: coppie | L73: status | M73: # | N73: coppie | O73: status
A74: 1 | B74: os | C74: O | D74: 1 | E74: sm | F74: O | G74: 1 | H74: ad | I74: O | J74: 1 | K74: lg | L74: O | M74: 1 | N74: be | O74: O
A75: 2 | B75: il | C75: P | D75: 2 | E75: il | F75: P | G75: 2 | H75: il | I75: P | J75: 2 | K75: il | L75: P | M75: 2 | N75: il | O75: P
A76: 3 | B76: lg | C76: P | D76: 3 | E76: lg | F76: P | G76: 3 | H76: lg | I76: P | J76: 3 | K76: sm | L76: P | M76: 3 | N76: mr | O76: P
A77: 4 | B77: mr | C77: P | D77: 4 | E77: mr | F77: P | G77: 4 | H77: mr | I77: P | J77: 4 | K77: os | L77: P | M77: 4 | N77: cg | O77: P
A78: 5 | B78: cg | C78: P | D78: 5 | E78: cg | F78: P | G78: 5 | H78: cg | I78: P | J78: 5 | K78: tj | L78: P | M78: 5 | N78: lg | O78: P
A79: 6 | B79: tj | C79: P | D79: 6 | E79: os | F79: P | G79: 6 | H79: sm | I79: P | J79: 6 | K79: ad | L79: P | M79: 6 | N79: sm | O79: P
A80: 7 | B80: be | C80: P | D80: 7 | E80: tj | F80: P | G80: 7 | H80: os | I80: P | J80: 7 | K80: rs | L80: P | M80: 7 | N80: os | O80: P
A81: 8 | B81: sm | C81: P | D81: 8 | E81: be | F81: P | G81: 8 | H81: tj | I81: P | J81: 8 | K81: mr | L81: I | M81: 8 | N81: tj | O81: P
A82: 9 | B82: es | C82: P | D82: 9 | E82: es | F82: P | G82: 9 | H82: es | I82: P | J82: 9 | K82: cg | L82: I | M82: 9 | N82: ad | O82: P
A83: 10 | B83: rs | C83: P | D83: 10 | E83: rs | F83: P | G83: 10 | H83: rs | I83: P | J83: 10 | K83: es | L83: I | M83: 10 | N83: rs | O83: P
A84: 11 | B84: ad | C84: P | D84: 11 | E84: ad | F84: P | G84: 11 | H84: be | I84: I | J84: 11 | K84: be | L84: I | M84: 11 | N84: es | O84: I
A86: BridgeMania 2016-17 | D86: BridgeMania 2016-17 | G86: BridgeMania 2016-17 | J86: BridgeMania 2016-17 | M86: BridgeMania 2016-17
A87: 2017-02-18 | D87: 2017-02-25 | G87: 2017-03-11 | J87: 2017-03-18 | M87: 2017-04-01
A88: coppie base | C88: 11 | D88: coppie base | F88: 8 | G88: coppie base | I88: 9 | J88: coppie base | L88: 11 | M88: coppie base | O88: 8
A89: # | B89: coppie | C89: status | D89: # | E89: coppie | F89: status | G89: # | H89: coppie | I89: status | J89: # | K89: coppie | L89: status | M89: # | N89: coppie | O89: status
A90: 1 | B90: rs | C90: O | D90: 1 | E90: tj | F90: O | G90: 1 | H90: lg | I90: O | J90: 1 | K90: es | L90: O | M90: 1 | N90: cg | O90: O
A91: 2 | B91: il | C91: P | D91: 2 | E91: be | F91: P | G91: 2 | H91: il | I91: P | J91: 2 | K91: il | L91: P | M91: 2 | N91: sm | O91: P
A92: 3 | B92: be | C92: P | D92: 3 | E92: mr | F92: P | G92: 3 | H92: cg | I92: P | J92: 3 | K92: cg | L92: P | M92: 3 | N92: lg | O92: P
A93: 4 | B93: mr | C93: P | D93: 4 | E93: lg | F93: P | G93: 4 | H93: be | I93: P | J93: 4 | K93: lg | L93: P | M93: 4 | N93: be | O93: P
A94: 5 | B94: cg | C94: P | D94: 5 | E94: es | F94: P | G94: 5 | H94: mr | I94: P | J94: 5 | K94: be | L94: P | M94: 5 | N94: mr | O94: P
A95: 6 | B95: lg | C95: P | D95: 6 | E95: sm | F95: P | G95: 6 | H95: es | I95: P | J95: 6 | K95: mr | L95: P | M95: 6 | N95: tj | O95: P
A96: 7 | B96: es | C96: P | D96: 7 | E96: os | F96: P | G96: 7 | H96: ad | I96: P | J96: 7 | K96: tj | L96: P | M96: 7 | N96: rs | O96: P
A97: 8 | B97: sm | C97: P | D97: 8 | E97: rs | F97: P | G97: 8 | H97: os | I97: P | J97: 8 | K97: ad | L97: P | M97: 8 | N97: es | O97: I
A98: 9 | B98: os | C98: P | D98: 9 | E98: il | F98: I | G98: 9 | H98: rs | I98: P | J98: 9 | K98: rs | L98: P | M98: 9 | N98: il | O98: I
A99: 10 | B99: tj | C99: P | D99: 10 | E99: cg | F99: I | G99: 10 | H99: tj | I99: I | J99: 10 | K99: os | L99: I | M99: 10 | N99: ad | O99: I
A100: 11 | B100: ad | C100: P | D100: 11 | E100: ad | F100: I | G100: 11 | H100: sm | I100: I | J100: 11 | K100: sm | L100: I | M100: 11 | N100: os | O100: I
A102: BridgeMania 2016-17 | D102: BridgeMania 2016-17 | G102: BridgeMania 2016-17 | J102: BridgeMania 2016-17 | M102: BridgeMania 2016-17
A103: 2017-04-29 | D103: 2017-05-13 | G103: 2017-05-20 | J103: 2017-05-27 | M103: 2017-06-10
A104: coppie base | C104: 8 | D104: coppie base | F104: 11 | G104: coppie base | I104: 11 | J104: coppie base | L104: 11 | M104: coppie base | O104: 11
A105: # | B105: coppie | C105: status | D105: # | E105: coppie | F105: status | G105: # | H105: coppie | I105: status | J105: # | K105: coppie | L105: status | M105: # | N105: coppie | O105: status
A106: 1 | B106: il | C106: O | D106: 1 | E106: sm | F106: O | G106: 1 | H106: ad | I106: O | J106: 1 | K106: os | L106: O | M106: 1 | N106: mr | O106: O
A107: 2 | B107: cg | C107: P | D107: 2 | E107: il | F107: P | G107: 2 | H107: il | I107: P | J107: 2 | K107: il | L107: P | M107: 2 | N107: il | O107: P
A108: 3 | B108: os | C108: P | D108: 3 | E108: cg | F108: P | G108: 3 | H108: sm | I108: P | J108: 3 | K108: sm | L108: P | M108: 3 | N108: sm | O108: P
A109: 4 | B109: lg | C109: P | D109: 4 | E109: es | F109: P | G109: 4 | H109: cg | I109: P | J109: 4 | K109: cg | L109: P | M109: 4 | N109: cg | O109: P
A110: 5 | B110: be | C110: P | D110: 5 | E110: os | F110: P | G110: 5 | H110: es | I110: P | J110: 5 | K110: es | L110: P | M110: 5 | N110: os | O110: P
A111: 6 | B111: mr | C111: P | D111: 6 | E111: lg | F111: P | G111: 6 | H111: os | I111: P | J111: 6 | K111: lg | L111: P | M111: 6 | N111: ad | O111: P
A112: 7 | B112: ad | C112: P | D112: 7 | E112: be | F112: P | G112: 7 | H112: lg | I112: P | J112: 7 | K112: be | L112: P | M112: 7 | N112: rs | O112: P
A113: 8 | B113: tj | C113: P | D113: 8 | E113: mr | F113: P | G113: 8 | H113: be | I113: P | J113: 8 | K113: mr | L113: P | M113: 8 | N113: lg | O113: P
A114: 9 | B114: rs | C114: A | D114: 9 | E114: rs | F114: P | G114: 9 | H114: mr | I114: P | J114: 9 | K114: ad | L114: I | M114: 9 | N114: es | O114: I
A115: 10 | B115: sm | C115: I | D115: 10 | E115: ad | F115: P | G115: 10 | H115: rs | I115: P | J115: 10 | K115: rs | L115: I | M115: 10 | N115: be | O115: I
A116: 11 | B116: es | C116: I | D116: 11 | E116: tj | F116: P | G116: 11 | H116: tj | I116: I | J116: 11 | K116: tj | L116: I | M116: 11 | N116: tj | O116: I
A117: BridgeMania 2016-17 | D117: BridgeMania 2016-17 | G117: BridgeMania 2016-17
A118: 2017-06-17 | D118: 2017-06-24 | G118: 2017-07-01
A119: coppie base | C119: 11 | D119: coppie base | F119: 11 | G119: coppie base | I119: 11
A120: # | B120: coppie | C120: status | D120: # | E120: coppie | F120: status | G120: # | H120: coppie | I120: status
A121: 1 | B121: be | C121: O | D121: 1 | E121: es | F121: O | G121: 1 | H121: tj | I121: O
A122: 2 | B122: tj | C122: P | D122: 2 | E122: il | F122: P | G122: 2 | H122: lg | I122: P
A123: 3 | B123: sm | C123: P | D123: 3 | E123: tj | F123: P | G123: 3 | H123: be | I123: P
A124: 4 | B124: cg | C124: P | D124: 4 | E124: sm | F124: P | G124: 4 | H124: os | I124: P
A125: 5 | B125: os | C125: P | D125: 5 | E125: cg | F125: P | G125: 5 | H125: mr | I125: P
A126: 6 | B126: mr | C126: P | D126: 6 | E126: be | F126: P | G126: 6 | H126: ad | I126: P
A127: 7 | B127: ad | C127: P | D127: 7 | E127: os | F127: P | G127: 7 | H127: rs | I127: P
A128: 8 | B128: rs | C128: P | D128: 8 | E128: mr | F128: P | G128: 8 | H128: es | I128: I
A129: 9 | B129: lg | C129: P | D129: 9 | E129: ad | F129: P | G129: 9 | H129: il | I129: I
A130: 10 | B130: il | C130: I | D130: 10 | E130: rs | F130: P | G130: 10 | H130: sm | I130: I
A131: 11 | B131: es | C131: I | D131: 11 | E131: lg | F131: I | G131: 11 | H131: cg | I131: I

Sheet 8lug
A1: Data | C1: 2017-07-08 | D1: BridgeMania 2016-17 - Torneo Howell
A2: luogo | C2: Bianchi | D2: Coppie Ctrl+e | E2: Calcola Ctr+f | F2: Duplica Ctrl+g | G2: Clear Ctrl+h | J2: &
A3: # coppie | C3: =IF(B5="","",COUNT(B5:B25)) -> 7 | E3: =IF(E5="","",SUMIF(E5:E25,">0")) -> 349.34 | G3: =IF(G5="","",SUM(G5:G25)) -> 350 | H3: =IF(H5="","",SUM(H5:H25)) -> 294 | I3: =SUM(I5:I25) -> 0 | J3: =SUM(J5:J25) -> 294 | K3: =SUM(K5:K25) -> 14 | L3: =SUM(L5:L25) -> 14 | M3: 14 | N3: 14 | O3: 14 | P3: 14 | Q3: 14 | R3: 14 | S3: 14 | T3: 14 | U3: 14 | V3: 14 | W3: 14 | X3: 14 | Y3: 14 | Z3: 14 | AA3: 14 | AB3: 14 | AC3: 14 | AD3: 14 | AE3: 14 | AF3: 0 | AG3: 0 | AH3: 0 | AI3: 0 | AJ3: 0 | AK3: 0 | AL3: 0 | AM3: 0 | AN3: 0 | AO3: 0 | AP3: 0 | AQ3: 0 | AR3: 0 | AS3: 0 | AT3: 0 | AU3: 0 | AV3: 0 | AW3: 0 | AX3: 0
A4: Class. | B4: # | C4: Coppie | E4: Punteggio Serata | F4: Handicap | G4: Punteggio % | H4: Punteggio Torneo | I4: Penalità (-) | J4: Totale punti mano | K4: 1 | L4: 2 | M4: 3 | N4: 4 | O4: 5 | P4: 6 | Q4: 7 | R4: 8 | S4: 9 | T4: 10 | U4: 11 | V4: 12 | W4: 13 | X4: 14 | Y4: 15 | Z4: 16 | AA4: 17 | AB4: 18 | AC4: 19 | AD4: 20 | AE4: 21 | AF4: 22 | AG4: 23 | AH4: 24 | AI4: 25 | AJ4: 26 | AK4: 27 | AL4: 28 | AM4: 29 | AN4: 30 | AO4: 31 | AP4: 32 | AQ4: 33 | AR4: 34 | AS4: 35 | AT4: 36 | AU4: 37 | AV4: 38 | AW4: 39 | AX4: 40 | BF4: coppia | BG4: handicap
A5: =IF(J$2="","",IF($E5="","",IF($E5=MAX($E$5:$E$54),1,IF($E5=$E4,$A4,COUNT($E$5:$E5))))) -> 1 | B5: 7 | C5: Renata | D5: Sandro | E5: =IF(J$2="","",IF(G5=0,0,F5+G5)) -> 55.92285714 | F5: =IF(C5="","",IF(BG5=0,0,BG5)) -> -1.22 | G5: =IF(J$2="","",IF($J5=0,0,(H5*$C$3/$J$3)*50)) -> 57.14285714 | H5: =IF(J$2="","",IF(SUM($K5:$AX5)=0,0,SUM($K5:$AX5)+$I5)) -> 48 | J5: =IF(B5="",0,IF(SUM($K5:$AX5)=0,0,SUM($K5:$AX5))) -> 48 | K5: 3 | L5: 3 | M5: 2 | N5: 4 | O5: 4 | P5: 2 | Q5: 2 | R5: 0 | S5: 4 | T5: 4 | U5: 0 | V5: 0 | W5: 3 | X5: 1 | Y5: 2 | Z5: 4 | AA5: 0 | AB5: 4 | AC5: 2 | AD5: 2 | AE5: 2 | BF5: 9 | BG5: -1.22
A6: =IF(J$2="","",IF($E6="","",IF($E6=MAX($E$5:$E$54),1,IF($E6=$E5,$A5,COUNT($E$5:$E6))))) -> 2 | B6: 1 | C6: Antonella | D6: Dino | E6: 54.11142857 | F6: 0.54 | G6: 53.57142857 | H6: 45 | J6: 45 | K6: 2 | L6: 2 | M6: 2 | N6: 3 | O6: 4 | P6: 2 | Q6: 2 | R6: 4 | S6: 0 | T6: 2 | U6: 4 | V6: 2 | W6: 1 | X6: 0 | Y6: 4 | Z6: 1 | AA6: 3 | AB6: 1 | AC6: 2 | AD6: 3 | AE6: 1 | BF6: 1 | BG6: 0.54
A7: =IF(J$2="","",IF($E7="","",IF($E7=MAX($E$5:$E$54),1,IF($E7=$E6,$A6,COUNT($E$5:$E7))))) -> 3 | B7: 2 | C7: Tatiana | D7: Julio | E7: 50.41 | F7: 0.41 | G7: 50 | H7: 42 | J7: 42 | K7: 1 | L7: 1 | M7: 4 | N7: 2 | O7: 2 | P7: 2 | Q7: 2 | R7: 3 | S7: 1 | T7: 2 | U7: 0 | V7: 2 | W7: 4 | X7: 3 | Y7: 0 | Z7: 0 | AA7: 4 | AB7: 0 | AC7: 2 | AD7: 3 | AE7: 4 | BF7: 11 | BG7: 0.41
A8: =IF(J$2="","",IF($E8="","",IF($E8=MAX($E$5:$E$54),1,IF($E8=$E7,$A7,COUNT($E$5:$E8))))) -> 4 | B8: 4 | C8: Barbara | D8: Elio | E8: 48.69952381 | F8: -0.11 | G8: 48.80952381 | H8: 41 | J8: 41 | K8: 3 | L8: 3 | M8: 0 | N8: 1 | O8: 0 | P8: 2 | Q8: 2 | R8: 1 | S8: 3 | T8: 2 | U8: 2 | V8: 2 | W8: 1 | X8: 3 | Y8: 2 | Z8: 1 | AA8: 3 | AB8: 1 | AC8: 2 | AD8: 4 | AE8: 3 | BF8: 2 | BG8: -0.11
A9: =IF(J$2="","",IF($E9="","",IF($E9=MAX($E$5:$E$54),1,IF($E9=$E8,$A8,COUNT($E$5:$E9))))) -> 5 | B9: 5 | C9: Elena | D9: Stefano | E9: 48.08952381 | F9: -0.72 | G9: 48.80952381 | H9: 41 | J9: 41 | K9: 0 | L9: 0 | M9: 4 | N9: 3 | O9: 2 | P9: 2 | Q9: 2 | R9: 1 | S9: 3 | T9: 0 | U9: 4 | V9: 4 | W9: 2 | X9: 2 | Y9: 2 | Z9: 3 | AA9: 1 | AB9: 3 | AC9: 2 | AD9: 0 | AE9: 1 | BF9: 4 | BG9: -0.72
A10: =IF(J$2="","",IF($E10="","",IF($E10=MAX($E$5:$E$54),1,IF($E10=$E9,$A9,COUNT($E$5:$E10))))) -> 6 | B10: 3 | C10: Olimpia | D10: Sauro | E10: 47.50857143 | F10: 1.08 | G10: 46.42857143 | H10: 39 | J10: 39 | K10: 1 | L10: 1 | M10: 2 | N10: 1 | O10: 2 | P10: 2 | Q10: 2 | R10: 2 | S10: 2 | T10: 0 | U10: 2 | V10: 4 | W10: 0 | X10: 1 | Y10: 4 | Z10: 3 | AA10: 1 | AB10: 3 | AC10: 2 | AD10: 1 | AE10: 3 | BF10: 8 | BG10: 1.08
A11: =IF(J$2="","",IF($E11="","",IF($E11=MAX($E$5:$E$54),1,IF($E11=$E10,$A10,COUNT($E$5:$E11))))) -> 7 | B11: 6 | C11: Manuela | D11: Roberto | E11: 44.59809524 | F11: -0.64 | G11: 45.23809524 | H11: 38 | J11: 38 | K11: 4 | L11: 4 | M11: 0 | N11: 0 | O11: 0 | P11: 2 | Q11: 2 | R11: 3 | S11: 1 | T11: 4 | U11: 2 | V11: 0 | W11: 3 | X11: 4 | Y11: 0 | Z11: 2 | AA11: 2 | AB11: 2 | AC11: 2 | AD11: 1 | AE11: 0 | BF11: 7 | BG11: -0.64
A12: =IF(J$2="","",IF($E12="","",IF($E12=MAX($E$5:$E$54),1,IF($E12=$E11,$A11,COUNT($E$5:$E12))))) -> 8 | E12: 0 | G12: 0 | H12: 0 | J12: 0 | BF12: 3 | BG12: 1.03
A13: =IF(J$2="","",IF($E13="","",IF($E13=MAX($E$5:$E$54),1,IF($E13=$E12,$A12,COUNT($E$5:$E13))))) -> 8 | E13: 0 | G13: 0 | H13: 0 | J13: 0 | BF13: 5 | BG13: -1
A14: =IF(J$2="","",IF($E14="","",IF($E14=MAX($E$5:$E$54),1,IF($E14=$E13,$A13,COUNT($E$5:$E14))))) -> 8 | E14: 0 | G14: 0 | H14: 0 | J14: 0 | BF14: 6 | BG14: 1.28
A15: =IF(J$2="","",IF($E15="","",IF($E15=MAX($E$5:$E$54),1,IF($E15=$E14,$A14,COUNT($E$5:$E15))))) -> 8 | E15: 0 | G15: 0 | H15: 0 | J15: 0 | BF15: 10 | BG15: -2.57
A16: =IF(J$2="","",IF($E16="","",IF($E16=MAX($E$5:$E$54),1,IF($E16=$E15,$A15,COUNT($E$5:$E16))))) -> 8 | E16: 0 | G16: 0 | H16: 0 | J16: 0 | BF16: 12 | BG16: 0
A17: =IF(J$2="","",IF($E17="","",IF($E17=MAX($E$5:$E$54),1,IF($E17=$E16,$A16,COUNT($E$5:$E17))))) -> 8 | E17: 0 | G17: 0 | H17: 0 | J17: 0 | BF17: 13 | BG17: 0
A18: =IF(J$2="","",IF($E18="","",IF($E18=MAX($E$5:$E$54),1,IF($E18=$E17,$A17,COUNT($E$5:$E18))))) -> 8 | E18: 0 | G18: 0 | H18: 0 | J18: 0 | BF18: 14 | BG18: 0
A19: =IF(J$2="","",IF($E19="","",IF($E19=MAX($E$5:$E$54),1,IF($E19=$E18,$A18,COUNT($E$5:$E19))))) -> 8 | E19: 0 | G19: 0 | H19: 0 | J19: 0 | BF19: 15 | BG19: 0
A20: =IF(J$2="","",IF($E20="","",IF($E20=MAX($E$5:$E$54),1,IF($E20=$E19,$A19,COUNT($E$5:$E20))))) -> 8 | E20: 0 | G20: 0 | H20: 0 | J20: 0 | BF20: 16 | BG20: 0
A21: =IF(J$2="","",IF($E21="","",IF($E21=MAX($E$5:$E$54),1,IF($E21=$E20,$A20,COUNT($E$5:$E21))))) -> 8 | E21: 0 | G21: 0 | H21: 0 | J21: 0 | BF21: 17 | BG21: 0
A22: =IF(J$2="","",IF($E22="","",IF($E22=MAX($E$5:$E$54),1,IF($E22=$E21,$A21,COUNT($E$5:$E22))))) -> 8 | E22: 0 | G22: 0 | H22: 0 | J22: 0 | BF22: 18 | BG22: 0
A23: =IF(J$2="","",IF($E23="","",IF($E23=MAX($E$5:$E$54),1,IF($E23=$E22,$A22,COUNT($E$5:$E23))))) -> 8 | E23: 0 | G23: 0 | H23: 0 | J23: 0 | BF23: 19 | BG23: 0
A24: =IF(J$2="","",IF($E24="","",IF($E24=MAX($E$5:$E$54),1,IF($E24=$E23,$A23,COUNT($E$5:$E24))))) -> 8 | E24: 0 | G24: 0 | H24: 0 | J24: 0 | BF24: 20 | BG24: 0
A25: =IF(J$2="","",IF($E25="","",IF($E25=MAX($E$5:$E$54),1,IF($E25=$E24,$A24,COUNT($E$5:$E25))))) -> 8 | E25: 0 | G25: 0 | H25: 0 | J25: 0 | BF25: 21 | BG25: 0
A26: =IF(J$2="","",IF($E26="","",IF($E26=MAX($E$5:$E$54),1,IF($E26=$E25,$A25,COUNT($E$5:$E26))))) -> 8 | E26: 0 | G26: 0 | H26: 0 | J26: 0 | BF26: 22 | BG26: 0
A27: =IF(J$2="","",IF($E27="","",IF($E27=MAX($E$5:$E$54),1,IF($E27=$E26,$A26,COUNT($E$5:$E27))))) -> 8 | E27: 0 | G27: 0 | H27: 0 | J27: 0 | BF27: 23 | BG27: 0
A28: =IF(J$2="","",IF($E28="","",IF($E28=MAX($E$5:$E$54),1,IF($E28=$E27,$A27,COUNT($E$5:$E28))))) -> 8 | E28: 0 | G28: 0 | H28: 0 | J28: 0 | BF28: 24 | BG28: 0
A29: =IF(J$2="","",IF($E29="","",IF($E29=MAX($E$5:$E$54),1,IF($E29=$E28,$A28,COUNT($E$5:$E29))))) -> 8 | E29: 0 | G29: 0 | H29: 0 | J29: 0 | BF29: 25 | BG29: 0
A30: =IF(J$2="","",IF($E30="","",IF($E30=MAX($E$5:$E$54),1,IF($E30=$E29,$A29,COUNT($E$5:$E30))))) -> 8 | E30: 0 | G30: 0 | H30: 0 | J30: 0 | BF30: 26 | BG30: 0
A31: =IF(J$2="","",IF($E31="","",IF($E31=MAX($E$5:$E$54),1,IF($E31=$E30,$A30,COUNT($E$5:$E31))))) -> 8 | E31: 0 | G31: 0 | H31: 0 | J31: 0 | BF31: 27 | BG31: 0
A32: =IF(J$2="","",IF($E32="","",IF($E32=MAX($E$5:$E$54),1,IF($E32=$E31,$A31,COUNT($E$5:$E32))))) -> 8 | E32: 0 | G32: 0 | H32: 0 | J32: 0 | BF32: 28 | BG32: 0
A33: =IF(J$2="","",IF($E33="","",IF($E33=MAX($E$5:$E$54),1,IF($E33=$E32,$A32,COUNT($E$5:$E33))))) -> 8 | E33: 0 | G33: 0 | H33: 0 | J33: 0 | BF33: 29 | BG33: 0
A34: =IF(J$2="","",IF($E34="","",IF($E34=MAX($E$5:$E$54),1,IF($E34=$E33,$A33,COUNT($E$5:$E34))))) -> 8 | E34: 0 | G34: 0 | H34: 0 | J34: 0 | BF34: 30 | BG34: 0
A35: =IF(J$2="","",IF($E35="","",IF($E35=MAX($E$5:$E$54),1,IF($E35=$E34,$A34,COUNT($E$5:$E35))))) -> 8 | E35: 0 | G35: 0 | H35: 0 | J35: 0 | BF35: 31 | BG35: 0
A36: =IF(J$2="","",IF($E36="","",IF($E36=MAX($E$5:$E$54),1,IF($E36=$E35,$A35,COUNT($E$5:$E36))))) -> 8 | E36: 0 | G36: 0 | H36: 0 | J36: 0 | BF36: 32 | BG36: 0
A37: =IF(J$2="","",IF($E37="","",IF($E37=MAX($E$5:$E$54),1,IF($E37=$E36,$A36,COUNT($E$5:$E37))))) -> 8 | E37: 0 | G37: =IF(J$2="","",IF($J37=0,0,(H37*$C$3/$J$3)*50)) -> 0 | H37: =IF(J$2="","",IF(SUM($K37:$AX37)=0,0,SUM($K37:$AX37)+$I37)) -> 0 | J37: =IF(B37="",0,IF(SUM($K37:$AX37)=0,0,SUM($K37:$AX37))) -> 0 | BF37: 33 | BG37: 0
A38: =IF(J$2="","",IF($E38="","",IF($E38=MAX($E$5:$E$54),1,IF($E38=$E37,$A37,COUNT($E$5:$E38))))) -> 8 | E38: 0 | G38: 0 | H38: 0 | J38: 0 | BF38: 34 | BG38: 0
A39: =IF(J$2="","",IF($E39="","",IF($E39=MAX($E$5:$E$54),1,IF($E39=$E38,$A38,COUNT($E$5:$E39))))) -> 8 | E39: 0 | G39: 0 | H39: 0 | J39: 0 | BF39: 35 | BG39: 0
A40: =IF(J$2="","",IF($E40="","",IF($E40=MAX($E$5:$E$54),1,IF($E40=$E39,$A39,COUNT($E$5:$E40))))) -> 8 | E40: 0 | G40: 0 | H40: 0 | J40: 0 | BF40: 36 | BG40: 0
A41: =IF(J$2="","",IF($E41="","",IF($E41=MAX($E$5:$E$54),1,IF($E41=$E40,$A40,COUNT($E$5:$E41))))) -> 8 | E41: 0 | G41: 0 | H41: 0 | J41: 0 | BF41: 37 | BG41: 0
A42: =IF(J$2="","",IF($E42="","",IF($E42=MAX($E$5:$E$54),1,IF($E42=$E41,$A41,COUNT($E$5:$E42))))) -> 8 | E42: 0 | G42: 0 | H42: 0 | J42: 0 | BF42: 38 | BG42: 0
A43: =IF(J$2="","",IF($E43="","",IF($E43=MAX($E$5:$E$54),1,IF($E43=$E42,$A42,COUNT($E$5:$E43))))) -> 8 | E43: 0 | G43: 0 | H43: 0 | J43: 0 | BF43: 39 | BG43: 0
A44: =IF(J$2="","",IF($E44="","",IF($E44=MAX($E$5:$E$54),1,IF($E44=$E43,$A43,COUNT($E$5:$E44))))) -> 8 | E44: 0 | G44: 0 | H44: 0 | J44: 0 | BF44: 40 | BG44: 0
A45: =IF(J$2="","",IF($E45="","",IF($E45=MAX($E$5:$E$54),1,IF($E45=$E44,$A44,COUNT($E$5:$E45))))) -> 8 | E45: 0 | G45: 0 | H45: 0 | J45: 0 | BF45: 41 | BG45: 0
A46: =IF(J$2="","",IF($E46="","",IF($E46=MAX($E$5:$E$54),1,IF($E46=$E45,$A45,COUNT($E$5:$E46))))) -> 8 | E46: 0 | G46: 0 | H46: 0 | J46: 0 | BF46: 42 | BG46: 0
A47: =IF(J$2="","",IF($E47="","",IF($E47=MAX($E$5:$E$54),1,IF($E47=$E46,$A46,COUNT($E$5:$E47))))) -> 8 | E47: 0 | G47: 0 | H47: 0 | J47: 0 | BF47: 43 | BG47: 0
A48: =IF(J$2="","",IF($E48="","",IF($E48=MAX($E$5:$E$54),1,IF($E48=$E47,$A47,COUNT($E$5:$E48))))) -> 8 | E48: 0 | G48: 0 | H48: 0 | J48: 0 | BF48: 44 | BG48: 0
A49: =IF(J$2="","",IF($E49="","",IF($E49=MAX($E$5:$E$54),1,IF($E49=$E48,$A48,COUNT($E$5:$E49))))) -> 8 | E49: 0 | G49: 0 | H49: 0 | J49: 0 | BF49: 45 | BG49: 0
A50: =IF(J$2="","",IF($E50="","",IF($E50=MAX($E$5:$E$54),1,IF($E50=$E49,$A49,COUNT($E$5:$E50))))) -> 8 | E50: 0 | G50: 0 | H50: 0 | J50: 0 | BF50: 46 | BG50: 0
A51: =IF(J$2="","",IF($E51="","",IF($E51=MAX($E$5:$E$54),1,IF($E51=$E50,$A50,COUNT($E$5:$E51))))) -> 8 | E51: 0 | G51: 0 | H51: 0 | J51: 0 | BF51: 47 | BG51: 0
A52: =IF(J$2="","",IF($E52="","",IF($E52=MAX($E$5:$E$54),1,IF($E52=$E51,$A51,COUNT($E$5:$E52))))) -> 8 | E52: 0 | G52: 0 | H52: 0 | J52: 0 | BF52: 48 | BG52: 0
A53: =IF(J$2="","",IF($E53="","",IF($E53=MAX($E$5:$E$54),1,IF($E53=$E52,$A52,COUNT($E$5:$E53))))) ->  | G53: 0 | H53: 0 | J53: 0 | BF53: 49 | BG53: 0
A54: =IF(J$2="","",IF($E54="","",IF($E54=MAX($E$5:$E$54),1,IF($E54=$E53,$A53,COUNT($E$5:$E54))))) ->  | G54: 0 | H54: 0 | J54: 0 | BF54: 50 | BG54: 0
D59: punteggi % ordinati per # di coppia
B60: # coppia | E60: con zeri | F60: senza zeri | G60: senza zeri
B61: 1 | E61: 53.57142857 | F61: =IF(E61=0,"",E61) -> 53.57142857 | G61: 53.57142857 | BF61: 1 | BG61: 0.54
B62: 2 | E62: 50 | F62: 50 | G62: 50 | BF62: 11 | BG62: 0.41
B63: 3 | E63: 46.42857143 | F63: 46.42857143 | G63: 46.42857143 | I63: =IF(H63=0,"",H63) ->  | BF63: 8 | BG63: 1.08
B64: 4 | E64: 48.80952381 | F64: 48.80952381 | G64: 48.80952381 | BF64: 2 | BG64: -0.11
B65: 5 | E65: 48.80952381 | F65: 48.80952381 | G65: 48.80952381 | I65: =IF(H65=0,"",H65) ->  | BF65: 4 | BG65: -0.72
B66: 6 | E66: 45.23809524 | F66: 45.23809524 | G66: 45.23809524 | BF66: 7 | BG66: -0.64
B67: 7 | E67: 57.14285714 | F67: 57.14285714 | G67: 57.14285714 | BF67: 9 | BG67: -1.22
E68: 0 | I68: =IF(H68=0,"",H68) ->  | BF68: 3 | BG68: 1.03
E69: 0 | BF69: 5 | BG69: -1
E70: 0 | I70: =IF(H70=0,"",H70) ->  | BF70: 6 | BG70: 1.28
E71: 0 | I71: =IF(H71=0,"",H71) ->  | BF71: 10 | BG71: -2.57
E72: 0 | BF72: 12 | BG72: 0
E73: 0 | I73: =IF(H73=0,"",H73) ->  | BF73: 13 | BG73: 0
E74: 0 | I74: =IF(H74=0,"",H74) ->  | BF74: 14 | BG74: 0
E75: 0 | I75: =IF(H75=0,"",H75) ->  | BF75: 15 | BG75: 0
E76: 0 | I76: =IF(H76=0,"",H76) ->  | BF76: 16 | BG76: 0
E77: 0 | BF77: 17 | BG77: 0
E78: 0 | BF78: 18 | BG78: 0
E79: 0 | I79: =IF(H79=0,"",H79) ->  | BF79: 19 | BG79: 0
E80: 0 | I80: =IF(H80=0,"",H80) ->  | BF80: 20 | BG80: 0
E81: 0 | BF81: 21 | BG81: 0
E82: 0 | BF82: 22 | BG82: 0
E83: 0 | BF83: 23 | BG83: 0
E84: 0 | BF84: 24 | BG84: 0
E85: 0 | BF85: 25 | BG85: 0
E86: 0 | BF86: 26 | BG86: 0
E87: 0 | BF87: 27 | BG87: 0
E88: 0 | BF88: 28 | BG88: 0
E89: 0 | BF89: 29 | BG89: 0
E90: 0 | BF90: 30 | BG90: 0
E91: 0 | BF91: 31 | BG91: 0
E92: 0 | BF92: 32 | BG92: 0
E93: 0 | F93: =IF(E93=0,"",E93) ->  | BF93: 33 | BG93: 0
E94: 0 | BF94: 34 | BG94: 0
E95: 0 | BF95: 35 | BG95: 0
E96: 0 | BF96: 36 | BG96: 0
E97: 0 | BF97: 37 | BG97: 0
E98: 0 | BF98: 38 | BG98: 0
E99: 0 | BF99: 39 | BG99: 0
E100: 0 | BF100: 40 | BG100: 0
E101: 0 | BF101: 41 | BG101: 0
E102: 0 | BF102: 42 | BG102: 0
E103: 0 | BF103: 43 | BG103: 0
E104: 0 | BF104: 44 | BG104: 0
E105: 0 | BF105: 45 | BG105: 0
E106: 0 | BF106: 46 | BG106: 0
E107: 0 | BF107: 47 | BG107: 0
E108: 0 | BF108: 48 | BG108: 0
E109: 0 | BF109: 49 | BG109: 0
E110: 0 | BF110: 50 | BG110: 0
A119: punteggi con handicap ordinati per numero standard di coppia base
B120: # coppia | E120: con zeri | F120: senza zeri | G120: senza zeri
B121: 1 | E121: 54.11142857 | F121: =IF(E121=0,"",E121) -> 54.11142857 | G121: 54.11142857 | BF121: 1 | BG121: 0.41
B122: 4 | E122: 48.69952381 | F122: 48.69952381 | G122: 48.69952381 | I122: =IF(H122=0,"",H122) ->  | BF122: 2 | BG122: -0.11
E123: 0 | BF123: 3 | BG123: 1.03
B124: 5 | E124: 48.08952381 | F124: 48.08952381 | G124: 48.08952381 | BF124: 4 | BG124: -0.72
E125: 0 | BF125: 5 | BG125: -1
E126: 0 | BF126: 6 | BG126: 1.28
B127: 6 | E127: 44.59809524 | F127: 44.59809524 | G127: 44.59809524 | BF127: 7 | BG127: -1.22
B128: 3 | E128: 47.50857143 | F128: 47.50857143 | G128: 47.50857143 | BF128: 8 | BG128: -0.64
B129: 7 | E129: 55.92285714 | F129: 55.92285714 | G129: 55.92285714 | BF129: 9 | BG129: 0.54
E130: 0 | I130: =IF(H130=0,"",H130) ->  | BF130: 10 | BG130: -2.57
B131: 2 | E131: 50.41 | F131: 50.41 | G131: 50.41 | BF131: 11 | BG131: 1.08

Sheet 1lug
A1: Data | C1: 2017-07-01 | D1: BridgeMania 2016-17 - Torneo Howell
A2: luogo | C2: Torgovnick | D2: Coppie Ctrl+e | E2: Calcola Ctr+f | F2: Duplica Ctrl+g | G2: Clear Ctrl+h | J2: &
A3: # coppie | C3: =IF(B5="","",COUNT(B5:B25)) -> 7 | E3: =IF(E5="","",SUMIF(E5:E25,">0")) -> 351.34 | G3: =IF(G5="","",SUM(G5:G25)) -> 350 | H3: =IF(H5="","",SUM(H5:H25)) -> 294 | I3: =SUM(I5:I25) -> 0 | J3: =SUM(J5:J25) -> 294 | K3: =SUM(K5:K25) -> 14 | L3: =SUM(L5:L25) -> 14 | M3: 14 | N3: 14 | O3: 14 | P3: 14 | Q3: 14 | R3: 14 | S3: 14 | T3: 14 | U3: 14 | V3: 14 | W3: 14 | X3: 14 | Y3: 14 | Z3: 14 | AA3: 14 | AB3: 14 | AC3: 14 | AD3: 14 | AE3: 14 | AF3: 0 | AG3: 0 | AH3: 0 | AI3: 0 | AJ3: 0 | AK3: 0 | AL3: 0 | AM3: 0 | AN3: 0 | AO3: 0 | AP3: 0 | AQ3: 0 | AR3: 0 | AS3: 0 | AT3: 0 | AU3: 0 | AV3: 0 | AW3: 0 | AX3: 0
A4: Class. | B4: # | C4: Coppie | E4: Punteggio Serata | F4: Handicap | G4: Punteggio % | H4: Punteggio Torneo | I4: Penalità (-) | J4: Totale punti mano | K4: 1 | L4: 2 | M4: 3 | N4: 4 | O4: 5 | P4: 6 | Q4: 7 | R4: 8 | S4: 9 | T4: 10 | U4: 11 | V4: 12 | W4: 13 | X4: 14 | Y4: 15 | Z4: 16 | AA4: 17 | AB4: 18 | AC4: 19 | AD4: 20 | AE4: 21 | AF4: 22 | AG4: 23 | AH4: 24 | AI4: 25 | AJ4: 26 | AK4: 27 | AL4: 28 | AM4: 29 | AN4: 30 | AO4: 31 | AP4: 32 | AQ4: 33 | AR4: 34 | AS4: 35 | AT4: 36 | AU4: 37 | AV4: 38 | AW4: 39 | AX4: 40 | BF4: coppia | BG4: handicap
A5: =IF(J$2="","",IF($E5="","",IF($E5=MAX($E$5:$E$54),1,IF($E5=$E4,$A4,COUNT($E$5:$E5))))) -> 1 | B5: 5 | C5: Barbara | D5: Elio | E5: =IF(J$2="","",IF(G5=0,0,F5+G5)) -> 70.12809524 | F5: =IF(C5="","",IF(BG5=0,0,BG5)) -> -0.11 | G5: =IF(J$2="","",IF($J5=0,0,(H5*$C$3/$J$3)*50)) -> 70.23809524 | H5: =IF(J$2="","",IF(SUM($K5:$AX5)=0,0,SUM($K5:$AX5)+$I5)) -> 59 | J5: =IF(B5="",0,IF(SUM($K5:$AX5)=0,0,SUM($K5:$AX5))) -> 59 | K5: 3 | L5: 2 | M5: 3 | N5: 3 | O5: 4 | P5: 4 | Q5: 4 | R5: 4 | S5: 3 | T5: 3 | U5: 3 | V5: 4 | W5: 2 | X5: 2 | Y5: 2 | Z5: 0 | AA5: 4 | AB5: 4 | AC5: 3 | AD5: 0 | AE5: 2 | BF5: 2 | BG5: -0.11
A6: =IF(J$2="","",IF($E6="","",IF($E6=MAX($E$5:$E$54),1,IF($E6=$E5,$A5,COUNT($E$5:$E6))))) -> 2 | B6: 6 | C6: Tatiana | D6: Julio | E6: 52.79095238 | F6: 0.41 | G6: 52.38095238 | H6: 44 | J6: 44 | K6: 1 | L6: 2 | M6: 1 | N6: 3 | O6: 1 | P6: 0 | Q6: 4 | R6: 2 | S6: 4 | T6: 3 | U6: 0 | V6: 1 | W6: 0 | X6: 4 | Y6: 4 | Z6: 2 | AA6: 2 | AB6: 2 | AC6: 4 | AD6: 2 | AE6: 2 | BF6: 11 | BG6: 0.41
A7: =IF(J$2="","",IF($E7="","",IF($E7=MAX($E$5:$E$54),1,IF($E7=$E6,$A6,COUNT($E$5:$E7))))) -> 3 | B7: 4 | C7: Manuela | D7: Roberto | E7: 49.36 | F7: -0.64 | G7: 50 | H7: 42 | J7: 42 | K7: 3 | L7: 2 | M7: 3 | N7: 4 | O7: 3 | P7: 2 | Q7: 0 | R7: 2 | S7: 0 | T7: 2 | U7: 2 | V7: 2 | W7: 0 | X7: 2 | Y7: 2 | Z7: 2 | AA7: 2 | AB7: 2 | AC7: 1 | AD7: 4 | AE7: 2 | BF7: 7 | BG7: -0.64
A8: =IF(J$2="","",IF($E8="","",IF($E8=MAX($E$5:$E$54),1,IF($E8=$E7,$A7,COUNT($E$5:$E8))))) -> 4 | B8: 7 | C8: Renata | D8: Sandro | E8: 47.58952381 | F8: -1.22 | G8: 48.80952381 | H8: 41 | J8: 41 | K8: 0 | L8: 2 | M8: 0 | N8: 1 | O8: 3 | P8: 4 | Q8: 2 | R8: 4 | S8: 1 | T8: 1 | U8: 1 | V8: 0 | W8: 4 | X8: 2 | Y8: 2 | Z8: 0 | AA8: 4 | AB8: 4 | AC8: 2 | AD8: 2 | AE8: 2 | BF8: 9 | BG8: -1.22
A9: =IF(J$2="","",IF($E9="","",IF($E9=MAX($E$5:$E$54),1,IF($E9=$E8,$A8,COUNT($E$5:$E9))))) -> 5 | B9: 1 | C9: Olimpia | D9: Sauro | E9: 47.50857143 | F9: 1.08 | G9: 46.42857143 | H9: 39 | J9: 39 | K9: 2 | L9: 2 | M9: 2 | N9: 0 | O9: 1 | P9: 2 | Q9: 2 | R9: 0 | S9: 3 | T9: 4 | U9: 1 | V9: 3 | W9: 4 | X9: 0 | Y9: 0 | Z9: 4 | AA9: 0 | AB9: 0 | AC9: 3 | AD9: 4 | AE9: 2 | BF9: 8 | BG9: 1.08
A10: =IF(J$2="","",IF($E10="","",IF($E10=MAX($E$5:$E$54),1,IF($E10=$E9,$A9,COUNT($E$5:$E10))))) -> 6 | B10: 3 | C10: Antonella | D10: Dino | E10: 43.39714286 | F10: 0.54 | G10: 42.85714286 | H10: 36 | J10: 36 | K10: 4 | L10: 2 | M10: 4 | N10: 1 | O10: 0 | P10: 0 | Q10: 2 | R10: 2 | S10: 2 | T10: 1 | U10: 4 | V10: 3 | W10: 2 | X10: 0 | Y10: 0 | Z10: 2 | AA10: 2 | AB10: 2 | AC10: 1 | AD10: 0 | AE10: 2 | BF10: 1 | BG10: 0.54
A11: =IF(J$2="","",IF($E11="","",IF($E11=MAX($E$5:$E$54),1,IF($E11=$E10,$A10,COUNT($E$5:$E11))))) -> 7 | B11: 2 | C11: Lilli | D11: Gianni | E11: 40.56571429 | F11: 1.28 | G11: 39.28571429 | H11: 33 | J11: 33 | K11: 1 | L11: 2 | M11: 1 | N11: 2 | O11: 2 | P11: 2 | Q11: 0 | R11: 0 | S11: 1 | T11: 0 | U11: 3 | V11: 1 | W11: 2 | X11: 4 | Y11: 4 | Z11: 4 | AA11: 0 | AB11: 0 | AC11: 0 | AD11: 2 | AE11: 2 | BF11: 6 | BG11: 1.28
A12: =IF(J$2="","",IF($E12="","",IF($E12=MAX($E$5:$E$54),1,IF($E12=$E11,$A11,COUNT($E$5:$E12))))) -> 8 | E12: 0 | G12: 0 | H12: 0 | J12: 0 | BF12: 3 | BG12: 1.03
A13: =IF(J$2="","",IF($E13="","",IF($E13=MAX($E$5:$E$54),1,IF($E13=$E12,$A12,COUNT($E$5:$E13))))) -> 8 | E13: 0 | G13: 0 | H13: 0 | J13: 0 | BF13: 4 | BG13: -0.72
A14: =IF(J$2="","",IF($E14="","",IF($E14=MAX($E$5:$E$54),1,IF($E14=$E13,$A13,COUNT($E$5:$E14))))) -> 8 | E14: 0 | G14: 0 | H14: 0 | J14: 0 | BF14: 5 | BG14: -1
A15: =IF(J$2="","",IF($E15="","",IF($E15=MAX($E$5:$E$54),1,IF($E15=$E14,$A14,COUNT($E$5:$E15))))) -> 8 | E15: 0 | G15: 0 | H15: 0 | J15: 0 | BF15: 10 | BG15: -2.57
A16: =IF(J$2="","",IF($E16="","",IF($E16=MAX($E$5:$E$54),1,IF($E16=$E15,$A15,COUNT($E$5:$E16))))) -> 8 | E16: 0 | G16: 0 | H16: 0 | J16: 0 | BF16: 12 | BG16: 0
A17: =IF(J$2="","",IF($E17="","",IF($E17=MAX($E$5:$E$54),1,IF($E17=$E16,$A16,COUNT($E$5:$E17))))) -> 8 | E17: 0 | G17: 0 | H17: 0 | J17: 0 | BF17: 13 | BG17: 0
A18: =IF(J$2="","",IF($E18="","",IF($E18=MAX($E$5:$E$54),1,IF($E18=$E17,$A17,COUNT($E$5:$E18))))) -> 8 | E18: 0 | G18: 0 | H18: 0 | J18: 0 | BF18: 14 | BG18: 0
A19: =IF(J$2="","",IF($E19="","",IF($E19=MAX($E$5:$E$54),1,IF($E19=$E18,$A18,COUNT($E$5:$E19))))) -> 8 | E19: 0 | G19: 0 | H19: 0 | J19: 0 | BF19: 15 | BG19: 0
A20: =IF(J$2="","",IF($E20="","",IF($E20=MAX($E$5:$E$54),1,IF($E20=$E19,$A19,COUNT($E$5:$E20))))) -> 8 | E20: 0 | G20: 0 | H20: 0 | J20: 0 | BF20: 16 | BG20: 0
A21: =IF(J$2="","",IF($E21="","",IF($E21=MAX($E$5:$E$54),1,IF($E21=$E20,$A20,COUNT($E$5:$E21))))) -> 8 | E21: 0 | G21: 0 | H21: 0 | J21: 0 | BF21: 17 | BG21: 0
A22: =IF(J$2="","",IF($E22="","",IF($E22=MAX($E$5:$E$54),1,IF($E22=$E21,$A21,COUNT($E$5:$E22))))) -> 8 | E22: 0 | G22: 0 | H22: 0 | J22: 0 | BF22: 18 | BG22: 0
A23: =IF(J$2="","",IF($E23="","",IF($E23=MAX($E$5:$E$54),1,IF($E23=$E22,$A22,COUNT($E$5:$E23))))) -> 8 | E23: 0 | G23: 0 | H23: 0 | J23: 0 | BF23: 19 | BG23: 0
A24: =IF(J$2="","",IF($E24="","",IF($E24=MAX($E$5:$E$54),1,IF($E24=$E23,$A23,COUNT($E$5:$E24))))) -> 8 | E24: 0 | G24: 0 | H24: 0 | J24: 0 | BF24: 20 | BG24: 0
A25: =IF(J$2="","",IF($E25="","",IF($E25=MAX($E$5:$E$54),1,IF($E25=$E24,$A24,COUNT($E$5:$E25))))) -> 8 | E25: 0 | G25: 0 | H25: 0 | J25: 0 | BF25: 21 | BG25: 0
A26: =IF(J$2="","",IF($E26="","",IF($E26=MAX($E$5:$E$54),1,IF($E26=$E25,$A25,COUNT($E$5:$E26))))) -> 8 | E26: 0 | G26: 0 | H26: 0 | J26: 0 | BF26: 22 | BG26: 0
A27: =IF(J$2="","",IF($E27="","",IF($E27=MAX($E$5:$E$54),1,IF($E27=$E26,$A26,COUNT($E$5:$E27))))) -> 8 | E27: 0 | G27: 0 | H27: 0 | J27: 0 | BF27: 23 | BG27: 0
A28: =IF(J$2="","",IF($E28="","",IF($E28=MAX($E$5:$E$54),1,IF($E28=$E27,$A27,COUNT($E$5:$E28))))) -> 8 | E28: 0 | G28: 0 | H28: 0 | J28: 0 | BF28: 24 | BG28: 0
A29: =IF(J$2="","",IF($E29="","",IF($E29=MAX($E$5:$E$54),1,IF($E29=$E28,$A28,COUNT($E$5:$E29))))) -> 8 | E29: 0 | G29: 0 | H29: 0 | J29: 0 | BF29: 25 | BG29: 0
A30: =IF(J$2="","",IF($E30="","",IF($E30=MAX($E$5:$E$54),1,IF($E30=$E29,$A29,COUNT($E$5:$E30))))) -> 8 | E30: 0 | G30: 0 | H30: 0 | J30: 0 | BF30: 26 | BG30: 0
A31: =IF(J$2="","",IF($E31="","",IF($E31=MAX($E$5:$E$54),1,IF($E31=$E30,$A30,COUNT($E$5:$E31))))) -> 8 | E31: 0 | G31: 0 | H31: 0 | J31: 0 | BF31: 27 | BG31: 0
A32: =IF(J$2="","",IF($E32="","",IF($E32=MAX($E$5:$E$54),1,IF($E32=$E31,$A31,COUNT($E$5:$E32))))) -> 8 | E32: 0 | G32: 0 | H32: 0 | J32: 0 | BF32: 28 | BG32: 0
A33: =IF(J$2="","",IF($E33="","",IF($E33=MAX($E$5:$E$54),1,IF($E33=$E32,$A32,COUNT($E$5:$E33))))) -> 8 | E33: 0 | G33: 0 | H33: 0 | J33: 0 | BF33: 29 | BG33: 0
A34: =IF(J$2="","",IF($E34="","",IF($E34=MAX($E$5:$E$54),1,IF($E34=$E33,$A33,COUNT($E$5:$E34))))) -> 8 | E34: 0 | G34: 0 | H34: 0 | J34: 0 | BF34: 30 | BG34: 0
A35: =IF(J$2="","",IF($E35="","",IF($E35=MAX($E$5:$E$54),1,IF($E35=$E34,$A34,COUNT($E$5:$E35))))) -> 8 | E35: 0 | G35: 0 | H35: 0 | J35: 0 | BF35: 31 | BG35: 0
A36: =IF(J$2="","",IF($E36="","",IF($E36=MAX($E$5:$E$54),1,IF($E36=$E35,$A35,COUNT($E$5:$E36))))) -> 8 | E36: 0 | G36: 0 | H36: 0 | J36: 0 | BF36: 32 | BG36: 0
A37: =IF(J$2="","",IF($E37="","",IF($E37=MAX($E$5:$E$54),1,IF($E37=$E36,$A36,COUNT($E$5:$E37))))) -> 8 | E37: 0 | G37: =IF(J$2="","",IF($J37=0,0,(H37*$C$3/$J$3)*50)) -> 0 | H37: =IF(J$2="","",IF(SUM($K37:$AX37)=0,0,SUM($K37:$AX37)+$I37)) -> 0 | J37: =IF(B37="",0,IF(SUM($K37:$AX37)=0,0,SUM($K37:$AX37))) -> 0 | BF37: 33 | BG37: 0
A38: =IF(J$2="","",IF($E38="","",IF($E38=MAX($E$5:$E$54),1,IF($E38=$E37,$A37,COUNT($E$5:$E38))))) -> 8 | E38: 0 | G38: 0 | H38: 0 | J38: 0 | BF38: 34 | BG38: 0
A39: =IF(J$2="","",IF($E39="","",IF($E39=MAX($E$5:$E$54),1,IF($E39=$E38,$A38,COUNT($E$5:$E39))))) -> 8 | E39: 0 | G39: 0 | H39: 0 | J39: 0 | BF39: 35 | BG39: 0
A40: =IF(J$2="","",IF($E40="","",IF($E40=MAX($E$5:$E$54),1,IF($E40=$E39,$A39,COUNT($E$5:$E40))))) -> 8 | E40: 0 | G40: 0 | H40: 0 | J40: 0 | BF40: 36 | BG40: 0
A41: =IF(J$2="","",IF($E41="","",IF($E41=MAX($E$5:$E$54),1,IF($E41=$E40,$A40,COUNT($E$5:$E41))))) -> 8 | E41: 0 | G41: 0 | H41: 0 | J41: 0 | BF41: 37 | BG41: 0
A42: =IF(J$2="","",IF($E42="","",IF($E42=MAX($E$5:$E$54),1,IF($E42=$E41,$A41,COUNT($E$5:$E42))))) -> 8 | E42: 0 | G42: 0 | H42: 0 | J42: 0 | BF42: 38 | BG42: 0
A43: =IF(J$2="","",IF($E43="","",IF($E43=MAX($E$5:$E$54),1,IF($E43=$E42,$A42,COUNT($E$5:$E43))))) -> 8 | E43: 0 | G43: 0 | H43: 0 | J43: 0 | BF43: 39 | BG43: 0
A44: =IF(J$2="","",IF($E44="","",IF($E44=MAX($E$5:$E$54),1,IF($E44=$E43,$A43,COUNT($E$5:$E44))))) -> 8 | E44: 0 | G44: 0 | H44: 0 | J44: 0 | BF44: 40 | BG44: 0
A45: =IF(J$2="","",IF($E45="","",IF($E45=MAX($E$5:$E$54),1,IF($E45=$E44,$A44,COUNT($E$5:$E45))))) -> 8 | E45: 0 | G45: 0 | H45: 0 | J45: 0 | BF45: 41 | BG45: 0
A46: =IF(J$2="","",IF($E46="","",IF($E46=MAX($E$5:$E$54),1,IF($E46=$E45,$A45,COUNT($E$5:$E46))))) -> 8 | E46: 0 | G46: 0 | H46: 0 | J46: 0 | BF46: 42 | BG46: 0
A47: =IF(J$2="","",IF($E47="","",IF($E47=MAX($E$5:$E$54),1,IF($E47=$E46,$A46,COUNT($E$5:$E47))))) -> 8 | E47: 0 | G47: 0 | H47: 0 | J47: 0 | BF47: 43 | BG47: 0
A48: =IF(J$2="","",IF($E48="","",IF($E48=MAX($E$5:$E$54),1,IF($E48=$E47,$A47,COUNT($E$5:$E48))))) -> 8 | E48: 0 | G48: 0 | H48: 0 | J48: 0 | BF48: 44 | BG48: 0
A49: =IF(J$2="","",IF($E49="","",IF($E49=MAX($E$5:$E$54),1,IF($E49=$E48,$A48,COUNT($E$5:$E49))))) -> 8 | E49: 0 | G49: 0 | H49: 0 | J49: 0 | BF49: 45 | BG49: 0
A50: =IF(J$2="","",IF($E50="","",IF($E50=MAX($E$5:$E$54),1,IF($E50=$E49,$A49,COUNT($E$5:$E50))))) -> 8 | E50: 0 | G50: 0 | H50: 0 | J50: 0 | BF50: 46 | BG50: 0
A51: =IF(J$2="","",IF($E51="","",IF($E51=MAX($E$5:$E$54),1,IF($E51=$E50,$A50,COUNT($E$5:$E51))))) -> 8 | E51: 0 | G51: 0 | H51: 0 | J51: 0 | BF51: 47 | BG51: 0
A52: =IF(J$2="","",IF($E52="","",IF($E52=MAX($E$5:$E$54),1,IF($E52=$E51,$A51,COUNT($E$5:$E52))))) -> 8 | E52: 0 | G52: 0 | H52: 0 | J52: 0 | BF52: 48 | BG52: 0
A53: =IF(J$2="","",IF($E53="","",IF($E53=MAX($E$5:$E$54),1,IF($E53=$E52,$A52,COUNT($E$5:$E53))))) ->  | G53: 0 | H53: 0 | J53: 0 | BF53: 49 | BG53: 0
A54: =IF(J$2="","",IF($E54="","",IF($E54=MAX($E$5:$E$54),1,IF($E54=$E53,$A53,COUNT($E$5:$E54))))) ->  | G54: 0 | H54: 0 | J54: 0 | BF54: 50 | BG54: 0
D59: punteggi % ordinati per # di coppia
B60: # coppia | E60: con zeri | F60: senza zeri | G60: senza zeri
B61: 1 | E61: 46.42857143 | F61: =IF(E61=0,"",E61) -> 46.42857143 | G61: 46.42857143 | BF61: 8 | BG61: 1.08
B62: 2 | E62: 39.28571429 | F62: 39.28571429 | G62: 39.28571429 | BF62: 6 | BG62: 1.28
B63: 3 | E63: 42.85714286 | F63: 42.85714286 | G63: 42.85714286 | I63: =IF(H63=0,"",H63) ->  | BF63: 1 | BG63: 0.54
B64: 4 | E64: 50 | F64: 50 | G64: 50 | BF64: 7 | BG64: -0.64
B65: 5 | E65: 70.23809524 | F65: 70.23809524 | G65: 70.23809524 | I65: =IF(H65=0,"",H65) ->  | BF65: 2 | BG65: -0.11
B66: 6 | E66: 52.38095238 | F66: 52.38095238 | G66: 52.38095238 | BF66: 11 | BG66: 0.41
B67: 7 | E67: 48.80952381 | F67: 48.80952381 | G67: 48.80952381 | BF67: 9 | BG67: -1.22
E68: 0 | I68: =IF(H68=0,"",H68) ->  | BF68: 3 | BG68: 1.03
E69: 0 | BF69: 4 | BG69: -0.72
E70: 0 | I70: =IF(H70=0,"",H70) ->  | BF70: 5 | BG70: -1
E71: 0 | I71: =IF(H71=0,"",H71) ->  | BF71: 10 | BG71: -2.57
E72: 0 | BF72: 12 | BG72: 0
E73: 0 | I73: =IF(H73=0,"",H73) ->  | BF73: 13 | BG73: 0
E74: 0 | I74: =IF(H74=0,"",H74) ->  | BF74: 14 | BG74: 0
E75: 0 | I75: =IF(H75=0,"",H75) ->  | BF75: 15 | BG75: 0
E76: 0 | I76: =IF(H76=0,"",H76) ->  | BF76: 16 | BG76: 0
E77: 0 | BF77: 17 | BG77: 0
E78: 0 | BF78: 18 | BG78: 0
E79: 0 | I79: =IF(H79=0,"",H79) ->  | BF79: 19 | BG79: 0
E80: 0 | I80: =IF(H80=0,"",H80) ->  | BF80: 20 | BG80: 0
E81: 0 | BF81: 21 | BG81: 0
E82: 0 | BF82: 22 | BG82: 0
E83: 0 | BF83: 23 | BG83: 0
E84: 0 | BF84: 24 | BG84: 0
E85: 0 | BF85: 25 | BG85: 0
E86: 0 | BF86: 26 | BG86: 0
E87: 0 | BF87: 27 | BG87: 0
E88: 0 | BF88: 28 | BG88: 0
E89: 0 | BF89: 29 | BG89: 0
E90: 0 | BF90: 30 | BG90: 0
E91: 0 | BF91: 31 | BG91: 0
E92: 0 | BF92: 32 | BG92: 0
E93: 0 | F93: =IF(E93=0,"",E93) ->  | BF93: 33 | BG93: 0
E94: 0 | BF94: 34 | BG94: 0
E95: 0 | BF95: 35 | BG95: 0
E96: 0 | BF96: 36 | BG96: 0
E97: 0 | BF97: 37 | BG97: 0
E98: 0 | BF98: 38 | BG98: 0
E99: 0 | BF99: 39 | BG99: 0
E100: 0 | BF100: 40 | BG100: 0
E101: 0 | BF101: 41 | BG101: 0
E102: 0 | BF102: 42 | BG102: 0
E103: 0 | BF103: 43 | BG103: 0
E104: 0 | BF104: 44 | BG104: 0
E105: 0 | BF105: 45 | BG105: 0
E106: 0 | BF106: 46 | BG106: 0
E107: 0 | BF107: 47 | BG107: 0
E108: 0 | BF108: 48 | BG108: 0
E109: 0 | BF109: 49 | BG109: 0
E110: 0 | BF110: 50 | BG110: 0
A119: punteggi con handicap ordinati per numero standard di coppia base
B120: # coppia | E120: con zeri | F120: senza zeri | G120: senza zeri
B121: 3 | E121: 43.39714286 | F121: =IF(E121=0,"",E121) -> 43.39714286 | G121: 43.39714286 | BF121: 1 | BG121: 0.41
B122: 5 | E122: 70.12809524 | F122: 70.12809524 | G122: 70.12809524 | BF122: 2 | BG122: 1.08
E123: 0 | BF123: 3 | BG123: 1.03
E124: 0 | I124: =IF(H124=0,"",H124) ->  | BF124: 4 | BG124: -0.72
E125: 0 | BF125: 5 | BG125: -1
B126: 2 | E126: 40.56571429 | F126: 40.56571429 | G126: 40.56571429 | BF126: 6 | BG126: -1.22
B127: 4 | E127: 49.36 | F127: 49.36 | G127: 49.36 | BF127: 7 | BG127: 0.54
B128: 1 | E128: 47.50857143 | F128: 47.50857143 | G128: 47.50857143 | BF128: 8 | BG128: -0.11
B129: 7 | E129: 47.58952381 | F129: 47.58952381 | G129: 47.58952381 | BF129: 9 | BG129: -0.64
E130: 0 | BF130: 10 | BG130: -2.57
B131: 6 | E131: 52.79095238 | F131: 52.79095238 | G131: 52.79095238 | I131: =IF(H131=0,"",H131) ->  | BF131: 11 | BG131: 1.28

Sheet 24giu
A1: Data | C1: 2017-06-24 | D1: BridgeMania 2016-17 - Torneo Howell
A2: luogo | C2: Simonelli | D2: Coppie Ctrl+e | E2: Calcola Ctr+f | F2: Duplica Ctrl+g | G2: Clear Ctrl+h | J2: &
A3: # coppie | C3: =IF(B5="","",COUNT(B5:B25)) -> 10 | E3: =IF(E5="","",SUMIF(E5:E25,">0")) -> 496.8 | G3: =IF(G5="","",SUM(G5:G25)) -> 500 | H3: =IF(H5="","",SUM(H5:H25)) -> 720 | I3: =SUM(I5:I25) -> 0 | J3: =SUM(J5:J25) -> 720 | K3: =SUM(K5:K25) -> 40 | L3: =SUM(L5:L25) -> 40 | M3: 40 | N3: 40 | O3: 40 | P3: 40 | Q3: 40 | R3: 40 | S3: 40 | T3: 40 | U3: 40 | V3: 40 | W3: 40 | X3: 40 | Y3: 40 | Z3: 40 | AA3: 40 | AB3: 40 | AC3: 0 | AD3: 0 | AE3: 0 | AF3: 0 | AG3: 0 | AH3: 0 | AI3: 0 | AJ3: 0 | AK3: 0 | AL3: 0 | AM3: 0 | AN3: 0 | AO3: 0 | AP3: 0 | AQ3: 0 | AR3: 0 | AS3: 0 | AT3: 0 | AU3: 0 | AV3: 0 | AW3: 0 | AX3: 0
A4: Class. | B4: # | C4: Coppie | E4: Punteggio Serata | F4: Handicap | G4: Punteggio % | H4: Punteggio Torneo | I4: Penalità (-) | J4: Totale punti mano | K4: 1 | L4: 2 | M4: 3 | N4: 4 | O4: 5 | P4: 6 | Q4: 7 | R4: 8 | S4: 9 | T4: 10 | U4: 11 | V4: 12 | W4: 13 | X4: 14 | Y4: 15 | Z4: 16 | AA4: 17 | AB4: 18 | AC4: 19 | AD4: 20 | AE4: 21 | AF4: 22 | AG4: 23 | AH4: 24 | AI4: 25 | AJ4: 26 | AK4: 27 | AL4: 28 | AM4: 29 | AN4: 30 | AO4: 31 | AP4: 32 | AQ4: 33 | AR4: 34 | AS4: 35 | AT4: 36 | AU4: 37 | AV4: 38 | AW4: 39 | AX4: 40 | BF4: coppia | BG4: handicap
A5: =IF(J$2="","",IF($E5="","",IF($E5=MAX($E$5:$E$54),1,IF($E5=$E4,$A4,COUNT($E$5:$E5))))) -> 1 | B5: 10 | C5: Manuela | D5: Roberto | E5: =IF(J$2="","",IF(G5=0,0,F5+G5)) -> 63.24888889 | F5: =IF(C5="","",IF(BG5=0,0,BG5)) -> -0.64 | G5: =IF(J$2="","",IF($J5=0,0,(H5*$C$3/$J$3)*50)) -> 63.88888889 | H5: =IF(J$2="","",IF(SUM($K5:$AX5)=0,0,SUM($K5:$AX5)+$I5)) -> 92 | J5: =IF(B5="",0,IF(SUM($K5:$AX5)=0,0,SUM($K5:$AX5))) -> 92 | K5: 2 | L5: 3 | M5: 8 | N5: 8 | O5: 6 | P5: 7 | Q5: 8 | R5: 6 | S5: 2 | T5: 8 | U5: 1 | V5: 6 | W5: 7 | X5: 6 | Y5: 6 | Z5: 0 | AA5: 8 | AB5: 0 | BF5: 7 | BG5: -0.64
A6: =IF(J$2="","",IF($E6="","",IF($E6=MAX($E$5:$E$54),1,IF($E6=$E5,$A5,COUNT($E$5:$E6))))) -> 2 | B6: 8 | C6: Barbara | D6: Elio | E6: 60.30666667 | F6: -0.11 | G6: 60.41666667 | H6: 87 | J6: 87 | K6: 8 | L6: 0 | M6: 2 | N6: 7 | O6: 1 | P6: 7 | Q6: 5 | R6: 8 | S6: 8 | T6: 8 | U6: 8 | V6: 4 | W6: 4 | X6: 0 | Y6: 2 | Z6: 8 | AA6: 7 | AB6: 0 | BF6: 2 | BG6: -0.11
A7: =IF(J$2="","",IF($E7="","",IF($E7=MAX($E$5:$E$54),1,IF($E7=$E6,$A6,COUNT($E$5:$E7))))) -> 3 | B7: 1 | C7: Stefania | D7: Massimo | E7: 55.06888889 | F7: -2.57 | G7: 57.63888889 | H7: 83 | J7: 83 | K7: 6 | L7: 5 | M7: 4 | N7: 7 | O7: 7 | P7: 1 | Q7: 3 | R7: 5 | S7: 7 | T7: 4 | U7: 6 | V7: 2 | W7: 6 | X7: 6 | Y7: 2 | Z7: 4 | AA7: 4 | AB7: 4 | BF7: 10 | BG7: -2.57
A8: =IF(J$2="","",IF($E8="","",IF($E8=MAX($E$5:$E$54),1,IF($E8=$E7,$A7,COUNT($E$5:$E8))))) -> 4 | B8: 3 | C8: Isolde | D8: Letizia | E8: 54.55555556 | F8: -1 | G8: 55.55555556 | H8: 80 | J8: 80 | K8: 8 | L8: 3 | M8: 6 | N8: 1 | O8: 2 | P8: 1 | Q8: 7 | R8: 5 | S8: 1 | T8: 4 | U8: 4 | V8: 0 | W8: 7 | X8: 6 | Y8: 8 | Z8: 4 | AA8: 7 | AB8: 6 | BF8: 5 | BG8: -1
A9: =IF(J$2="","",IF($E9="","",IF($E9=MAX($E$5:$E$54),1,IF($E9=$E8,$A8,COUNT($E$5:$E9))))) -> 5 | B9: 5 | C9: Olimpia | D9: Sauro | E9: 46.21888889 | F9: 1.08 | G9: 45.13888889 | H9: 65 | J9: 65 | K9: 6 | L9: 0 | M9: 6 | N9: 4 | O9: 6 | P9: 0 | Q9: 5 | R9: 3 | S9: 6 | T9: 0 | U9: 0 | V9: 4 | W9: 1 | X9: 2 | Y9: 6 | Z9: 4 | AA9: 6 | AB9: 6 | BF9: 8 | BG9: 1.08
A10: =IF(J$2="","",IF($E10="","",IF($E10=MAX($E$5:$E$54),1,IF($E10=$E9,$A9,COUNT($E$5:$E10))))) -> 6 | B10: 6 | C10: Cesarina | D10: Gaetano | E10: 46.16888889 | F10: 1.03 | G10: 45.13888889 | H10: 65 | J10: 65 | K10: 0 | L10: 8 | M10: 2 | N10: 4 | O10: 2 | P10: 4 | Q10: 1 | R10: 3 | S10: 4 | T10: 4 | U10: 7 | V10: 2 | W10: 8 | X10: 2 | Y10: 6 | Z10: 0 | AA10: 4 | AB10: 4 | BF10: 3 | BG10: 1.03
A11: =IF(J$2="","",IF($E11="","",IF($E11=MAX($E$5:$E$54),1,IF($E11=$E10,$A10,COUNT($E$5:$E11))))) -> 7 | B11: 7 | C11: Tatiana | D11: Julio | E11: 45.54888889 | F11: 0.41 | G11: 45.13888889 | H11: 65 | J11: 65 | K11: 4 | L11: 2 | M11: 0 | N11: 6 | O11: 6 | P11: 4 | Q11: 3 | R11: 0 | S11: 7 | T11: 4 | U11: 4 | V11: 8 | W11: 1 | X11: 2 | Y11: 6 | Z11: 4 | AA11: 2 | AB11: 2 | BF11: 11 | BG11: 0.41
A12: =IF(J$2="","",IF($E12="","",IF($E12=MAX($E$5:$E$54),1,IF($E12=$E11,$A11,COUNT($E$5:$E12))))) -> 8 | B12: 4 | C12: Elena | D12: Stefano | E12: 44.41888889 | F12: -0.72 | G12: 45.13888889 | H12: 65 | J12: 65 | K12: 2 | L12: 8 | M12: 4 | N12: 1 | O12: 1 | P12: 2 | Q12: 0 | R12: 2 | S12: 1 | T12: 4 | U12: 7 | V12: 8 | W12: 4 | X12: 8 | Y12: 2 | Z12: 8 | AA12: 1 | AB12: 2 | BF12: 4 | BG12: -0.72
A13: =IF(J$2="","",IF($E13="","",IF($E13=MAX($E$5:$E$54),1,IF($E13=$E12,$A12,COUNT($E$5:$E13))))) -> 9 | B13: 2 | C13: Antonella | D13: Dino | E13: 42.90111111 | F13: 0.54 | G13: 42.36111111 | H13: 61 | J13: 61 | K13: 4 | L13: 6 | M13: 0 | N13: 0 | O13: 2 | P13: 8 | Q13: 7 | R13: 8 | S13: 4 | T13: 4 | U13: 1 | V13: 0 | W13: 2 | X13: 2 | Y13: 0 | Z13: 4 | AA13: 1 | AB13: 8 | BF13: 1 | BG13: 0.54
A14: =IF(J$2="","",IF($E14="","",IF($E14=MAX($E$5:$E$54),1,IF($E14=$E13,$A13,COUNT($E$5:$E14))))) -> 10 | B14: 9 | C14: Renata | D14: Sandro | E14: 38.36333333 | F14: -1.22 | G14: 39.58333333 | H14: 57 | J14: 57 | K14: 0 | L14: 5 | M14: 8 | N14: 2 | O14: 7 | P14: 6 | Q14: 1 | R14: 0 | S14: 0 | T14: 0 | U14: 2 | V14: 6 | W14: 0 | X14: 6 | Y14: 2 | Z14: 4 | AA14: 0 | AB14: 8 | BF14: 9 | BG14: -1.22
A15: =IF(J$2="","",IF($E15="","",IF($E15=MAX($E$5:$E$54),1,IF($E15=$E14,$A14,COUNT($E$5:$E15))))) -> 11 | E15: 0 | G15: 0 | H15: 0 | J15: 0 | BF15: 6 | BG15: 1.28
A16: =IF(J$2="","",IF($E16="","",IF($E16=MAX($E$5:$E$54),1,IF($E16=$E15,$A15,COUNT($E$5:$E16))))) -> 11 | E16: 0 | G16: 0 | H16: 0 | J16: 0 | BF16: 12 | BG16: 0
A17: =IF(J$2="","",IF($E17="","",IF($E17=MAX($E$5:$E$54),1,IF($E17=$E16,$A16,COUNT($E$5:$E17))))) -> 11 | E17: 0 | G17: 0 | H17: 0 | J17: 0 | BF17: 13 | BG17: 0
A18: =IF(J$2="","",IF($E18="","",IF($E18=MAX($E$5:$E$54),1,IF($E18=$E17,$A17,COUNT($E$5:$E18))))) -> 11 | E18: 0 | G18: 0 | H18: 0 | J18: 0 | BF18: 14 | BG18: 0
A19: =IF(J$2="","",IF($E19="","",IF($E19=MAX($E$5:$E$54),1,IF($E19=$E18,$A18,COUNT($E$5:$E19))))) -> 11 | E19: 0 | G19: 0 | H19: 0 | J19: 0 | BF19: 15 | BG19: 0
A20: =IF(J$2="","",IF($E20="","",IF($E20=MAX($E$5:$E$54),1,IF($E20=$E19,$A19,COUNT($E$5:$E20))))) -> 11 | E20: 0 | G20: 0 | H20: 0 | J20: 0 | BF20: 16 | BG20: 0
A21: =IF(J$2="","",IF($E21="","",IF($E21=MAX($E$5:$E$54),1,IF($E21=$E20,$A20,COUNT($E$5:$E21))))) -> 11 | E21: 0 | G21: 0 | H21: 0 | J21: 0 | BF21: 17 | BG21: 0
A22: =IF(J$2="","",IF($E22="","",IF($E22=MAX($E$5:$E$54),1,IF($E22=$E21,$A21,COUNT($E$5:$E22))))) -> 11 | E22: 0 | G22: 0 | H22: 0 | J22: 0 | BF22: 18 | BG22: 0
A23: =IF(J$2="","",IF($E23="","",IF($E23=MAX($E$5:$E$54),1,IF($E23=$E22,$A22,COUNT($E$5:$E23))))) -> 11 | E23: 0 | G23: 0 | H23: 0 | J23: 0 | BF23: 19 | BG23: 0
A24: =IF(J$2="","",IF($E24="","",IF($E24=MAX($E$5:$E$54),1,IF($E24=$E23,$A23,COUNT($E$5:$E24))))) -> 11 | E24: 0 | G24: 0 | H24: 0 | J24: 0 | BF24: 20 | BG24: 0
A25: =IF(J$2="","",IF($E25="","",IF($E25=MAX($E$5:$E$54),1,IF($E25=$E24,$A24,COUNT($E$5:$E25))))) -> 11 | E25: 0 | G25: 0 | H25: 0 | J25: 0 | BF25: 21 | BG25: 0
A26: =IF(J$2="","",IF($E26="","",IF($E26=MAX($E$5:$E$54),1,IF($E26=$E25,$A25,COUNT($E$5:$E26))))) -> 11 | E26: 0 | G26: 0 | H26: 0 | J26: 0 | BF26: 22 | BG26: 0
A27: =IF(J$2="","",IF($E27="","",IF($E27=MAX($E$5:$E$54),1,IF($E27=$E26,$A26,COUNT($E$5:$E27))))) -> 11 | E27: 0 | G27: 0 | H27: 0 | J27: 0 | BF27: 23 | BG27: 0
A28: =IF(J$2="","",IF($E28="","",IF($E28=MAX($E$5:$E$54),1,IF($E28=$E27,$A27,COUNT($E$5:$E28))))) -> 11 | E28: 0 | G28: 0 | H28: 0 | J28: 0 | BF28: 24 | BG28: 0
A29: =IF(J$2="","",IF($E29="","",IF($E29=MAX($E$5:$E$54),1,IF($E29=$E28,$A28,COUNT($E$5:$E29))))) -> 11 | E29: 0 | G29: 0 | H29: 0 | J29: 0 | BF29: 25 | BG29: 0
A30: =IF(J$2="","",IF($E30="","",IF($E30=MAX($E$5:$E$54),1,IF($E30=$E29,$A29,COUNT($E$5:$E30))))) -> 11 | E30: 0 | G30: 0 | H30: 0 | J30: 0 | BF30: 26 | BG30: 0
A31: =IF(J$2="","",IF($E31="","",IF($E31=MAX($E$5:$E$54),1,IF($E31=$E30,$A30,COUNT($E$5:$E31))))) -> 11 | E31: 0 | G31: 0 | H31: 0 | J31: 0 | BF31: 27 | BG31: 0
A32: =IF(J$2="","",IF($E32="","",IF($E32=MAX($E$5:$E$54),1,IF($E32=$E31,$A31,COUNT($E$5:$E32))))) -> 11 | E32: 0 | G32: 0 | H32: 0 | J32: 0 | BF32: 28 | BG32: 0
A33: =IF(J$2="","",IF($E33="","",IF($E33=MAX($E$5:$E$54),1,IF($E33=$E32,$A32,COUNT($E$5:$E33))))) -> 11 | E33: 0 | G33: 0 | H33: 0 | J33: 0 | BF33: 29 | BG33: 0
A34: =IF(J$2="","",IF($E34="","",IF($E34=MAX($E$5:$E$54),1,IF($E34=$E33,$A33,COUNT($E$5:$E34))))) -> 11 | E34: 0 | G34: 0 | H34: 0 | J34: 0 | BF34: 30 | BG34: 0
A35: =IF(J$2="","",IF($E35="","",IF($E35=MAX($E$5:$E$54),1,IF($E35=$E34,$A34,COUNT($E$5:$E35))))) -> 11 | E35: 0 | G35: 0 | H35: 0 | J35: 0 | BF35: 31 | BG35: 0
A36: =IF(J$2="","",IF($E36="","",IF($E36=MAX($E$5:$E$54),1,IF($E36=$E35,$A35,COUNT($E$5:$E36))))) -> 11 | E36: 0 | G36: 0 | H36: 0 | J36: 0 | BF36: 32 | BG36: 0
A37: =IF(J$2="","",IF($E37="","",IF($E37=MAX($E$5:$E$54),1,IF($E37=$E36,$A36,COUNT($E$5:$E37))))) -> 11 | E37: 0 | G37: =IF(J$2="","",IF($J37=0,0,(H37*$C$3/$J$3)*50)) -> 0 | H37: =IF(J$2="","",IF(SUM($K37:$AX37)=0,0,SUM($K37:$AX37)+$I37)) -> 0 | J37: =IF(B37="",0,IF(SUM($K37:$AX37)=0,0,SUM($K37:$AX37))) -> 0 | BF37: 33 | BG37: 0
A38: =IF(J$2="","",IF($E38="","",IF($E38=MAX($E$5:$E$54),1,IF($E38=$E37,$A37,COUNT($E$5:$E38))))) -> 11 | E38: 0 | G38: 0 | H38: 0 | J38: 0 | BF38: 34 | BG38: 0
A39: =IF(J$2="","",IF($E39="","",IF($E39=MAX($E$5:$E$54),1,IF($E39=$E38,$A38,COUNT($E$5:$E39))))) -> 11 | E39: 0 | G39: 0 | H39: 0 | J39: 0 | BF39: 35 | BG39: 0
A40: =IF(J$2="","",IF($E40="","",IF($E40=MAX($E$5:$E$54),1,IF($E40=$E39,$A39,COUNT($E$5:$E40))))) -> 11 | E40: 0 | G40: 0 | H40: 0 | J40: 0 | BF40: 36 | BG40: 0
A41: =IF(J$2="","",IF($E41="","",IF($E41=MAX($E$5:$E$54),1,IF($E41=$E40,$A40,COUNT($E$5:$E41))))) -> 11 | E41: 0 | G41: 0 | H41: 0 | J41: 0 | BF41: 37 | BG41: 0
A42: =IF(J$2="","",IF($E42="","",IF($E42=MAX($E$5:$E$54),1,IF($E42=$E41,$A41,COUNT($E$5:$E42))))) -> 11 | E42: 0 | G42: 0 | H42: 0 | J42: 0 | BF42: 38 | BG42: 0
A43: =IF(J$2="","",IF($E43="","",IF($E43=MAX($E$5:$E$54),1,IF($E43=$E42,$A42,COUNT($E$5:$E43))))) -> 11 | E43: 0 | G43: 0 | H43: 0 | J43: 0 | BF43: 39 | BG43: 0
A44: =IF(J$2="","",IF($E44="","",IF($E44=MAX($E$5:$E$54),1,IF($E44=$E43,$A43,COUNT($E$5:$E44))))) -> 11 | E44: 0 | G44: 0 | H44: 0 | J44: 0 | BF44: 40 | BG44: 0
A45: =IF(J$2="","",IF($E45="","",IF($E45=MAX($E$5:$E$54),1,IF($E45=$E44,$A44,COUNT($E$5:$E45))))) -> 11 | E45: 0 | G45: 0 | H45: 0 | J45: 0 | BF45: 41 | BG45: 0
A46: =IF(J$2="","",IF($E46="","",IF($E46=MAX($E$5:$E$54),1,IF($E46=$E45,$A45,COUNT($E$5:$E46))))) -> 11 | E46: 0 | G46: 0 | H46: 0 | J46: 0 | BF46: 42 | BG46: 0
A47: =IF(J$2="","",IF($E47="","",IF($E47=MAX($E$5:$E$54),1,IF($E47=$E46,$A46,COUNT($E$5:$E47))))) -> 11 | E47: 0 | G47: 0 | H47: 0 | J47: 0 | BF47: 43 | BG47: 0
A48: =IF(J$2="","",IF($E48="","",IF($E48=MAX($E$5:$E$54),1,IF($E48=$E47,$A47,COUNT($E$5:$E48))))) -> 11 | E48: 0 | G48: 0 | H48: 0 | J48: 0 | BF48: 44 | BG48: 0
A49: =IF(J$2="","",IF($E49="","",IF($E49=MAX($E$5:$E$54),1,IF($E49=$E48,$A48,COUNT($E$5:$E49))))) -> 11 | E49: 0 | G49: 0 | H49: 0 | J49: 0 | BF49: 45 | BG49: 0
A50: =IF(J$2="","",IF($E50="","",IF($E50=MAX($E$5:$E$54),1,IF($E50=$E49,$A49,COUNT($E$5:$E50))))) -> 11 | E50: 0 | G50: 0 | H50: 0 | J50: 0 | BF50: 46 | BG50: 0
A51: =IF(J$2="","",IF($E51="","",IF($E51=MAX($E$5:$E$54),1,IF($E51=$E50,$A50,COUNT($E$5:$E51))))) -> 11 | E51: 0 | G51: 0 | H51: 0 | J51: 0 | BF51: 47 | BG51: 0
A52: =IF(J$2="","",IF($E52="","",IF($E52=MAX($E$5:$E$54),1,IF($E52=$E51,$A51,COUNT($E$5:$E52))))) -> 11 | E52: 0 | G52: 0 | H52: 0 | J52: 0 | BF52: 48 | BG52: 0
A53: =IF(J$2="","",IF($E53="","",IF($E53=MAX($E$5:$E$54),1,IF($E53=$E52,$A52,COUNT($E$5:$E53))))) ->  | G53: 0 | H53: 0 | J53: 0 | BF53: 49 | BG53: 0
A54: =IF(J$2="","",IF($E54="","",IF($E54=MAX($E$5:$E$54),1,IF($E54=$E53,$A53,COUNT($E$5:$E54))))) ->  | G54: 0 | H54: 0 | J54: 0 | BF54: 50 | BG54: 0
D59: punteggi % ordinati per # di coppia
B60: # coppia | E60: con zeri | F60: senza zeri | G60: senza zeri
B61: 1 | E61: 57.63888889 | F61: =IF(E61=0,"",E61) -> 57.63888889 | G61: 57.63888889 | BF61: 10 | BG61: -2.57
B62: 2 | E62: 42.36111111 | F62: 42.36111111 | G62: 42.36111111 | BF62: 1 | BG62: 0.54
B63: 3 | E63: 55.55555556 | F63: 55.55555556 | G63: 55.55555556 | I63: =IF(H63=0,"",H63) ->  | BF63: 5 | BG63: -1
B64: 4 | E64: 45.13888889 | F64: 45.13888889 | G64: 45.13888889 | BF64: 4 | BG64: -0.72
B65: 5 | E65: 45.13888889 | F65: 45.13888889 | G65: 45.13888889 | I65: =IF(H65=0,"",H65) ->  | BF65: 8 | BG65: 1.08
B66: 6 | E66: 45.13888889 | F66: 45.13888889 | G66: 45.13888889 | BF66: 3 | BG66: 1.03
B67: 7 | E67: 45.13888889 | F67: 45.13888889 | G67: 45.13888889 | BF67: 11 | BG67: 0.41
B68: 8 | E68: 60.41666667 | F68: 60.41666667 | G68: 60.41666667 | I68: =IF(H68=0,"",H68) ->  | BF68: 2 | BG68: -0.11
B69: 9 | E69: 39.58333333 | F69: 39.58333333 | G69: 39.58333333 | BF69: 9 | BG69: -1.22
B70: 10 | E70: 63.88888889 | F70: 63.88888889 | G70: 63.88888889 | I70: =IF(H70=0,"",H70) ->  | BF70: 7 | BG70: -0.64
E71: 0 | I71: =IF(H71=0,"",H71) ->  | BF71: 6 | BG71: 1.28
E72: 0 | BF72: 12 | BG72: 0
E73: 0 | I73: =IF(H73=0,"",H73) ->  | BF73: 13 | BG73: 0
E74: 0 | I74: =IF(H74=0,"",H74) ->  | BF74: 14 | BG74: 0
E75: 0 | I75: =IF(H75=0,"",H75) ->  | BF75: 15 | BG75: 0
E76: 0 | I76: =IF(H76=0,"",H76) ->  | BF76: 16 | BG76: 0
E77: 0 | BF77: 17 | BG77: 0
E78: 0 | BF78: 18 | BG78: 0
E79: 0 | I79: =IF(H79=0,"",H79) ->  | BF79: 19 | BG79: 0
E80: 0 | I80: =IF(H80=0,"",H80) ->  | BF80: 20 | BG80: 0
E81: 0 | BF81: 21 | BG81: 0
E82: 0 | BF82: 22 | BG82: 0
E83: 0 | BF83: 23 | BG83: 0
E84: 0 | BF84: 24 | BG84: 0
E85: 0 | BF85: 25 | BG85: 0
E86: 0 | BF86: 26 | BG86: 0
E87: 0 | BF87: 27 | BG87: 0
E88: 0 | BF88: 28 | BG88: 0
E89: 0 | BF89: 29 | BG89: 0
E90: 0 | BF90: 30 | BG90: 0
E91: 0 | BF91: 31 | BG91: 0
E92: 0 | BF92: 32 | BG92: 0
E93: 0 | F93: =IF(E93=0,"",E93) ->  | BF93: 33 | BG93: 0
E94: 0 | BF94: 34 | BG94: 0
E95: 0 | BF95: 35 | BG95: 0
E96: 0 | BF96: 36 | BG96: 0
E97: 0 | BF97: 37 | BG97: 0
E98: 0 | BF98: 38 | BG98: 0
E99: 0 | BF99: 39 | BG99: 0
E100: 0 | BF100: 40 | BG100: 0
E101: 0 | BF101: 41 | BG101: 0
E102: 0 | BF102: 42 | BG102: 0
E103: 0 | BF103: 43 | BG103: 0
E104: 0 | BF104: 44 | BG104: 0
E105: 0 | BF105: 45 | BG105: 0
E106: 0 | BF106: 46 | BG106: 0
E107: 0 | BF107: 47 | BG107: 0
E108: 0 | BF108: 48 | BG108: 0
E109: 0 | BF109: 49 | BG109: 0
E110: 0 | BF110: 50 | BG110: 0
A119: punteggi con handicap ordinati per numero standard di coppia base
B120: # coppia | E120: con zeri | F120: senza zeri | G120: senza zeri
B121: 2 | E121: 42.90111111 | F121: =IF(E121=0,"",E121) -> 42.90111111 | G121: 42.90111111 | BF121: 1 | BG121: -1.22
B122: 8 | E122: 60.30666667 | F122: =IF(E122=0,"",E122) -> 60.30666667 | G122: 60.30666667 | BF122: 2 | BG122: 0.54
B123: 6 | E123: 46.16888889 | F123: =IF(E123=0,"",E123) -> 46.16888889 | G123: 46.16888889 | BF123: 3 | BG123: 1.03
B124: 4 | E124: 44.41888889 | F124: 44.41888889 | G124: 44.41888889 | BF124: 4 | BG124: -0.11
B125: 3 | E125: 54.55555556 | F125: 54.55555556 | G125: 54.55555556 | BF125: 5 | BG125: -0.72
E126: 0 | I126: =IF(H126=0,"",H126) ->  | BF126: 6 | BG126: 1.28
B127: 10 | E127: 63.24888889 | F127: 63.24888889 | G127: 63.24888889 | BF127: 7 | BG127: -2.57
B128: 5 | E128: 46.21888889 | F128: 46.21888889 | G128: 46.21888889 | BF128: 8 | BG128: 1.08
B129: 9 | E129: 38.36333333 | F129: 38.36333333 | G129: 38.36333333 | I129: =IF(H129=0,"",H129) ->  | BF129: 9 | BG129: -0.64
B130: 1 | E130: 55.06888889 | F130: 55.06888889 | G130: 55.06888889 | BF130: 10 | BG130: -1
B131: 7 | E131: 45.54888889 | F131: 45.54888889 | G131: 45.54888889 | BF131: 11 | BG131: 0.41

Sheet 17giu
A1: Data | C1: 2017-06-17 | D1: BridgeMania 2016-17 - Torneo Howell
A2: luogo | C2: Polichetti | D2: Coppie Ctrl+e | E2: Calcola Ctr+f | F2: Duplica Ctrl+g | G2: Clear Ctrl+h | J2: &
A3: # coppie | C3: =IF(B5="","",COUNT(B5:B25)) -> 9 | E3: =IF(E5="","",SUMIF(E5:E25,">0")) -> 449.8 | G3: =IF(G5="","",SUM(G5:G25)) -> 450 | H3: =IF(H5="","",SUM(H5:H25)) -> 486 | I3: =SUM(I5:I25) -> 0 | J3: =SUM(J5:J25) -> 486 | K3: =SUM(K5:K25) -> 27 | L3: =SUM(L5:L25) -> 27 | M3: 27 | N3: 27 | O3: 27 | P3: 27 | Q3: 27 | R3: 27 | S3: 27 | T3: 27 | U3: 27 | V3: 27 | W3: 27 | X3: 27 | Y3: 27 | Z3: 27 | AA3: 27 | AB3: 27 | AC3: 0 | AD3: 0 | AE3: 0 | AF3: 0 | AG3: 0 | AH3: 0 | AI3: 0 | AJ3: 0 | AK3: 0 | AL3: 0 | AM3: 0 | AN3: 0 | AO3: 0 | AP3: 0 | AQ3: 0 | AR3: 0 | AS3: 0 | AT3: 0 | AU3: 0 | AV3: 0 | AW3: 0 | AX3: 0
A4: Class. | B4: # | C4: Coppie | E4: Punteggio Serata | F4: Handicap | G4: Punteggio % | H4: Punteggio Torneo | I4: Penalità (-) | J4: Totale punti mano | K4: 1 | L4: 2 | M4: 3 | N4: 4 | O4: 5 | P4: 6 | Q4: 7 | R4: 8 | S4: 9 | T4: 10 | U4: 11 | V4: 12 | W4: 13 | X4: 14 | Y4: 15 | Z4: 16 | AA4: 17 | AB4: 18 | AC4: 19 | AD4: 20 | AE4: 21 | AF4: 22 | AG4: 23 | AH4: 24 | AI4: 25 | AJ4: 26 | AK4: 27 | AL4: 28 | AM4: 29 | AN4: 30 | AO4: 31 | AP4: 32 | AQ4: 33 | AR4: 34 | AS4: 35 | AT4: 36 | AU4: 37 | AV4: 38 | AW4: 39 | AX4: 40 | BF4: coppia | BG4: handicap
A5: =IF(J$2="","",IF($E5="","",IF($E5=MAX($E$5:$E$54),1,IF($E5=$E4,$A4,COUNT($E$5:$E5))))) -> 1 | B5: 9 | C5: Olimpia | D5: Sauro | E5: =IF(J$2="","",IF(G5=0,0,F5+G5)) -> 62.19111111 | F5: =IF(C5="","",IF(BG5=0,0,BG5)) -> 1.08 | G5: =IF(J$2="","",IF($J5=0,0,(H5*$C$3/$J$3)*50)) -> 61.11111111 | H5: =IF(J$2="","",IF(SUM($K5:$AX5)=0,0,SUM($K5:$AX5)+$I5)) -> 66 | J5: =IF(B5="",0,IF(SUM($K5:$AX5)=0,0,SUM($K5:$AX5))) -> 66 | K5: 6 | L5: 1 | M5: 1 | N5: 5 | O5: 6 | P5: 6 | Q5: 4 | R5: 1 | S5: 6 | T5: 5 | U5: 2 | V5: 6 | W5: 4 | X5: 2 | Y5: 0 | Z5: 5 | AA5: 3 | AB5: 3 | BF5: 8 | BG5: 1.08
A6: =IF(J$2="","",IF($E6="","",IF($E6=MAX($E$5:$E$54),1,IF($E6=$E5,$A5,COUNT($E$5:$E6))))) -> 2 | B6: 5 | C6: Manuela | D6: Roberto | E6: 57.69333333 | F6: -0.64 | G6: 58.33333333 | H6: 63 | J6: 63 | K6: 4 | L6: 5 | M6: 4 | N6: 0 | O6: 4 | P6: 6 | Q6: 0 | R6: 4 | S6: 3 | T6: 3 | U6: 6 | V6: 2 | W6: 6 | X6: 1 | Y6: 6 | Z6: 1 | AA6: 6 | AB6: 2 | BF6: 7 | BG6: -0.64
A7: =IF(J$2="","",IF($E7="","",IF($E7=MAX($E$5:$E$54),1,IF($E7=$E6,$A6,COUNT($E$5:$E7))))) -> 3 | B7: 8 | C7: Renata | D7: Sandro | E7: 52.4837037 | F7: -1.22 | G7: 53.7037037 | H7: 58 | J7: 58 | K7: 2 | L7: 4 | M7: 6 | N7: 2 | O7: 6 | P7: 4 | Q7: 6 | R7: 1 | S7: 0 | T7: 1 | U7: 0 | V7: 4 | W7: 6 | X7: 0 | Y7: 3 | Z7: 3 | AA7: 4 | AB7: 6 | BF7: 9 | BG7: -1.22
A8: =IF(J$2="","",IF($E8="","",IF($E8=MAX($E$5:$E$54),1,IF($E8=$E7,$A7,COUNT($E$5:$E8))))) -> 4 | B8: 6 | C8: Tatiana | D8: Julio | E8: 51.33592593 | F8: 0.41 | G8: 50.92592593 | H8: 55 | J8: 55 | K8: 4 | L8: 2 | M8: 2 | N8: 6 | O8: 4 | P8: 4 | Q8: 2 | R8: 6 | S8: 3 | T8: 0 | U8: 3 | V8: 3 | W8: 2 | X8: 4 | Y8: 0 | Z8: 6 | AA8: 2 | AB8: 2 | BF8: 11 | BG8: 0.41
A9: =IF(J$2="","",IF($E9="","",IF($E9=MAX($E$5:$E$54),1,IF($E9=$E8,$A8,COUNT($E$5:$E9))))) -> 5 | B9: 7 | C9: Antonella | D9: Dino | E9: 48.68814815 | F9: 0.54 | G9: 48.14814815 | H9: 52 | J9: 52 | K9: 2 | L9: 6 | M9: 5 | N9: 1 | O9: 2 | P9: 2 | Q9: 0 | R9: 5 | S9: 0 | T9: 5 | U9: 2 | V9: 6 | W9: 3 | X9: 3 | Y9: 2 | Z9: 4 | AA9: 0 | AB9: 4 | BF9: 1 | BG9: 0.54
A10: =IF(J$2="","",IF($E10="","",IF($E10=MAX($E$5:$E$54),1,IF($E10=$E9,$A9,COUNT($E$5:$E10))))) -> 6 | B10: 1 | C10: Lilli | D10: Gianni | E10: 47.5762963 | F10: 1.28 | G10: 46.2962963 | H10: 50 | J10: 50 | K10: 3 | L10: 3 | M10: 1 | N10: 5 | O10: 0 | P10: 2 | Q10: 6 | R10: 2 | S10: 3 | T10: 2 | U10: 4 | V10: 0 | W10: 4 | X10: 1 | Y10: 4 | Z10: 2 | AA10: 4 | AB10: 4 | BF10: 6 | BG10: 1.28
A11: =IF(J$2="","",IF($E11="","",IF($E11=MAX($E$5:$E$54),1,IF($E11=$E10,$A10,COUNT($E$5:$E11))))) -> 7 | B11: 4 | C11: Barbara | D11: Elio | E11: 44.33444444 | F11: -0.11 | G11: 44.44444444 | H11: 48 | J11: 48 | K11: 2 | L11: 1 | M11: 5 | N11: 1 | O11: 0 | P11: 0 | Q11: 3 | R11: 3 | S11: 6 | T11: 1 | U11: 0 | V11: 4 | W11: 0 | X11: 6 | Y11: 6 | Z11: 0 | AA11: 6 | AB11: 4 | BF11: 2 | BG11: -0.11
A12: =IF(J$2="","",IF($E12="","",IF($E12=MAX($E$5:$E$54),1,IF($E12=$E11,$A11,COUNT($E$5:$E12))))) -> 8 | B12: 2 | C12: Stefania | D12: Massimo | E12: 43.7262963 | F12: -2.57 | G12: 46.2962963 | H12: 50 | J12: 50 | K12: 4 | L12: 0 | M12: 3 | N12: 3 | O12: 2 | P12: 0 | Q12: 2 | R12: 5 | S12: 3 | T12: 6 | U12: 6 | V12: 2 | W12: 2 | X12: 5 | Y12: 4 | Z12: 1 | AA12: 2 | AB12: 0 | BF12: 10 | BG12: -2.57
A13: =IF(J$2="","",IF($E13="","",IF($E13=MAX($E$5:$E$54),1,IF($E13=$E12,$A12,COUNT($E$5:$E13))))) -> 9 | B13: 3 | C13: Cesarina | D13: Gaetano | E13: 41.77074074 | F13: 1.03 | G13: 40.74074074 | H13: 44 | J13: 44 | K13: 0 | L13: 5 | M13: 0 | N13: 4 | O13: 3 | P13: 3 | Q13: 4 | R13: 0 | S13: 3 | T13: 4 | U13: 4 | V13: 0 | W13: 0 | X13: 5 | Y13: 2 | Z13: 5 | AA13: 0 | AB13: 2 | BF13: 3 | BG13: 1.03
A14: =IF(J$2="","",IF($E14="","",IF($E14=MAX($E$5:$E$54),1,IF($E14=$E13,$A13,COUNT($E$5:$E14))))) -> 10 | E14: 0 | G14: 0 | H14: 0 | J14: 0 | BF14: 4 | BG14: -0.72
A15: =IF(J$2="","",IF($E15="","",IF($E15=MAX($E$5:$E$54),1,IF($E15=$E14,$A14,COUNT($E$5:$E15))))) -> 10 | E15: 0 | G15: 0 | H15: 0 | J15: 0 | BF15: 5 | BG15: -1
A16: =IF(J$2="","",IF($E16="","",IF($E16=MAX($E$5:$E$54),1,IF($E16=$E15,$A15,COUNT($E$5:$E16))))) -> 10 | E16: 0 | G16: 0 | H16: 0 | J16: 0 | BF16: 12 | BG16: 0
A17: =IF(J$2="","",IF($E17="","",IF($E17=MAX($E$5:$E$54),1,IF($E17=$E16,$A16,COUNT($E$5:$E17))))) -> 10 | E17: 0 | G17: 0 | H17: 0 | J17: 0 | BF17: 13 | BG17: 0
A18: =IF(J$2="","",IF($E18="","",IF($E18=MAX($E$5:$E$54),1,IF($E18=$E17,$A17,COUNT($E$5:$E18))))) -> 10 | E18: 0 | G18: 0 | H18: 0 | J18: 0 | BF18: 14 | BG18: 0
A19: =IF(J$2="","",IF($E19="","",IF($E19=MAX($E$5:$E$54),1,IF($E19=$E18,$A18,COUNT($E$5:$E19))))) -> 10 | E19: 0 | G19: 0 | H19: 0 | J19: 0 | BF19: 15 | BG19: 0
A20: =IF(J$2="","",IF($E20="","",IF($E20=MAX($E$5:$E$54),1,IF($E20=$E19,$A19,COUNT($E$5:$E20))))) -> 10 | E20: 0 | G20: 0 | H20: 0 | J20: 0 | BF20: 16 | BG20: 0
A21: =IF(J$2="","",IF($E21="","",IF($E21=MAX($E$5:$E$54),1,IF($E21=$E20,$A20,COUNT($E$5:$E21))))) -> 10 | E21: 0 | G21: 0 | H21: 0 | J21: 0 | BF21: 17 | BG21: 0
A22: =IF(J$2="","",IF($E22="","",IF($E22=MAX($E$5:$E$54),1,IF($E22=$E21,$A21,COUNT($E$5:$E22))))) -> 10 | E22: 0 | G22: 0 | H22: 0 | J22: 0 | BF22: 18 | BG22: 0
A23: =IF(J$2="","",IF($E23="","",IF($E23=MAX($E$5:$E$54),1,IF($E23=$E22,$A22,COUNT($E$5:$E23))))) -> 10 | E23: 0 | G23: 0 | H23: 0 | J23: 0 | BF23: 19 | BG23: 0
A24: =IF(J$2="","",IF($E24="","",IF($E24=MAX($E$5:$E$54),1,IF($E24=$E23,$A23,COUNT($E$5:$E24))))) -> 10 | E24: 0 | G24: 0 | H24: 0 | J24: 0 | BF24: 20 | BG24: 0
A25: =IF(J$2="","",IF($E25="","",IF($E25=MAX($E$5:$E$54),1,IF($E25=$E24,$A24,COUNT($E$5:$E25))))) -> 10 | E25: 0 | G25: 0 | H25: 0 | J25: 0 | BF25: 21 | BG25: 0
A26: =IF(J$2="","",IF($E26="","",IF($E26=MAX($E$5:$E$54),1,IF($E26=$E25,$A25,COUNT($E$5:$E26))))) -> 10 | E26: 0 | G26: 0 | H26: 0 | J26: 0 | BF26: 22 | BG26: 0
A27: =IF(J$2="","",IF($E27="","",IF($E27=MAX($E$5:$E$54),1,IF($E27=$E26,$A26,COUNT($E$5:$E27))))) -> 10 | E27: 0 | G27: 0 | H27: 0 | J27: 0 | BF27: 23 | BG27: 0
A28: =IF(J$2="","",IF($E28="","",IF($E28=MAX($E$5:$E$54),1,IF($E28=$E27,$A27,COUNT($E$5:$E28))))) -> 10 | E28: 0 | G28: 0 | H28: 0 | J28: 0 | BF28: 24 | BG28: 0
A29: =IF(J$2="","",IF($E29="","",IF($E29=MAX($E$5:$E$54),1,IF($E29=$E28,$A28,COUNT($E$5:$E29))))) -> 10 | E29: 0 | G29: 0 | H29: 0 | J29: 0 | BF29: 25 | BG29: 0
A30: =IF(J$2="","",IF($E30="","",IF($E30=MAX($E$5:$E$54),1,IF($E30=$E29,$A29,COUNT($E$5:$E30))))) -> 10 | E30: 0 | G30: 0 | H30: 0 | J30: 0 | BF30: 26 | BG30: 0
A31: =IF(J$2="","",IF($E31="","",IF($E31=MAX($E$5:$E$54),1,IF($E31=$E30,$A30,COUNT($E$5:$E31))))) -> 10 | E31: 0 | G31: 0 | H31: 0 | J31: 0 | BF31: 27 | BG31: 0
A32: =IF(J$2="","",IF($E32="","",IF($E32=MAX($E$5:$E$54),1,IF($E32=$E31,$A31,COUNT($E$5:$E32))))) -> 10 | E32: 0 | G32: 0 | H32: 0 | J32: 0 | BF32: 28 | BG32: 0
A33: =IF(J$2="","",IF($E33="","",IF($E33=MAX($E$5:$E$54),1,IF($E33=$E32,$A32,COUNT($E$5:$E33))))) -> 10 | E33: 0 | G33: 0 | H33: 0 | J33: 0 | BF33: 29 | BG33: 0
A34: =IF(J$2="","",IF($E34="","",IF($E34=MAX($E$5:$E$54),1,IF($E34=$E33,$A33,COUNT($E$5:$E34))))) -> 10 | E34: 0 | G34: 0 | H34: 0 | J34: 0 | BF34: 30 | BG34: 0
A35: =IF(J$2="","",IF($E35="","",IF($E35=MAX($E$5:$E$54),1,IF($E35=$E34,$A34,COUNT($E$5:$E35))))) -> 10 | E35: 0 | G35: 0 | H35: 0 | J35: 0 | BF35: 31 | BG35: 0
A36: =IF(J$2="","",IF($E36="","",IF($E36=MAX($E$5:$E$54),1,IF($E36=$E35,$A35,COUNT($E$5:$E36))))) -> 10 | E36: 0 | G36: 0 | H36: 0 | J36: 0 | BF36: 32 | BG36: 0
A37: =IF(J$2="","",IF($E37="","",IF($E37=MAX($E$5:$E$54),1,IF($E37=$E36,$A36,COUNT($E$5:$E37))))) -> 10 | E37: 0 | G37: =IF(J$2="","",IF($J37=0,0,(H37*$C$3/$J$3)*50)) -> 0 | H37: =IF(J$2="","",IF(SUM($K37:$AX37)=0,0,SUM($K37:$AX37)+$I37)) -> 0 | J37: =IF(B37="",0,IF(SUM($K37:$AX37)=0,0,SUM($K37:$AX37))) -> 0 | BF37: 33 | BG37: 0
A38: =IF(J$2="","",IF($E38="","",IF($E38=MAX($E$5:$E$54),1,IF($E38=$E37,$A37,COUNT($E$5:$E38))))) -> 10 | E38: 0 | G38: 0 | H38: 0 | J38: 0 | BF38: 34 | BG38: 0
A39: =IF(J$2="","",IF($E39="","",IF($E39=MAX($E$5:$E$54),1,IF($E39=$E38,$A38,COUNT($E$5:$E39))))) -> 10 | E39: 0 | G39: 0 | H39: 0 | J39: 0 | BF39: 35 | BG39: 0
A40: =IF(J$2="","",IF($E40="","",IF($E40=MAX($E$5:$E$54),1,IF($E40=$E39,$A39,COUNT($E$5:$E40))))) -> 10 | E40: 0 | G40: 0 | H40: 0 | J40: 0 | BF40: 36 | BG40: 0
A41: =IF(J$2="","",IF($E41="","",IF($E41=MAX($E$5:$E$54),1,IF($E41=$E40,$A40,COUNT($E$5:$E41))))) -> 10 | E41: 0 | G41: 0 | H41: 0 | J41: 0 | BF41: 37 | BG41: 0
A42: =IF(J$2="","",IF($E42="","",IF($E42=MAX($E$5:$E$54),1,IF($E42=$E41,$A41,COUNT($E$5:$E42))))) -> 10 | E42: 0 | G42: 0 | H42: 0 | J42: 0 | BF42: 38 | BG42: 0
A43: =IF(J$2="","",IF($E43="","",IF($E43=MAX($E$5:$E$54),1,IF($E43=$E42,$A42,COUNT($E$5:$E43))))) -> 10 | E43: 0 | G43: 0 | H43: 0 | J43: 0 | BF43: 39 | BG43: 0
A44: =IF(J$2="","",IF($E44="","",IF($E44=MAX($E$5:$E$54),1,IF($E44=$E43,$A43,COUNT($E$5:$E44))))) -> 10 | E44: 0 | G44: 0 | H44: 0 | J44: 0 | BF44: 40 | BG44: 0
A45: =IF(J$2="","",IF($E45="","",IF($E45=MAX($E$5:$E$54),1,IF($E45=$E44,$A44,COUNT($E$5:$E45))))) -> 10 | E45: 0 | G45: 0 | H45: 0 | J45: 0 | BF45: 41 | BG45: 0
A46: =IF(J$2="","",IF($E46="","",IF($E46=MAX($E$5:$E$54),1,IF($E46=$E45,$A45,COUNT($E$5:$E46))))) -> 10 | E46: 0 | G46: 0 | H46: 0 | J46: 0 | BF46: 42 | BG46: 0
A47: =IF(J$2="","",IF($E47="","",IF($E47=MAX($E$5:$E$54),1,IF($E47=$E46,$A46,COUNT($E$5:$E47))))) -> 10 | E47: 0 | G47: 0 | H47: 0 | J47: 0 | BF47: 43 | BG47: 0
A48: =IF(J$2="","",IF($E48="","",IF($E48=MAX($E$5:$E$54),1,IF($E48=$E47,$A47,COUNT($E$5:$E48))))) -> 10 | E48: 0 | G48: 0 | H48: 0 | J48: 0 | BF48: 44 | BG48: 0
A49: =IF(J$2="","",IF($E49="","",IF($E49=MAX($E$5:$E$54),1,IF($E49=$E48,$A48,COUNT($E$5:$E49))))) -> 10 | E49: 0 | G49: 0 | H49: 0 | J49: 0 | BF49: 45 | BG49: 0
A50: =IF(J$2="","",IF($E50="","",IF($E50=MAX($E$5:$E$54),1,IF($E50=$E49,$A49,COUNT($E$5:$E50))))) -> 10 | E50: 0 | G50: 0 | H50: 0 | J50: 0 | BF50: 46 | BG50: 0
A51: =IF(J$2="","",IF($E51="","",IF($E51=MAX($E$5:$E$54),1,IF($E51=$E50,$A50,COUNT($E$5:$E51))))) -> 10 | E51: 0 | G51: 0 | H51: 0 | J51: 0 | BF51: 47 | BG51: 0
A52: =IF(J$2="","",IF($E52="","",IF($E52=MAX($E$5:$E$54),1,IF($E52=$E51,$A51,COUNT($E$5:$E52))))) -> 10 | E52: 0 | G52: 0 | H52: 0 | J52: 0 | BF52: 48 | BG52: 0
A53: =IF(J$2="","",IF($E53="","",IF($E53=MAX($E$5:$E$54),1,IF($E53=$E52,$A52,COUNT($E$5:$E53))))) ->  | G53: 0 | H53: 0 | J53: 0 | BF53: 49 | BG53: 0
A54: =IF(J$2="","",IF($E54="","",IF($E54=MAX($E$5:$E$54),1,IF($E54=$E53,$A53,COUNT($E$5:$E54))))) ->  | G54: 0 | H54: 0 | J54: 0 | BF54: 50 | BG54: 0
D59: punteggi % ordinati per # di coppia
B60: # coppia | E60: con zeri | F60: senza zeri | G60: senza zeri
B61: 1 | E61: 46.2962963 | F61: =IF(E61=0,"",E61) -> 46.2962963 | G61: 46.2962963 | BF61: 6 | BG61: 1.28
B62: 2 | E62: 46.2962963 | F62: 46.2962963 | G62: 46.2962963 | BF62: 10 | BG62: -2.57
B63: 3 | E63: 40.74074074 | F63: 40.74074074 | G63: 40.74074074 | I63: =IF(H63=0,"",H63) ->  | BF63: 3 | BG63: 1.03
B64: 4 | E64: 44.44444444 | F64: 44.44444444 | G64: 44.44444444 | BF64: 2 | BG64: -0.11
B65: 5 | E65: 58.33333333 | F65: 58.33333333 | G65: 58.33333333 | I65: =IF(H65=0,"",H65) ->  | BF65: 7 | BG65: -0.64
B66: 6 | E66: 50.92592593 | F66: 50.92592593 | G66: 50.92592593 | BF66: 11 | BG66: 0.41
B67: 7 | E67: 48.14814815 | F67: 48.14814815 | G67: 48.14814815 | BF67: 1 | BG67: 0.54
B68: 8 | E68: 53.7037037 | F68: 53.7037037 | G68: 53.7037037 | I68: =IF(H68=0,"",H68) ->  | BF68: 9 | BG68: -1.22
B69: 9 | E69: 61.11111111 | F69: 61.11111111 | G69: 61.11111111 | BF69: 8 | BG69: 1.08
E70: 0 | I70: =IF(H70=0,"",H70) ->  | BF70: 4 | BG70: -0.72
E71: 0 | I71: =IF(H71=0,"",H71) ->  | BF71: 5 | BG71: -1
E72: 0 | BF72: 12 | BG72: 0
E73: 0 | I73: =IF(H73=0,"",H73) ->  | BF73: 13 | BG73: 0
E74: 0 | I74: =IF(H74=0,"",H74) ->  | BF74: 14 | BG74: 0
E75: 0 | I75: =IF(H75=0,"",H75) ->  | BF75: 15 | BG75: 0
E76: 0 | I76: =IF(H76=0,"",H76) ->  | BF76: 16 | BG76: 0
E77: 0 | BF77: 17 | BG77: 0
E78: 0 | BF78: 18 | BG78: 0
E79: 0 | I79: =IF(H79=0,"",H79) ->  | BF79: 19 | BG79: 0
E80: 0 | I80: =IF(H80=0,"",H80) ->  | BF80: 20 | BG80: 0
E81: 0 | BF81: 21 | BG81: 0
E82: 0 | BF82: 22 | BG82: 0
E83: 0 | BF83: 23 | BG83: 0
E84: 0 | BF84: 24 | BG84: 0
E85: 0 | BF85: 25 | BG85: 0
E86: 0 | BF86: 26 | BG86: 0
E87: 0 | BF87: 27 | BG87: 0
E88: 0 | BF88: 28 | BG88: 0
E89: 0 | BF89: 29 | BG89: 0
E90: 0 | BF90: 30 | BG90: 0
E91: 0 | BF91: 31 | BG91: 0
E92: 0 | BF92: 32 | BG92: 0
E93: 0 | F93: =IF(E93=0,"",E93) ->  | BF93: 33 | BG93: 0
E94: 0 | BF94: 34 | BG94: 0
E95: 0 | BF95: 35 | BG95: 0
E96: 0 | BF96: 36 | BG96: 0
E97: 0 | BF97: 37 | BG97: 0
E98: 0 | BF98: 38 | BG98: 0
E99: 0 | BF99: 39 | BG99: 0
E100: 0 | BF100: 40 | BG100: 0
E101: 0 | BF101: 41 | BG101: 0
E102: 0 | BF102: 42 | BG102: 0
E103: 0 | BF103: 43 | BG103: 0
E104: 0 | BF104: 44 | BG104: 0
E105: 0 | BF105: 45 | BG105: 0
E106: 0 | BF106: 46 | BG106: 0
E107: 0 | BF107: 47 | BG107: 0
E108: 0 | BF108: 48 | BG108: 0
E109: 0 | BF109: 49 | BG109: 0
E110: 0 | BF110: 50 | BG110: 0
A119: punteggi con handicap ordinati per numero standard di coppia base
B120: # coppia | E120: con zeri | F120: senza zeri | G120: senza zeri
B121: 7 | E121: 48.68814815 | F121: =IF(E121=0,"",E121) -> 48.68814815 | G121: 48.68814815 | BF121: 1 | BG121: -0.64
B122: 4 | E122: 44.33444444 | BF122: 2 | BG122: 0.54
B123: 3 | E123: 41.77074074 | F123: =IF(E123=0,"",E123) -> 41.77074074 | G123: 41.77074074 | BF123: 3 | BG123: 1.08
E124: 0 | F124: =IF(E124=0,"",E124) ->  | BF124: 4 | BG124: -0.72
E125: 0 | BF125: 5 | BG125: -1
B126: 1 | E126: 47.5762963 | F126: =IF(E126=0,"",E126) -> 47.5762963 | G126: 47.5762963 | BF126: 6 | BG126: 0.41
B127: 5 | E127: 57.69333333 | F127: 57.69333333 | G127: 57.69333333 | BF127: 7 | BG127: -2.57
B128: 9 | E128: 62.19111111 | F128: 62.19111111 | G128: 62.19111111 | BF128: 8 | BG128: 1.28
B129: 8 | E129: 52.4837037 | F129: 52.4837037 | G129: 52.4837037 | I129: =IF(H129=0,"",H129) ->  | BF129: 9 | BG129: 1.03
B130: 2 | E130: 43.7262963 | F130: 43.7262963 | G130: 43.7262963 | BF130: 10 | BG130: -1.22
B131: 6 | E131: 51.33592593 | F131: 51.33592593 | G131: 51.33592593 | I131: =IF(H131=0,"",H131) ->  | BF131: 11 | BG131: -0.11

Sheet 10giu
A1: Data | C1: 2017-06-10 | D1: BridgeMania 2016-17 - Torneo Howell
A2: luogo | C2: Dejana | D2: Coppie Ctrl+e | E2: Calcola Ctr+f | F2: Duplica Ctrl+g | G2: Clear Ctrl+h | J2: &
A3: # coppie | C3: =IF(B5="","",COUNT(B5:B25)) -> 9 | E3: =IF(E5="","",SUMIF(E5:E25,">0")) -> 448.5 | G3: =IF(G5="","",SUM(G5:G25)) -> 450 | H3: =IF(H5="","",SUM(H5:H25)) -> 486 | I3: =SUM(I5:I25) -> 0 | J3: =SUM(J5:J25) -> 486 | K3: =SUM(K5:K25) -> 27 | L3: =SUM(L5:L25) -> 27 | M3: 27 | N3: 27 | O3: 27 | P3: 27 | Q3: 27 | R3: 27 | S3: 27 | T3: 27 | U3: 27 | V3: 27 | W3: 27 | X3: 27 | Y3: 27 | Z3: 27 | AA3: 27 | AB3: 27 | AC3: 0 | AD3: 0 | AE3: 0 | AF3: 0 | AG3: 0 | AH3: 0 | AI3: 0 | AJ3: 0 | AK3: 0 | AL3: 0 | AM3: 0 | AN3: 0 | AO3: 0 | AP3: 0 | AQ3: 0 | AR3: 0 | AS3: 0 | AT3: 0 | AU3: 0 | AV3: 0 | AW3: 0 | AX3: 0
A4: Class. | B4: # | C4: Coppie | E4: Punteggio Serata | F4: Handicap | G4: Punteggio % | H4: Punteggio Torneo | I4: Penalità (-) | J4: Totale punti mano | K4: 1 | L4: 2 | M4: 3 | N4: 4 | O4: 5 | P4: 6 | Q4: 7 | R4: 8 | S4: 9 | T4: 10 | U4: 11 | V4: 12 | W4: 13 | X4: 14 | Y4: 15 | Z4: 16 | AA4: 17 | AB4: 18 | AC4: 19 | AD4: 20 | AE4: 21 | AF4: 22 | AG4: 23 | AH4: 24 | AI4: 25 | AJ4: 26 | AK4: 27 | AL4: 28 | AM4: 29 | AN4: 30 | AO4: 31 | AP4: 32 | AQ4: 33 | AR4: 34 | AS4: 35 | AT4: 36 | AU4: 37 | AV4: 38 | AW4: 39 | AX4: 40 | BF4: coppia | BG4: handicap
A5: =IF(J$2="","",IF($E5="","",IF($E5=MAX($E$5:$E$54),1,IF($E5=$E4,$A4,COUNT($E$5:$E5))))) -> 1 | B5: 5 | C5: Stefania | D5: Massimo | E5: =IF(J$2="","",IF(G5=0,0,F5+G5)) -> 73.35592593 | F5: =IF(C5="","",IF(BG5=0,0,BG5)) -> -2.57 | G5: =IF(J$2="","",IF($J5=0,0,(H5*$C$3/$J$3)*50)) -> 75.92592593 | H5: =IF(J$2="","",IF(SUM($K5:$AX5)=0,0,SUM($K5:$AX5)+$I5)) -> 82 | J5: =IF(B5="",0,IF(SUM($K5:$AX5)=0,0,SUM($K5:$AX5))) -> 82 | K5: 6 | L5: 4 | M5: 4 | N5: 6 | O5: 3 | P5: 1 | Q5: 4 | R5: 5 | S5: 3 | T5: 3 | U5: 6 | V5: 6 | W5: 5 | X5: 4 | Y5: 6 | Z5: 6 | AA5: 6 | AB5: 4 | BF5: 10 | BG5: -2.57
A6: =IF(J$2="","",IF($E6="","",IF($E6=MAX($E$5:$E$54),1,IF($E6=$E5,$A5,COUNT($E$5:$E6))))) -> 2 | B6: 2 | C6: Renata | D6: Sandro | E6: 64.52074074 | F6: -1.22 | G6: 65.74074074 | H6: 71 | J6: 71 | K6: 4 | L6: 6 | M6: 3 | N6: 3 | O6: 3 | P6: 5 | Q6: 0 | R6: 6 | S6: 6 | T6: 3 | U6: 4 | V6: 5 | W6: 5 | X6: 5 | Y6: 4 | Z6: 2 | AA6: 3 | AB6: 4 | BF6: 9 | BG6: -1.22
A7: =IF(J$2="","",IF($E7="","",IF($E7=MAX($E$5:$E$54),1,IF($E7=$E6,$A6,COUNT($E$5:$E7))))) -> 3 | B7: 9 | C7: Manuela | D7: Roberto | E7: 52.13777778 | F7: -0.64 | G7: 52.77777778 | H7: 57 | J7: 57 | K7: 6 | L7: 6 | M7: 0 | N7: 0 | O7: 3 | P7: 5 | Q7: 6 | R7: 0 | S7: 3 | T7: 6 | U7: 2 | V7: 4 | W7: 5 | X7: 5 | Y7: 0 | Z7: 0 | AA7: 3 | AB7: 3 | BF7: 7 | BG7: -0.64
A8: =IF(J$2="","",IF($E8="","",IF($E8=MAX($E$5:$E$54),1,IF($E8=$E7,$A7,COUNT($E$5:$E8))))) -> 4 | B8: 4 | C8: Antonella | D8: Dino | E8: 49.61407407 | F8: 0.54 | G8: 49.07407407 | H8: 53 | J8: 53 | K8: 0 | L8: 2 | M8: 2 | N8: 4 | O8: 3 | P8: 1 | Q8: 3 | R8: 3 | S8: 3 | T8: 6 | U8: 2 | V8: 1 | W8: 5 | X8: 6 | Y8: 5 | Z8: 4 | AA8: 3 | AB8: 0 | BF8: 1 | BG8: 0.54
A9: =IF(J$2="","",IF($E9="","",IF($E9=MAX($E$5:$E$54),1,IF($E9=$E8,$A8,COUNT($E$5:$E9))))) -> 5 | B9: 7 | C9: Olimpia | D9: Sauro | E9: 46.45037037 | F9: 1.08 | G9: 45.37037037 | H9: 49 | J9: 49 | K9: 2 | L9: 0 | M9: 6 | N9: 6 | O9: 3 | P9: 4 | Q9: 4 | R9: 1 | S9: 3 | T9: 0 | U9: 4 | V9: 5 | W9: 3 | X9: 3 | Y9: 1 | Z9: 2 | AA9: 0 | AB9: 2 | BF9: 8 | BG9: 1.08
A10: =IF(J$2="","",IF($E10="","",IF($E10=MAX($E$5:$E$54),1,IF($E10=$E9,$A9,COUNT($E$5:$E10))))) -> 6 | B10: 8 | C10: Cesarina | D10: Gaetano | E10: 44.54851852 | F10: 1.03 | G10: 43.51851852 | H10: 47 | J10: 47 | K10: 4 | L10: 4 | M10: 4 | N10: 4 | O10: 3 | P10: 6 | Q10: 2 | R10: 5 | S10: 3 | T10: 0 | U10: 0 | V10: 0 | W10: 1 | X10: 0 | Y10: 3 | Z10: 3 | AA10: 3 | AB10: 2 | BF10: 3 | BG10: 1.03
A11: =IF(J$2="","",IF($E11="","",IF($E11=MAX($E$5:$E$54),1,IF($E11=$E10,$A10,COUNT($E$5:$E11))))) -> 7 | B11: 1 | C11: Isolde | D11: Letizia | E11: 43.44444444 | F11: -1 | G11: 44.44444444 | H11: 48 | J11: 48 | K11: 3 | L11: 3 | M11: 4 | N11: 2 | O11: 3 | P11: 0 | Q11: 2 | R11: 1 | S11: 6 | T11: 3 | U11: 4 | V11: 2 | W11: 1 | X11: 1 | Y11: 5 | Z11: 4 | AA11: 0 | AB11: 4 | BF11: 5 | BG11: -1
A12: =IF(J$2="","",IF($E12="","",IF($E12=MAX($E$5:$E$54),1,IF($E12=$E11,$A11,COUNT($E$5:$E12))))) -> 8 | B12: 3 | C12: Claudia | D12: Simonetta | E12: 40.74074074 | F12: 0 | G12: 40.74074074 | H12: 44 | J12: 44 | K12: 0 | L12: 0 | M12: 2 | N12: 2 | O12: 3 | P12: 3 | Q12: 6 | R12: 4 | S12: 0 | T12: 3 | U12: 2 | V12: 1 | W12: 1 | X12: 2 | Y12: 2 | Z12: 4 | AA12: 3 | AB12: 6 | BF12: 23 | BG12: 0
A13: =IF(J$2="","",IF($E13="","",IF($E13=MAX($E$5:$E$54),1,IF($E13=$E12,$A12,COUNT($E$5:$E13))))) -> 9 | B13: 6 | C13: Lilli | D13: Gianni | E13: 33.68740741 | F13: 1.28 | G13: 32.40740741 | H13: 35 | J13: 35 | K13: 2 | L13: 2 | M13: 2 | N13: 0 | O13: 3 | P13: 2 | Q13: 0 | R13: 2 | S13: 0 | T13: 3 | U13: 3 | V13: 3 | W13: 1 | X13: 1 | Y13: 1 | Z13: 2 | AA13: 6 | AB13: 2 | BF13: 6 | BG13: 1.28
A14: =IF(J$2="","",IF($E14="","",IF($E14=MAX($E$5:$E$54),1,IF($E14=$E13,$A13,COUNT($E$5:$E14))))) -> 10 | E14: 0 | G14: 0 | H14: 0 | J14: 0 | BF14: 2 | BG14: -0.11
A15: =IF(J$2="","",IF($E15="","",IF($E15=MAX($E$5:$E$54),1,IF($E15=$E14,$A14,COUNT($E$5:$E15))))) -> 10 | E15: 0 | G15: 0 | H15: 0 | J15: 0 | BF15: 4 | BG15: -0.72
A16: =IF(J$2="","",IF($E16="","",IF($E16=MAX($E$5:$E$54),1,IF($E16=$E15,$A15,COUNT($E$5:$E16))))) -> 10 | E16: 0 | G16: 0 | H16: 0 | J16: 0 | BF16: 11 | BG16: 0.41
A17: =IF(J$2="","",IF($E17="","",IF($E17=MAX($E$5:$E$54),1,IF($E17=$E16,$A16,COUNT($E$5:$E17))))) -> 10 | E17: 0 | G17: 0 | H17: 0 | J17: 0 | BF17: 12 | BG17: 0
A18: =IF(J$2="","",IF($E18="","",IF($E18=MAX($E$5:$E$54),1,IF($E18=$E17,$A17,COUNT($E$5:$E18))))) -> 10 | E18: 0 | G18: 0 | H18: 0 | J18: 0 | BF18: 13 | BG18: 0
A19: =IF(J$2="","",IF($E19="","",IF($E19=MAX($E$5:$E$54),1,IF($E19=$E18,$A18,COUNT($E$5:$E19))))) -> 10 | E19: 0 | G19: 0 | H19: 0 | J19: 0 | BF19: 14 | BG19: 0
A20: =IF(J$2="","",IF($E20="","",IF($E20=MAX($E$5:$E$54),1,IF($E20=$E19,$A19,COUNT($E$5:$E20))))) -> 10 | E20: 0 | G20: 0 | H20: 0 | J20: 0 | BF20: 15 | BG20: 0
A21: =IF(J$2="","",IF($E21="","",IF($E21=MAX($E$5:$E$54),1,IF($E21=$E20,$A20,COUNT($E$5:$E21))))) -> 10 | E21: 0 | G21: 0 | H21: 0 | J21: 0 | BF21: 16 | BG21: 0
A22: =IF(J$2="","",IF($E22="","",IF($E22=MAX($E$5:$E$54),1,IF($E22=$E21,$A21,COUNT($E$5:$E22))))) -> 10 | E22: 0 | G22: 0 | H22: 0 | J22: 0 | BF22: 17 | BG22: 0
A23: =IF(J$2="","",IF($E23="","",IF($E23=MAX($E$5:$E$54),1,IF($E23=$E22,$A22,COUNT($E$5:$E23))))) -> 10 | E23: 0 | G23: 0 | H23: 0 | J23: 0 | BF23: 18 | BG23: 0
A24: =IF(J$2="","",IF($E24="","",IF($E24=MAX($E$5:$E$54),1,IF($E24=$E23,$A23,COUNT($E$5:$E24))))) -> 10 | E24: 0 | G24: 0 | H24: 0 | J24: 0 | BF24: 19 | BG24: 0
A25: =IF(J$2="","",IF($E25="","",IF($E25=MAX($E$5:$E$54),1,IF($E25=$E24,$A24,COUNT($E$5:$E25))))) -> 10 | E25: 0 | G25: 0 | H25: 0 | J25: 0 | BF25: 20 | BG25: 0
A26: =IF(J$2="","",IF($E26="","",IF($E26=MAX($E$5:$E$54),1,IF($E26=$E25,$A25,COUNT($E$5:$E26))))) -> 10 | E26: 0 | G26: 0 | H26: 0 | J26: 0 | BF26: 21 | BG26: 0
A27: =IF(J$2="","",IF($E27="","",IF($E27=MAX($E$5:$E$54),1,IF($E27=$E26,$A26,COUNT($E$5:$E27))))) -> 10 | E27: 0 | G27: 0 | H27: 0 | J27: 0 | BF27: 22 | BG27: 0
A28: =IF(J$2="","",IF($E28="","",IF($E28=MAX($E$5:$E$54),1,IF($E28=$E27,$A27,COUNT($E$5:$E28))))) -> 10 | E28: 0 | G28: 0 | H28: 0 | J28: 0 | BF28: 24 | BG28: 0
A29: =IF(J$2="","",IF($E29="","",IF($E29=MAX($E$5:$E$54),1,IF($E29=$E28,$A28,COUNT($E$5:$E29))))) -> 10 | E29: 0 | G29: 0 | H29: 0 | J29: 0 | BF29: 25 | BG29: 0
A30: =IF(J$2="","",IF($E30="","",IF($E30=MAX($E$5:$E$54),1,IF($E30=$E29,$A29,COUNT($E$5:$E30))))) -> 10 | E30: 0 | G30: 0 | H30: 0 | J30: 0 | BF30: 26 | BG30: 0
A31: =IF(J$2="","",IF($E31="","",IF($E31=MAX($E$5:$E$54),1,IF($E31=$E30,$A30,COUNT($E$5:$E31))))) -> 10 | E31: 0 | G31: 0 | H31: 0 | J31: 0 | BF31: 27 | BG31: 0
A32: =IF(J$2="","",IF($E32="","",IF($E32=MAX($E$5:$E$54),1,IF($E32=$E31,$A31,COUNT($E$5:$E32))))) -> 10 | E32: 0 | G32: 0 | H32: 0 | J32: 0 | BF32: 28 | BG32: 0
A33: =IF(J$2="","",IF($E33="","",IF($E33=MAX($E$5:$E$54),1,IF($E33=$E32,$A32,COUNT($E$5:$E33))))) -> 10 | E33: 0 | G33: 0 | H33: 0 | J33: 0 | BF33: 29 | BG33: 0
A34: =IF(J$2="","",IF($E34="","",IF($E34=MAX($E$5:$E$54),1,IF($E34=$E33,$A33,COUNT($E$5:$E34))))) -> 10 | E34: 0 | G34: 0 | H34: 0 | J34: 0 | BF34: 30 | BG34: 0
A35: =IF(J$2="","",IF($E35="","",IF($E35=MAX($E$5:$E$54),1,IF($E35=$E34,$A34,COUNT($E$5:$E35))))) -> 10 | E35: 0 | G35: 0 | H35: 0 | J35: 0 | BF35: 31 | BG35: 0
A36: =IF(J$2="","",IF($E36="","",IF($E36=MAX($E$5:$E$54),1,IF($E36=$E35,$A35,COUNT($E$5:$E36))))) -> 10 | E36: 0 | G36: 0 | H36: 0 | J36: 0 | BF36: 32 | BG36: 0
A37: =IF(J$2="","",IF($E37="","",IF($E37=MAX($E$5:$E$54),1,IF($E37=$E36,$A36,COUNT($E$5:$E37))))) -> 10 | E37: 0 | G37: =IF(J$2="","",IF($J37=0,0,(H37*$C$3/$J$3)*50)) -> 0 | H37: =IF(J$2="","",IF(SUM($K37:$AX37)=0,0,SUM($K37:$AX37)+$I37)) -> 0 | J37: =IF(B37="",0,IF(SUM($K37:$AX37)=0,0,SUM($K37:$AX37))) -> 0 | BF37: 33 | BG37: 0
A38: =IF(J$2="","",IF($E38="","",IF($E38=MAX($E$5:$E$54),1,IF($E38=$E37,$A37,COUNT($E$5:$E38))))) -> 10 | E38: 0 | G38: 0 | H38: 0 | J38: 0 | BF38: 34 | BG38: 0
A39: =IF(J$2="","",IF($E39="","",IF($E39=MAX($E$5:$E$54),1,IF($E39=$E38,$A38,COUNT($E$5:$E39))))) -> 10 | E39: 0 | G39: 0 | H39: 0 | J39: 0 | BF39: 35 | BG39: 0
A40: =IF(J$2="","",IF($E40="","",IF($E40=MAX($E$5:$E$54),1,IF($E40=$E39,$A39,COUNT($E$5:$E40))))) -> 10 | E40: 0 | G40: 0 | H40: 0 | J40: 0 | BF40: 36 | BG40: 0
A41: =IF(J$2="","",IF($E41="","",IF($E41=MAX($E$5:$E$54),1,IF($E41=$E40,$A40,COUNT($E$5:$E41))))) -> 10 | E41: 0 | G41: 0 | H41: 0 | J41: 0 | BF41: 37 | BG41: 0
A42: =IF(J$2="","",IF($E42="","",IF($E42=MAX($E$5:$E$54),1,IF($E42=$E41,$A41,COUNT($E$5:$E42))))) -> 10 | E42: 0 | G42: 0 | H42: 0 | J42: 0 | BF42: 38 | BG42: 0
A43: =IF(J$2="","",IF($E43="","",IF($E43=MAX($E$5:$E$54),1,IF($E43=$E42,$A42,COUNT($E$5:$E43))))) -> 10 | E43: 0 | G43: 0 | H43: 0 | J43: 0 | BF43: 39 | BG43: 0
A44: =IF(J$2="","",IF($E44="","",IF($E44=MAX($E$5:$E$54),1,IF($E44=$E43,$A43,COUNT($E$5:$E44))))) -> 10 | E44: 0 | G44: 0 | H44: 0 | J44: 0 | BF44: 40 | BG44: 0
A45: =IF(J$2="","",IF($E45="","",IF($E45=MAX($E$5:$E$54),1,IF($E45=$E44,$A44,COUNT($E$5:$E45))))) -> 10 | E45: 0 | G45: 0 | H45: 0 | J45: 0 | BF45: 41 | BG45: 0
A46: =IF(J$2="","",IF($E46="","",IF($E46=MAX($E$5:$E$54),1,IF($E46=$E45,$A45,COUNT($E$5:$E46))))) -> 10 | E46: 0 | G46: 0 | H46: 0 | J46: 0 | BF46: 42 | BG46: 0
A47: =IF(J$2="","",IF($E47="","",IF($E47=MAX($E$5:$E$54),1,IF($E47=$E46,$A46,COUNT($E$5:$E47))))) -> 10 | E47: 0 | G47: 0 | H47: 0 | J47: 0 | BF47: 43 | BG47: 0
A48: =IF(J$2="","",IF($E48="","",IF($E48=MAX($E$5:$E$54),1,IF($E48=$E47,$A47,COUNT($E$5:$E48))))) -> 10 | E48: 0 | G48: 0 | H48: 0 | J48: 0 | BF48: 44 | BG48: 0
A49: =IF(J$2="","",IF($E49="","",IF($E49=MAX($E$5:$E$54),1,IF($E49=$E48,$A48,COUNT($E$5:$E49))))) -> 10 | E49: 0 | G49: 0 | H49: 0 | J49: 0 | BF49: 45 | BG49: 0
A50: =IF(J$2="","",IF($E50="","",IF($E50=MAX($E$5:$E$54),1,IF($E50=$E49,$A49,COUNT($E$5:$E50))))) -> 10 | E50: 0 | G50: 0 | H50: 0 | J50: 0 | BF50: 46 | BG50: 0
A51: =IF(J$2="","",IF($E51="","",IF($E51=MAX($E$5:$E$54),1,IF($E51=$E50,$A50,COUNT($E$5:$E51))))) -> 10 | E51: 0 | G51: 0 | H51: 0 | J51: 0 | BF51: 47 | BG51: 0
A52: =IF(J$2="","",IF($E52="","",IF($E52=MAX($E$5:$E$54),1,IF($E52=$E51,$A51,COUNT($E$5:$E52))))) -> 10 | E52: 0 | G52: 0 | H52: 0 | J52: 0 | BF52: 48 | BG52: 0
A53: =IF(J$2="","",IF($E53="","",IF($E53=MAX($E$5:$E$54),1,IF($E53=$E52,$A52,COUNT($E$5:$E53))))) ->  | G53: 0 | H53: 0 | J53: 0 | BF53: 49 | BG53: 0
A54: =IF(J$2="","",IF($E54="","",IF($E54=MAX($E$5:$E$54),1,IF($E54=$E53,$A53,COUNT($E$5:$E54))))) ->  | G54: 0 | H54: 0 | J54: 0 | BF54: 50 | BG54: 0
D59: punteggi % ordinati per # di coppia
B60: # coppia | E60: con zeri | F60: senza zeri | G60: senza zeri
B61: 1 | E61: 44.44444444 | F61: =IF(E61=0,"",E61) -> 44.44444444 | G61: 44.44444444 | BF61: 5 | BG61: -1
B62: 2 | E62: 65.74074074 | F62: 65.74074074 | G62: 65.74074074 | BF62: 9 | BG62: -1.22
B63: 3 | E63: 40.74074074 | F63: 40.74074074 | G63: 40.74074074 | I63: =IF(H63=0,"",H63) ->  | BF63: 23 | BG63: 0
B64: 4 | E64: 49.07407407 | F64: 49.07407407 | G64: 49.07407407 | BF64: 1 | BG64: 0.54
B65: 5 | E65: 75.92592593 | F65: 75.92592593 | G65: 75.92592593 | I65: =IF(H65=0,"",H65) ->  | BF65: 10 | BG65: -2.57
B66: 6 | E66: 32.40740741 | F66: 32.40740741 | G66: 32.40740741 | BF66: 6 | BG66: 1.28
B67: 7 | E67: 45.37037037 | F67: 45.37037037 | G67: 45.37037037 | BF67: 8 | BG67: 1.08
B68: 8 | E68: 43.51851852 | F68: 43.51851852 | G68: 43.51851852 | I68: =IF(H68=0,"",H68) ->  | BF68: 3 | BG68: 1.03
B69: 9 | E69: 52.77777778 | F69: 52.77777778 | G69: 52.77777778 | BF69: 7 | BG69: -0.64
E70: 0 | I70: =IF(H70=0,"",H70) ->  | BF70: 2 | BG70: -0.11
E71: 0 | I71: =IF(H71=0,"",H71) ->  | BF71: 4 | BG71: -0.72
E72: 0 | BF72: 11 | BG72: 0.41
E73: 0 | I73: =IF(H73=0,"",H73) ->  | BF73: 12 | BG73: 0
E74: 0 | I74: =IF(H74=0,"",H74) ->  | BF74: 13 | BG74: 0
E75: 0 | I75: =IF(H75=0,"",H75) ->  | BF75: 14 | BG75: 0
E76: 0 | I76: =IF(H76=0,"",H76) ->  | BF76: 15 | BG76: 0
E77: 0 | BF77: 16 | BG77: 0
E78: 0 | BF78: 17 | BG78: 0
E79: 0 | I79: =IF(H79=0,"",H79) ->  | BF79: 18 | BG79: 0
E80: 0 | I80: =IF(H80=0,"",H80) ->  | BF80: 19 | BG80: 0
E81: 0 | BF81: 20 | BG81: 0
E82: 0 | BF82: 21 | BG82: 0
E83: 0 | BF83: 22 | BG83: 0
E84: 0 | BF84: 24 | BG84: 0
E85: 0 | BF85: 25 | BG85: 0
E86: 0 | BF86: 26 | BG86: 0
E87: 0 | BF87: 27 | BG87: 0
E88: 0 | BF88: 28 | BG88: 0
E89: 0 | BF89: 29 | BG89: 0
E90: 0 | BF90: 30 | BG90: 0
E91: 0 | BF91: 31 | BG91: 0
E92: 0 | BF92: 32 | BG92: 0
E93: 0 | F93: =IF(E93=0,"",E93) ->  | BF93: 33 | BG93: 0
E94: 0 | BF94: 34 | BG94: 0
E95: 0 | BF95: 35 | BG95: 0
E96: 0 | BF96: 36 | BG96: 0
E97: 0 | BF97: 37 | BG97: 0
E98: 0 | BF98: 38 | BG98: 0
E99: 0 | BF99: 39 | BG99: 0
E100: 0 | BF100: 40 | BG100: 0
E101: 0 | BF101: 41 | BG101: 0
E102: 0 | BF102: 42 | BG102: 0
E103: 0 | BF103: 43 | BG103: 0
E104: 0 | BF104: 44 | BG104: 0
E105: 0 | BF105: 45 | BG105: 0
E106: 0 | BF106: 46 | BG106: 0
E107: 0 | BF107: 47 | BG107: 0
E108: 0 | BF108: 48 | BG108: 0
E109: 0 | BF109: 49 | BG109: 0
E110: 0 | BF110: 50 | BG110: 0
A119: punteggi con handicap ordinati per numero standard di coppia base
B120: # coppia | E120: con zeri | F120: senza zeri | G120: senza zeri
B121: 4 | E121: 49.61407407 | F121: =IF(E121=0,"",E121) -> 49.61407407 | G121: 49.61407407 | BF121: 1 | BG121: 0.54
E122: 0 | F122: =IF(E122=0,"",E122) ->  | BF122: 2 | BG122: -0.64
B123: 8 | E123: 44.54851852 | F123: =IF(E123=0,"",E123) -> 44.54851852 | G123: 44.54851852 | BF123: 3 | BG123: 1.28
E124: 0 | BF124: 4 | BG124: -0.11
B125: 1 | E125: 43.44444444 | F125: =IF(E125=0,"",E125) -> 43.44444444 | G125: 43.44444444 | BF125: 5 | BG125: 1.08
B126: 6 | E126: 33.68740741 | F126: 33.68740741 | G126: 33.68740741 | I126: =IF(H126=0,"",H126) ->  | BF126: 6 | BG126: 1.03
B127: 9 | E127: 52.13777778 | F127: 52.13777778 | G127: 52.13777778 | BF127: 7 | BG127: 0
B128: 7 | E128: 46.45037037 | F128: 46.45037037 | G128: 46.45037037 | I128: =IF(H128=0,"",H128) ->  | BF128: 8 | BG128: -2.57
B129: 2 | E129: 64.52074074 | F129: 64.52074074 | G129: 64.52074074 | BF129: 9 | BG129: -1.22
B130: 5 | E130: 73.35592593 | F130: 73.35592593 | G130: 73.35592593 | BF130: 10 | BG130: -1
E131: 0 | BF131: 11 | BG131: -0.72

Sheet 27mag
A1: Data | C1: 2017-05-27 | D1: BridgeMania 2016-17 - Torneo Howell
A2: luogo | C2: Presezzi | D2: Coppie Ctrl+e | E2: Calcola Ctr+f | F2: Duplica Ctrl+g | G2: Clear Ctrl+h | J2: &
A3: # coppie | C3: =IF(B5="","",COUNT(B5:B25)) -> 8 | E3: =IF(E5="","",SUMIF(E5:E25,">0")) -> 398.35 | G3: =IF(G5="","",SUM(G5:G25)) -> 400 | H3: =IF(H5="","",SUM(H5:H25)) -> 504 | I3: =SUM(I5:I25) -> 0 | J3: =SUM(J5:J25) -> 504 | K3: =SUM(K5:K25) -> 24 | L3: =SUM(L5:L25) -> 24 | M3: 24 | N3: 24 | O3: 24 | P3: 24 | Q3: 24 | R3: 24 | S3: 24 | T3: 24 | U3: 24 | V3: 24 | W3: 24 | X3: 24 | Y3: 24 | Z3: 24 | AA3: 24 | AB3: 24 | AC3: 24 | AD3: 24 | AE3: 24 | AF3: 0 | AG3: 0 | AH3: 0 | AI3: 0 | AJ3: 0 | AK3: 0 | AL3: 0 | AM3: 0 | AN3: 0 | AO3: 0 | AP3: 0 | AQ3: 0 | AR3: 0 | AS3: 0 | AT3: 0 | AU3: 0 | AV3: 0 | AW3: 0 | AX3: 0
A4: Class. | B4: # | C4: Coppie | E4: Punteggio Serata | F4: Handicap | G4: Punteggio % | H4: Punteggio Torneo | I4: Penalità (-) | J4: Totale punti mano | K4: 1 | L4: 2 | M4: 3 | N4: 4 | O4: 5 | P4: 6 | Q4: 7 | R4: 8 | S4: 9 | T4: 10 | U4: 11 | V4: 12 | W4: 13 | X4: 14 | Y4: 15 | Z4: 16 | AA4: 17 | AB4: 18 | AC4: 19 | AD4: 20 | AE4: 21 | AF4: 22 | AG4: 23 | AH4: 24 | AI4: 25 | AJ4: 26 | AK4: 27 | AL4: 28 | AM4: 29 | AN4: 30 | AO4: 31 | AP4: 32 | AQ4: 33 | AR4: 34 | AS4: 35 | AT4: 36 | AU4: 37 | AV4: 38 | AW4: 39 | AX4: 40 | BF4: coppia | BG4: handicap
A5: =IF(J$2="","",IF($E5="","",IF($E5=MAX($E$5:$E$54),1,IF($E5=$E4,$A4,COUNT($E$5:$E5))))) -> 1 | B5: 3 | C5: Stefania | D5: Massimo | E5: =IF(J$2="","",IF(G5=0,0,F5+G5)) -> 61.71571429 | F5: =IF(C5="","",IF(BG5=0,0,BG5)) -> -2.57 | G5: =IF(J$2="","",IF($J5=0,0,(H5*$C$3/$J$3)*50)) -> 64.28571429 | H5: =IF(J$2="","",IF(SUM($K5:$AX5)=0,0,SUM($K5:$AX5)+$I5)) -> 81 | J5: =IF(B5="",0,IF(SUM($K5:$AX5)=0,0,SUM($K5:$AX5))) -> 81 | K5: 0 | L5: 5 | M5: 5 | N5: 6 | O5: 4 | P5: 2 | Q5: 2 | R5: 6 | S5: 5 | T5: 3 | U5: 6 | V5: 6 | W5: 4 | X5: 4 | Y5: 6 | Z5: 0 | AA5: 6 | AB5: 5 | AC5: 1 | AD5: 2 | AE5: 3 | BF5: 10 | BG5: -2.57
A6: =IF(J$2="","",IF($E6="","",IF($E6=MAX($E$5:$E$54),1,IF($E6=$E5,$A5,COUNT($E$5:$E6))))) -> 2 | B6: 6 | C6: Isolde | D6: Letizia | E6: 55.34920635 | F6: -1 | G6: 56.34920635 | H6: 71 | J6: 71 | K6: 6 | L6: 5 | M6: 0 | N6: 6 | O6: 2 | P6: 6 | Q6: 4 | R6: 3 | S6: 0 | T6: 3 | U6: 0 | V6: 0 | W6: 4 | X6: 6 | Y6: 2 | Z6: 3 | AA6: 4 | AB6: 5 | AC6: 1 | AD6: 5 | AE6: 6 | BF6: 5 | BG6: -1
A7: =IF(J$2="","",IF($E7="","",IF($E7=MAX($E$5:$E$54),1,IF($E7=$E6,$A6,COUNT($E$5:$E7))))) -> 3 | B7: 5 | C7: Manuela | D7: Roberto | E7: 54.91555556 | F7: -0.64 | G7: 55.55555556 | H7: 70 | J7: 70 | K7: 0 | L7: 1 | M7: 6 | N7: 0 | O7: 2 | P7: 4 | Q7: 0 | R7: 6 | S7: 4 | T7: 3 | U7: 6 | V7: 4 | W7: 6 | X7: 4 | Y7: 2 | Z7: 6 | AA7: 0 | AB7: 2 | AC7: 2 | AD7: 6 | AE7: 6 | BF7: 7 | BG7: -0.64
A8: =IF(J$2="","",IF($E8="","",IF($E8=MAX($E$5:$E$54),1,IF($E8=$E7,$A7,COUNT($E$5:$E8))))) -> 4 | B8: 4 | C8: Barbara | D8: Elio | E8: 53.06460317 | F8: -0.11 | G8: 53.17460317 | H8: 67 | J8: 67 | K8: 2 | L8: 6 | M8: 1 | N8: 3 | O8: 4 | P8: 4 | Q8: 2 | R8: 3 | S8: 6 | T8: 6 | U8: 3 | V8: 2 | W8: 2 | X8: 6 | Y8: 6 | Z8: 6 | AA8: 0 | AB8: 1 | AC8: 4 | AD8: 0 | AE8: 0 | BF8: 2 | BG8: -0.11
A9: =IF(J$2="","",IF($E9="","",IF($E9=MAX($E$5:$E$54),1,IF($E9=$E8,$A8,COUNT($E$5:$E9))))) -> 5 | B9: 1 | C9: Elena | D9: Stefano | E9: 48.48634921 | F9: -0.72 | G9: 49.20634921 | H9: 62 | J9: 62 | K9: 4 | L9: 4 | M9: 4 | N9: 3 | O9: 2 | P9: 2 | Q9: 6 | R9: 3 | S9: 1 | T9: 0 | U9: 3 | V9: 2 | W9: 2 | X9: 0 | Y9: 4 | Z9: 0 | AA9: 6 | AB9: 4 | AC9: 5 | AD9: 4 | AE9: 3 | BF9: 4 | BG9: -0.72
A10: =IF(J$2="","",IF($E10="","",IF($E10=MAX($E$5:$E$54),1,IF($E10=$E9,$A9,COUNT($E$5:$E10))))) -> 6 | B10: 7 | C10: Lilli | D10: Gianni | E10: 45.72444444 | F10: 1.28 | G10: 44.44444444 | H10: 56 | J10: 56 | K10: 6 | L10: 1 | M10: 1 | N10: 0 | O10: 4 | P10: 0 | Q10: 0 | R10: 3 | S10: 5 | T10: 3 | U10: 0 | V10: 2 | W10: 4 | X10: 0 | Y10: 0 | Z10: 3 | AA10: 4 | AB10: 6 | AC10: 6 | AD10: 5 | AE10: 3 | BF10: 6 | BG10: 1.28
A11: =IF(J$2="","",IF($E11="","",IF($E11=MAX($E$5:$E$54),1,IF($E11=$E10,$A10,COUNT($E$5:$E11))))) -> 7 | B11: 2 | C11: Cesarina | D11: Gaetano | E11: 43.88714286 | F11: 1.03 | G11: 42.85714286 | H11: 54 | J11: 54 | K11: 4 | L11: 0 | M11: 5 | N11: 3 | O11: 6 | P11: 0 | Q11: 6 | R11: 0 | S11: 2 | T11: 6 | U11: 3 | V11: 4 | W11: 2 | X11: 2 | Y11: 0 | Z11: 3 | AA11: 2 | AB11: 0 | AC11: 5 | AD11: 1 | AE11: 0 | BF11: 3 | BG11: 1.03
A12: =IF(J$2="","",IF($E12="","",IF($E12=MAX($E$5:$E$54),1,IF($E12=$E11,$A11,COUNT($E$5:$E12))))) -> 8 | B12: 8 | C12: Olimpia | D12: Sauro | E12: 35.20698413 | F12: 1.08 | G12: 34.12698413 | H12: 43 | J12: 43 | K12: 2 | L12: 2 | M12: 2 | N12: 3 | O12: 0 | P12: 6 | Q12: 4 | R12: 0 | S12: 1 | T12: 0 | U12: 3 | V12: 4 | W12: 0 | X12: 2 | Y12: 4 | Z12: 3 | AA12: 2 | AB12: 1 | AC12: 0 | AD12: 1 | AE12: 3 | BF12: 8 | BG12: 1.08
A13: =IF(J$2="","",IF($E13="","",IF($E13=MAX($E$5:$E$54),1,IF($E13=$E12,$A12,COUNT($E$5:$E13))))) -> 9 | E13: 0 | G13: 0 | H13: 0 | J13: 0 | BF13: 1 | BG13: 0.54
A14: =IF(J$2="","",IF($E14="","",IF($E14=MAX($E$5:$E$54),1,IF($E14=$E13,$A13,COUNT($E$5:$E14))))) -> 9 | E14: 0 | G14: 0 | H14: 0 | J14: 0 | BF14: 9 | BG14: -1.22
A15: =IF(J$2="","",IF($E15="","",IF($E15=MAX($E$5:$E$54),1,IF($E15=$E14,$A14,COUNT($E$5:$E15))))) -> 9 | E15: 0 | G15: 0 | H15: 0 | J15: 0 | BF15: 11 | BG15: 0.41
A16: =IF(J$2="","",IF($E16="","",IF($E16=MAX($E$5:$E$54),1,IF($E16=$E15,$A15,COUNT($E$5:$E16))))) -> 9 | E16: 0 | G16: 0 | H16: 0 | J16: 0 | BF16: 12 | BG16: 0
A17: =IF(J$2="","",IF($E17="","",IF($E17=MAX($E$5:$E$54),1,IF($E17=$E16,$A16,COUNT($E$5:$E17))))) -> 9 | E17: 0 | G17: 0 | H17: 0 | J17: 0 | BF17: 13 | BG17: 0
A18: =IF(J$2="","",IF($E18="","",IF($E18=MAX($E$5:$E$54),1,IF($E18=$E17,$A17,COUNT($E$5:$E18))))) -> 9 | E18: 0 | G18: 0 | H18: 0 | J18: 0 | BF18: 14 | BG18: 0
A19: =IF(J$2="","",IF($E19="","",IF($E19=MAX($E$5:$E$54),1,IF($E19=$E18,$A18,COUNT($E$5:$E19))))) -> 9 | E19: 0 | G19: 0 | H19: 0 | J19: 0 | BF19: 15 | BG19: 0
A20: =IF(J$2="","",IF($E20="","",IF($E20=MAX($E$5:$E$54),1,IF($E20=$E19,$A19,COUNT($E$5:$E20))))) -> 9 | E20: 0 | G20: 0 | H20: 0 | J20: 0 | BF20: 16 | BG20: 0
A21: =IF(J$2="","",IF($E21="","",IF($E21=MAX($E$5:$E$54),1,IF($E21=$E20,$A20,COUNT($E$5:$E21))))) -> 9 | E21: 0 | G21: 0 | H21: 0 | J21: 0 | BF21: 17 | BG21: 0
A22: =IF(J$2="","",IF($E22="","",IF($E22=MAX($E$5:$E$54),1,IF($E22=$E21,$A21,COUNT($E$5:$E22))))) -> 9 | E22: 0 | G22: 0 | H22: 0 | J22: 0 | BF22: 18 | BG22: 0
A23: =IF(J$2="","",IF($E23="","",IF($E23=MAX($E$5:$E$54),1,IF($E23=$E22,$A22,COUNT($E$5:$E23))))) -> 9 | E23: 0 | G23: 0 | H23: 0 | J23: 0 | BF23: 19 | BG23: 0
A24: =IF(J$2="","",IF($E24="","",IF($E24=MAX($E$5:$E$54),1,IF($E24=$E23,$A23,COUNT($E$5:$E24))))) -> 9 | E24: 0 | G24: 0 | H24: 0 | J24: 0 | BF24: 20 | BG24: 0
A25: =IF(J$2="","",IF($E25="","",IF($E25=MAX($E$5:$E$54),1,IF($E25=$E24,$A24,COUNT($E$5:$E25))))) -> 9 | E25: 0 | G25: 0 | H25: 0 | J25: 0 | BF25: 21 | BG25: 0
A26: =IF(J$2="","",IF($E26="","",IF($E26=MAX($E$5:$E$54),1,IF($E26=$E25,$A25,COUNT($E$5:$E26))))) -> 9 | E26: 0 | G26: 0 | H26: 0 | J26: 0 | BF26: 22 | BG26: 0
A27: =IF(J$2="","",IF($E27="","",IF($E27=MAX($E$5:$E$54),1,IF($E27=$E26,$A26,COUNT($E$5:$E27))))) -> 9 | E27: 0 | G27: 0 | H27: 0 | J27: 0 | BF27: 23 | BG27: 0
A28: =IF(J$2="","",IF($E28="","",IF($E28=MAX($E$5:$E$54),1,IF($E28=$E27,$A27,COUNT($E$5:$E28))))) -> 9 | E28: 0 | G28: 0 | H28: 0 | J28: 0 | BF28: 24 | BG28: 0
A29: =IF(J$2="","",IF($E29="","",IF($E29=MAX($E$5:$E$54),1,IF($E29=$E28,$A28,COUNT($E$5:$E29))))) -> 9 | E29: 0 | G29: 0 | H29: 0 | J29: 0 | BF29: 25 | BG29: 0
A30: =IF(J$2="","",IF($E30="","",IF($E30=MAX($E$5:$E$54),1,IF($E30=$E29,$A29,COUNT($E$5:$E30))))) -> 9 | E30: 0 | G30: 0 | H30: 0 | J30: 0 | BF30: 26 | BG30: 0
A31: =IF(J$2="","",IF($E31="","",IF($E31=MAX($E$5:$E$54),1,IF($E31=$E30,$A30,COUNT($E$5:$E31))))) -> 9 | E31: 0 | G31: 0 | H31: 0 | J31: 0 | BF31: 27 | BG31: 0
A32: =IF(J$2="","",IF($E32="","",IF($E32=MAX($E$5:$E$54),1,IF($E32=$E31,$A31,COUNT($E$5:$E32))))) -> 9 | E32: 0 | G32: 0 | H32: 0 | J32: 0 | BF32: 28 | BG32: 0
A33: =IF(J$2="","",IF($E33="","",IF($E33=MAX($E$5:$E$54),1,IF($E33=$E32,$A32,COUNT($E$5:$E33))))) -> 9 | E33: 0 | G33: 0 | H33: 0 | J33: 0 | BF33: 29 | BG33: 0
A34: =IF(J$2="","",IF($E34="","",IF($E34=MAX($E$5:$E$54),1,IF($E34=$E33,$A33,COUNT($E$5:$E34))))) -> 9 | E34: 0 | G34: 0 | H34: 0 | J34: 0 | BF34: 30 | BG34: 0
A35: =IF(J$2="","",IF($E35="","",IF($E35=MAX($E$5:$E$54),1,IF($E35=$E34,$A34,COUNT($E$5:$E35))))) -> 9 | E35: 0 | G35: 0 | H35: 0 | J35: 0 | BF35: 31 | BG35: 0
A36: =IF(J$2="","",IF($E36="","",IF($E36=MAX($E$5:$E$54),1,IF($E36=$E35,$A35,COUNT($E$5:$E36))))) -> 9 | E36: 0 | G36: 0 | H36: 0 | J36: 0 | BF36: 32 | BG36: 0
A37: =IF(J$2="","",IF($E37="","",IF($E37=MAX($E$5:$E$54),1,IF($E37=$E36,$A36,COUNT($E$5:$E37))))) -> 9 | E37: 0 | G37: =IF(J$2="","",IF($J37=0,0,(H37*$C$3/$J$3)*50)) -> 0 | H37: =IF(J$2="","",IF(SUM($K37:$AX37)=0,0,SUM($K37:$AX37)+$I37)) -> 0 | J37: =IF(B37="",0,IF(SUM($K37:$AX37)=0,0,SUM($K37:$AX37))) -> 0 | BF37: 33 | BG37: 0
A38: =IF(J$2="","",IF($E38="","",IF($E38=MAX($E$5:$E$54),1,IF($E38=$E37,$A37,COUNT($E$5:$E38))))) -> 9 | E38: 0 | G38: 0 | H38: 0 | J38: 0 | BF38: 34 | BG38: 0
A39: =IF(J$2="","",IF($E39="","",IF($E39=MAX($E$5:$E$54),1,IF($E39=$E38,$A38,COUNT($E$5:$E39))))) -> 9 | E39: 0 | G39: 0 | H39: 0 | J39: 0 | BF39: 35 | BG39: 0
A40: =IF(J$2="","",IF($E40="","",IF($E40=MAX($E$5:$E$54),1,IF($E40=$E39,$A39,COUNT($E$5:$E40))))) -> 9 | E40: 0 | G40: 0 | H40: 0 | J40: 0 | BF40: 36 | BG40: 0
A41: =IF(J$2="","",IF($E41="","",IF($E41=MAX($E$5:$E$54),1,IF($E41=$E40,$A40,COUNT($E$5:$E41))))) -> 9 | E41: 0 | G41: 0 | H41: 0 | J41: 0 | BF41: 37 | BG41: 0
A42: =IF(J$2="","",IF($E42="","",IF($E42=MAX($E$5:$E$54),1,IF($E42=$E41,$A41,COUNT($E$5:$E42))))) -> 9 | E42: 0 | G42: 0 | H42: 0 | J42: 0 | BF42: 38 | BG42: 0
A43: =IF(J$2="","",IF($E43="","",IF($E43=MAX($E$5:$E$54),1,IF($E43=$E42,$A42,COUNT($E$5:$E43))))) -> 9 | E43: 0 | G43: 0 | H43: 0 | J43: 0 | BF43: 39 | BG43: 0
A44: =IF(J$2="","",IF($E44="","",IF($E44=MAX($E$5:$E$54),1,IF($E44=$E43,$A43,COUNT($E$5:$E44))))) -> 9 | E44: 0 | G44: 0 | H44: 0 | J44: 0 | BF44: 40 | BG44: 0
A45: =IF(J$2="","",IF($E45="","",IF($E45=MAX($E$5:$E$54),1,IF($E45=$E44,$A44,COUNT($E$5:$E45))))) -> 9 | E45: 0 | G45: 0 | H45: 0 | J45: 0 | BF45: 41 | BG45: 0
A46: =IF(J$2="","",IF($E46="","",IF($E46=MAX($E$5:$E$54),1,IF($E46=$E45,$A45,COUNT($E$5:$E46))))) -> 9 | E46: 0 | G46: 0 | H46: 0 | J46: 0 | BF46: 42 | BG46: 0
A47: =IF(J$2="","",IF($E47="","",IF($E47=MAX($E$5:$E$54),1,IF($E47=$E46,$A46,COUNT($E$5:$E47))))) -> 9 | E47: 0 | G47: 0 | H47: 0 | J47: 0 | BF47: 43 | BG47: 0
A48: =IF(J$2="","",IF($E48="","",IF($E48=MAX($E$5:$E$54),1,IF($E48=$E47,$A47,COUNT($E$5:$E48))))) -> 9 | E48: 0 | G48: 0 | H48: 0 | J48: 0 | BF48: 44 | BG48: 0
A49: =IF(J$2="","",IF($E49="","",IF($E49=MAX($E$5:$E$54),1,IF($E49=$E48,$A48,COUNT($E$5:$E49))))) -> 9 | E49: 0 | G49: 0 | H49: 0 | J49: 0 | BF49: 45 | BG49: 0
A50: =IF(J$2="","",IF($E50="","",IF($E50=MAX($E$5:$E$54),1,IF($E50=$E49,$A49,COUNT($E$5:$E50))))) -> 9 | E50: 0 | G50: 0 | H50: 0 | J50: 0 | BF50: 46 | BG50: 0
A51: =IF(J$2="","",IF($E51="","",IF($E51=MAX($E$5:$E$54),1,IF($E51=$E50,$A50,COUNT($E$5:$E51))))) -> 9 | E51: 0 | G51: 0 | H51: 0 | J51: 0 | BF51: 47 | BG51: 0
A52: =IF(J$2="","",IF($E52="","",IF($E52=MAX($E$5:$E$54),1,IF($E52=$E51,$A51,COUNT($E$5:$E52))))) -> 9 | E52: 0 | G52: 0 | H52: 0 | J52: 0 | BF52: 48 | BG52: 0
A53: =IF(J$2="","",IF($E53="","",IF($E53=MAX($E$5:$E$54),1,IF($E53=$E52,$A52,COUNT($E$5:$E53))))) ->  | G53: 0 | H53: 0 | J53: 0 | BF53: 49 | BG53: 0
A54: =IF(J$2="","",IF($E54="","",IF($E54=MAX($E$5:$E$54),1,IF($E54=$E53,$A53,COUNT($E$5:$E54))))) ->  | G54: 0 | H54: 0 | J54: 0 | BF54: 50 | BG54: 0
D59: punteggi % ordinati per # di coppia
B60: # coppia | E60: con zeri | F60: senza zeri | G60: senza zeri
B61: 1 | E61: 49.20634921 | F61: =IF(E61=0,"",E61) -> 49.20634921 | G61: 49.20634921 | BF61: 4 | BG61: -0.72
B62: 2 | E62: 42.85714286 | F62: 42.85714286 | G62: 42.85714286 | BF62: 3 | BG62: 1.03
B63: 3 | E63: 64.28571429 | F63: 64.28571429 | G63: 64.28571429 | I63: =IF(H63=0,"",H63) ->  | BF63: 10 | BG63: -2.57
B64: 4 | E64: 53.17460317 | F64: 53.17460317 | G64: 53.17460317 | BF64: 2 | BG64: -0.11
B65: 5 | E65: 55.55555556 | F65: 55.55555556 | G65: 55.55555556 | I65: =IF(H65=0,"",H65) ->  | BF65: 7 | BG65: -0.64
B66: 6 | E66: 56.34920635 | F66: 56.34920635 | G66: 56.34920635 | BF66: 5 | BG66: -1
B67: 7 | E67: 44.44444444 | F67: 44.44444444 | G67: 44.44444444 | BF67: 6 | BG67: 1.28
B68: 8 | E68: 34.12698413 | F68: 34.12698413 | G68: 34.12698413 | I68: =IF(H68=0,"",H68) ->  | BF68: 8 | BG68: 1.08
E69: 0 | BF69: 1 | BG69: 0.54
E70: 0 | I70: =IF(H70=0,"",H70) ->  | BF70: 9 | BG70: -1.22
E71: 0 | I71: =IF(H71=0,"",H71) ->  | BF71: 11 | BG71: 0.41
E72: 0 | BF72: 12 | BG72: 0
E73: 0 | I73: =IF(H73=0,"",H73) ->  | BF73: 13 | BG73: 0
E74: 0 | I74: =IF(H74=0,"",H74) ->  | BF74: 14 | BG74: 0
E75: 0 | I75: =IF(H75=0,"",H75) ->  | BF75: 15 | BG75: 0
E76: 0 | I76: =IF(H76=0,"",H76) ->  | BF76: 16 | BG76: 0
E77: 0 | BF77: 17 | BG77: 0
E78: 0 | BF78: 18 | BG78: 0
E79: 0 | I79: =IF(H79=0,"",H79) ->  | BF79: 19 | BG79: 0
E80: 0 | I80: =IF(H80=0,"",H80) ->  | BF80: 20 | BG80: 0
E81: 0 | BF81: 21 | BG81: 0
E82: 0 | BF82: 22 | BG82: 0
E83: 0 | BF83: 23 | BG83: 0
E84: 0 | BF84: 24 | BG84: 0
E85: 0 | BF85: 25 | BG85: 0
E86: 0 | BF86: 26 | BG86: 0
E87: 0 | BF87: 27 | BG87: 0
E88: 0 | BF88: 28 | BG88: 0
E89: 0 | BF89: 29 | BG89: 0
E90: 0 | BF90: 30 | BG90: 0
E91: 0 | BF91: 31 | BG91: 0
E92: 0 | BF92: 32 | BG92: 0
E93: 0 | F93: =IF(E93=0,"",E93) ->  | BF93: 33 | BG93: 0
E94: 0 | BF94: 34 | BG94: 0
E95: 0 | BF95: 35 | BG95: 0
E96: 0 | BF96: 36 | BG96: 0
E97: 0 | BF97: 37 | BG97: 0
E98: 0 | BF98: 38 | BG98: 0
E99: 0 | BF99: 39 | BG99: 0
E100: 0 | BF100: 40 | BG100: 0
E101: 0 | BF101: 41 | BG101: 0
E102: 0 | BF102: 42 | BG102: 0
E103: 0 | BF103: 43 | BG103: 0
E104: 0 | BF104: 44 | BG104: 0
E105: 0 | BF105: 45 | BG105: 0
E106: 0 | BF106: 46 | BG106: 0
E107: 0 | BF107: 47 | BG107: 0
E108: 0 | BF108: 48 | BG108: 0
E109: 0 | BF109: 49 | BG109: 0
E110: 0 | BF110: 50 | BG110: 0
A119: punteggi con handicap ordinati per numero standard di coppia base
B120: # coppia | E120: con zeri | F120: senza zeri | G120: senza zeri
E121: 0 | F121: =IF(E121=0,"",E121) ->  | BF121: 1 | BG121: 0.54
B122: 4 | E122: 53.06460317 | F122: 53.06460317 | G122: 53.06460317 | BF122: 2 | BG122: -0.11
B123: 2 | E123: 43.88714286 | F123: 43.88714286 | G123: 43.88714286 | BF123: 3 | BG123: 1.28
B124: 1 | E124: 48.48634921 | F124: 48.48634921 | G124: 48.48634921 | BF124: 4 | BG124: -0.64
B125: 6 | E125: 55.34920635 | F125: 55.34920635 | G125: 55.34920635 | BF125: 5 | BG125: 1.03
B126: 7 | E126: 45.72444444 | F126: 45.72444444 | G126: 45.72444444 | I126: =IF(H126=0,"",H126) ->  | BF126: 6 | BG126: -1
B127: 5 | E127: 54.91555556 | F127: 54.91555556 | G127: 54.91555556 | BF127: 7 | BG127: -2.57
B128: 8 | E128: 35.20698413 | F128: 35.20698413 | G128: 35.20698413 | I128: =IF(H128=0,"",H128) ->  | BF128: 8 | BG128: 1.08
E129: 0 | I129: =IF(H129=0,"",H129) ->  | BF129: 9 | BG129: -1.22
B130: 3 | E130: 61.71571429 | F130: 61.71571429 | G130: 61.71571429 | BF130: 10 | BG130: -0.72
E131: 0 | BF131: 11 | BG131: 0.41

Sheet 20mag
A1: Data | C1: 2017-05-20 | D1: BridgeMania 2016-17 - Torneo Howell
A2: luogo | C2: De Sanctis | D2: Coppie Ctrl+e | E2: Calcola Ctr+f | F2: Duplica Ctrl+g | G2: Clear Ctrl+h | J2: &
A3: # coppie | C3: =IF(B5="","",COUNT(B5:B25)) -> 10 | E3: =IF(E5="","",SUMIF(E5:E25,">0")) -> 497.67 | G3: =IF(G5="","",SUM(G5:G25)) -> 500 | H3: =IF(H5="","",SUM(H5:H25)) -> 720 | I3: =SUM(I5:I25) -> 0 | J3: =SUM(J5:J25) -> 720 | K3: =SUM(K5:K25) -> 40 | L3: =SUM(L5:L25) -> 40 | M3: 40 | N3: 40 | O3: 40 | P3: 40 | Q3: 40 | R3: 40 | S3: 40 | T3: 40 | U3: 40 | V3: 40 | W3: 40 | X3: 40 | Y3: 40 | Z3: 40 | AA3: 40 | AB3: 40 | AC3: 0 | AD3: 0 | AE3: 0 | AF3: 0 | AG3: 0 | AH3: 0 | AI3: 0 | AJ3: 0 | AK3: 0 | AL3: 0 | AM3: 0 | AN3: 0 | AO3: 0 | AP3: 0 | AQ3: 0 | AR3: 0 | AS3: 0 | AT3: 0 | AU3: 0 | AV3: 0 | AW3: 0 | AX3: 0
A4: Class. | B4: # | C4: Coppie | E4: Punteggio Serata | F4: Handicap | G4: Punteggio % | H4: Punteggio Torneo | I4: Penalità (-) | J4: Totale punti mano | K4: 1 | L4: 2 | M4: 3 | N4: 4 | O4: 5 | P4: 6 | Q4: 7 | R4: 8 | S4: 9 | T4: 10 | U4: 11 | V4: 12 | W4: 13 | X4: 14 | Y4: 15 | Z4: 16 | AA4: 17 | AB4: 18 | AC4: 19 | AD4: 20 | AE4: 21 | AF4: 22 | AG4: 23 | AH4: 24 | AI4: 25 | AJ4: 26 | AK4: 27 | AL4: 28 | AM4: 29 | AN4: 30 | AO4: 31 | AP4: 32 | AQ4: 33 | AR4: 34 | AS4: 35 | AT4: 36 | AU4: 37 | AV4: 38 | AW4: 39 | AX4: 40 | BF4: coppia | BG4: handicap
A5: =IF(J$2="","",IF($E5="","",IF($E5=MAX($E$5:$E$54),1,IF($E5=$E4,$A4,COUNT($E$5:$E5))))) -> 1 | B5: 10 | C5: Isolde | D5: Letizia | E5: =IF(J$2="","",IF(G5=0,0,F5+G5)) -> 62.19444444 | F5: =IF(C5="","",IF(BG5=0,0,BG5)) -> -1 | G5: =IF(J$2="","",IF($J5=0,0,(H5*$C$3/$J$3)*50)) -> 63.19444444 | H5: =IF(J$2="","",IF(SUM($K5:$AX5)=0,0,SUM($K5:$AX5)+$I5)) -> 91 | J5: =IF(B5="",0,IF(SUM($K5:$AX5)=0,0,SUM($K5:$AX5))) -> 91 | K5: 7 | L5: 4 | M5: 4 | N5: 2 | O5: 5 | P5: 6 | Q5: 6 | R5: 8 | S5: 6 | T5: 6 | U5: 8 | V5: 4 | W5: 3 | X5: 6 | Y5: 3 | Z5: 5 | AA5: 8 | AB5: 0 | BF5: 5 | BG5: -1
A6: =IF(J$2="","",IF($E6="","",IF($E6=MAX($E$5:$E$54),1,IF($E6=$E5,$A5,COUNT($E$5:$E6))))) -> 2 | B6: 9 | C6: Cesarina | D6: Gaetano | E6: 60.75222222 | F6: 1.03 | G6: 59.72222222 | H6: 86 | J6: 86 | K6: 8 | L6: 7 | M6: 4 | N6: 4 | O6: 8 | P6: 6 | Q6: 6 | R6: 5 | S6: 4 | T6: 1 | U6: 4 | V6: 4 | W6: 8 | X6: 6 | Y6: 3 | Z6: 0 | AA6: 0 | AB6: 8 | BF6: 3 | BG6: 1.03
A7: =IF(J$2="","",IF($E7="","",IF($E7=MAX($E$5:$E$54),1,IF($E7=$E6,$A6,COUNT($E$5:$E7))))) -> 3 | B7: 8 | C7: Renata | D7: Sandro | E7: 52.94666667 | F7: -1.22 | G7: 54.16666667 | H7: 78 | J7: 78 | K7: 5 | L7: 7 | M7: 4 | N7: 2 | O7: 5 | P7: 8 | Q7: 2 | R7: 2 | S7: 4 | T7: 7 | U7: 0 | V7: 8 | W7: 6 | X7: 6 | Y7: 5 | Z7: 3 | AA7: 4 | AB7: 0 | BF7: 9 | BG7: -1.22
A8: =IF(J$2="","",IF($E8="","",IF($E8=MAX($E$5:$E$54),1,IF($E8=$E7,$A7,COUNT($E$5:$E8))))) -> 4 | B8: 1 | C8: Barbara | D8: Elio | E8: 51.27888889 | F8: -0.11 | G8: 51.38888889 | H8: 74 | J8: 74 | K8: 1 | L8: 4 | M8: 4 | N8: 8 | O8: 3 | P8: 0 | Q8: 2 | R8: 8 | S8: 2 | T8: 1 | U8: 4 | V8: 4 | W8: 5 | X8: 8 | Y8: 8 | Z8: 5 | AA8: 2 | AB8: 5 | BF8: 2 | BG8: -0.11
A9: =IF(J$2="","",IF($E9="","",IF($E9=MAX($E$5:$E$54),1,IF($E9=$E8,$A8,COUNT($E$5:$E9))))) -> 5 | B9: 3 | C9: Stefania | D9: Massimo | E9: 50.90222222 | F9: -2.57 | G9: 53.47222222 | H9: 77 | J9: 77 | K9: 0 | L9: 1 | M9: 4 | N9: 6 | O9: 3 | P9: 2 | Q9: 8 | R9: 3 | S9: 6 | T9: 7 | U9: 6 | V9: 4 | W9: 0 | X9: 2 | Y9: 6 | Z9: 5 | AA9: 8 | AB9: 6 | BF9: 10 | BG9: -2.57
A10: =IF(J$2="","",IF($E10="","",IF($E10=MAX($E$5:$E$54),1,IF($E10=$E9,$A9,COUNT($E$5:$E10))))) -> 6 | B10: 5 | C10: Manuela | D10: Roberto | E10: 50.74888889 | F10: -0.64 | G10: 51.38888889 | H10: 74 | J10: 74 | K10: 3 | L10: 7 | M10: 4 | N10: 0 | O10: 2 | P10: 2 | Q10: 6 | R10: 0 | S10: 2 | T10: 2 | U10: 8 | V10: 0 | W10: 8 | X10: 6 | Y10: 5 | Z10: 8 | AA10: 6 | AB10: 5 | BF10: 7 | BG10: -0.64
A11: =IF(J$2="","",IF($E11="","",IF($E11=MAX($E$5:$E$54),1,IF($E11=$E10,$A10,COUNT($E$5:$E11))))) -> 7 | B11: 6 | C11: Lilli | D11: Gianni | E11: 49.19666667 | F11: 1.28 | G11: 47.91666667 | H11: 69 | J11: 69 | K11: 3 | L11: 1 | M11: 4 | N11: 8 | O11: 0 | P11: 6 | Q11: 0 | R11: 5 | S11: 8 | T11: 8 | U11: 0 | V11: 4 | W11: 0 | X11: 2 | Y11: 8 | Z11: 3 | AA11: 6 | AB11: 3 | BF11: 6 | BG11: 1.28
A12: =IF(J$2="","",IF($E12="","",IF($E12=MAX($E$5:$E$54),1,IF($E12=$E11,$A11,COUNT($E$5:$E12))))) -> 8 | B12: 7 | C12: Elena | D12: Stefano | E12: 43.03 | F12: -0.72 | G12: 43.75 | H12: 63 | J12: 63 | K12: 7 | L12: 1 | M12: 4 | N12: 4 | O12: 8 | P12: 2 | Q12: 6 | R12: 6 | S12: 0 | T12: 4 | U12: 2 | V12: 4 | W12: 5 | X12: 2 | Y12: 0 | Z12: 3 | AA12: 2 | AB12: 3 | BF12: 4 | BG12: -0.72
A13: =IF(J$2="","",IF($E13="","",IF($E13=MAX($E$5:$E$54),1,IF($E13=$E12,$A12,COUNT($E$5:$E13))))) -> 9 | B13: 2 | C13: Antonella | D13: Dino | E13: 42.90111111 | F13: 0.54 | G13: 42.36111111 | H13: 61 | J13: 61 | K13: 1 | L13: 7 | M13: 4 | N13: 6 | O13: 6 | P13: 6 | Q13: 2 | R13: 3 | S13: 0 | T13: 0 | U13: 6 | V13: 0 | W13: 3 | X13: 0 | Y13: 2 | Z13: 3 | AA13: 4 | AB13: 8 | BF13: 1 | BG13: 0.54
A14: =IF(J$2="","",IF($E14="","",IF($E14=MAX($E$5:$E$54),1,IF($E14=$E13,$A13,COUNT($E$5:$E14))))) -> 10 | B14: 4 | C14: Olimpia | D14: Sauro | E14: 33.71888889 | F14: 1.08 | G14: 32.63888889 | H14: 47 | J14: 47 | K14: 5 | L14: 1 | M14: 4 | N14: 0 | O14: 0 | P14: 2 | Q14: 2 | R14: 0 | S14: 8 | T14: 4 | U14: 2 | V14: 8 | W14: 2 | X14: 2 | Y14: 0 | Z14: 5 | AA14: 0 | AB14: 2 | BF14: 8 | BG14: 1.08
A15: =IF(J$2="","",IF($E15="","",IF($E15=MAX($E$5:$E$54),1,IF($E15=$E14,$A14,COUNT($E$5:$E15))))) -> 11 | E15: 0 | G15: 0 | H15: 0 | J15: 0 | BF15: 11 | BG15: 0.41
A16: =IF(J$2="","",IF($E16="","",IF($E16=MAX($E$5:$E$54),1,IF($E16=$E15,$A15,COUNT($E$5:$E16))))) -> 11 | E16: 0 | G16: 0 | H16: 0 | J16: 0 | BF16: 12 | BG16: 0
A17: =IF(J$2="","",IF($E17="","",IF($E17=MAX($E$5:$E$54),1,IF($E17=$E16,$A16,COUNT($E$5:$E17))))) -> 11 | E17: 0 | G17: 0 | H17: 0 | J17: 0 | BF17: 13 | BG17: 0
A18: =IF(J$2="","",IF($E18="","",IF($E18=MAX($E$5:$E$54),1,IF($E18=$E17,$A17,COUNT($E$5:$E18))))) -> 11 | E18: 0 | G18: 0 | H18: 0 | J18: 0 | BF18: 14 | BG18: 0
A19: =IF(J$2="","",IF($E19="","",IF($E19=MAX($E$5:$E$54),1,IF($E19=$E18,$A18,COUNT($E$5:$E19))))) -> 11 | E19: 0 | G19: 0 | H19: 0 | J19: 0 | BF19: 15 | BG19: 0
A20: =IF(J$2="","",IF($E20="","",IF($E20=MAX($E$5:$E$54),1,IF($E20=$E19,$A19,COUNT($E$5:$E20))))) -> 11 | E20: 0 | G20: 0 | H20: 0 | J20: 0 | BF20: 16 | BG20: 0
A21: =IF(J$2="","",IF($E21="","",IF($E21=MAX($E$5:$E$54),1,IF($E21=$E20,$A20,COUNT($E$5:$E21))))) -> 11 | E21: 0 | G21: 0 | H21: 0 | J21: 0 | BF21: 17 | BG21: 0
A22: =IF(J$2="","",IF($E22="","",IF($E22=MAX($E$5:$E$54),1,IF($E22=$E21,$A21,COUNT($E$5:$E22))))) -> 11 | E22: 0 | G22: 0 | H22: 0 | J22: 0 | BF22: 18 | BG22: 0
A23: =IF(J$2="","",IF($E23="","",IF($E23=MAX($E$5:$E$54),1,IF($E23=$E22,$A22,COUNT($E$5:$E23))))) -> 11 | E23: 0 | G23: 0 | H23: 0 | J23: 0 | BF23: 19 | BG23: 0
A24: =IF(J$2="","",IF($E24="","",IF($E24=MAX($E$5:$E$54),1,IF($E24=$E23,$A23,COUNT($E$5:$E24))))) -> 11 | E24: 0 | G24: 0 | H24: 0 | J24: 0 | BF24: 20 | BG24: 0
A25: =IF(J$2="","",IF($E25="","",IF($E25=MAX($E$5:$E$54),1,IF($E25=$E24,$A24,COUNT($E$5:$E25))))) -> 11 | E25: 0 | G25: 0 | H25: 0 | J25: 0 | BF25: 21 | BG25: 0
A26: =IF(J$2="","",IF($E26="","",IF($E26=MAX($E$5:$E$54),1,IF($E26=$E25,$A25,COUNT($E$5:$E26))))) -> 11 | E26: 0 | G26: 0 | H26: 0 | J26: 0 | BF26: 22 | BG26: 0
A27: =IF(J$2="","",IF($E27="","",IF($E27=MAX($E$5:$E$54),1,IF($E27=$E26,$A26,COUNT($E$5:$E27))))) -> 11 | E27: 0 | G27: 0 | H27: 0 | J27: 0 | BF27: 23 | BG27: 0
A28: =IF(J$2="","",IF($E28="","",IF($E28=MAX($E$5:$E$54),1,IF($E28=$E27,$A27,COUNT($E$5:$E28))))) -> 11 | E28: 0 | G28: 0 | H28: 0 | J28: 0 | BF28: 24 | BG28: 0
A29: =IF(J$2="","",IF($E29="","",IF($E29=MAX($E$5:$E$54),1,IF($E29=$E28,$A28,COUNT($E$5:$E29))))) -> 11 | E29: 0 | G29: 0 | H29: 0 | J29: 0 | BF29: 25 | BG29: 0
A30: =IF(J$2="","",IF($E30="","",IF($E30=MAX($E$5:$E$54),1,IF($E30=$E29,$A29,COUNT($E$5:$E30))))) -> 11 | E30: 0 | G30: 0 | H30: 0 | J30: 0 | BF30: 26 | BG30: 0
A31: =IF(J$2="","",IF($E31="","",IF($E31=MAX($E$5:$E$54),1,IF($E31=$E30,$A30,COUNT($E$5:$E31))))) -> 11 | E31: 0 | G31: 0 | H31: 0 | J31: 0 | BF31: 27 | BG31: 0
A32: =IF(J$2="","",IF($E32="","",IF($E32=MAX($E$5:$E$54),1,IF($E32=$E31,$A31,COUNT($E$5:$E32))))) -> 11 | E32: 0 | G32: 0 | H32: 0 | J32: 0 | BF32: 28 | BG32: 0
A33: =IF(J$2="","",IF($E33="","",IF($E33=MAX($E$5:$E$54),1,IF($E33=$E32,$A32,COUNT($E$5:$E33))))) -> 11 | E33: 0 | G33: 0 | H33: 0 | J33: 0 | BF33: 29 | BG33: 0
A34: =IF(J$2="","",IF($E34="","",IF($E34=MAX($E$5:$E$54),1,IF($E34=$E33,$A33,COUNT($E$5:$E34))))) -> 11 | E34: 0 | G34: 0 | H34: 0 | J34: 0 | BF34: 30 | BG34: 0
A35: =IF(J$2="","",IF($E35="","",IF($E35=MAX($E$5:$E$54),1,IF($E35=$E34,$A34,COUNT($E$5:$E35))))) -> 11 | E35: 0 | G35: 0 | H35: 0 | J35: 0 | BF35: 31 | BG35: 0
A36: =IF(J$2="","",IF($E36="","",IF($E36=MAX($E$5:$E$54),1,IF($E36=$E35,$A35,COUNT($E$5:$E36))))) -> 11 | E36: 0 | G36: 0 | H36: 0 | J36: 0 | BF36: 32 | BG36: 0
A37: =IF(J$2="","",IF($E37="","",IF($E37=MAX($E$5:$E$54),1,IF($E37=$E36,$A36,COUNT($E$5:$E37))))) -> 11 | E37: 0 | G37: =IF(J$2="","",IF($J37=0,0,(H37*$C$3/$J$3)*50)) -> 0 | H37: =IF(J$2="","",IF(SUM($K37:$AX37)=0,0,SUM($K37:$AX37)+$I37)) -> 0 | J37: =IF(B37="",0,IF(SUM($K37:$AX37)=0,0,SUM($K37:$AX37))) -> 0 | BF37: 33 | BG37: 0
A38: =IF(J$2="","",IF($E38="","",IF($E38=MAX($E$5:$E$54),1,IF($E38=$E37,$A37,COUNT($E$5:$E38))))) -> 11 | E38: 0 | G38: 0 | H38: 0 | J38: 0 | BF38: 34 | BG38: 0
A39: =IF(J$2="","",IF($E39="","",IF($E39=MAX($E$5:$E$54),1,IF($E39=$E38,$A38,COUNT($E$5:$E39))))) -> 11 | E39: 0 | G39: 0 | H39: 0 | J39: 0 | BF39: 35 | BG39: 0
A40: =IF(J$2="","",IF($E40="","",IF($E40=MAX($E$5:$E$54),1,IF($E40=$E39,$A39,COUNT($E$5:$E40))))) -> 11 | E40: 0 | G40: 0 | H40: 0 | J40: 0 | BF40: 36 | BG40: 0
A41: =IF(J$2="","",IF($E41="","",IF($E41=MAX($E$5:$E$54),1,IF($E41=$E40,$A40,COUNT($E$5:$E41))))) -> 11 | E41: 0 | G41: 0 | H41: 0 | J41: 0 | BF41: 37 | BG41: 0
A42: =IF(J$2="","",IF($E42="","",IF($E42=MAX($E$5:$E$54),1,IF($E42=$E41,$A41,COUNT($E$5:$E42))))) -> 11 | E42: 0 | G42: 0 | H42: 0 | J42: 0 | BF42: 38 | BG42: 0
A43: =IF(J$2="","",IF($E43="","",IF($E43=MAX($E$5:$E$54),1,IF($E43=$E42,$A42,COUNT($E$5:$E43))))) -> 11 | E43: 0 | G43: 0 | H43: 0 | J43: 0 | BF43: 39 | BG43: 0
A44: =IF(J$2="","",IF($E44="","",IF($E44=MAX($E$5:$E$54),1,IF($E44=$E43,$A43,COUNT($E$5:$E44))))) -> 11 | E44: 0 | G44: 0 | H44: 0 | J44: 0 | BF44: 40 | BG44: 0
A45: =IF(J$2="","",IF($E45="","",IF($E45=MAX($E$5:$E$54),1,IF($E45=$E44,$A44,COUNT($E$5:$E45))))) -> 11 | E45: 0 | G45: 0 | H45: 0 | J45: 0 | BF45: 41 | BG45: 0
A46: =IF(J$2="","",IF($E46="","",IF($E46=MAX($E$5:$E$54),1,IF($E46=$E45,$A45,COUNT($E$5:$E46))))) -> 11 | E46: 0 | G46: 0 | H46: 0 | J46: 0 | BF46: 42 | BG46: 0
A47: =IF(J$2="","",IF($E47="","",IF($E47=MAX($E$5:$E$54),1,IF($E47=$E46,$A46,COUNT($E$5:$E47))))) -> 11 | E47: 0 | G47: 0 | H47: 0 | J47: 0 | BF47: 43 | BG47: 0
A48: =IF(J$2="","",IF($E48="","",IF($E48=MAX($E$5:$E$54),1,IF($E48=$E47,$A47,COUNT($E$5:$E48))))) -> 11 | E48: 0 | G48: 0 | H48: 0 | J48: 0 | BF48: 44 | BG48: 0
A49: =IF(J$2="","",IF($E49="","",IF($E49=MAX($E$5:$E$54),1,IF($E49=$E48,$A48,COUNT($E$5:$E49))))) -> 11 | E49: 0 | G49: 0 | H49: 0 | J49: 0 | BF49: 45 | BG49: 0
A50: =IF(J$2="","",IF($E50="","",IF($E50=MAX($E$5:$E$54),1,IF($E50=$E49,$A49,COUNT($E$5:$E50))))) -> 11 | E50: 0 | G50: 0 | H50: 0 | J50: 0 | BF50: 46 | BG50: 0
A51: =IF(J$2="","",IF($E51="","",IF($E51=MAX($E$5:$E$54),1,IF($E51=$E50,$A50,COUNT($E$5:$E51))))) -> 11 | E51: 0 | G51: 0 | H51: 0 | J51: 0 | BF51: 47 | BG51: 0
A52: =IF(J$2="","",IF($E52="","",IF($E52=MAX($E$5:$E$54),1,IF($E52=$E51,$A51,COUNT($E$5:$E52))))) -> 11 | E52: 0 | G52: 0 | H52: 0 | J52: 0 | BF52: 48 | BG52: 0
A53: =IF(J$2="","",IF($E53="","",IF($E53=MAX($E$5:$E$54),1,IF($E53=$E52,$A52,COUNT($E$5:$E53))))) ->  | G53: 0 | H53: 0 | J53: 0 | BF53: 49 | BG53: 0
A54: =IF(J$2="","",IF($E54="","",IF($E54=MAX($E$5:$E$54),1,IF($E54=$E53,$A53,COUNT($E$5:$E54))))) ->  | G54: 0 | H54: 0 | J54: 0 | BF54: 50 | BG54: 0
D59: punteggi % ordinati per # di coppia
B60: # coppia | E60: con zeri | F60: senza zeri | G60: senza zeri
B61: 1 | E61: 51.38888889 | F61: =IF(E61=0,"",E61) -> 51.38888889 | G61: 51.38888889 | BF61: 2 | BG61: -0.11
B62: 2 | E62: 42.36111111 | F62: 42.36111111 | G62: 42.36111111 | BF62: 1 | BG62: 0.54
B63: 3 | E63: 53.47222222 | F63: 53.47222222 | G63: 53.47222222 | I63: =IF(H63=0,"",H63) ->  | BF63: 10 | BG63: -2.57
B64: 4 | E64: 32.63888889 | F64: 32.63888889 | G64: 32.63888889 | BF64: 8 | BG64: 1.08
B65: 5 | E65: 51.38888889 | F65: 51.38888889 | G65: 51.38888889 | I65: =IF(H65=0,"",H65) ->  | BF65: 7 | BG65: -0.64
B66: 6 | E66: 47.91666667 | F66: 47.91666667 | G66: 47.91666667 | BF66: 6 | BG66: 1.28
B67: 7 | E67: 43.75 | F67: 43.75 | G67: 43.75 | BF67: 4 | BG67: -0.72
B68: 8 | E68: 54.16666667 | F68: 54.16666667 | G68: 54.16666667 | I68: =IF(H68=0,"",H68) ->  | BF68: 9 | BG68: -1.22
B69: 9 | E69: 59.72222222 | F69: 59.72222222 | G69: 59.72222222 | BF69: 3 | BG69: 1.03
B70: 10 | E70: 63.19444444 | F70: 63.19444444 | G70: 63.19444444 | I70: =IF(H70=0,"",H70) ->  | BF70: 5 | BG70: -1
E71: 0 | I71: =IF(H71=0,"",H71) ->  | BF71: 11 | BG71: 0.41
E72: 0 | BF72: 12 | BG72: 0
E73: 0 | I73: =IF(H73=0,"",H73) ->  | BF73: 13 | BG73: 0
E74: 0 | I74: =IF(H74=0,"",H74) ->  | BF74: 14 | BG74: 0
E75: 0 | I75: =IF(H75=0,"",H75) ->  | BF75: 15 | BG75: 0
E76: 0 | I76: =IF(H76=0,"",H76) ->  | BF76: 16 | BG76: 0
E77: 0 | BF77: 17 | BG77: 0
E78: 0 | BF78: 18 | BG78: 0
E79: 0 | I79: =IF(H79=0,"",H79) ->  | BF79: 19 | BG79: 0
E80: 0 | I80: =IF(H80=0,"",H80) ->  | BF80: 20 | BG80: 0
E81: 0 | BF81: 21 | BG81: 0
E82: 0 | BF82: 22 | BG82: 0
E83: 0 | BF83: 23 | BG83: 0
E84: 0 | BF84: 24 | BG84: 0
E85: 0 | BF85: 25 | BG85: 0
E86: 0 | BF86: 26 | BG86: 0
E87: 0 | BF87: 27 | BG87: 0
E88: 0 | BF88: 28 | BG88: 0
E89: 0 | BF89: 29 | BG89: 0
E90: 0 | BF90: 30 | BG90: 0
E91: 0 | BF91: 31 | BG91: 0
E92: 0 | BF92: 32 | BG92: 0
E93: 0 | F93: =IF(E93=0,"",E93) ->  | BF93: 33 | BG93: 0
E94: 0 | BF94: 34 | BG94: 0
E95: 0 | BF95: 35 | BG95: 0
E96: 0 | BF96: 36 | BG96: 0
E97: 0 | BF97: 37 | BG97: 0
E98: 0 | BF98: 38 | BG98: 0
E99: 0 | BF99: 39 | BG99: 0
E100: 0 | BF100: 40 | BG100: 0
E101: 0 | BF101: 41 | BG101: 0
E102: 0 | BF102: 42 | BG102: 0
E103: 0 | BF103: 43 | BG103: 0
E104: 0 | BF104: 44 | BG104: 0
E105: 0 | BF105: 45 | BG105: 0
E106: 0 | BF106: 46 | BG106: 0
E107: 0 | BF107: 47 | BG107: 0
E108: 0 | BF108: 48 | BG108: 0
E109: 0 | BF109: 49 | BG109: 0
E110: 0 | BF110: 50 | BG110: 0
A119: punteggi con handicap ordinati per numero standard di coppia base
B120: # coppia | E120: con zeri | F120: senza zeri | G120: senza zeri
B121: 2 | E121: 42.90111111 | F121: =IF(E121=0,"",E121) -> 42.90111111 | G121: 42.90111111 | BF121: 1 | BG121: 1.03
B122: 1 | E122: 51.27888889 | F122: 51.27888889 | G122: 51.27888889 | BF122: 2 | BG122: 1.08
B123: 9 | E123: 60.75222222 | F123: 60.75222222 | G123: 60.75222222 | BF123: 3 | BG123: 0.54
B124: 7 | E124: 43.03 | F124: 43.03 | G124: 43.03 | BF124: 4 | BG124: -1.22
B125: 10 | E125: 62.19444444 | F125: 62.19444444 | G125: 62.19444444 | BF125: 5 | BG125: -0.11
B126: 6 | E126: 49.19666667 | F126: 49.19666667 | G126: 49.19666667 | BF126: 6 | BG126: -0.72
B127: 5 | E127: 50.74888889 | F127: 50.74888889 | G127: 50.74888889 | I127: =IF(H127=0,"",H127) ->  | BF127: 7 | BG127: 1.28
B128: 4 | E128: 33.71888889 | F128: 33.71888889 | G128: 33.71888889 | I128: =IF(H128=0,"",H128) ->  | BF128: 8 | BG128: -1
B129: 8 | E129: 52.94666667 | F129: 52.94666667 | G129: 52.94666667 | BF129: 9 | BG129: -2.57
B130: 3 | E130: 50.90222222 | F130: 50.90222222 | G130: 50.90222222 | I130: =IF(H130=0,"",H130) ->  | BF130: 10 | BG130: -0.64
E131: 0 | BF131: 11 | BG131: 0.41

Sheet 13mag
A1: Data | C1: 2017-05-13 | D1: BridgeMania 2016-17 - Torneo Howell
A2: luogo | C2: Savoca | D2: Coppie Ctrl+e | E2: Calcola Ctr+f | F2: Duplica Ctrl+g | G2: Clear Ctrl+h | J2: &
A3: # coppie | C3: =IF(B5="","",COUNT(B5:B25)) -> 11 | E3: =IF(E5="","",SUMIF(E5:E25,">0")) -> 548.08 | G3: =IF(G5="","",SUM(G5:G25)) -> 550 | H3: =IF(H5="","",SUM(H5:H25)) -> 968 | I3: =SUM(I5:I25) -> 0 | J3: =SUM(J5:J25) -> 968 | K3: =SUM(K5:K25) -> 44 | L3: =SUM(L5:L25) -> 44 | M3: 44 | N3: 44 | O3: 44 | P3: 44 | Q3: 44 | R3: 44 | S3: 44 | T3: 44 | U3: 44 | V3: 44 | W3: 44 | X3: 44 | Y3: 44 | Z3: 44 | AA3: 44 | AB3: 44 | AC3: 44 | AD3: 44 | AE3: 44 | AF3: 44 | AG3: 0 | AH3: 0 | AI3: 0 | AJ3: 0 | AK3: 0 | AL3: 0 | AM3: 0 | AN3: 0 | AO3: 0 | AP3: 0 | AQ3: 0 | AR3: 0 | AS3: 0 | AT3: 0 | AU3: 0 | AV3: 0 | AW3: 0 | AX3: 0
A4: Class. | B4: # | C4: Coppie | E4: Punteggio Serata | F4: Handicap | G4: Punteggio % | H4: Punteggio Torneo | I4: Penalità (-) | J4: Totale punti mano | K4: 1 | L4: 2 | M4: 3 | N4: 4 | O4: 5 | P4: 6 | Q4: 7 | R4: 8 | S4: 9 | T4: 10 | U4: 11 | V4: 12 | W4: 13 | X4: 14 | Y4: 15 | Z4: 16 | AA4: 17 | AB4: 18 | AC4: 19 | AD4: 20 | AE4: 21 | AF4: 22 | AG4: 23 | AH4: 24 | AI4: 25 | AJ4: 26 | AK4: 27 | AL4: 28 | AM4: 29 | AN4: 30 | AO4: 31 | AP4: 32 | AQ4: 33 | AR4: 34 | AS4: 35 | AT4: 36 | AU4: 37 | AV4: 38 | AW4: 39 | AX4: 40 | BF4: coppia | BG4: handicap
A5: =IF(J$2="","",IF($E5="","",IF($E5=MAX($E$5:$E$54),1,IF($E5=$E4,$A4,COUNT($E$5:$E5))))) -> 1 | B5: 2 | C5: Cesarina | D5: Gaetano | E5: =IF(J$2="","",IF(G5=0,0,F5+G5)) -> 58.41636364 | F5: =IF(C5="","",IF(BG5=0,0,BG5)) -> 1.03 | G5: =IF(J$2="","",IF($J5=0,0,(H5*$C$3/$J$3)*50)) -> 57.38636364 | H5: =IF(J$2="","",IF(SUM($K5:$AX5)=0,0,SUM($K5:$AX5)+$I5)) -> 101 | J5: =IF(B5="",0,IF(SUM($K5:$AX5)=0,0,SUM($K5:$AX5))) -> 101 | K5: 6 | L5: 8 | M5: 4 | N5: 4 | O5: 2 | P5: 4 | Q5: 4 | R5: 4 | S5: 6 | T5: 7 | U5: 7 | V5: 0 | W5: 0 | X5: 4 | Y5: 5 | Z5: 8 | AA5: 7 | AB5: 4 | AC5: 2 | AD5: 7 | AE5: 3 | AF5: 5 | BF5: 3 | BG5: 1.03
A6: =IF(J$2="","",IF($E6="","",IF($E6=MAX($E$5:$E$54),1,IF($E6=$E5,$A5,COUNT($E$5:$E6))))) -> 2 | B6: 9 | C6: Elena | D6: Stefano | E6: 55.53 | F6: -0.72 | G6: 56.25 | H6: 99 | J6: 99 | K6: 7 | L6: 6 | M6: 0 | N6: 3 | O6: 4 | P6: 0 | Q6: 4 | R6: 8 | S6: 4 | T6: 6 | U6: 4 | V6: 1 | W6: 8 | X6: 8 | Y6: 2 | Z6: 6 | AA6: 4 | AB6: 4 | AC6: 6 | AD6: 6 | AE6: 5 | AF6: 3 | BF6: 4 | BG6: -0.72
A7: =IF(J$2="","",IF($E7="","",IF($E7=MAX($E$5:$E$54),1,IF($E7=$E6,$A6,COUNT($E$5:$E7))))) -> 3 | B7: 6 | C7: Tatiana | D7: Julio | E7: 52.11454545 | F7: 0.41 | G7: 51.70454545 | H7: 91 | J7: 91 | K7: 6 | L7: 4 | M7: 8 | N7: 5 | O7: 2 | P7: 4 | Q7: 4 | R7: 4 | S7: 0 | T7: 8 | U7: 4 | V7: 4 | W7: 2 | X7: 6 | Y7: 8 | Z7: 3 | AA7: 5 | AB7: 4 | AC7: 1 | AD7: 1 | AE7: 3 | AF7: 5 | BF7: 11 | BG7: 0.41
A8: =IF(J$2="","",IF($E8="","",IF($E8=MAX($E$5:$E$54),1,IF($E8=$E7,$A7,COUNT($E$5:$E8))))) -> 4 | B8: 8 | C8: Olimpia | D8: Sauro | E8: 51.08 | F8: 1.08 | G8: 50 | H8: 88 | J8: 88 | K8: 7 | L8: 2 | M8: 4 | N8: 3 | O8: 4 | P8: 8 | Q8: 0 | R8: 1 | S8: 2 | T8: 1 | U8: 7 | V8: 3 | W8: 6 | X8: 2 | Y8: 4 | Z8: 4 | AA8: 8 | AB8: 0 | AC8: 7 | AD8: 2 | AE8: 8 | AF8: 5 | BF8: 8 | BG8: 1.08
A9: =IF(J$2="","",IF($E9="","",IF($E9=MAX($E$5:$E$54),1,IF($E9=$E8,$A8,COUNT($E$5:$E9))))) -> 5 | B9: 1 | C9: Lilli | D9: Gianni | E9: 49.00727273 | F9: 1.28 | G9: 47.72727273 | H9: 84 | J9: 84 | K9: 4 | L9: 4 | M9: 4 | N9: 8 | O9: 0 | P9: 4 | Q9: 0 | R9: 7 | S9: 4 | T9: 2 | U9: 1 | V9: 7 | W9: 8 | X9: 4 | Y9: 0 | Z9: 0 | AA9: 3 | AB9: 4 | AC9: 1 | AD9: 6 | AE9: 5 | AF9: 8 | BF9: 6 | BG9: 1.28
A10: =IF(J$2="","",IF($E10="","",IF($E10=MAX($E$5:$E$54),1,IF($E10=$E9,$A9,COUNT($E$5:$E10))))) -> 6 | B10: 7 | C10: Barbara | D10: Elio | E10: 48.18545455 | F10: -0.11 | G10: 48.29545455 | H10: 85 | J10: 85 | K10: 2 | L10: 4 | M10: 4 | N10: 5 | O10: 8 | P10: 0 | Q10: 8 | R10: 1 | S10: 0 | T10: 7 | U10: 7 | V10: 5 | W10: 4 | X10: 4 | Y10: 6 | Z10: 2 | AA10: 3 | AB10: 0 | AC10: 6 | AD10: 1 | AE10: 3 | AF10: 5 | BF10: 2 | BG10: -0.11
A11: =IF(J$2="","",IF($E11="","",IF($E11=MAX($E$5:$E$54),1,IF($E11=$E10,$A10,COUNT($E$5:$E11))))) -> 7 | B11: 11 | C11: Stefania | D11: Massimo | E11: 47.99818182 | F11: -2.57 | G11: 50.56818182 | H11: 89 | J11: 89 | K11: 2 | L11: 0 | M11: 4 | N11: 2 | O11: 6 | P11: 4 | Q11: 8 | R11: 7 | S11: 2 | T11: 4 | U11: 7 | V11: 1 | W11: 2 | X11: 7 | Y11: 5 | Z11: 3 | AA11: 5 | AB11: 8 | AC11: 2 | AD11: 2 | AE11: 4 | AF11: 4 | BF11: 10 | BG11: -2.57
A12: =IF(J$2="","",IF($E12="","",IF($E12=MAX($E$5:$E$54),1,IF($E12=$E11,$A11,COUNT($E$5:$E12))))) -> 8 | B12: 3 | C12: Isolde | D12: Letizia | E12: 47.86363636 | F12: -1 | G12: 48.86363636 | H12: 86 | J12: 86 | K12: 2 | L12: 8 | M12: 4 | N12: 0 | O12: 4 | P12: 4 | Q12: 4 | R12: 2 | S12: 8 | T12: 1 | U12: 4 | V12: 7 | W12: 6 | X12: 1 | Y12: 3 | Z12: 0 | AA12: 7 | AB12: 4 | AC12: 7 | AD12: 7 | AE12: 0 | AF12: 3 | BF12: 5 | BG12: -1
A13: =IF(J$2="","",IF($E13="","",IF($E13=MAX($E$5:$E$54),1,IF($E13=$E12,$A12,COUNT($E$5:$E13))))) -> 9 | B13: 4 | C13: Antonella | D13: Dino | E13: 47.69909091 | F13: 0.54 | G13: 47.15909091 | H13: 83 | J13: 83 | K13: 1 | L13: 2 | M13: 4 | N13: 6 | O13: 6 | P13: 4 | Q13: 4 | R13: 4 | S13: 8 | T13: 0 | U13: 1 | V13: 5 | W13: 4 | X13: 1 | Y13: 8 | Z13: 8 | AA13: 1 | AB13: 4 | AC13: 2 | AD13: 2 | AE13: 5 | AF13: 3 | BF13: 1 | BG13: 0.54
A14: =IF(J$2="","",IF($E14="","",IF($E14=MAX($E$5:$E$54),1,IF($E14=$E13,$A13,COUNT($E$5:$E14))))) -> 10 | B14: 5 | C14: Renata | D14: Sandro | E14: 45.37090909 | F14: -1.22 | G14: 46.59090909 | H14: 82 | J14: 82 | K14: 1 | L14: 6 | M14: 0 | N14: 8 | O14: 8 | P14: 4 | Q14: 4 | R14: 6 | S14: 4 | T14: 4 | U14: 1 | V14: 3 | W14: 0 | X14: 0 | Y14: 3 | Z14: 5 | AA14: 1 | AB14: 4 | AC14: 6 | AD14: 6 | AE14: 5 | AF14: 3 | BF14: 9 | BG14: -1.22
A15: =IF(J$2="","",IF($E15="","",IF($E15=MAX($E$5:$E$54),1,IF($E15=$E14,$A14,COUNT($E$5:$E15))))) -> 11 | B15: 10 | C15: Manuela | D15: Roberto | E15: 44.81454545 | F15: -0.64 | G15: 45.45454545 | H15: 80 | J15: 80 | K15: 6 | L15: 0 | M15: 8 | N15: 0 | O15: 0 | P15: 8 | Q15: 4 | R15: 0 | S15: 6 | T15: 4 | U15: 1 | V15: 8 | W15: 4 | X15: 7 | Y15: 0 | Z15: 5 | AA15: 0 | AB15: 8 | AC15: 4 | AD15: 4 | AE15: 3 | AF15: 0 | BF15: 7 | BG15: -0.64
A16: =IF(J$2="","",IF($E16="","",IF($E16=MAX($E$5:$E$54),1,IF($E16=$E15,$A15,COUNT($E$5:$E16))))) -> 12 | E16: 0 | G16: 0 | H16: 0 | J16: 0 | BF16: 12 | BG16: 0
A17: =IF(J$2="","",IF($E17="","",IF($E17=MAX($E$5:$E$54),1,IF($E17=$E16,$A16,COUNT($E$5:$E17))))) -> 12 | E17: 0 | G17: 0 | H17: 0 | J17: 0 | BF17: 13 | BG17: 0
A18: =IF(J$2="","",IF($E18="","",IF($E18=MAX($E$5:$E$54),1,IF($E18=$E17,$A17,COUNT($E$5:$E18))))) -> 12 | E18: 0 | G18: 0 | H18: 0 | J18: 0 | BF18: 14 | BG18: 0
A19: =IF(J$2="","",IF($E19="","",IF($E19=MAX($E$5:$E$54),1,IF($E19=$E18,$A18,COUNT($E$5:$E19))))) -> 12 | E19: 0 | G19: 0 | H19: 0 | J19: 0 | BF19: 15 | BG19: 0
A20: =IF(J$2="","",IF($E20="","",IF($E20=MAX($E$5:$E$54),1,IF($E20=$E19,$A19,COUNT($E$5:$E20))))) -> 12 | E20: 0 | G20: 0 | H20: 0 | J20: 0 | BF20: 16 | BG20: 0
A21: =IF(J$2="","",IF($E21="","",IF($E21=MAX($E$5:$E$54),1,IF($E21=$E20,$A20,COUNT($E$5:$E21))))) -> 12 | E21: 0 | G21: 0 | H21: 0 | J21: 0 | BF21: 17 | BG21: 0
A22: =IF(J$2="","",IF($E22="","",IF($E22=MAX($E$5:$E$54),1,IF($E22=$E21,$A21,COUNT($E$5:$E22))))) -> 12 | E22: 0 | G22: 0 | H22: 0 | J22: 0 | BF22: 18 | BG22: 0
A23: =IF(J$2="","",IF($E23="","",IF($E23=MAX($E$5:$E$54),1,IF($E23=$E22,$A22,COUNT($E$5:$E23))))) -> 12 | E23: 0 | G23: 0 | H23: 0 | J23: 0 | BF23: 19 | BG23: 0
A24: =IF(J$2="","",IF($E24="","",IF($E24=MAX($E$5:$E$54),1,IF($E24=$E23,$A23,COUNT($E$5:$E24))))) -> 12 | E24: 0 | G24: 0 | H24: 0 | J24: 0 | BF24: 20 | BG24: 0
A25: =IF(J$2="","",IF($E25="","",IF($E25=MAX($E$5:$E$54),1,IF($E25=$E24,$A24,COUNT($E$5:$E25))))) -> 12 | E25: 0 | G25: 0 | H25: 0 | J25: 0 | BF25: 21 | BG25: 0
A26: =IF(J$2="","",IF($E26="","",IF($E26=MAX($E$5:$E$54),1,IF($E26=$E25,$A25,COUNT($E$5:$E26))))) -> 12 | E26: 0 | G26: 0 | H26: 0 | J26: 0 | BF26: 22 | BG26: 0
A27: =IF(J$2="","",IF($E27="","",IF($E27=MAX($E$5:$E$54),1,IF($E27=$E26,$A26,COUNT($E$5:$E27))))) -> 12 | E27: 0 | G27: 0 | H27: 0 | J27: 0 | BF27: 23 | BG27: 0
A28: =IF(J$2="","",IF($E28="","",IF($E28=MAX($E$5:$E$54),1,IF($E28=$E27,$A27,COUNT($E$5:$E28))))) -> 12 | E28: 0 | G28: 0 | H28: 0 | J28: 0 | BF28: 24 | BG28: 0
A29: =IF(J$2="","",IF($E29="","",IF($E29=MAX($E$5:$E$54),1,IF($E29=$E28,$A28,COUNT($E$5:$E29))))) -> 12 | E29: 0 | G29: 0 | H29: 0 | J29: 0 | BF29: 25 | BG29: 0
A30: =IF(J$2="","",IF($E30="","",IF($E30=MAX($E$5:$E$54),1,IF($E30=$E29,$A29,COUNT($E$5:$E30))))) -> 12 | E30: 0 | G30: 0 | H30: 0 | J30: 0 | BF30: 26 | BG30: 0
A31: =IF(J$2="","",IF($E31="","",IF($E31=MAX($E$5:$E$54),1,IF($E31=$E30,$A30,COUNT($E$5:$E31))))) -> 12 | E31: 0 | G31: 0 | H31: 0 | J31: 0 | BF31: 27 | BG31: 0
A32: =IF(J$2="","",IF($E32="","",IF($E32=MAX($E$5:$E$54),1,IF($E32=$E31,$A31,COUNT($E$5:$E32))))) -> 12 | E32: 0 | G32: 0 | H32: 0 | J32: 0 | BF32: 28 | BG32: 0
A33: =IF(J$2="","",IF($E33="","",IF($E33=MAX($E$5:$E$54),1,IF($E33=$E32,$A32,COUNT($E$5:$E33))))) -> 12 | E33: 0 | G33: 0 | H33: 0 | J33: 0 | BF33: 29 | BG33: 0
A34: =IF(J$2="","",IF($E34="","",IF($E34=MAX($E$5:$E$54),1,IF($E34=$E33,$A33,COUNT($E$5:$E34))))) -> 12 | E34: 0 | G34: 0 | H34: 0 | J34: 0 | BF34: 30 | BG34: 0
A35: =IF(J$2="","",IF($E35="","",IF($E35=MAX($E$5:$E$54),1,IF($E35=$E34,$A34,COUNT($E$5:$E35))))) -> 12 | E35: 0 | G35: 0 | H35: 0 | J35: 0 | BF35: 31 | BG35: 0
A36: =IF(J$2="","",IF($E36="","",IF($E36=MAX($E$5:$E$54),1,IF($E36=$E35,$A35,COUNT($E$5:$E36))))) -> 12 | E36: 0 | G36: 0 | H36: 0 | J36: 0 | BF36: 32 | BG36: 0
A37: =IF(J$2="","",IF($E37="","",IF($E37=MAX($E$5:$E$54),1,IF($E37=$E36,$A36,COUNT($E$5:$E37))))) -> 12 | E37: 0 | G37: =IF(J$2="","",IF($J37=0,0,(H37*$C$3/$J$3)*50)) -> 0 | H37: =IF(J$2="","",IF(SUM($K37:$AX37)=0,0,SUM($K37:$AX37)+$I37)) -> 0 | J37: =IF(B37="",0,IF(SUM($K37:$AX37)=0,0,SUM($K37:$AX37))) -> 0 | BF37: 33 | BG37: 0
A38: =IF(J$2="","",IF($E38="","",IF($E38=MAX($E$5:$E$54),1,IF($E38=$E37,$A37,COUNT($E$5:$E38))))) -> 12 | E38: 0 | G38: 0 | H38: 0 | J38: 0 | BF38: 34 | BG38: 0
A39: =IF(J$2="","",IF($E39="","",IF($E39=MAX($E$5:$E$54),1,IF($E39=$E38,$A38,COUNT($E$5:$E39))))) -> 12 | E39: 0 | G39: 0 | H39: 0 | J39: 0 | BF39: 35 | BG39: 0
A40: =IF(J$2="","",IF($E40="","",IF($E40=MAX($E$5:$E$54),1,IF($E40=$E39,$A39,COUNT($E$5:$E40))))) -> 12 | E40: 0 | G40: 0 | H40: 0 | J40: 0 | BF40: 36 | BG40: 0
A41: =IF(J$2="","",IF($E41="","",IF($E41=MAX($E$5:$E$54),1,IF($E41=$E40,$A40,COUNT($E$5:$E41))))) -> 12 | E41: 0 | G41: 0 | H41: 0 | J41: 0 | BF41: 37 | BG41: 0
A42: =IF(J$2="","",IF($E42="","",IF($E42=MAX($E$5:$E$54),1,IF($E42=$E41,$A41,COUNT($E$5:$E42))))) -> 12 | E42: 0 | G42: 0 | H42: 0 | J42: 0 | BF42: 38 | BG42: 0
A43: =IF(J$2="","",IF($E43="","",IF($E43=MAX($E$5:$E$54),1,IF($E43=$E42,$A42,COUNT($E$5:$E43))))) -> 12 | E43: 0 | G43: 0 | H43: 0 | J43: 0 | BF43: 39 | BG43: 0
A44: =IF(J$2="","",IF($E44="","",IF($E44=MAX($E$5:$E$54),1,IF($E44=$E43,$A43,COUNT($E$5:$E44))))) -> 12 | E44: 0 | G44: 0 | H44: 0 | J44: 0 | BF44: 40 | BG44: 0
A45: =IF(J$2="","",IF($E45="","",IF($E45=MAX($E$5:$E$54),1,IF($E45=$E44,$A44,COUNT($E$5:$E45))))) -> 12 | E45: 0 | G45: 0 | H45: 0 | J45: 0 | BF45: 41 | BG45: 0
A46: =IF(J$2="","",IF($E46="","",IF($E46=MAX($E$5:$E$54),1,IF($E46=$E45,$A45,COUNT($E$5:$E46))))) -> 12 | E46: 0 | G46: 0 | H46: 0 | J46: 0 | BF46: 42 | BG46: 0
A47: =IF(J$2="","",IF($E47="","",IF($E47=MAX($E$5:$E$54),1,IF($E47=$E46,$A46,COUNT($E$5:$E47))))) -> 12 | E47: 0 | G47: 0 | H47: 0 | J47: 0 | BF47: 43 | BG47: 0
A48: =IF(J$2="","",IF($E48="","",IF($E48=MAX($E$5:$E$54),1,IF($E48=$E47,$A47,COUNT($E$5:$E48))))) -> 12 | E48: 0 | G48: 0 | H48: 0 | J48: 0 | BF48: 44 | BG48: 0
A49: =IF(J$2="","",IF($E49="","",IF($E49=MAX($E$5:$E$54),1,IF($E49=$E48,$A48,COUNT($E$5:$E49))))) -> 12 | E49: 0 | G49: 0 | H49: 0 | J49: 0 | BF49: 45 | BG49: 0
A50: =IF(J$2="","",IF($E50="","",IF($E50=MAX($E$5:$E$54),1,IF($E50=$E49,$A49,COUNT($E$5:$E50))))) -> 12 | E50: 0 | G50: 0 | H50: 0 | J50: 0 | BF50: 46 | BG50: 0
A51: =IF(J$2="","",IF($E51="","",IF($E51=MAX($E$5:$E$54),1,IF($E51=$E50,$A50,COUNT($E$5:$E51))))) -> 12 | E51: 0 | G51: 0 | H51: 0 | J51: 0 | BF51: 47 | BG51: 0
A52: =IF(J$2="","",IF($E52="","",IF($E52=MAX($E$5:$E$54),1,IF($E52=$E51,$A51,COUNT($E$5:$E52))))) -> 12 | E52: 0 | G52: 0 | H52: 0 | J52: 0 | BF52: 48 | BG52: 0
A53: =IF(J$2="","",IF($E53="","",IF($E53=MAX($E$5:$E$54),1,IF($E53=$E52,$A52,COUNT($E$5:$E53))))) ->  | G53: 0 | H53: 0 | J53: 0 | BF53: 49 | BG53: 0
A54: =IF(J$2="","",IF($E54="","",IF($E54=MAX($E$5:$E$54),1,IF($E54=$E53,$A53,COUNT($E$5:$E54))))) ->  | G54: 0 | H54: 0 | J54: 0 | BF54: 50 | BG54: 0
D59: punteggi % ordinati per # di coppia
B60: # coppia | E60: con zeri | F60: senza zeri | G60: senza zeri
B61: 1 | E61: 47.72727273 | F61: =IF(E61=0,"",E61) -> 47.72727273 | G61: 47.72727273 | BF61: 6 | BG61: 1.28
B62: 2 | E62: 57.38636364 | F62: 57.38636364 | G62: 57.38636364 | BF62: 3 | BG62: 1.03
B63: 3 | E63: 48.86363636 | F63: 48.86363636 | G63: 48.86363636 | I63: =IF(H63=0,"",H63) ->  | BF63: 5 | BG63: -1
B64: 4 | E64: 47.15909091 | F64: 47.15909091 | G64: 47.15909091 | BF64: 1 | BG64: 0.54
B65: 5 | E65: 46.59090909 | F65: 46.59090909 | G65: 46.59090909 | I65: =IF(H65=0,"",H65) ->  | BF65: 9 | BG65: -1.22
B66: 6 | E66: 51.70454545 | F66: 51.70454545 | G66: 51.70454545 | BF66: 11 | BG66: 0.41
B67: 7 | E67: 48.29545455 | F67: 48.29545455 | G67: 48.29545455 | BF67: 2 | BG67: -0.11
B68: 8 | E68: 50 | F68: 50 | G68: 50 | I68: =IF(H68=0,"",H68) ->  | BF68: 8 | BG68: 1.08
B69: 9 | E69: 56.25 | F69: 56.25 | G69: 56.25 | BF69: 4 | BG69: -0.72
B70: 10 | E70: 45.45454545 | F70: 45.45454545 | G70: 45.45454545 | I70: =IF(H70=0,"",H70) ->  | BF70: 7 | BG70: -0.64
B71: 11 | E71: 50.56818182 | F71: 50.56818182 | G71: 50.56818182 | I71: =IF(H71=0,"",H71) ->  | BF71: 10 | BG71: -2.57
E72: 0 | BF72: 12 | BG72: 0
E73: 0 | I73: =IF(H73=0,"",H73) ->  | BF73: 13 | BG73: 0
E74: 0 | I74: =IF(H74=0,"",H74) ->  | BF74: 14 | BG74: 0
E75: 0 | I75: =IF(H75=0,"",H75) ->  | BF75: 15 | BG75: 0
E76: 0 | I76: =IF(H76=0,"",H76) ->  | BF76: 16 | BG76: 0
E77: 0 | BF77: 17 | BG77: 0
E78: 0 | BF78: 18 | BG78: 0
E79: 0 | I79: =IF(H79=0,"",H79) ->  | BF79: 19 | BG79: 0
E80: 0 | I80: =IF(H80=0,"",H80) ->  | BF80: 20 | BG80: 0
E81: 0 | BF81: 21 | BG81: 0
E82: 0 | BF82: 22 | BG82: 0
E83: 0 | BF83: 23 | BG83: 0
E84: 0 | BF84: 24 | BG84: 0
E85: 0 | BF85: 25 | BG85: 0
E86: 0 | BF86: 26 | BG86: 0
E87: 0 | BF87: 27 | BG87: 0
E88: 0 | BF88: 28 | BG88: 0
E89: 0 | BF89: 29 | BG89: 0
E90: 0 | BF90: 30 | BG90: 0
E91: 0 | BF91: 31 | BG91: 0
E92: 0 | BF92: 32 | BG92: 0
E93: 0 | F93: =IF(E93=0,"",E93) ->  | BF93: 33 | BG93: 0
E94: 0 | BF94: 34 | BG94: 0
E95: 0 | BF95: 35 | BG95: 0
E96: 0 | BF96: 36 | BG96: 0
E97: 0 | BF97: 37 | BG97: 0
E98: 0 | BF98: 38 | BG98: 0
E99: 0 | BF99: 39 | BG99: 0
E100: 0 | BF100: 40 | BG100: 0
E101: 0 | BF101: 41 | BG101: 0
E102: 0 | BF102: 42 | BG102: 0
E103: 0 | BF103: 43 | BG103: 0
E104: 0 | BF104: 44 | BG104: 0
E105: 0 | BF105: 45 | BG105: 0
E106: 0 | BF106: 46 | BG106: 0
E107: 0 | BF107: 47 | BG107: 0
E108: 0 | BF108: 48 | BG108: 0
E109: 0 | BF109: 49 | BG109: 0
E110: 0 | BF110: 50 | BG110: 0
A119: punteggi con handicap ordinati per numero standard di coppia base
B120: # coppia | E120: con zeri | F120: senza zeri | G120: senza zeri
B121: 4 | E121: 47.69909091 | F121: =IF(E121=0,"",E121) -> 47.69909091 | G121: 47.69909091 | BF121: 1 | BG121: -0.72
B122: 7 | E122: 48.18545455 | F122: 48.18545455 | G122: 48.18545455 | BF122: 2 | BG122: 0.41
B123: 2 | E123: 58.41636364 | F123: 58.41636364 | G123: 58.41636364 | I123: =IF(H123=0,"",H123) ->  | BF123: 3 | BG123: 1.28
B124: 9 | E124: 55.53 | F124: 55.53 | G124: 55.53 | I124: =IF(H124=0,"",H124) ->  | BF124: 4 | BG124: 1.03
B125: 3 | E125: 47.86363636 | F125: 47.86363636 | G125: 47.86363636 | I125: =IF(H125=0,"",H125) ->  | BF125: 5 | BG125: 1.08
B126: 1 | E126: 49.00727273 | F126: 49.00727273 | G126: 49.00727273 | BF126: 6 | BG126: -1.22
B127: 10 | E127: 44.81454545 | F127: 44.81454545 | G127: 44.81454545 | BF127: 7 | BG127: -2.57
B128: 8 | E128: 51.08 | F128: 51.08 | G128: 51.08 | BF128: 8 | BG128: 0.54
B129: 5 | E129: 45.37090909 | F129: 45.37090909 | G129: 45.37090909 | BF129: 9 | BG129: -0.64
B130: 11 | E130: 47.99818182 | F130: 47.99818182 | G130: 47.99818182 | BF130: 10 | BG130: -0.11
B131: 6 | E131: 52.11454545 | F131: 52.11454545 | G131: 52.11454545 | BF131: 11 | BG131: -1

Sheet 29apr
A1: Data | C1: 2017-04-29 | D1: BridgeMania 2016-17 - Torneo Howell
A2: luogo | C2: Bancilhon | D2: Coppie Ctrl+e | E2: Calcola Ctr+f | F2: Duplica Ctrl+g | G2: Clear Ctrl+h | J2: &
A3: # coppie | C3: =IF(B5="","",COUNT(B5:B25)) -> 8 | E3: =IF(E5="","",SUMIF(E5:E25,">0")) -> 403.59 | G3: =IF(G5="","",SUM(G5:G25)) -> 400 | H3: =IF(H5="","",SUM(H5:H25)) -> 504 | I3: =SUM(I5:I25) -> 0 | J3: =SUM(J5:J25) -> 504 | K3: =SUM(K5:K25) -> 24 | L3: =SUM(L5:L25) -> 24 | M3: 24 | N3: 24 | O3: 24 | P3: 24 | Q3: 24 | R3: 24 | S3: 24 | T3: 24 | U3: 24 | V3: 24 | W3: 24 | X3: 24 | Y3: 24 | Z3: 24 | AA3: 24 | AB3: 24 | AC3: 24 | AD3: 24 | AE3: 24 | AF3: 0 | AG3: 0 | AH3: 0 | AI3: 0 | AJ3: 0 | AK3: 0 | AL3: 0 | AM3: 0 | AN3: 0 | AO3: 0 | AP3: 0 | AQ3: 0 | AR3: 0 | AS3: 0 | AT3: 0 | AU3: 0 | AV3: 0 | AW3: 0 | AX3: 0
A4: Class. | B4: # | C4: Coppie | E4: Punteggio Serata | F4: Handicap | G4: Punteggio % | H4: Punteggio Torneo | I4: Penalità (-) | J4: Totale punti mano | K4: 1 | L4: 2 | M4: 3 | N4: 4 | O4: 5 | P4: 6 | Q4: 7 | R4: 8 | S4: 9 | T4: 10 | U4: 11 | V4: 12 | W4: 13 | X4: 14 | Y4: 15 | Z4: 16 | AA4: 17 | AB4: 18 | AC4: 19 | AD4: 20 | AE4: 21 | AF4: 22 | AG4: 23 | AH4: 24 | AI4: 25 | AJ4: 26 | AK4: 27 | AL4: 28 | AM4: 29 | AN4: 30 | AO4: 31 | AP4: 32 | AQ4: 33 | AR4: 34 | AS4: 35 | AT4: 36 | AU4: 37 | AV4: 38 | AW4: 39 | AX4: 40 | BF4: coppia | BG4: handicap
A5: =IF(J$2="","",IF($E5="","",IF($E5=MAX($E$5:$E$54),1,IF($E5=$E4,$A4,COUNT($E$5:$E5))))) -> 1 | B5: 1 | C5: Barbara | D5: Elio | E5: =IF(J$2="","",IF(G5=0,0,F5+G5)) -> 66.55666667 | F5: =IF(C5="","",IF(BG5=0,0,BG5)) -> -0.11 | G5: =IF(J$2="","",IF($J5=0,0,(H5*$C$3/$J$3)*50)) -> 66.66666667 | H5: =IF(J$2="","",IF(SUM($K5:$AX5)=0,0,SUM($K5:$AX5)+$I5)) -> 84 | J5: =IF(B5="",0,IF(SUM($K5:$AX5)=0,0,SUM($K5:$AX5))) -> 84 | K5: 3 | L5: 4 | M5: 4 | N5: 3 | O5: 3 | P5: 4 | Q5: 5 | R5: 6 | S5: 0 | T5: 6 | U5: 6 | V5: 5 | W5: 6 | X5: 1 | Y5: 5 | Z5: 3 | AA5: 5 | AB5: 4 | AC5: 4 | AD5: 3 | AE5: 4 | BF5: 2 | BG5: -0.11
A6: =IF(J$2="","",IF($E6="","",IF($E6=MAX($E$5:$E$54),1,IF($E6=$E5,$A5,COUNT($E$5:$E6))))) -> 2 | B6: 3 | C6: Lilli | D6: Gianni | E6: 56.04190476 | F6: 1.28 | G6: 54.76190476 | H6: 69 | J6: 69 | K6: 3 | L6: 5 | M6: 4 | N6: 3 | O6: 0 | P6: 2 | Q6: 5 | R6: 3 | S6: 4 | T6: 3 | U6: 4 | V6: 5 | W6: 4 | X6: 0 | Y6: 4 | Z6: 6 | AA6: 5 | AB6: 2 | AC6: 2 | AD6: 3 | AE6: 2 | BF6: 6 | BG6: 1.28
A7: =IF(J$2="","",IF($E7="","",IF($E7=MAX($E$5:$E$54),1,IF($E7=$E6,$A6,COUNT($E$5:$E7))))) -> 3 | B7: 8 | C7: Manuela | D7: Roberto | E7: 52.53460317 | F7: -0.64 | G7: 53.17460317 | H7: 67 | J7: 67 | K7: 3 | L7: 2 | M7: 2 | N7: 6 | O7: 3 | P7: 2 | Q7: 1 | R7: 3 | S7: 2 | T7: 6 | U7: 4 | V7: 5 | W7: 6 | X7: 2 | Y7: 6 | Z7: 6 | AA7: 1 | AB7: 0 | AC7: 2 | AD7: 3 | AE7: 2 | BF7: 7 | BG7: -0.64
A8: =IF(J$2="","",IF($E8="","",IF($E8=MAX($E$5:$E$54),1,IF($E8=$E7,$A7,COUNT($E$5:$E8))))) -> 4 | B8: 4 | C8: Tatiana | D8: Julio | E8: 48.82269841 | F8: 0.41 | G8: 48.41269841 | H8: 61 | J8: 61 | K8: 6 | L8: 6 | M8: 0 | N8: 3 | O8: 3 | P8: 2 | Q8: 5 | R8: 0 | S8: 6 | T8: 0 | U8: 2 | V8: 1 | W8: 4 | X8: 1 | Y8: 5 | Z8: 0 | AA8: 1 | AB8: 4 | AC8: 6 | AD8: 6 | AE8: 0 | BF8: 11 | BG8: 0.41
A9: =IF(J$2="","",IF($E9="","",IF($E9=MAX($E$5:$E$54),1,IF($E9=$E8,$A8,COUNT($E$5:$E9))))) -> 5 | B9: 7 | C9: Antonella | D9: Dino | E9: 48.15904762 | F9: 0.54 | G9: 47.61904762 | H9: 60 | J9: 60 | K9: 3 | L9: 1 | M9: 2 | N9: 0 | O9: 6 | P9: 6 | Q9: 1 | R9: 0 | S9: 6 | T9: 3 | U9: 0 | V9: 1 | W9: 2 | X9: 5 | Y9: 1 | Z9: 3 | AA9: 5 | AB9: 4 | AC9: 4 | AD9: 3 | AE9: 4 | BF9: 1 | BG9: 0.54
A10: =IF(J$2="","",IF($E10="","",IF($E10=MAX($E$5:$E$54),1,IF($E10=$E9,$A9,COUNT($E$5:$E10))))) -> 6 | B10: 5 | C10: Cesarina | D10: Gaetano | E10: 47.06174603 | F10: 1.03 | G10: 46.03174603 | H10: 58 | J10: 58 | K10: 0 | L10: 1 | M10: 6 | N10: 3 | O10: 6 | P10: 4 | Q10: 1 | R10: 3 | S10: 4 | T10: 3 | U10: 6 | V10: 5 | W10: 0 | X10: 4 | Y10: 0 | Z10: 3 | AA10: 1 | AB10: 2 | AC10: 0 | AD10: 0 | AE10: 6 | BF10: 3 | BG10: 1.03
A11: =IF(J$2="","",IF($E11="","",IF($E11=MAX($E$5:$E$54),1,IF($E11=$E10,$A10,COUNT($E$5:$E11))))) -> 7 | B11: 6 | C11: Olimpia | D11: Sauro | E11: 43.14349206 | F11: 1.08 | G11: 42.06349206 | H11: 53 | J11: 53 | K11: 6 | L11: 5 | M11: 0 | N11: 6 | O11: 0 | P11: 0 | Q11: 1 | R11: 6 | S11: 0 | T11: 3 | U11: 2 | V11: 1 | W11: 0 | X11: 5 | Y11: 1 | Z11: 0 | AA11: 5 | AB11: 6 | AC11: 0 | AD11: 0 | AE11: 6 | BF11: 8 | BG11: 1.08
A12: =IF(J$2="","",IF($E12="","",IF($E12=MAX($E$5:$E$54),1,IF($E12=$E11,$A11,COUNT($E$5:$E12))))) -> 8 | B12: 2 | C12: Gill | D12: Isolde | E12: 41.26984127 | F12: 0 | G12: 41.26984127 | H12: 52 | J12: 52 | K12: 0 | L12: 0 | M12: 6 | N12: 0 | O12: 3 | P12: 4 | Q12: 5 | R12: 3 | S12: 2 | T12: 0 | U12: 0 | V12: 1 | W12: 2 | X12: 6 | Y12: 2 | Z12: 3 | AA12: 1 | AB12: 2 | AC12: 6 | AD12: 6 | AE12: 0 | BF12: 28 | BG12: 0
A13: =IF(J$2="","",IF($E13="","",IF($E13=MAX($E$5:$E$54),1,IF($E13=$E12,$A12,COUNT($E$5:$E13))))) -> 9 | E13: 0 | G13: 0 | H13: 0 | J13: 0 | BF13: 4 | BG13: -0.72
A14: =IF(J$2="","",IF($E14="","",IF($E14=MAX($E$5:$E$54),1,IF($E14=$E13,$A13,COUNT($E$5:$E14))))) -> 9 | E14: 0 | G14: 0 | H14: 0 | J14: 0 | BF14: 5 | BG14: -1
A15: =IF(J$2="","",IF($E15="","",IF($E15=MAX($E$5:$E$54),1,IF($E15=$E14,$A14,COUNT($E$5:$E15))))) -> 9 | E15: 0 | G15: 0 | H15: 0 | J15: 0 | BF15: 9 | BG15: -1.22
A16: =IF(J$2="","",IF($E16="","",IF($E16=MAX($E$5:$E$54),1,IF($E16=$E15,$A15,COUNT($E$5:$E16))))) -> 9 | E16: 0 | G16: 0 | H16: 0 | J16: 0 | BF16: 10 | BG16: -2.57
A17: =IF(J$2="","",IF($E17="","",IF($E17=MAX($E$5:$E$54),1,IF($E17=$E16,$A16,COUNT($E$5:$E17))))) -> 9 | E17: 0 | G17: 0 | H17: 0 | J17: 0 | BF17: 12 | BG17: 0
A18: =IF(J$2="","",IF($E18="","",IF($E18=MAX($E$5:$E$54),1,IF($E18=$E17,$A17,COUNT($E$5:$E18))))) -> 9 | E18: 0 | G18: 0 | H18: 0 | J18: 0 | BF18: 13 | BG18: 0
A19: =IF(J$2="","",IF($E19="","",IF($E19=MAX($E$5:$E$54),1,IF($E19=$E18,$A18,COUNT($E$5:$E19))))) -> 9 | E19: 0 | G19: 0 | H19: 0 | J19: 0 | BF19: 14 | BG19: 0
A20: =IF(J$2="","",IF($E20="","",IF($E20=MAX($E$5:$E$54),1,IF($E20=$E19,$A19,COUNT($E$5:$E20))))) -> 9 | E20: 0 | G20: 0 | H20: 0 | J20: 0 | BF20: 15 | BG20: 0
A21: =IF(J$2="","",IF($E21="","",IF($E21=MAX($E$5:$E$54),1,IF($E21=$E20,$A20,COUNT($E$5:$E21))))) -> 9 | E21: 0 | G21: 0 | H21: 0 | J21: 0 | BF21: 16 | BG21: 0
A22: =IF(J$2="","",IF($E22="","",IF($E22=MAX($E$5:$E$54),1,IF($E22=$E21,$A21,COUNT($E$5:$E22))))) -> 9 | E22: 0 | G22: 0 | H22: 0 | J22: 0 | BF22: 17 | BG22: 0
A23: =IF(J$2="","",IF($E23="","",IF($E23=MAX($E$5:$E$54),1,IF($E23=$E22,$A22,COUNT($E$5:$E23))))) -> 9 | E23: 0 | G23: 0 | H23: 0 | J23: 0 | BF23: 18 | BG23: 0
A24: =IF(J$2="","",IF($E24="","",IF($E24=MAX($E$5:$E$54),1,IF($E24=$E23,$A23,COUNT($E$5:$E24))))) -> 9 | E24: 0 | G24: 0 | H24: 0 | J24: 0 | BF24: 19 | BG24: 0
A25: =IF(J$2="","",IF($E25="","",IF($E25=MAX($E$5:$E$54),1,IF($E25=$E24,$A24,COUNT($E$5:$E25))))) -> 9 | E25: 0 | G25: 0 | H25: 0 | J25: 0 | BF25: 20 | BG25: 0
A26: =IF(J$2="","",IF($E26="","",IF($E26=MAX($E$5:$E$54),1,IF($E26=$E25,$A25,COUNT($E$5:$E26))))) -> 9 | E26: 0 | G26: 0 | H26: 0 | J26: 0 | BF26: 21 | BG26: 0
A27: =IF(J$2="","",IF($E27="","",IF($E27=MAX($E$5:$E$54),1,IF($E27=$E26,$A26,COUNT($E$5:$E27))))) -> 9 | E27: 0 | G27: 0 | H27: 0 | J27: 0 | BF27: 22 | BG27: 0
A28: =IF(J$2="","",IF($E28="","",IF($E28=MAX($E$5:$E$54),1,IF($E28=$E27,$A27,COUNT($E$5:$E28))))) -> 9 | E28: 0 | G28: 0 | H28: 0 | J28: 0 | BF28: 23 | BG28: 0
A29: =IF(J$2="","",IF($E29="","",IF($E29=MAX($E$5:$E$54),1,IF($E29=$E28,$A28,COUNT($E$5:$E29))))) -> 9 | E29: 0 | G29: 0 | H29: 0 | J29: 0 | BF29: 24 | BG29: 0
A30: =IF(J$2="","",IF($E30="","",IF($E30=MAX($E$5:$E$54),1,IF($E30=$E29,$A29,COUNT($E$5:$E30))))) -> 9 | E30: 0 | G30: 0 | H30: 0 | J30: 0 | BF30: 25 | BG30: 0
A31: =IF(J$2="","",IF($E31="","",IF($E31=MAX($E$5:$E$54),1,IF($E31=$E30,$A30,COUNT($E$5:$E31))))) -> 9 | E31: 0 | G31: 0 | H31: 0 | J31: 0 | BF31: 26 | BG31: 0
A32: =IF(J$2="","",IF($E32="","",IF($E32=MAX($E$5:$E$54),1,IF($E32=$E31,$A31,COUNT($E$5:$E32))))) -> 9 | E32: 0 | G32: 0 | H32: 0 | J32: 0 | BF32: 27 | BG32: 0
A33: =IF(J$2="","",IF($E33="","",IF($E33=MAX($E$5:$E$54),1,IF($E33=$E32,$A32,COUNT($E$5:$E33))))) -> 9 | E33: 0 | G33: 0 | H33: 0 | J33: 0 | BF33: 29 | BG33: 0
A34: =IF(J$2="","",IF($E34="","",IF($E34=MAX($E$5:$E$54),1,IF($E34=$E33,$A33,COUNT($E$5:$E34))))) -> 9 | E34: 0 | G34: 0 | H34: 0 | J34: 0 | BF34: 30 | BG34: 0
A35: =IF(J$2="","",IF($E35="","",IF($E35=MAX($E$5:$E$54),1,IF($E35=$E34,$A34,COUNT($E$5:$E35))))) -> 9 | E35: 0 | G35: 0 | H35: 0 | J35: 0 | BF35: 31 | BG35: 0
A36: =IF(J$2="","",IF($E36="","",IF($E36=MAX($E$5:$E$54),1,IF($E36=$E35,$A35,COUNT($E$5:$E36))))) -> 9 | E36: 0 | G36: 0 | H36: 0 | J36: 0 | BF36: 32 | BG36: 0
A37: =IF(J$2="","",IF($E37="","",IF($E37=MAX($E$5:$E$54),1,IF($E37=$E36,$A36,COUNT($E$5:$E37))))) -> 9 | E37: 0 | G37: =IF(J$2="","",IF($J37=0,0,(H37*$C$3/$J$3)*50)) -> 0 | H37: =IF(J$2="","",IF(SUM($K37:$AX37)=0,0,SUM($K37:$AX37)+$I37)) -> 0 | J37: =IF(B37="",0,IF(SUM($K37:$AX37)=0,0,SUM($K37:$AX37))) -> 0 | BF37: 33 | BG37: 0
A38: =IF(J$2="","",IF($E38="","",IF($E38=MAX($E$5:$E$54),1,IF($E38=$E37,$A37,COUNT($E$5:$E38))))) -> 9 | E38: 0 | G38: 0 | H38: 0 | J38: 0 | BF38: 34 | BG38: 0
A39: =IF(J$2="","",IF($E39="","",IF($E39=MAX($E$5:$E$54),1,IF($E39=$E38,$A38,COUNT($E$5:$E39))))) -> 9 | E39: 0 | G39: 0 | H39: 0 | J39: 0 | BF39: 35 | BG39: 0
A40: =IF(J$2="","",IF($E40="","",IF($E40=MAX($E$5:$E$54),1,IF($E40=$E39,$A39,COUNT($E$5:$E40))))) -> 9 | E40: 0 | G40: 0 | H40: 0 | J40: 0 | BF40: 36 | BG40: 0
A41: =IF(J$2="","",IF($E41="","",IF($E41=MAX($E$5:$E$54),1,IF($E41=$E40,$A40,COUNT($E$5:$E41))))) -> 9 | E41: 0 | G41: 0 | H41: 0 | J41: 0 | BF41: 37 | BG41: 0
A42: =IF(J$2="","",IF($E42="","",IF($E42=MAX($E$5:$E$54),1,IF($E42=$E41,$A41,COUNT($E$5:$E42))))) -> 9 | E42: 0 | G42: 0 | H42: 0 | J42: 0 | BF42: 38 | BG42: 0
A43: =IF(J$2="","",IF($E43="","",IF($E43=MAX($E$5:$E$54),1,IF($E43=$E42,$A42,COUNT($E$5:$E43))))) -> 9 | E43: 0 | G43: 0 | H43: 0 | J43: 0 | BF43: 39 | BG43: 0
A44: =IF(J$2="","",IF($E44="","",IF($E44=MAX($E$5:$E$54),1,IF($E44=$E43,$A43,COUNT($E$5:$E44))))) -> 9 | E44: 0 | G44: 0 | H44: 0 | J44: 0 | BF44: 40 | BG44: 0
A45: =IF(J$2="","",IF($E45="","",IF($E45=MAX($E$5:$E$54),1,IF($E45=$E44,$A44,COUNT($E$5:$E45))))) -> 9 | E45: 0 | G45: 0 | H45: 0 | J45: 0 | BF45: 41 | BG45: 0
A46: =IF(J$2="","",IF($E46="","",IF($E46=MAX($E$5:$E$54),1,IF($E46=$E45,$A45,COUNT($E$5:$E46))))) -> 9 | E46: 0 | G46: 0 | H46: 0 | J46: 0 | BF46: 42 | BG46: 0
A47: =IF(J$2="","",IF($E47="","",IF($E47=MAX($E$5:$E$54),1,IF($E47=$E46,$A46,COUNT($E$5:$E47))))) -> 9 | E47: 0 | G47: 0 | H47: 0 | J47: 0 | BF47: 43 | BG47: 0
A48: =IF(J$2="","",IF($E48="","",IF($E48=MAX($E$5:$E$54),1,IF($E48=$E47,$A47,COUNT($E$5:$E48))))) -> 9 | E48: 0 | G48: 0 | H48: 0 | J48: 0 | BF48: 44 | BG48: 0
A49: =IF(J$2="","",IF($E49="","",IF($E49=MAX($E$5:$E$54),1,IF($E49=$E48,$A48,COUNT($E$5:$E49))))) -> 9 | E49: 0 | G49: 0 | H49: 0 | J49: 0 | BF49: 45 | BG49: 0
A50: =IF(J$2="","",IF($E50="","",IF($E50=MAX($E$5:$E$54),1,IF($E50=$E49,$A49,COUNT($E$5:$E50))))) -> 9 | E50: 0 | G50: 0 | H50: 0 | J50: 0 | BF50: 46 | BG50: 0
A51: =IF(J$2="","",IF($E51="","",IF($E51=MAX($E$5:$E$54),1,IF($E51=$E50,$A50,COUNT($E$5:$E51))))) -> 9 | E51: 0 | G51: 0 | H51: 0 | J51: 0 | BF51: 47 | BG51: 0
A52: =IF(J$2="","",IF($E52="","",IF($E52=MAX($E$5:$E$54),1,IF($E52=$E51,$A51,COUNT($E$5:$E52))))) -> 9 | E52: 0 | G52: 0 | H52: 0 | J52: 0 | BF52: 48 | BG52: 0
A53: =IF(J$2="","",IF($E53="","",IF($E53=MAX($E$5:$E$54),1,IF($E53=$E52,$A52,COUNT($E$5:$E53))))) ->  | G53: 0 | H53: 0 | J53: 0 | BF53: 49 | BG53: 0
A54: =IF(J$2="","",IF($E54="","",IF($E54=MAX($E$5:$E$54),1,IF($E54=$E53,$A53,COUNT($E$5:$E54))))) ->  | G54: 0 | H54: 0 | J54: 0 | BF54: 50 | BG54: 0
D59: punteggi % ordinati per # di coppia
B60: # coppia | E60: con zeri | F60: senza zeri | G60: senza zeri
B61: 1 | E61: 66.66666667 | F61: =IF(E61=0,"",E61) -> 66.66666667 | G61: 66.66666667 | BF61: 2 | BG61: -0.11
B62: 2 | E62: 41.26984127 | F62: 41.26984127 | G62: 41.26984127 | BF62: 28 | BG62: 0
B63: 3 | E63: 54.76190476 | F63: 54.76190476 | G63: 54.76190476 | I63: =IF(H63=0,"",H63) ->  | BF63: 6 | BG63: 1.28
B64: 4 | E64: 48.41269841 | F64: 48.41269841 | G64: 48.41269841 | BF64: 11 | BG64: 0.41
B65: 5 | E65: 46.03174603 | F65: 46.03174603 | G65: 46.03174603 | I65: =IF(H65=0,"",H65) ->  | BF65: 3 | BG65: 1.03
B66: 6 | E66: 42.06349206 | F66: 42.06349206 | G66: 42.06349206 | BF66: 8 | BG66: 1.08
B67: 7 | E67: 47.61904762 | F67: 47.61904762 | G67: 47.61904762 | BF67: 1 | BG67: 0.54
B68: 8 | E68: 53.17460317 | F68: 53.17460317 | G68: 53.17460317 | I68: =IF(H68=0,"",H68) ->  | BF68: 7 | BG68: -0.64
E69: 0 | BF69: 4 | BG69: -0.72
E70: 0 | I70: =IF(H70=0,"",H70) ->  | BF70: 5 | BG70: -1
E71: 0 | I71: =IF(H71=0,"",H71) ->  | BF71: 9 | BG71: -1.22
E72: 0 | BF72: 10 | BG72: -2.57
E73: 0 | I73: =IF(H73=0,"",H73) ->  | BF73: 12 | BG73: 0
E74: 0 | I74: =IF(H74=0,"",H74) ->  | BF74: 13 | BG74: 0
E75: 0 | I75: =IF(H75=0,"",H75) ->  | BF75: 14 | BG75: 0
E76: 0 | I76: =IF(H76=0,"",H76) ->  | BF76: 15 | BG76: 0
E77: 0 | BF77: 16 | BG77: 0
E78: 0 | BF78: 17 | BG78: 0
E79: 0 | I79: =IF(H79=0,"",H79) ->  | BF79: 18 | BG79: 0
E80: 0 | I80: =IF(H80=0,"",H80) ->  | BF80: 19 | BG80: 0
E81: 0 | BF81: 20 | BG81: 0
E82: 0 | BF82: 21 | BG82: 0
E83: 0 | BF83: 22 | BG83: 0
E84: 0 | BF84: 23 | BG84: 0
E85: 0 | BF85: 24 | BG85: 0
E86: 0 | BF86: 25 | BG86: 0
E87: 0 | BF87: 26 | BG87: 0
E88: 0 | BF88: 27 | BG88: 0
E89: 0 | BF89: 29 | BG89: 0
E90: 0 | BF90: 30 | BG90: 0
E91: 0 | BF91: 31 | BG91: 0
E92: 0 | BF92: 32 | BG92: 0
E93: 0 | F93: =IF(E93=0,"",E93) ->  | BF93: 33 | BG93: 0
E94: 0 | BF94: 34 | BG94: 0
E95: 0 | BF95: 35 | BG95: 0
E96: 0 | BF96: 36 | BG96: 0
E97: 0 | BF97: 37 | BG97: 0
E98: 0 | BF98: 38 | BG98: 0
E99: 0 | BF99: 39 | BG99: 0
E100: 0 | BF100: 40 | BG100: 0
E101: 0 | BF101: 41 | BG101: 0
E102: 0 | BF102: 42 | BG102: 0
E103: 0 | BF103: 43 | BG103: 0
E104: 0 | BF104: 44 | BG104: 0
E105: 0 | BF105: 45 | BG105: 0
E106: 0 | BF106: 46 | BG106: 0
E107: 0 | BF107: 47 | BG107: 0
E108: 0 | BF108: 48 | BG108: 0
E109: 0 | BF109: 49 | BG109: 0
E110: 0 | BF110: 50 | BG110: 0
A119: punteggi con handicap ordinati per numero standard di coppia base
B120: # coppia | E120: con zeri | F120: senza zeri | G120: senza zeri
B121: 7 | E121: 48.15904762 | F121: =IF(E121=0,"",E121) -> 48.15904762 | G121: 48.15904762 | BF121: 1 | BG121: 1.03
B122: 1 | E122: 66.55666667 | F122: =IF(E122=0,"",E122) -> 66.55666667 | G122: 66.55666667 | I122: =IF(H122=0,"",H122) ->  | BF122: 2 | BG122: -0.11
B123: 5 | E123: 47.06174603 | F123: 47.06174603 | G123: 47.06174603 | I123: =IF(H123=0,"",H123) ->  | BF123: 3 | BG123: 1.08
E124: 0 | BF124: 4 | BG124: -0.64
E125: 0 | BF125: 5 | BG125: -0.72
B126: 3 | E126: 56.04190476 | F126: 56.04190476 | G126: 56.04190476 | BF126: 6 | BG126: 0
B127: 8 | E127: 52.53460317 | F127: 52.53460317 | G127: 52.53460317 | BF127: 7 | BG127: 1.28
B128: 6 | E128: 43.14349206 | F128: 43.14349206 | G128: 43.14349206 | BF128: 8 | BG128: 0.54
E129: 0 | I129: =IF(H129=0,"",H129) ->  | BF129: 9 | BG129: -1
E130: 0 | BF130: 10 | BG130: -1.22
B131: 4 | E131: 48.82269841 | F131: 48.82269841 | G131: 48.82269841 | BF131: 11 | BG131: 0.41

Sheet 1apr
A1: Data | C1: 2017-04-01 | D1: BridgeMania 2016-17 - Torneo Howell
A2: luogo | C2: Cataldo | D2: Coppie Ctrl+e | E2: Calcola Ctr+f | F2: Duplica Ctrl+g | G2: Clear Ctrl+h | J2: &
A3: # coppie | C3: =IF(B5="","",COUNT(B5:B25)) -> 8 | E3: =IF(E5="","",SUMIF(E5:E25,">0")) -> 398.18 | G3: =IF(G5="","",SUM(G5:G25)) -> 400 | H3: =IF(H5="","",SUM(H5:H25)) -> 504 | I3: =SUM(I5:I25) -> 0 | J3: =SUM(J5:J25) -> 504 | K3: =SUM(K5:K25) -> 24 | L3: =SUM(L5:L25) -> 24 | M3: 24 | N3: 24 | O3: 24 | P3: 24 | Q3: 24 | R3: 24 | S3: 24 | T3: 24 | U3: 24 | V3: 24 | W3: 24 | X3: 24 | Y3: 24 | Z3: 24 | AA3: 24 | AB3: 24 | AC3: 24 | AD3: 24 | AE3: 24 | AF3: 0 | AG3: 0 | AH3: 0 | AI3: 0 | AJ3: 0 | AK3: 0 | AL3: 0 | AM3: 0 | AN3: 0 | AO3: 0 | AP3: 0 | AQ3: 0 | AR3: 0 | AS3: 0 | AT3: 0 | AU3: 0 | AV3: 0 | AW3: 0 | AX3: 0
A4: Class. | B4: # | C4: Coppie | E4: Punteggio Serata | F4: Handicap | G4: Punteggio % | H4: Punteggio Torneo | I4: Penalità (-) | J4: Totale punti mano | K4: 1 | L4: 2 | M4: 3 | N4: 4 | O4: 5 | P4: 6 | Q4: 7 | R4: 8 | S4: 9 | T4: 10 | U4: 11 | V4: 12 | W4: 13 | X4: 14 | Y4: 15 | Z4: 16 | AA4: 17 | AB4: 18 | AC4: 19 | AD4: 20 | AE4: 21 | AF4: 22 | AG4: 23 | AH4: 24 | AI4: 25 | AJ4: 26 | AK4: 27 | AL4: 28 | AM4: 29 | AN4: 30 | AO4: 31 | AP4: 32 | AQ4: 33 | AR4: 34 | AS4: 35 | AT4: 36 | AU4: 37 | AV4: 38 | AW4: 39 | AX4: 40 | BF4: coppia | BG4: handicap
A5: =IF(J$2="","",IF($E5="","",IF($E5=MAX($E$5:$E$54),1,IF($E5=$E4,$A4,COUNT($E$5:$E5))))) -> 1 | B5: 1 | C5: Manuela | D5: Roberto | E5: =IF(J$2="","",IF(G5=0,0,F5+G5)) -> 69.20126984 | F5: =IF(C5="","",IF(BG5=0,0,BG5)) -> -0.64 | G5: =IF(J$2="","",IF($J5=0,0,(H5*$C$3/$J$3)*50)) -> 69.84126984 | H5: =IF(J$2="","",IF(SUM($K5:$AX5)=0,0,SUM($K5:$AX5)+$I5)) -> 88 | J5: =IF(B5="",0,IF(SUM($K5:$AX5)=0,0,SUM($K5:$AX5))) -> 88 | K5: 4 | L5: 3 | M5: 5 | N5: 3 | O5: 1 | P5: 5 | Q5: 6 | R5: 5 | S5: 6 | T5: 6 | U5: 0 | V5: 5 | W5: 5 | X5: 5 | Y5: 3 | Z5: 2 | AA5: 6 | AB5: 1 | AC5: 6 | AD5: 5 | AE5: 6 | BF5: 7 | BG5: -0.64
A6: =IF(J$2="","",IF($E6="","",IF($E6=MAX($E$5:$E$54),1,IF($E6=$E5,$A5,COUNT($E$5:$E6))))) -> 2 | B6: 3 | C6: Barbara | D6: Elio | E6: 59.41380952 | F6: -0.11 | G6: 59.52380952 | H6: 75 | J6: 75 | K6: 6 | L6: 3 | M6: 5 | N6: 6 | O6: 5 | P6: 5 | Q6: 4 | R6: 4 | S6: 3 | T6: 4 | U6: 4 | V6: 2 | W6: 5 | X6: 6 | Y6: 0 | Z6: 2 | AA6: 5 | AB6: 5 | AC6: 0 | AD6: 1 | AE6: 0 | BF6: 2 | BG6: -0.11
A7: =IF(J$2="","",IF($E7="","",IF($E7=MAX($E$5:$E$54),1,IF($E7=$E6,$A6,COUNT($E$5:$E7))))) -> 3 | B7: 2 | C7: Stefania | D7: Massimo | E7: 54.57285714 | F7: -2.57 | G7: 57.14285714 | H7: 72 | J7: 72 | K7: 4 | L7: 6 | M7: 5 | N7: 6 | O7: 6 | P7: 5 | Q7: 4 | R7: 6 | S7: 3 | T7: 0 | U7: 6 | V7: 1 | W7: 1 | X7: 0 | Y7: 6 | Z7: 0 | AA7: 2 | AB7: 0 | AC7: 4 | AD7: 5 | AE7: 2 | BF7: 10 | BG7: -2.57
A8: =IF(J$2="","",IF($E8="","",IF($E8=MAX($E$5:$E$54),1,IF($E8=$E7,$A7,COUNT($E$5:$E8))))) -> 4 | B8: 7 | C8: Lilli | D8: Gianni | E8: 51.28 | F8: 1.28 | G8: 50 | H8: 63 | J8: 63 | K8: 0 | L8: 3 | M8: 1 | N8: 3 | O8: 2 | P8: 5 | Q8: 0 | R8: 1 | S8: 0 | T8: 1 | U8: 4 | V8: 5 | W8: 1 | X8: 1 | Y8: 6 | Z8: 6 | AA8: 4 | AB8: 6 | AC8: 5 | AD8: 5 | AE8: 4 | BF8: 6 | BG8: 1.28
A9: =IF(J$2="","",IF($E9="","",IF($E9=MAX($E$5:$E$54),1,IF($E9=$E8,$A8,COUNT($E$5:$E9))))) -> 5 | B9: 4 | C9: Anna | D9: Benedetto | E9: 42.85714286 | F9: 0 | G9: 42.85714286 | H9: 54 | J9: 54 | K9: 2 | L9: 0 | M9: 1 | N9: 3 | O9: 5 | P9: 1 | Q9: 2 | R9: 5 | S9: 0 | T9: 1 | U9: 4 | V9: 0 | W9: 5 | X9: 5 | Y9: 0 | Z9: 4 | AA9: 1 | AB9: 1 | AC9: 5 | AD9: 5 | AE9: 4 | BF9: 41 | BG9: 0
A10: =IF(J$2="","",IF($E10="","",IF($E10=MAX($E$5:$E$54),1,IF($E10=$E9,$A9,COUNT($E$5:$E10))))) -> 6 | B10: 5 | C10: Tatiana | D10: Julio | E10: 40.88619048 | F10: 0.41 | G10: 40.47619048 | H10: 51 | J10: 51 | K10: 6 | L10: 6 | M10: 5 | N10: 0 | O10: 1 | P10: 1 | Q10: 2 | R10: 0 | S10: 3 | T10: 5 | U10: 2 | V10: 1 | W10: 1 | X10: 2 | Y10: 3 | Z10: 4 | AA10: 0 | AB10: 5 | AC10: 1 | AD10: 1 | AE10: 2 | BF10: 11 | BG10: 0.41
A11: =IF(J$2="","",IF($E11="","",IF($E11=MAX($E$5:$E$54),1,IF($E11=$E10,$A10,COUNT($E$5:$E11))))) -> 7 | B11: 6 | C11: Renata | D11: Sandro | E11: 40.84349206 | F11: -1.22 | G11: 42.06349206 | H11: 53 | J11: 53 | K11: 0 | L11: 0 | M11: 1 | N11: 3 | O11: 4 | P11: 1 | Q11: 4 | R11: 1 | S11: 6 | T11: 2 | U11: 2 | V11: 4 | W11: 1 | X11: 1 | Y11: 3 | Z11: 6 | AA11: 5 | AB11: 2 | AC11: 2 | AD11: 1 | AE11: 4 | BF11: 9 | BG11: -1.22
A12: =IF(J$2="","",IF($E12="","",IF($E12=MAX($E$5:$E$54),1,IF($E12=$E11,$A11,COUNT($E$5:$E12))))) -> 8 | B12: 8 | C12: Cesarina | D12: Gaetano | E12: 39.1252381 | F12: 1.03 | G12: 38.0952381 | H12: 48 | J12: 48 | K12: 2 | L12: 3 | M12: 1 | N12: 0 | O12: 0 | P12: 1 | Q12: 2 | R12: 2 | S12: 3 | T12: 5 | U12: 2 | V12: 6 | W12: 5 | X12: 4 | Y12: 3 | Z12: 0 | AA12: 1 | AB12: 4 | AC12: 1 | AD12: 1 | AE12: 2 | BF12: 3 | BG12: 1.03
A13: =IF(J$2="","",IF($E13="","",IF($E13=MAX($E$5:$E$54),1,IF($E13=$E12,$A12,COUNT($E$5:$E13))))) -> 9 | E13: 0 | G13: 0 | H13: 0 | J13: 0 | BF13: 1 | BG13: 0.54
A14: =IF(J$2="","",IF($E14="","",IF($E14=MAX($E$5:$E$54),1,IF($E14=$E13,$A13,COUNT($E$5:$E14))))) -> 9 | E14: 0 | G14: 0 | H14: 0 | J14: 0 | BF14: 4 | BG14: -0.72
A15: =IF(J$2="","",IF($E15="","",IF($E15=MAX($E$5:$E$54),1,IF($E15=$E14,$A14,COUNT($E$5:$E15))))) -> 9 | E15: 0 | G15: 0 | H15: 0 | J15: 0 | BF15: 5 | BG15: -1
A16: =IF(J$2="","",IF($E16="","",IF($E16=MAX($E$5:$E$54),1,IF($E16=$E15,$A15,COUNT($E$5:$E16))))) -> 9 | E16: 0 | G16: 0 | H16: 0 | J16: 0 | BF16: 8 | BG16: 1.08
A17: =IF(J$2="","",IF($E17="","",IF($E17=MAX($E$5:$E$54),1,IF($E17=$E16,$A16,COUNT($E$5:$E17))))) -> 9 | E17: 0 | G17: 0 | H17: 0 | J17: 0 | BF17: 12 | BG17: 0
A18: =IF(J$2="","",IF($E18="","",IF($E18=MAX($E$5:$E$54),1,IF($E18=$E17,$A17,COUNT($E$5:$E18))))) -> 9 | E18: 0 | G18: 0 | H18: 0 | J18: 0 | BF18: 13 | BG18: 0
A19: =IF(J$2="","",IF($E19="","",IF($E19=MAX($E$5:$E$54),1,IF($E19=$E18,$A18,COUNT($E$5:$E19))))) -> 9 | E19: 0 | G19: 0 | H19: 0 | J19: 0 | BF19: 14 | BG19: 0
A20: =IF(J$2="","",IF($E20="","",IF($E20=MAX($E$5:$E$54),1,IF($E20=$E19,$A19,COUNT($E$5:$E20))))) -> 9 | E20: 0 | G20: 0 | H20: 0 | J20: 0 | BF20: 15 | BG20: 0
A21: =IF(J$2="","",IF($E21="","",IF($E21=MAX($E$5:$E$54),1,IF($E21=$E20,$A20,COUNT($E$5:$E21))))) -> 9 | E21: 0 | G21: 0 | H21: 0 | J21: 0 | BF21: 16 | BG21: 0
A22: =IF(J$2="","",IF($E22="","",IF($E22=MAX($E$5:$E$54),1,IF($E22=$E21,$A21,COUNT($E$5:$E22))))) -> 9 | E22: 0 | G22: 0 | H22: 0 | J22: 0 | BF22: 17 | BG22: 0
A23: =IF(J$2="","",IF($E23="","",IF($E23=MAX($E$5:$E$54),1,IF($E23=$E22,$A22,COUNT($E$5:$E23))))) -> 9 | E23: 0 | G23: 0 | H23: 0 | J23: 0 | BF23: 18 | BG23: 0
A24: =IF(J$2="","",IF($E24="","",IF($E24=MAX($E$5:$E$54),1,IF($E24=$E23,$A23,COUNT($E$5:$E24))))) -> 9 | E24: 0 | G24: 0 | H24: 0 | J24: 0 | BF24: 19 | BG24: 0
A25: =IF(J$2="","",IF($E25="","",IF($E25=MAX($E$5:$E$54),1,IF($E25=$E24,$A24,COUNT($E$5:$E25))))) -> 9 | E25: 0 | G25: 0 | H25: 0 | J25: 0 | BF25: 20 | BG25: 0
A26: =IF(J$2="","",IF($E26="","",IF($E26=MAX($E$5:$E$54),1,IF($E26=$E25,$A25,COUNT($E$5:$E26))))) -> 9 | E26: 0 | G26: 0 | H26: 0 | J26: 0 | BF26: 21 | BG26: 0
A27: =IF(J$2="","",IF($E27="","",IF($E27=MAX($E$5:$E$54),1,IF($E27=$E26,$A26,COUNT($E$5:$E27))))) -> 9 | E27: 0 | G27: 0 | H27: 0 | J27: 0 | BF27: 22 | BG27: 0
A28: =IF(J$2="","",IF($E28="","",IF($E28=MAX($E$5:$E$54),1,IF($E28=$E27,$A27,COUNT($E$5:$E28))))) -> 9 | E28: 0 | G28: 0 | H28: 0 | J28: 0 | BF28: 23 | BG28: 0
A29: =IF(J$2="","",IF($E29="","",IF($E29=MAX($E$5:$E$54),1,IF($E29=$E28,$A28,COUNT($E$5:$E29))))) -> 9 | E29: 0 | G29: 0 | H29: 0 | J29: 0 | BF29: 24 | BG29: 0
A30: =IF(J$2="","",IF($E30="","",IF($E30=MAX($E$5:$E$54),1,IF($E30=$E29,$A29,COUNT($E$5:$E30))))) -> 9 | E30: 0 | G30: 0 | H30: 0 | J30: 0 | BF30: 25 | BG30: 0
A31: =IF(J$2="","",IF($E31="","",IF($E31=MAX($E$5:$E$54),1,IF($E31=$E30,$A30,COUNT($E$5:$E31))))) -> 9 | E31: 0 | G31: 0 | H31: 0 | J31: 0 | BF31: 26 | BG31: 0
A32: =IF(J$2="","",IF($E32="","",IF($E32=MAX($E$5:$E$54),1,IF($E32=$E31,$A31,COUNT($E$5:$E32))))) -> 9 | E32: 0 | G32: 0 | H32: 0 | J32: 0 | BF32: 27 | BG32: 0
A33: =IF(J$2="","",IF($E33="","",IF($E33=MAX($E$5:$E$54),1,IF($E33=$E32,$A32,COUNT($E$5:$E33))))) -> 9 | E33: 0 | G33: 0 | H33: 0 | J33: 0 | BF33: 28 | BG33: 0
A34: =IF(J$2="","",IF($E34="","",IF($E34=MAX($E$5:$E$54),1,IF($E34=$E33,$A33,COUNT($E$5:$E34))))) -> 9 | E34: 0 | G34: 0 | H34: 0 | J34: 0 | BF34: 29 | BG34: 0
A35: =IF(J$2="","",IF($E35="","",IF($E35=MAX($E$5:$E$54),1,IF($E35=$E34,$A34,COUNT($E$5:$E35))))) -> 9 | E35: 0 | G35: 0 | H35: 0 | J35: 0 | BF35: 30 | BG35: 0
A36: =IF(J$2="","",IF($E36="","",IF($E36=MAX($E$5:$E$54),1,IF($E36=$E35,$A35,COUNT($E$5:$E36))))) -> 9 | E36: 0 | G36: 0 | H36: 0 | J36: 0 | BF36: 31 | BG36: 0
A37: =IF(J$2="","",IF($E37="","",IF($E37=MAX($E$5:$E$54),1,IF($E37=$E36,$A36,COUNT($E$5:$E37))))) -> 9 | E37: 0 | G37: =IF(J$2="","",IF($J37=0,0,(H37*$C$3/$J$3)*50)) -> 0 | H37: =IF(J$2="","",IF(SUM($K37:$AX37)=0,0,SUM($K37:$AX37)+$I37)) -> 0 | J37: =IF(B37="",0,IF(SUM($K37:$AX37)=0,0,SUM($K37:$AX37))) -> 0 | BF37: 32 | BG37: 0
A38: =IF(J$2="","",IF($E38="","",IF($E38=MAX($E$5:$E$54),1,IF($E38=$E37,$A37,COUNT($E$5:$E38))))) -> 9 | E38: 0 | G38: 0 | H38: 0 | J38: 0 | BF38: 33 | BG38: 0
A39: =IF(J$2="","",IF($E39="","",IF($E39=MAX($E$5:$E$54),1,IF($E39=$E38,$A38,COUNT($E$5:$E39))))) -> 9 | E39: 0 | G39: 0 | H39: 0 | J39: 0 | BF39: 34 | BG39: 0
A40: =IF(J$2="","",IF($E40="","",IF($E40=MAX($E$5:$E$54),1,IF($E40=$E39,$A39,COUNT($E$5:$E40))))) -> 9 | E40: 0 | G40: 0 | H40: 0 | J40: 0 | BF40: 35 | BG40: 0
A41: =IF(J$2="","",IF($E41="","",IF($E41=MAX($E$5:$E$54),1,IF($E41=$E40,$A40,COUNT($E$5:$E41))))) -> 9 | E41: 0 | G41: 0 | H41: 0 | J41: 0 | BF41: 36 | BG41: 0
A42: =IF(J$2="","",IF($E42="","",IF($E42=MAX($E$5:$E$54),1,IF($E42=$E41,$A41,COUNT($E$5:$E42))))) -> 9 | E42: 0 | G42: 0 | H42: 0 | J42: 0 | BF42: 37 | BG42: 0
A43: =IF(J$2="","",IF($E43="","",IF($E43=MAX($E$5:$E$54),1,IF($E43=$E42,$A42,COUNT($E$5:$E43))))) -> 9 | E43: 0 | G43: 0 | H43: 0 | J43: 0 | BF43: 38 | BG43: 0
A44: =IF(J$2="","",IF($E44="","",IF($E44=MAX($E$5:$E$54),1,IF($E44=$E43,$A43,COUNT($E$5:$E44))))) -> 9 | E44: 0 | G44: 0 | H44: 0 | J44: 0 | BF44: 39 | BG44: 0
A45: =IF(J$2="","",IF($E45="","",IF($E45=MAX($E$5:$E$54),1,IF($E45=$E44,$A44,COUNT($E$5:$E45))))) -> 9 | E45: 0 | G45: 0 | H45: 0 | J45: 0 | BF45: 40 | BG45: 0
A46: =IF(J$2="","",IF($E46="","",IF($E46=MAX($E$5:$E$54),1,IF($E46=$E45,$A45,COUNT($E$5:$E46))))) -> 9 | E46: 0 | G46: 0 | H46: 0 | J46: 0 | BF46: 42 | BG46: 0
A47: =IF(J$2="","",IF($E47="","",IF($E47=MAX($E$5:$E$54),1,IF($E47=$E46,$A46,COUNT($E$5:$E47))))) -> 9 | E47: 0 | G47: 0 | H47: 0 | J47: 0 | BF47: 43 | BG47: 0
A48: =IF(J$2="","",IF($E48="","",IF($E48=MAX($E$5:$E$54),1,IF($E48=$E47,$A47,COUNT($E$5:$E48))))) -> 9 | E48: 0 | G48: 0 | H48: 0 | J48: 0 | BF48: 44 | BG48: 0
A49: =IF(J$2="","",IF($E49="","",IF($E49=MAX($E$5:$E$54),1,IF($E49=$E48,$A48,COUNT($E$5:$E49))))) -> 9 | E49: 0 | G49: 0 | H49: 0 | J49: 0 | BF49: 45 | BG49: 0
A50: =IF(J$2="","",IF($E50="","",IF($E50=MAX($E$5:$E$54),1,IF($E50=$E49,$A49,COUNT($E$5:$E50))))) -> 9 | E50: 0 | G50: 0 | H50: 0 | J50: 0 | BF50: 46 | BG50: 0
A51: =IF(J$2="","",IF($E51="","",IF($E51=MAX($E$5:$E$54),1,IF($E51=$E50,$A50,COUNT($E$5:$E51))))) -> 9 | E51: 0 | G51: 0 | H51: 0 | J51: 0 | BF51: 47 | BG51: 0
A52: =IF(J$2="","",IF($E52="","",IF($E52=MAX($E$5:$E$54),1,IF($E52=$E51,$A51,COUNT($E$5:$E52))))) -> 9 | E52: 0 | G52: 0 | H52: 0 | J52: 0 | BF52: 48 | BG52: 0
A53: =IF(J$2="","",IF($E53="","",IF($E53=MAX($E$5:$E$54),1,IF($E53=$E52,$A52,COUNT($E$5:$E53))))) ->  | G53: 0 | H53: 0 | J53: 0 | BF53: 49 | BG53: 0
A54: =IF(J$2="","",IF($E54="","",IF($E54=MAX($E$5:$E$54),1,IF($E54=$E53,$A53,COUNT($E$5:$E54))))) ->  | G54: 0 | H54: 0 | J54: 0 | BF54: 50 | BG54: 0
D59: punteggi % ordinati per # di coppia
B60: # coppia | E60: con zeri | F60: senza zeri | G60: senza zeri
B61: 1 | E61: 69.84126984 | F61: =IF(E61=0,"",E61) -> 69.84126984 | G61: 69.84126984 | BF61: 7 | BG61: -0.64
B62: 2 | E62: 57.14285714 | F62: 57.14285714 | G62: 57.14285714 | BF62: 10 | BG62: -2.57
B63: 3 | E63: 59.52380952 | F63: 59.52380952 | G63: 59.52380952 | I63: =IF(H63=0,"",H63) ->  | BF63: 2 | BG63: -0.11
B64: 4 | E64: 42.85714286 | F64: 42.85714286 | G64: 42.85714286 | BF64: 41 | BG64: 0
B65: 5 | E65: 40.47619048 | F65: 40.47619048 | G65: 40.47619048 | I65: =IF(H65=0,"",H65) ->  | BF65: 11 | BG65: 0.41
B66: 6 | E66: 42.06349206 | F66: 42.06349206 | G66: 42.06349206 | BF66: 9 | BG66: -1.22
B67: 7 | E67: 50 | F67: 50 | G67: 50 | BF67: 6 | BG67: 1.28
B68: 8 | E68: 38.0952381 | F68: 38.0952381 | G68: 38.0952381 | I68: =IF(H68=0,"",H68) ->  | BF68: 3 | BG68: 1.03
E69: 0 | BF69: 1 | BG69: 0.54
E70: 0 | I70: =IF(H70=0,"",H70) ->  | BF70: 4 | BG70: -0.72
E71: 0 | I71: =IF(H71=0,"",H71) ->  | BF71: 5 | BG71: -1
E72: 0 | BF72: 8 | BG72: 1.08
E73: 0 | I73: =IF(H73=0,"",H73) ->  | BF73: 12 | BG73: 0
E74: 0 | I74: =IF(H74=0,"",H74) ->  | BF74: 13 | BG74: 0
E75: 0 | I75: =IF(H75=0,"",H75) ->  | BF75: 14 | BG75: 0
E76: 0 | I76: =IF(H76=0,"",H76) ->  | BF76: 15 | BG76: 0
E77: 0 | BF77: 16 | BG77: 0
E78: 0 | BF78: 17 | BG78: 0
E79: 0 | I79: =IF(H79=0,"",H79) ->  | BF79: 18 | BG79: 0
E80: 0 | I80: =IF(H80=0,"",H80) ->  | BF80: 19 | BG80: 0
E81: 0 | BF81: 20 | BG81: 0
E82: 0 | BF82: 21 | BG82: 0
E83: 0 | BF83: 22 | BG83: 0
E84: 0 | BF84: 23 | BG84: 0
E85: 0 | BF85: 24 | BG85: 0
E86: 0 | BF86: 25 | BG86: 0
E87: 0 | BF87: 26 | BG87: 0
E88: 0 | BF88: 27 | BG88: 0
E89: 0 | BF89: 28 | BG89: 0
E90: 0 | BF90: 29 | BG90: 0
E91: 0 | BF91: 30 | BG91: 0
E92: 0 | BF92: 31 | BG92: 0
E93: 0 | F93: =IF(E93=0,"",E93) ->  | BF93: 32 | BG93: 0
E94: 0 | BF94: 33 | BG94: 0
E95: 0 | BF95: 34 | BG95: 0
E96: 0 | BF96: 35 | BG96: 0
E97: 0 | BF97: 36 | BG97: 0
E98: 0 | BF98: 37 | BG98: 0
E99: 0 | BF99: 38 | BG99: 0
E100: 0 | BF100: 39 | BG100: 0
E101: 0 | BF101: 40 | BG101: 0
E102: 0 | BF102: 42 | BG102: 0
E103: 0 | BF103: 43 | BG103: 0
E104: 0 | BF104: 44 | BG104: 0
E105: 0 | BF105: 45 | BG105: 0
E106: 0 | BF106: 46 | BG106: 0
E107: 0 | BF107: 47 | BG107: 0
E108: 0 | BF108: 48 | BG108: 0
E109: 0 | BF109: 49 | BG109: 0
E110: 0 | BF110: 50 | BG110: 0
A119: punteggi con handicap ordinati per numero standard di coppia base
B120: # coppia | E120: con zeri | F120: senza zeri | G120: senza zeri
E121: 0 | F121: =IF(E121=0,"",E121) ->  | I121: =IF(H121=0,"",H121) ->  | BF121: 1 | BG121: 1.03
B122: 3 | E122: 59.41380952 | F122: =IF(E122=0,"",E122) -> 59.41380952 | G122: 59.41380952 | BF122: 2 | BG122: -2.57
B123: 8 | E123: 39.1252381 | F123: =IF(E123=0,"",E123) -> 39.1252381 | G123: 39.1252381 | BF123: 3 | BG123: 1.28
E124: 0 | BF124: 4 | BG124: 0.54
E125: 0 | F125: =IF(E125=0,"",E125) ->  | I125: =IF(H125=0,"",H125) ->  | BF125: 5 | BG125: -0.72
B126: 7 | E126: 51.28 | F126: =IF(E126=0,"",E126) -> 51.28 | G126: 51.28 | BF126: 6 | BG126: 0
B127: 1 | E127: 69.20126984 | F127: =IF(E127=0,"",E127) -> 69.20126984 | G127: 69.20126984 | BF127: 7 | BG127: -0.64
E128: 0 | BF128: 8 | BG128: -1
B129: 6 | E129: 40.84349206 | F129: =IF(E129=0,"",E129) -> 40.84349206 | G129: 40.84349206 | BF129: 9 | BG129: -1.22
B130: 2 | E130: 54.57285714 | F130: =IF(E130=0,"",E130) -> 54.57285714 | G130: 54.57285714 | BF130: 10 | BG130: -0.11
B131: 5 | E131: 40.88619048 | F131: =IF(E131=0,"",E131) -> 40.88619048 | G131: 40.88619048 | I131: =IF(H131=0,"",H131) ->  | BF131: 11 | BG131: 0.41

Sheet 25mar
A1: Data | C1: 2017-03-25 | D1: BridgeMania 2016-17 - Torneo Howell
A2: luogo | C2: Padova | D2: Coppie Ctrl+e | E2: Calcola Ctr+f | F2: Duplica Ctrl+g | G2: Clear Ctrl+h | J2: & | K2: 1^ fase | W2: 2^ fase
A3: # coppie | C3: =IF(B5="","",COUNT(B5:B27)) -> 23 | E3: =IF(E5="","",SUMIF(E5:E25,">0")) -> 1070.484771 | G3: =IF(G5="","",SUM(G5:G27)) -> 1150 | H3: =IF(H5="","",SUM(H5:H27)) -> 5014 | I3: =SUM(I5:I27) -> 0 | J3: =SUM(J5:J27) -> 5014 | K3: =SUM(K5:K27) -> 207 | L3: =SUM(L5:L27) -> 207 | M3: 207 | N3: 207 | O3: 207 | P3: 207 | Q3: 207 | R3: 207 | S3: 207 | T3: 207 | U3: 207 | V3: 230 | W3: 207 | X3: 207 | Y3: 207 | Z3: 207 | AA3: 207 | AB3: 207 | AC3: 207 | AD3: 207 | AE3: 207 | AF3: 207 | AG3: 207 | AH3: 230 | AI3: =SUM(AI5:AI25) -> 0 | AJ3: 0 | AK3: 0 | AL3: 0 | AM3: 0 | AN3: 0 | AO3: 0 | AP3: 0 | AQ3: 0 | AR3: 0 | AS3: 0 | AT3: 0 | AU3: 0 | AV3: 0 | AW3: 0 | AX3: 0
A4: Class. | B4: # coppia nella 1^ fase | C4: Coppie | E4: Punteggio Serata | F4: Handicap | G4: Punteggio % | H4: Punteggio Torneo | I4: Penalità (-) | J4: Totale punti mano | K4: 1 | L4: 2 | M4: 3 | N4: 4 | O4: 5 | P4: 6 | Q4: 7 | R4: 8 | S4: 9 | T4: 10 | U4: 11 | V4: 12 | W4: 13 | X4: 14 | Y4: 15 | Z4: 16 | AA4: 17 | AB4: 18 | AC4: 19 | AD4: 20 | AE4: 21 | AF4: 22 | AG4: 23 | AH4: 24 | AI4: 25 | AJ4: 26 | AK4: 27 | AL4: 28 | AM4: 29 | AN4: 30 | AO4: 31 | AP4: 32 | AQ4: 33 | AR4: 34 | AS4: 35 | AT4: 36 | AU4: 37 | AV4: 38 | AW4: 39 | AX4: 40 | BF4: coppia | BG4: handicap
A5: =IF(J$2="","",IF($E5="","",IF($E5=MAX($E$5:$E$54),1,IF($E5=$E4,$A4,COUNT($E$5:$E5))))) -> 1 | B5: 108 | C5: Manuela | D5: Roberto | E5: =IF(J$2="","",IF(G5=0,0,F5+G5)) -> 66.10311927 | F5: =IF(C5="","",IF(BG5=0,0,BG5)) -> -0.64 | G5: =IF(J$2="","",IF($J5=0,0,(H5*$C$3/$J$3)*50)) -> 66.74311927 | H5: =IF(J$2="","",IF(SUM($K5:$AX5)=0,0,SUM($K5:$AX5)+$I5)) -> 291 | J5: =IF(B5="",0,IF(SUM($K5:$AX5)=0,0,SUM($K5:$AX5))) -> 291 | K5: 16 | L5: 14 | M5: 7 | N5: 17 | O5: 16 | P5: 18 | Q5: 9 | R5: 9 | S5: 1 | T5: 6 | U5: 18 | V5: 18 | W5: 13 | X5: 9 | Y5: 17 | Z5: 17 | AA5: 4 | AB5: 16 | AC5: 9 | AD5: 11 | AE5: 8 | AF5: 11 | AG5: 7 | AH5: 20 | BF5: 7 | BG5: -0.64
A6: =IF(J$2="","",IF($E6="","",IF($E6=MAX($E$5:$E$54),1,IF($E6=$E5,$A5,COUNT($E$5:$E6))))) -> 2 | B6: 106 | C6: Elena | D6: Stefano | E6: 56.84880734 | F6: -0.72 | G6: 57.56880734 | H6: 251 | J6: 251 | K6: 8 | L6: 18 | M6: 7 | N6: 11 | O6: 9 | P6: 8 | Q6: 8 | R6: 9 | S6: 1 | T6: 16 | U6: 10 | V6: 3 | W6: 13 | X6: 16 | Y6: 17 | Z6: 3 | AA6: 9 | AB6: 10 | AC6: 15 | AD6: 11 | AE6: 8 | AF6: 16 | AG6: 9 | AH6: 16 | BF6: 4 | BG6: -0.72
A7: =IF(J$2="","",IF($E7="","",IF($E7=MAX($E$5:$E$54),1,IF($E7=$E6,$A6,COUNT($E$5:$E7))))) -> 3 | B7: 6 | C7: Memo | D7: Roberto | E7: 55.96330275 | F7: 0 | G7: 55.96330275 | H7: 244 | J7: 244 | K7: 2 | L7: 16 | M7: 11 | N7: 16 | O7: 9 | P7: 10 | Q7: 17 | R7: 16 | S7: 1 | T7: 0 | U7: 9 | V7: 10 | W7: 5 | X7: 11 | Y7: 17 | Z7: 15 | AA7: 9 | AB7: 8 | AC7: 16 | AD7: 17 | AE7: 0 | AF7: 7 | AG7: 18 | AH7: 4 | BF7: 31 | BG7: 0
A8: =IF(J$2="","",IF($E8="","",IF($E8=MAX($E$5:$E$54),1,IF($E8=$E7,$A7,COUNT($E$5:$E8))))) -> 4 | B8: 4 | C8: Franca | D8: Giancarlo | E8: 55.04587156 | F8: 0 | G8: 55.04587156 | H8: 240 | J8: 240 | K8: 10 | L8: 8 | M8: 9 | N8: 7 | O8: 6 | P8: 17 | Q8: 9 | R8: 2 | S8: 11 | T8: 5 | U8: 0 | V8: 17 | W8: 18 | X8: 16 | Y8: 9 | Z8: 15 | AA8: 5 | AB8: 12 | AC8: 13 | AD8: 7 | AE8: 18 | AF8: 15 | AG8: 11 | AH8: 0 | BF8: 29 | BG8: 0
A9: =IF(J$2="","",IF($E9="","",IF($E9=MAX($E$5:$E$54),1,IF($E9=$E8,$A8,COUNT($E$5:$E9))))) -> 4 | B9: 103 | C9: Gill | D9: Isolde | E9: 55.04587156 | F9: 0 | G9: 55.04587156 | H9: 240 | J9: 240 | K9: 16 | L9: 9 | M9: 16 | N9: 6 | O9: 12 | P9: 8 | Q9: 8 | R9: 9 | S9: 17 | T9: 6 | U9: 15 | V9: 20 | W9: 5 | X9: 9 | Y9: 4 | Z9: 4 | AA9: 5 | AB9: 12 | AC9: 6 | AD9: 17 | AE9: 10 | AF9: 0 | AG9: 11 | AH9: 15 | BF9: 28 | BG9: 0
A10: =IF(J$2="","",IF($E10="","",IF($E10=MAX($E$5:$E$54),1,IF($E10=$E9,$A9,COUNT($E$5:$E10))))) -> 6 | B10: 102 | C10: Antonella | D10: Dino | E10: 53.98036697 | F10: 0.54 | G10: 53.44036697 | H10: 233 | J10: 233 | K10: 9 | L10: 16 | M10: 7 | N10: 17 | O10: 7 | P10: 1 | Q10: 17 | R10: 4 | S10: 7 | T10: 18 | U10: 5 | V10: 10 | W10: 9 | X10: 7 | Y10: 9 | Z10: 11 | AA10: 4 | AB10: 16 | AC10: 15 | AD10: 11 | AE10: 18 | AF10: 3 | AG10: 7 | AH10: 5 | BF10: 1 | BG10: 0.54
A11: =IF(J$2="","",IF($E11="","",IF($E11=MAX($E$5:$E$54),1,IF($E11=$E10,$A10,COUNT($E$5:$E11))))) -> 7 | B11: 5 | C11: Alberto | D11: Riccardo | E11: 53.89908257 | F11: 0 | G11: 53.89908257 | H11: 235 | J11: 235 | K11: 2 | L11: 11 | M11: 11 | N11: 9 | O11: 16 | P11: 17 | Q11: 10 | R11: 14 | S11: 9 | T11: 17 | U11: 6 | V11: 5 | W11: 6 | X11: 7 | Y11: 1 | Z11: 9 | AA11: 4 | AB11: 6 | AC11: 12 | AD11: 11 | AE11: 9 | AF11: 11 | AG11: 16 | AH11: 16 | BF11: 30 | BG11: 0
A12: =IF(J$2="","",IF($E12="","",IF($E12=MAX($E$5:$E$54),1,IF($E12=$E11,$A11,COUNT($E$5:$E12))))) -> 8 | B12: 11 | C12: Guglielmo | D12: Pietro | E12: 53.44036697 | F12: 0 | G12: 53.44036697 | H12: 233 | J12: 233 | K12: 16 | L12: 4 | M12: 2 | N12: 7 | O12: 6 | P12: 10 | Q12: 1 | R12: 9 | S12: 4 | T12: 9 | U12: 17 | V12: 20 | W12: 6 | X12: 18 | Y12: 12 | Z12: 3 | AA12: 13 | AB12: 6 | AC12: 9 | AD12: 9 | AE12: 16 | AF12: 9 | AG12: 16 | AH12: 11 | BF12: 37 | BG12: 0
A13: =IF(J$2="","",IF($E13="","",IF($E13=MAX($E$5:$E$54),1,IF($E13=$E12,$A12,COUNT($E$5:$E13))))) -> 9 | B13: 12 | C13: Esterina | D13: M.Teresa | E13: 52.52293578 | F13: 0 | G13: 52.52293578 | H13: 229 | J13: 229 | K13: 18 | L13: 11 | M13: 11 | N13: 1 | O13: 16 | P13: 10 | Q13: 1 | R13: 9 | S13: 11 | T13: 9 | U13: 9 | V13: 10 | W13: 16 | X13: 5 | Y13: 1 | Z13: 7 | AA13: 14 | AB13: 12 | AC13: 13 | AD13: 7 | AE13: 2 | AF13: 7 | AG13: 9 | AH13: 20 | BF13: 39 | BG13: 0
A14: =IF(J$2="","",IF($E14="","",IF($E14=MAX($E$5:$E$54),1,IF($E14=$E13,$A13,COUNT($E$5:$E14))))) -> 10 | B14: 104 | C14: Lilli | D14: Gianni | E14: 51.7387156 | F14: 1.28 | G14: 50.4587156 | H14: 220 | J14: 220 | K14: 8 | L14: 12 | M14: 9 | N14: 11 | O14: 12 | P14: 1 | Q14: 17 | R14: 2 | S14: 12 | T14: 10 | U14: 8 | V14: 15 | W14: 13 | X14: 13 | Y14: 9 | Z14: 3 | AA14: 13 | AB14: 1 | AC14: 9 | AD14: 11 | AE14: 8 | AF14: 11 | AG14: 7 | AH14: 5 | BF14: 6 | BG14: 1.28
A15: =IF(J$2="","",IF($E15="","",IF($E15=MAX($E$5:$E$54),1,IF($E15=$E14,$A14,COUNT($E$5:$E15))))) -> 11 | B15: 110 | C15: Felice | D15: Gerardo | E15: 51.60550459 | F15: 0 | G15: 51.60550459 | H15: 225 | J15: 225 | K15: 16 | L15: 7 | M15: 16 | N15: 11 | O15: 2 | P15: 15 | Q15: 8 | R15: 0 | S15: 9 | T15: 1 | U15: 12 | V15: 0 | W15: 18 | X15: 7 | Y15: 10 | Z15: 14 | AA15: 13 | AB15: 9 | AC15: 5 | AD15: 11 | AE15: 9 | AF15: 11 | AG15: 16 | AH15: 5 | BF15: 36 | BG15: 0
A16: =IF(J$2="","",IF($E16="","",IF($E16=MAX($E$5:$E$54),1,IF($E16=$E15,$A15,COUNT($E$5:$E16))))) -> 12 | B16: 105 | C16: Barbara | D16: Elio | E16: 51.49550459 | F16: -0.11 | G16: 51.60550459 | H16: 225 | J16: 225 | K16: 8 | L16: 10 | M16: 7 | N16: 9 | O16: 2 | P16: 8 | Q16: 1 | R16: 16 | S16: 17 | T16: 6 | U16: 15 | V16: 6 | W16: 12 | X16: 5 | Y16: 8 | Z16: 9 | AA16: 14 | AB16: 17 | AC16: 3 | AD16: 7 | AE16: 10 | AF16: 15 | AG16: 11 | AH16: 9 | BF16: 2 | BG16: -0.11
A17: =IF(J$2="","",IF($E17="","",IF($E17=MAX($E$5:$E$54),1,IF($E17=$E16,$A16,COUNT($E$5:$E17))))) -> 13 | B17: 9 | C17: Elsa | D17: Sauro | E17: 51.37614679 | F17: 0 | G17: 51.37614679 | H17: 224 | J17: 224 | K17: 10 | L17: 6 | M17: 11 | N17: 9 | O17: 11 | P17: 10 | Q17: 10 | R17: 9 | S17: 11 | T17: 12 | U17: 13 | V17: 17 | W17: 6 | X17: 2 | Y17: 1 | Z17: 9 | AA17: 4 | AB17: 12 | AC17: 18 | AD17: 9 | AE17: 8 | AF17: 3 | AG17: 7 | AH17: 16 | BF17: 34 | BG17: 0
A18: =IF(J$2="","",IF($E18="","",IF($E18=MAX($E$5:$E$54),1,IF($E18=$E17,$A17,COUNT($E$5:$E18))))) -> 14 | B18: 2 | C18: M.Teresa | D18: Piero | E18: 51.14678899 | F18: 0 | G18: 51.14678899 | H18: 223 | J18: 223 | K18: 9 | L18: 2 | M18: 9 | N18: 14 | O18: 0 | P18: 3 | Q18: 10 | R18: 9 | S18: 17 | T18: 12 | U18: 10 | V18: 0 | W18: 9 | X18: 11 | Y18: 17 | Z18: 15 | AA18: 5 | AB18: 17 | AC18: 9 | AD18: 7 | AE18: 10 | AF18: 2 | AG18: 11 | AH18: 15 | BF18: 26 | BG18: 0
A19: =IF(J$2="","",IF($E19="","",IF($E19=MAX($E$5:$E$54),1,IF($E19=$E18,$A18,COUNT($E$5:$E19))))) -> 15 | B19: 1 | C19: Alberto | D19: Giuseppe | E19: 49.31192661 | F19: 0 | G19: 49.31192661 | H19: 215 | J19: 215 | K19: 9 | L19: 16 | M19: 11 | N19: 7 | O19: 6 | P19: 0 | Q19: 10 | R19: 2 | S19: 6 | T19: 12 | U19: 13 | V19: 10 | W19: 9 | X19: 13 | Y19: 6 | Z19: 17 | AA19: 4 | AB19: 16 | AC19: 2 | AD19: 11 | AE19: 0 | AF19: 18 | AG19: 7 | AH19: 10 | BF19: 25 | BG19: 0
A20: =IF(J$2="","",IF($E20="","",IF($E20=MAX($E$5:$E$54),1,IF($E20=$E19,$A19,COUNT($E$5:$E20))))) -> 16 | B20: 107 | C20: Tatiana | D20: Julio | E20: 45.82284404 | F20: 0.41 | G20: 45.41284404 | H20: 198 | J20: 198 | K20: 4 | L20: 7 | M20: 16 | N20: 2 | O20: 2 | P20: 9 | Q20: 8 | R20: 9 | S20: 7 | T20: 13 | U20: 5 | V20: 3 | W20: 0 | X20: 11 | Y20: 6 | Z20: 15 | AA20: 5 | AB20: 9 | AC20: 9 | AD20: 7 | AE20: 10 | AF20: 15 | AG20: 11 | AH20: 15 | BF20: 11 | BG20: 0.41
A21: =IF(J$2="","",IF($E21="","",IF($E21=MAX($E$5:$E$54),1,IF($E21=$E20,$A20,COUNT($E$5:$E21))))) -> 17 | B21: 3 | C21: Marina | D21: Enzo | E21: 44.49541284 | F21: 0 | G21: 44.49541284 | H21: 194 | J21: 194 | K21: 10 | L21: 9 | M21: 2 | N21: 1 | O21: 9 | P21: 10 | Q21: 17 | R21: 18 | S21: 17 | T21: 5 | U21: 8 | V21: 14 | W21: 0 | X21: 9 | Y21: 14 | Z21: 3 | AA21: 9 | AB21: 6 | AC21: 0 | AD21: 11 | AE21: 8 | AF21: 3 | AG21: 0 | AH21: 11 | BF21: 27 | BG21: 0
A22: =IF(J$2="","",IF($E22="","",IF($E22=MAX($E$5:$E$54),1,IF($E22=$E21,$A21,COUNT($E$5:$E22))))) -> 17 | B22: 10 | C22: Carla | D22: Alberto | E22: 44.49541284 | F22: 0 | G22: 44.49541284 | H22: 194 | J22: 194 | K22: 14 | L22: 0 | M22: 11 | N22: 12 | O22: 11 | P22: 9 | Q22: 4 | R22: 2 | S22: 9 | T22: 17 | U22: 17 | V22: 2 | W22: 5 | X22: 18 | Y22: 12 | Z22: 1 | AA22: 14 | AB22: 2 | AC22: 0 | AD22: 7 | AE22: 9 | AF22: 7 | AG22: 2 | AH22: 9 | BF22: 35 | BG22: 0
A23: =IF(J$2="","",IF($E23="","",IF($E23=MAX($E$5:$E$54),1,IF($E23=$E22,$A22,COUNT($E$5:$E23))))) -> 19 | B23: 111 | C23: Ennio | D23: Giorgio | E23: 43.34862385 | F23: 0 | G23: 43.34862385 | H23: 189 | J23: 189 | K23: 0 | L23: 2 | M23: 7 | N23: 11 | O23: 18 | P23: 8 | Q23: 1 | R23: 16 | S23: 7 | T23: 9 | U23: 1 | V23: 10 | W23: 5 | X23: 11 | Y23: 12 | Z23: 1 | AA23: 14 | AB23: 6 | AC23: 18 | AD23: 7 | AE23: 10 | AF23: 9 | AG23: 2 | AH23: 4 | BF23: 38 | BG23: 0
A24: =IF(J$2="","",IF($E24="","",IF($E24=MAX($E$5:$E$54),1,IF($E24=$E23,$A23,COUNT($E$5:$E24))))) -> 20 | B24: 8 | C24: Fiorella | D24: Dario | E24: 41.97247706 | F24: 0 | G24: 41.97247706 | H24: 183 | J24: 183 | K24: 2 | L24: 9 | M24: 18 | N24: 7 | O24: 16 | P24: 3 | Q24: 9 | R24: 9 | S24: 11 | T24: 2 | U24: 3 | V24: 5 | W24: 12 | X24: 0 | Y24: 1 | Z24: 7 | AA24: 0 | AB24: 2 | AC24: 9 | AD24: 7 | AE24: 10 | AF24: 15 | AG24: 11 | AH24: 15 | BF24: 33 | BG24: 0
A25: =IF(J$2="","",IF($E25="","",IF($E25=MAX($E$5:$E$54),1,IF($E25=$E24,$A24,COUNT($E$5:$E25))))) -> 21 | B25: 109 | C25: Anna | D25: M.Elena | E25: 40.82568807 | F25: 0 | G25: 40.82568807 | H25: 178 | J25: 178 | K25: 2 | L25: 2 | M25: 7 | N25: 0 | O25: 12 | P25: 15 | Q25: 8 | R25: 9 | S25: 7 | T25: 13 | U25: 1 | V25: 15 | W25: 12 | X25: 2 | Y25: 12 | Z25: 10 | AA25: 14 | AB25: 2 | AC25: 3 | AD25: 9 | AE25: 10 | AF25: 7 | AG25: 2 | AH25: 4 | BF25: 12 | BG25: 0
A26: =IF(J$2="","",IF($E26="","",IF($E26=MAX($E$5:$E$54),1,IF($E26=$E25,$A25,COUNT($E$5:$E26))))) -> 22 | B26: 7 | C26: Milena | D26: Giovanni | E26: 40.59633028 | F26: 0 | G26: 40.59633028 | H26: 177 | J26: 177 | K26: 6 | L26: 16 | M26: 2 | N26: 18 | O26: 2 | P26: 9 | Q26: 10 | R26: 9 | S26: 1 | T26: 8 | U26: 3 | V26: 10 | W26: 2 | X26: 7 | Y26: 6 | Z26: 8 | AA26: 18 | AB26: 9 | AC26: 9 | AD26: 1 | AE26: 8 | AF26: 3 | AG26: 7 | AH26: 5 | BF26: 32 | BG26: 0
A27: =IF(J$2="","",IF($E27="","",IF($E27=MAX($E$5:$E$54),1,IF($E27=$E26,$A26,COUNT($E$5:$E27))))) -> 23 | B27: 112 | C27: Mauro | D27: Paolo | E27: 39.67889908 | F27: 0 | G27: 39.67889908 | H27: 173 | J27: 173 | K27: 12 | L27: 2 | M27: 0 | N27: 4 | O27: 7 | P27: 8 | Q27: 14 | R27: 16 | S27: 14 | T27: 1 | U27: 9 | V27: 10 | W27: 13 | X27: 0 | Y27: 6 | Z27: 11 | AA27: 13 | AB27: 1 | AC27: 5 | AD27: 1 | AE27: 8 | AF27: 9 | AG27: 9 | AH27: 0 | BF27: 40 | BG27: 0
A28: =IF(J$2="","",IF($E28="","",IF($E28=MAX($E$5:$E$54),1,IF($E28=$E27,$A27,COUNT($E$5:$E28))))) -> 24 | E28: 0 | G28: 0 | H28: 0 | J28: 0 | BF28: 41 | BG28: 0
A29: =IF(J$2="","",IF($E29="","",IF($E29=MAX($E$5:$E$54),1,IF($E29=$E28,$A28,COUNT($E$5:$E29))))) -> 24 | E29: 0 | G29: 0 | H29: 0 | J29: 0 | BF29: 42 | BG29: 0
A30: =IF(J$2="","",IF($E30="","",IF($E30=MAX($E$5:$E$54),1,IF($E30=$E29,$A29,COUNT($E$5:$E30))))) -> 24 | E30: 0 | G30: 0 | H30: 0 | J30: 0 | BF30: 43 | BG30: 0
A31: =IF(J$2="","",IF($E31="","",IF($E31=MAX($E$5:$E$54),1,IF($E31=$E30,$A30,COUNT($E$5:$E31))))) -> 24 | E31: 0 | G31: 0 | H31: 0 | J31: 0 | BF31: 44 | BG31: 0
A32: =IF(J$2="","",IF($E32="","",IF($E32=MAX($E$5:$E$54),1,IF($E32=$E31,$A31,COUNT($E$5:$E32))))) -> 24 | E32: 0 | G32: 0 | H32: 0 | J32: 0 | BF32: 45 | BG32: 0
A33: =IF(J$2="","",IF($E33="","",IF($E33=MAX($E$5:$E$54),1,IF($E33=$E32,$A32,COUNT($E$5:$E33))))) -> 24 | E33: 0 | G33: 0 | H33: 0 | J33: 0 | BF33: 46 | BG33: 0
A34: =IF(J$2="","",IF($E34="","",IF($E34=MAX($E$5:$E$54),1,IF($E34=$E33,$A33,COUNT($E$5:$E34))))) -> 24 | E34: 0 | G34: 0 | H34: 0 | J34: 0 | BF34: 47 | BG34: 0
A35: =IF(J$2="","",IF($E35="","",IF($E35=MAX($E$5:$E$54),1,IF($E35=$E34,$A34,COUNT($E$5:$E35))))) -> 24 | E35: 0 | G35: 0 | H35: 0 | J35: 0 | BF35: 48 | BG35: 0
A36: =IF(J$2="","",IF($E36="","",IF($E36=MAX($E$5:$E$54),1,IF($E36=$E35,$A35,COUNT($E$5:$E36))))) ->  | G36: 0 | H36: 0 | J36: 0 | BF36: 3 | BG36: 1.03
A37: =IF(J$2="","",IF($E37="","",IF($E37=MAX($E$5:$E$54),1,IF($E37=$E36,$A36,COUNT($E$5:$E37))))) ->  | G37: =IF(J$2="","",IF($J37=0,0,(H37*$C$3/$J$3)*50)) -> 0 | H37: =IF(J$2="","",IF(SUM($K37:$AX37)=0,0,SUM($K37:$AX37)+$I37)) -> 0 | J37: =IF(B37="",0,IF(SUM($K37:$AX37)=0,0,SUM($K37:$AX37))) -> 0 | BF37: 5 | BG37: -1
A38: =IF(J$2="","",IF($E38="","",IF($E38=MAX($E$5:$E$54),1,IF($E38=$E37,$A37,COUNT($E$5:$E38))))) ->  | G38: 0 | H38: 0 | J38: 0 | BF38: 8 | BG38: 1.08
A39: =IF(J$2="","",IF($E39="","",IF($E39=MAX($E$5:$E$54),1,IF($E39=$E38,$A38,COUNT($E$5:$E39))))) ->  | G39: 0 | H39: 0 | J39: 0 | BF39: 9 | BG39: -1.22
A40: =IF(J$2="","",IF($E40="","",IF($E40=MAX($E$5:$E$54),1,IF($E40=$E39,$A39,COUNT($E$5:$E40))))) ->  | G40: 0 | H40: 0 | J40: 0 | BF40: 10 | BG40: -2.57
A41: =IF(J$2="","",IF($E41="","",IF($E41=MAX($E$5:$E$54),1,IF($E41=$E40,$A40,COUNT($E$5:$E41))))) ->  | G41: 0 | H41: 0 | J41: 0 | BF41: 13 | BG41: 0
A42: =IF(J$2="","",IF($E42="","",IF($E42=MAX($E$5:$E$54),1,IF($E42=$E41,$A41,COUNT($E$5:$E42))))) ->  | G42: 0 | H42: 0 | J42: 0 | BF42: 14 | BG42: 0
A43: =IF(J$2="","",IF($E43="","",IF($E43=MAX($E$5:$E$54),1,IF($E43=$E42,$A42,COUNT($E$5:$E43))))) ->  | G43: 0 | H43: 0 | J43: 0 | BF43: 15 | BG43: 0
A44: =IF(J$2="","",IF($E44="","",IF($E44=MAX($E$5:$E$54),1,IF($E44=$E43,$A43,COUNT($E$5:$E44))))) ->  | G44: 0 | H44: 0 | J44: 0 | BF44: 16 | BG44: 0
A45: =IF(J$2="","",IF($E45="","",IF($E45=MAX($E$5:$E$54),1,IF($E45=$E44,$A44,COUNT($E$5:$E45))))) ->  | G45: 0 | H45: 0 | J45: 0 | BF45: 17 | BG45: 0
A46: =IF(J$2="","",IF($E46="","",IF($E46=MAX($E$5:$E$54),1,IF($E46=$E45,$A45,COUNT($E$5:$E46))))) ->  | G46: 0 | H46: 0 | J46: 0 | BF46: 18 | BG46: 0
A47: =IF(J$2="","",IF($E47="","",IF($E47=MAX($E$5:$E$54),1,IF($E47=$E46,$A46,COUNT($E$5:$E47))))) ->  | G47: 0 | H47: 0 | J47: 0 | BF47: 19 | BG47: 0
A48: =IF(J$2="","",IF($E48="","",IF($E48=MAX($E$5:$E$54),1,IF($E48=$E47,$A47,COUNT($E$5:$E48))))) ->  | G48: 0 | H48: 0 | J48: 0 | BF48: 20 | BG48: 0
A49: =IF(J$2="","",IF($E49="","",IF($E49=MAX($E$5:$E$54),1,IF($E49=$E48,$A48,COUNT($E$5:$E49))))) ->  | G49: 0 | H49: 0 | J49: 0 | BF49: 21 | BG49: 0
A50: =IF(J$2="","",IF($E50="","",IF($E50=MAX($E$5:$E$54),1,IF($E50=$E49,$A49,COUNT($E$5:$E50))))) ->  | G50: 0 | H50: 0 | J50: 0 | BF50: 22 | BG50: 0
A51: =IF(J$2="","",IF($E51="","",IF($E51=MAX($E$5:$E$54),1,IF($E51=$E50,$A50,COUNT($E$5:$E51))))) ->  | G51: 0 | H51: 0 | J51: 0 | BF51: 23 | BG51: 0
A52: =IF(J$2="","",IF($E52="","",IF($E52=MAX($E$5:$E$54),1,IF($E52=$E51,$A51,COUNT($E$5:$E52))))) ->  | G52: 0 | H52: 0 | J52: 0 | BF52: 24 | BG52: 0
A53: =IF(J$2="","",IF($E53="","",IF($E53=MAX($E$5:$E$54),1,IF($E53=$E52,$A52,COUNT($E$5:$E53))))) ->  | G53: 0 | H53: 0 | J53: 0 | BF53: 49 | BG53: 0
A54: =IF(J$2="","",IF($E54="","",IF($E54=MAX($E$5:$E$54),1,IF($E54=$E53,$A53,COUNT($E$5:$E54))))) ->  | G54: 0 | H54: 0 | J54: 0 | BF54: 50 | BG54: 0
D59: punteggi % ordinati per # di coppia
B60: # coppia | E60: con zeri | F60: senza zeri | G60: senza zeri
B61: 1 | E61: 48.52751505 | F61: =IF(E61=0,"",E61) -> 48.52751505 | G61: 48.52751505 | BF61: 25 | BG61: 0
B62: 2 | E62: 50.33319003 | F62: 50.33319003 | G62: 50.33319003 | BF62: 26 | BG62: 0
B63: 3 | E63: 43.78761823 | F63: 43.78761823 | G63: 43.78761823 | I63: =IF(H63=0,"",H63) ->  | BF63: 27 | BG63: 0
B64: 4 | E64: 54.17024936 | F64: 54.17024936 | G64: 54.17024936 | BF64: 29 | BG64: 0
B65: 5 | E65: 53.04170249 | F65: 53.04170249 | G65: 53.04170249 | I65: =IF(H65=0,"",H65) ->  | BF65: 30 | BG65: 0
B66: 6 | E66: 55.07308684 | F66: 55.07308684 | G66: 55.07308684 | BF66: 31 | BG66: 0
B67: 7 | E67: 39.9505589 | F67: 39.9505589 | G67: 39.9505589 | BF67: 32 | BG67: 0
B68: 8 | E68: 41.30481513 | F68: 41.30481513 | G68: 41.30481513 | I68: =IF(H68=0,"",H68) ->  | BF68: 33 | BG68: 0
B69: 9 | E69: 50.5588994 | F69: 50.5588994 | G69: 50.5588994 | BF69: 34 | BG69: 0
B70: 10 | E70: 43.78761823 | F70: 43.78761823 | G70: 43.78761823 | I70: =IF(H70=0,"",H70) ->  | BF70: 35 | BG70: 0
B71: 11 | E71: 52.59028375 | F71: 52.59028375 | G71: 52.59028375 | I71: =IF(H71=0,"",H71) ->  | BF71: 37 | BG71: 0
B72: 12 | E72: 51.68744626 | F72: 51.68744626 | G72: 51.68744626 | BF72: 39 | BG72: 0
B73: 102 | E73: 52.59028375 | F73: 52.59028375 | G73: 52.59028375 | I73: =IF(H73=0,"",H73) ->  | BF73: 1 | BG73: 0.54
B74: 103 | E74: 54.17024936 | F74: 54.17024936 | G74: 54.17024936 | I74: =IF(H74=0,"",H74) ->  | BF74: 28 | BG74: 0
B75: 104 | E75: 49.65606191 | F75: 49.65606191 | G75: 49.65606191 | I75: =IF(H75=0,"",H75) ->  | BF75: 6 | BG75: 1.28
B76: 105 | E76: 50.78460877 | F76: 50.78460877 | G76: 50.78460877 | I76: =IF(H76=0,"",H76) ->  | BF76: 2 | BG76: -0.11
B77: 106 | E77: 56.65305245 | F77: 56.65305245 | G77: 56.65305245 | BF77: 4 | BG77: -0.72
B78: 107 | E78: 44.69045572 | F78: 44.69045572 | G78: 44.69045572 | BF78: 11 | BG78: 0.41
B79: 108 | E79: 65.68142734 | F79: 65.68142734 | G79: 65.68142734 | I79: =IF(H79=0,"",H79) ->  | BF79: 7 | BG79: -0.64
B80: 109 | E80: 40.17626827 | F80: 40.17626827 | G80: 40.17626827 | I80: =IF(H80=0,"",H80) ->  | BF80: 12 | BG80: 0
B81: 110 | E81: 50.78460877 | F81: 50.78460877 | G81: 50.78460877 | BF81: 36 | BG81: 0
B82: 111 | E82: 42.65907137 | F82: 42.65907137 | G82: 42.65907137 | BF82: 38 | BG82: 0
B83: 112 | E83: 39.04772141 | F83: 39.04772141 | G83: 39.04772141 | BF83: 40 | BG83: 0
E84: 0 | BF84: 3 | BG84: 1.03
E85: 0 | BF85: 5 | BG85: -1
E86: 0 | BF86: 8 | BG86: 1.08
E87: 0 | BF87: 9 | BG87: -1.22
E88: 0 | BF88: 10 | BG88: -2.57
E89: 0 | BF89: 13 | BG89: 0
E90: 0 | BF90: 14 | BG90: 0
E91: 0 | BF91: 15 | BG91: 0
E92: 0 | BF92: 16 | BG92: 0
E93: 0 | F93: =IF(E93=0,"",E93) ->  | BF93: 17 | BG93: 0
E94: 0 | BF94: 18 | BG94: 0
E95: 0 | BF95: 19 | BG95: 0
E96: 0 | BF96: 20 | BG96: 0
E97: 0 | BF97: 21 | BG97: 0
E98: 0 | BF98: 22 | BG98: 0
E99: 0 | BF99: 23 | BG99: 0
E100: 0 | BF100: 24 | BG100: 0
E101: 0 | BF101: 41 | BG101: 0
E102: 0 | BF102: 42 | BG102: 0
E103: 0 | BF103: 43 | BG103: 0
E104: 0 | BF104: 44 | BG104: 0
E105: 0 | BF105: 45 | BG105: 0
E106: 0 | BF106: 46 | BG106: 0
E107: 0 | BF107: 47 | BG107: 0
E108: 0 | BF108: 48 | BG108: 0
E109: 0 | BF109: 49 | BG109: 0
E110: 0 | BF110: 50 | BG110: 0
A119: punteggi con handicap ordinati per numero standard di coppia base
B120: # coppia | E120: con zeri | F120: senza zeri | G120: senza zeri
B121: 102 | E121: 53.13028375 | BF121: 1 | BG121: 0
B122: 105 | E122: 50.67460877 | BF122: 2 | BG122: 0
BF123: 3 | BG123: 0
B124: 106 | E124: 55.93305245 | BF124: 4 | BG124: 0
BF125: 5 | BG125: 0
B126: 104 | E126: 50.93606191 | BF126: 6 | BG126: 0
B127: 108 | E127: 65.04142734 | BF127: 7 | BG127: 0
BF128: 8 | BG128: 0
BF129: 9 | BG129: 0
BF130: 10 | BG130: 0
B131: 107 | E131: 45.10045572 | BF131: 11 | BG131: 0

Sheet 18mar
A1: Data | C1: 2017-03-18 | D1: BridgeMania 2016-17 - Torneo Howell
A2: luogo | C2: Simonelli | D2: Coppie Ctrl+e | E2: Calcola Ctr+f | F2: Duplica Ctrl+g | G2: Clear Ctrl+h | J2: &
A3: # coppie | C3: =IF(B5="","",COUNT(B5:B25)) -> 10 | E3: =IF(E5="","",SUMIF(E5:E25,">0")) -> 499.57 | G3: =IF(G5="","",SUM(G5:G25)) -> 500 | H3: =IF(H5="","",SUM(H5:H25)) -> 720 | I3: =SUM(I5:I25) -> 0 | J3: =SUM(J5:J25) -> 720 | K3: =SUM(K5:K25) -> 40 | L3: =SUM(L5:L25) -> 40 | M3: 40 | N3: 40 | O3: 40 | P3: 40 | Q3: 40 | R3: 40 | S3: 40 | T3: 40 | U3: 40 | V3: 40 | W3: 40 | X3: 40 | Y3: 40 | Z3: 40 | AA3: 40 | AB3: 40 | AC3: 0 | AD3: 0 | AE3: 0 | AF3: 0 | AG3: 0 | AH3: 0 | AI3: 0 | AJ3: 0 | AK3: 0 | AL3: 0 | AM3: 0 | AN3: 0 | AO3: 0 | AP3: 0 | AQ3: 0 | AR3: 0 | AS3: 0 | AT3: 0 | AU3: 0 | AV3: 0 | AW3: 0 | AX3: 0
A4: Class. | B4: # | C4: Coppie | E4: Punteggio Serata | F4: Handicap | G4: Punteggio % | H4: Punteggio Torneo | I4: Penalità (-) | J4: Totale punti mano | K4: 1 | L4: 2 | M4: 3 | N4: 4 | O4: 5 | P4: 6 | Q4: 7 | R4: 8 | S4: 9 | T4: 10 | U4: 11 | V4: 12 | W4: 13 | X4: 14 | Y4: 15 | Z4: 16 | AA4: 17 | AB4: 18 | AC4: 19 | AD4: 20 | AE4: 21 | AF4: 22 | AG4: 23 | AH4: 24 | AI4: 25 | AJ4: 26 | AK4: 27 | AL4: 28 | AM4: 29 | AN4: 30 | AO4: 31 | AP4: 32 | AQ4: 33 | AR4: 34 | AS4: 35 | AT4: 36 | AU4: 37 | AV4: 38 | AW4: 39 | AX4: 40 | BF4: coppia | BG4: handicap
A5: =IF(J$2="","",IF($E5="","",IF($E5=MAX($E$5:$E$54),1,IF($E5=$E4,$A4,COUNT($E$5:$E5))))) -> 1 | B5: 2 | C5: Cristina | D5: Sauro | E5: =IF(J$2="","",IF(G5=0,0,F5+G5)) -> 59.72222222 | F5: =IF(C5="","",IF(BG5=0,0,BG5)) -> 0 | G5: =IF(J$2="","",IF($J5=0,0,(H5*$C$3/$J$3)*50)) -> 59.72222222 | H5: =IF(J$2="","",IF(SUM($K5:$AX5)=0,0,SUM($K5:$AX5)+$I5)) -> 86 | J5: =IF(B5="",0,IF(SUM($K5:$AX5)=0,0,SUM($K5:$AX5))) -> 86 | K5: 2 | L5: 7 | M5: 6 | N5: 5 | O5: 0 | P5: 6 | Q5: 7 | R5: 6 | S5: 2 | T5: 5 | U5: 7 | V5: 3 | W5: 8 | X5: 2 | Y5: 5 | Z5: 0 | AA5: 7 | AB5: 8 | BF5: 24 | BG5: 0
A6: =IF(J$2="","",IF($E6="","",IF($E6=MAX($E$5:$E$54),1,IF($E6=$E5,$A5,COUNT($E$5:$E6))))) -> 2 | B6: 6 | C6: Renata | D6: Sandro | E6: 58.50222222 | F6: -1.22 | G6: 59.72222222 | H6: 86 | J6: 86 | K6: 6 | L6: 0 | M6: 6 | N6: 8 | O6: 6 | P6: 6 | Q6: 6 | R6: 8 | S6: 6 | T6: 3 | U6: 1 | V6: 2 | W6: 4 | X6: 4 | Y6: 0 | Z6: 6 | AA6: 6 | AB6: 8 | BF6: 9 | BG6: -1.22
A7: =IF(J$2="","",IF($E7="","",IF($E7=MAX($E$5:$E$54),1,IF($E7=$E6,$A6,COUNT($E$5:$E7))))) -> 3 | B7: 5 | C7: Elena | D7: Stefano | E7: 55.53 | F7: -0.72 | G7: 56.25 | H7: 81 | J7: 81 | K7: 8 | L7: 4 | M7: 2 | N7: 0 | O7: 8 | P7: 2 | Q7: 6 | R7: 5 | S7: 6 | T7: 5 | U7: 6 | V7: 5 | W7: 7 | X7: 0 | Y7: 5 | Z7: 6 | AA7: 0 | AB7: 6 | BF7: 4 | BG7: -0.72
A8: =IF(J$2="","",IF($E8="","",IF($E8=MAX($E$5:$E$54),1,IF($E8=$E7,$A7,COUNT($E$5:$E8))))) -> 4 | B8: 4 | C8: Cesarina | D8: Gaetano | E8: 55.19666667 | F8: 1.03 | G8: 54.16666667 | H8: 78 | J8: 78 | K8: 0 | L8: 4 | M8: 8 | N8: 3 | O8: 6 | P8: 2 | Q8: 2 | R8: 3 | S8: 8 | T8: 5 | U8: 1 | V8: 5 | W8: 2 | X8: 8 | Y8: 8 | Z8: 2 | AA8: 7 | AB8: 4 | BF8: 3 | BG8: 1.03
A9: =IF(J$2="","",IF($E9="","",IF($E9=MAX($E$5:$E$54),1,IF($E9=$E8,$A8,COUNT($E$5:$E9))))) -> 5 | B9: 3 | C9: Barbara | D9: Elio | E9: 49.89 | F9: -0.11 | G9: 50 | H9: 72 | J9: 72 | K9: 4 | L9: 7 | M9: 2 | N9: 3 | O9: 8 | P9: 0 | Q9: 2 | R9: 0 | S9: 2 | T9: 5 | U9: 6 | V9: 8 | W9: 1 | X9: 8 | Y9: 3 | Z9: 8 | AA9: 1 | AB9: 4 | BF9: 2 | BG9: -0.11
A10: =IF(J$2="","",IF($E10="","",IF($E10=MAX($E$5:$E$54),1,IF($E10=$E9,$A9,COUNT($E$5:$E10))))) -> 6 | B10: 1 | C10: Tatiana | D10: Julio | E10: 48.32666667 | F10: 0.41 | G10: 47.91666667 | H10: 69 | J10: 69 | K10: 8 | L10: 6 | M10: 0 | N10: 5 | O10: 4 | P10: 2 | Q10: 2 | R10: 3 | S10: 6 | T10: 3 | U10: 2 | V10: 8 | W10: 0 | X10: 6 | Y10: 6 | Z10: 6 | AA10: 2 | AB10: 0 | BF10: 11 | BG10: 0.41
A11: =IF(J$2="","",IF($E11="","",IF($E11=MAX($E$5:$E$54),1,IF($E11=$E10,$A10,COUNT($E$5:$E11))))) -> 7 | B11: 9 | C11: Isolde | D11: Letizia | E11: 47.61111111 | F11: -1 | G11: 48.61111111 | H11: 70 | J11: 70 | K11: 4 | L11: 1 | M11: 6 | N11: 5 | O11: 2 | P11: 6 | Q11: 1 | R11: 2 | S11: 6 | T11: 8 | U11: 6 | V11: 0 | W11: 4 | X11: 4 | Y11: 3 | Z11: 2 | AA11: 4 | AB11: 6 | BF11: 5 | BG11: -1
A12: =IF(J$2="","",IF($E12="","",IF($E12=MAX($E$5:$E$54),1,IF($E12=$E11,$A11,COUNT($E$5:$E12))))) -> 8 | B12: 7 | C12: Lilli | D12: Gianni | E12: 42.25222222 | F12: 1.28 | G12: 40.97222222 | H12: 59 | J12: 59 | K12: 6 | L12: 1 | M12: 2 | N12: 3 | O12: 2 | P12: 2 | Q12: 7 | R12: 8 | S12: 0 | T12: 3 | U12: 2 | V12: 0 | W12: 7 | X12: 2 | Y12: 2 | Z12: 2 | AA12: 8 | AB12: 2 | BF12: 6 | BG12: 1.28
A13: =IF(J$2="","",IF($E13="","",IF($E13=MAX($E$5:$E$54),1,IF($E13=$E12,$A12,COUNT($E$5:$E13))))) -> 9 | B13: 8 | C13: Antonella | D13: Dino | E13: 42.20666667 | F13: 0.54 | G13: 41.66666667 | H13: 60 | J13: 60 | K13: 2 | L13: 8 | M13: 6 | N13: 5 | O13: 4 | P13: 6 | Q13: 1 | R13: 0 | S13: 2 | T13: 0 | U13: 2 | V13: 3 | W13: 6 | X13: 0 | Y13: 8 | Z13: 6 | AA13: 1 | AB13: 0 | BF13: 1 | BG13: 0.54
A14: =IF(J$2="","",IF($E14="","",IF($E14=MAX($E$5:$E$54),1,IF($E14=$E13,$A13,COUNT($E$5:$E14))))) -> 10 | B14: 10 | C14: Manuela | D14: Roberto | E14: 40.33222222 | F14: -0.64 | G14: 40.97222222 | H14: 59 | J14: 59 | K14: 0 | L14: 2 | M14: 2 | N14: 3 | O14: 0 | P14: 8 | Q14: 6 | R14: 5 | S14: 2 | T14: 3 | U14: 7 | V14: 6 | W14: 1 | X14: 6 | Y14: 0 | Z14: 2 | AA14: 4 | AB14: 2 | BF14: 7 | BG14: -0.64
A15: =IF(J$2="","",IF($E15="","",IF($E15=MAX($E$5:$E$54),1,IF($E15=$E14,$A14,COUNT($E$5:$E15))))) -> 11 | E15: 0 | G15: 0 | H15: 0 | J15: 0 | BF15: 8 | BG15: 1.08
A16: =IF(J$2="","",IF($E16="","",IF($E16=MAX($E$5:$E$54),1,IF($E16=$E15,$A15,COUNT($E$5:$E16))))) -> 11 | E16: 0 | G16: 0 | H16: 0 | J16: 0 | BF16: 10 | BG16: -2.57
A17: =IF(J$2="","",IF($E17="","",IF($E17=MAX($E$5:$E$54),1,IF($E17=$E16,$A16,COUNT($E$5:$E17))))) -> 11 | E17: 0 | G17: 0 | H17: 0 | J17: 0 | BF17: 12 | BG17: 0
A18: =IF(J$2="","",IF($E18="","",IF($E18=MAX($E$5:$E$54),1,IF($E18=$E17,$A17,COUNT($E$5:$E18))))) -> 11 | E18: 0 | G18: 0 | H18: 0 | J18: 0 | BF18: 13 | BG18: 0
A19: =IF(J$2="","",IF($E19="","",IF($E19=MAX($E$5:$E$54),1,IF($E19=$E18,$A18,COUNT($E$5:$E19))))) -> 11 | E19: 0 | G19: 0 | H19: 0 | J19: 0 | BF19: 14 | BG19: 0
A20: =IF(J$2="","",IF($E20="","",IF($E20=MAX($E$5:$E$54),1,IF($E20=$E19,$A19,COUNT($E$5:$E20))))) -> 11 | E20: 0 | G20: 0 | H20: 0 | J20: 0 | BF20: 15 | BG20: 0
A21: =IF(J$2="","",IF($E21="","",IF($E21=MAX($E$5:$E$54),1,IF($E21=$E20,$A20,COUNT($E$5:$E21))))) -> 11 | E21: 0 | G21: 0 | H21: 0 | J21: 0 | BF21: 16 | BG21: 0
A22: =IF(J$2="","",IF($E22="","",IF($E22=MAX($E$5:$E$54),1,IF($E22=$E21,$A21,COUNT($E$5:$E22))))) -> 11 | E22: 0 | G22: 0 | H22: 0 | J22: 0 | BF22: 17 | BG22: 0
A23: =IF(J$2="","",IF($E23="","",IF($E23=MAX($E$5:$E$54),1,IF($E23=$E22,$A22,COUNT($E$5:$E23))))) -> 11 | E23: 0 | G23: 0 | H23: 0 | J23: 0 | BF23: 18 | BG23: 0
A24: =IF(J$2="","",IF($E24="","",IF($E24=MAX($E$5:$E$54),1,IF($E24=$E23,$A23,COUNT($E$5:$E24))))) -> 11 | E24: 0 | G24: 0 | H24: 0 | J24: 0 | BF24: 19 | BG24: 0
A25: =IF(J$2="","",IF($E25="","",IF($E25=MAX($E$5:$E$54),1,IF($E25=$E24,$A24,COUNT($E$5:$E25))))) -> 11 | E25: 0 | G25: 0 | H25: 0 | J25: 0 | BF25: 20 | BG25: 0
A26: =IF(J$2="","",IF($E26="","",IF($E26=MAX($E$5:$E$54),1,IF($E26=$E25,$A25,COUNT($E$5:$E26))))) -> 11 | E26: 0 | G26: 0 | H26: 0 | J26: 0 | BF26: 21 | BG26: 0
A27: =IF(J$2="","",IF($E27="","",IF($E27=MAX($E$5:$E$54),1,IF($E27=$E26,$A26,COUNT($E$5:$E27))))) -> 11 | E27: 0 | G27: 0 | H27: 0 | J27: 0 | BF27: 22 | BG27: 0
A28: =IF(J$2="","",IF($E28="","",IF($E28=MAX($E$5:$E$54),1,IF($E28=$E27,$A27,COUNT($E$5:$E28))))) -> 11 | E28: 0 | G28: 0 | H28: 0 | J28: 0 | BF28: 23 | BG28: 0
A29: =IF(J$2="","",IF($E29="","",IF($E29=MAX($E$5:$E$54),1,IF($E29=$E28,$A28,COUNT($E$5:$E29))))) -> 11 | E29: 0 | G29: 0 | H29: 0 | J29: 0 | BF29: 25 | BG29: 0
A30: =IF(J$2="","",IF($E30="","",IF($E30=MAX($E$5:$E$54),1,IF($E30=$E29,$A29,COUNT($E$5:$E30))))) -> 11 | E30: 0 | G30: 0 | H30: 0 | J30: 0 | BF30: 26 | BG30: 0
A31: =IF(J$2="","",IF($E31="","",IF($E31=MAX($E$5:$E$54),1,IF($E31=$E30,$A30,COUNT($E$5:$E31))))) -> 11 | E31: 0 | G31: 0 | H31: 0 | J31: 0 | BF31: 27 | BG31: 0
A32: =IF(J$2="","",IF($E32="","",IF($E32=MAX($E$5:$E$54),1,IF($E32=$E31,$A31,COUNT($E$5:$E32))))) -> 11 | E32: 0 | G32: 0 | H32: 0 | J32: 0 | BF32: 28 | BG32: 0
A33: =IF(J$2="","",IF($E33="","",IF($E33=MAX($E$5:$E$54),1,IF($E33=$E32,$A32,COUNT($E$5:$E33))))) -> 11 | E33: 0 | G33: 0 | H33: 0 | J33: 0 | BF33: 29 | BG33: 0
A34: =IF(J$2="","",IF($E34="","",IF($E34=MAX($E$5:$E$54),1,IF($E34=$E33,$A33,COUNT($E$5:$E34))))) -> 11 | E34: 0 | G34: 0 | H34: 0 | J34: 0 | BF34: 30 | BG34: 0
A35: =IF(J$2="","",IF($E35="","",IF($E35=MAX($E$5:$E$54),1,IF($E35=$E34,$A34,COUNT($E$5:$E35))))) -> 11 | E35: 0 | G35: 0 | H35: 0 | J35: 0 | BF35: 31 | BG35: 0
A36: =IF(J$2="","",IF($E36="","",IF($E36=MAX($E$5:$E$54),1,IF($E36=$E35,$A35,COUNT($E$5:$E36))))) -> 11 | E36: 0 | G36: 0 | H36: 0 | J36: 0 | BF36: 32 | BG36: 0
A37: =IF(J$2="","",IF($E37="","",IF($E37=MAX($E$5:$E$54),1,IF($E37=$E36,$A36,COUNT($E$5:$E37))))) -> 11 | E37: 0 | G37: =IF(J$2="","",IF($J37=0,0,(H37*$C$3/$J$3)*50)) -> 0 | H37: =IF(J$2="","",IF(SUM($K37:$AX37)=0,0,SUM($K37:$AX37)+$I37)) -> 0 | J37: =IF(B37="",0,IF(SUM($K37:$AX37)=0,0,SUM($K37:$AX37))) -> 0 | BF37: 33 | BG37: 0
A38: =IF(J$2="","",IF($E38="","",IF($E38=MAX($E$5:$E$54),1,IF($E38=$E37,$A37,COUNT($E$5:$E38))))) -> 11 | E38: 0 | G38: 0 | H38: 0 | J38: 0 | BF38: 34 | BG38: 0
A39: =IF(J$2="","",IF($E39="","",IF($E39=MAX($E$5:$E$54),1,IF($E39=$E38,$A38,COUNT($E$5:$E39))))) -> 11 | E39: 0 | G39: 0 | H39: 0 | J39: 0 | BF39: 35 | BG39: 0
A40: =IF(J$2="","",IF($E40="","",IF($E40=MAX($E$5:$E$54),1,IF($E40=$E39,$A39,COUNT($E$5:$E40))))) -> 11 | E40: 0 | G40: 0 | H40: 0 | J40: 0 | BF40: 36 | BG40: 0
A41: =IF(J$2="","",IF($E41="","",IF($E41=MAX($E$5:$E$54),1,IF($E41=$E40,$A40,COUNT($E$5:$E41))))) -> 11 | E41: 0 | G41: 0 | H41: 0 | J41: 0 | BF41: 37 | BG41: 0
A42: =IF(J$2="","",IF($E42="","",IF($E42=MAX($E$5:$E$54),1,IF($E42=$E41,$A41,COUNT($E$5:$E42))))) -> 11 | E42: 0 | G42: 0 | H42: 0 | J42: 0 | BF42: 38 | BG42: 0
A43: =IF(J$2="","",IF($E43="","",IF($E43=MAX($E$5:$E$54),1,IF($E43=$E42,$A42,COUNT($E$5:$E43))))) -> 11 | E43: 0 | G43: 0 | H43: 0 | J43: 0 | BF43: 39 | BG43: 0
A44: =IF(J$2="","",IF($E44="","",IF($E44=MAX($E$5:$E$54),1,IF($E44=$E43,$A43,COUNT($E$5:$E44))))) -> 11 | E44: 0 | G44: 0 | H44: 0 | J44: 0 | BF44: 40 | BG44: 0
A45: =IF(J$2="","",IF($E45="","",IF($E45=MAX($E$5:$E$54),1,IF($E45=$E44,$A44,COUNT($E$5:$E45))))) -> 11 | E45: 0 | G45: 0 | H45: 0 | J45: 0 | BF45: 41 | BG45: 0
A46: =IF(J$2="","",IF($E46="","",IF($E46=MAX($E$5:$E$54),1,IF($E46=$E45,$A45,COUNT($E$5:$E46))))) -> 11 | E46: 0 | G46: 0 | H46: 0 | J46: 0 | BF46: 42 | BG46: 0
A47: =IF(J$2="","",IF($E47="","",IF($E47=MAX($E$5:$E$54),1,IF($E47=$E46,$A46,COUNT($E$5:$E47))))) -> 11 | E47: 0 | G47: 0 | H47: 0 | J47: 0 | BF47: 43 | BG47: 0
A48: =IF(J$2="","",IF($E48="","",IF($E48=MAX($E$5:$E$54),1,IF($E48=$E47,$A47,COUNT($E$5:$E48))))) -> 11 | E48: 0 | G48: 0 | H48: 0 | J48: 0 | BF48: 44 | BG48: 0
A49: =IF(J$2="","",IF($E49="","",IF($E49=MAX($E$5:$E$54),1,IF($E49=$E48,$A48,COUNT($E$5:$E49))))) -> 11 | E49: 0 | G49: 0 | H49: 0 | J49: 0 | BF49: 45 | BG49: 0
A50: =IF(J$2="","",IF($E50="","",IF($E50=MAX($E$5:$E$54),1,IF($E50=$E49,$A49,COUNT($E$5:$E50))))) -> 11 | E50: 0 | G50: 0 | H50: 0 | J50: 0 | BF50: 46 | BG50: 0
A51: =IF(J$2="","",IF($E51="","",IF($E51=MAX($E$5:$E$54),1,IF($E51=$E50,$A50,COUNT($E$5:$E51))))) -> 11 | E51: 0 | G51: 0 | H51: 0 | J51: 0 | BF51: 47 | BG51: 0
A52: =IF(J$2="","",IF($E52="","",IF($E52=MAX($E$5:$E$54),1,IF($E52=$E51,$A51,COUNT($E$5:$E52))))) -> 11 | E52: 0 | G52: 0 | H52: 0 | J52: 0 | BF52: 48 | BG52: 0
A53: =IF(J$2="","",IF($E53="","",IF($E53=MAX($E$5:$E$54),1,IF($E53=$E52,$A52,COUNT($E$5:$E53))))) ->  | G53: 0 | H53: 0 | J53: 0 | BF53: 49 | BG53: 0
A54: =IF(J$2="","",IF($E54="","",IF($E54=MAX($E$5:$E$54),1,IF($E54=$E53,$A53,COUNT($E$5:$E54))))) ->  | G54: 0 | H54: 0 | J54: 0 | BF54: 50 | BG54: 0
D59: punteggi % ordinati per # di coppia
B60: # coppia | E60: con zeri | F60: senza zeri | G60: senza zeri
B61: 1 | E61: 47.91666667 | F61: =IF(E61=0,"",E61) -> 47.91666667 | G61: 47.91666667 | BF61: 11 | BG61: 0.41
B62: 2 | E62: 59.72222222 | F62: 59.72222222 | G62: 59.72222222 | BF62: 24 | BG62: 0
B63: 3 | E63: 50 | F63: 50 | G63: 50 | I63: =IF(H63=0,"",H63) ->  | BF63: 2 | BG63: -0.11
B64: 4 | E64: 54.16666667 | F64: 54.16666667 | G64: 54.16666667 | BF64: 3 | BG64: 1.03
B65: 5 | E65: 56.25 | F65: 56.25 | G65: 56.25 | I65: =IF(H65=0,"",H65) ->  | BF65: 4 | BG65: -0.72
B66: 6 | E66: 59.72222222 | F66: 59.72222222 | G66: 59.72222222 | BF66: 9 | BG66: -1.22
B67: 7 | E67: 40.97222222 | F67: 40.97222222 | G67: 40.97222222 | BF67: 6 | BG67: 1.28
B68: 8 | E68: 41.66666667 | F68: 41.66666667 | G68: 41.66666667 | I68: =IF(H68=0,"",H68) ->  | BF68: 1 | BG68: 0.54
B69: 9 | E69: 48.61111111 | F69: 48.61111111 | G69: 48.61111111 | BF69: 5 | BG69: -1
B70: 10 | E70: 40.97222222 | F70: 40.97222222 | G70: 40.97222222 | I70: =IF(H70=0,"",H70) ->  | BF70: 7 | BG70: -0.64
E71: 0 | I71: =IF(H71=0,"",H71) ->  | BF71: 8 | BG71: 1.08
E72: 0 | BF72: 10 | BG72: -2.57
E73: 0 | I73: =IF(H73=0,"",H73) ->  | BF73: 12 | BG73: 0
E74: 0 | I74: =IF(H74=0,"",H74) ->  | BF74: 13 | BG74: 0
E75: 0 | I75: =IF(H75=0,"",H75) ->  | BF75: 14 | BG75: 0
E76: 0 | I76: =IF(H76=0,"",H76) ->  | BF76: 15 | BG76: 0
E77: 0 | BF77: 16 | BG77: 0
E78: 0 | BF78: 17 | BG78: 0
E79: 0 | I79: =IF(H79=0,"",H79) ->  | BF79: 18 | BG79: 0
E80: 0 | I80: =IF(H80=0,"",H80) ->  | BF80: 19 | BG80: 0
E81: 0 | BF81: 20 | BG81: 0
E82: 0 | BF82: 21 | BG82: 0
E83: 0 | BF83: 22 | BG83: 0
E84: 0 | BF84: 23 | BG84: 0
E85: 0 | BF85: 25 | BG85: 0
E86: 0 | BF86: 26 | BG86: 0
E87: 0 | BF87: 27 | BG87: 0
E88: 0 | BF88: 28 | BG88: 0
E89: 0 | BF89: 29 | BG89: 0
E90: 0 | BF90: 30 | BG90: 0
E91: 0 | BF91: 31 | BG91: 0
E92: 0 | BF92: 32 | BG92: 0
E93: 0 | F93: =IF(E93=0,"",E93) ->  | BF93: 33 | BG93: 0
E94: 0 | BF94: 34 | BG94: 0
E95: 0 | BF95: 35 | BG95: 0
E96: 0 | BF96: 36 | BG96: 0
E97: 0 | BF97: 37 | BG97: 0
E98: 0 | BF98: 38 | BG98: 0
E99: 0 | BF99: 39 | BG99: 0
E100: 0 | BF100: 40 | BG100: 0
E101: 0 | BF101: 41 | BG101: 0
E102: 0 | BF102: 42 | BG102: 0
E103: 0 | BF103: 43 | BG103: 0
E104: 0 | BF104: 44 | BG104: 0
E105: 0 | BF105: 45 | BG105: 0
E106: 0 | BF106: 46 | BG106: 0
E107: 0 | BF107: 47 | BG107: 0
E108: 0 | BF108: 48 | BG108: 0
E109: 0 | BF109: 49 | BG109: 0
E110: 0 | BF110: 50 | BG110: 0
A119: punteggi con handicap ordinati per numero standard di coppia base
B120: # coppia | E120: con zeri | F120: senza zeri | G120: senza zeri
B121: 8 | E121: 42.20666667 | F121: =IF(E121=0,"",E121) -> 42.20666667 | G121: 42.20666667 | BF121: 1 | BG121: 0.54
B122: 3 | E122: 49.89 | F122: 49.89 | G122: 49.89 | BF122: 2 | BG122: 1.03
B123: 4 | E123: 55.19666667 | F123: 55.19666667 | G123: 55.19666667 | BF123: 3 | BG123: -0.11
B124: 5 | E124: 55.53 | F124: 55.53 | G124: 55.53 | BF124: 4 | BG124: 0
B125: 9 | E125: 47.61111111 | F125: 47.61111111 | G125: 47.61111111 | I125: =IF(H125=0,"",H125) ->  | BF125: 5 | BG125: -1.22
B126: 7 | E126: 42.25222222 | F126: 42.25222222 | G126: 42.25222222 | BF126: 6 | BG126: 1.28
B127: 10 | E127: 40.33222222 | F127: 40.33222222 | G127: 40.33222222 | BF127: 7 | BG127: -1
E128: 0 | BF128: 8 | BG128: -0.64
B129: 6 | E129: 58.50222222 | F129: 58.50222222 | G129: 58.50222222 | I129: =IF(H129=0,"",H129) ->  | BF129: 9 | BG129: 0.41
E130: 0 | BF130: 10 | BG130: 1.08
B131: 1 | E131: 48.32666667 | F131: =IF(E131=0,"",E131) -> 48.32666667 | G131: 48.32666667 | I131: =IF(H131=0,"",H131) ->  | BF131: 11 | BG131: -0.72

Sheet 11mar
A1: Data | C1: 2017-03-11 | D1: BridgeMania 2016-17 - Torneo Howell
A2: luogo | C2: Malerba | D2: Coppie Ctrl+e | E2: Calcola Ctr+f | F2: Duplica Ctrl+g | G2: Clear Ctrl+h | J2: &
A3: # coppie | C3: =IF(B5="","",COUNT(B5:B25)) -> 9 | E3: =IF(E5="","",SUMIF(E5:E25,">0")) -> 450.24 | G3: =IF(G5="","",SUM(G5:G25)) -> 450 | H3: =IF(H5="","",SUM(H5:H25)) -> 486 | I3: =SUM(I5:I25) -> 0 | J3: =SUM(J5:J25) -> 486 | K3: =SUM(K5:K25) -> 27 | L3: =SUM(L5:L25) -> 27 | M3: 27 | N3: 27 | O3: 27 | P3: 27 | Q3: 27 | R3: 27 | S3: 27 | T3: 27 | U3: 27 | V3: 27 | W3: 27 | X3: 27 | Y3: 27 | Z3: 27 | AA3: 27 | AB3: 27 | AC3: 0 | AD3: 0 | AE3: 0 | AF3: 0 | AG3: 0 | AH3: 0 | AI3: 0 | AJ3: 0 | AK3: 0 | AL3: 0 | AM3: 0 | AN3: 0 | AO3: 0 | AP3: 0 | AQ3: 0 | AR3: 0 | AS3: 0 | AT3: 0 | AU3: 0 | AV3: 0 | AW3: 0 | AX3: 0
A4: Class. | B4: # | C4: Coppie | E4: Punteggio Serata | F4: Handicap | G4: Punteggio % | H4: Punteggio Torneo | I4: Penalità (-) | J4: Totale punti mano | K4: 1 | L4: 2 | M4: 3 | N4: 4 | O4: 5 | P4: 6 | Q4: 7 | R4: 8 | S4: 9 | T4: 10 | U4: 11 | V4: 12 | W4: 13 | X4: 14 | Y4: 15 | Z4: 16 | AA4: 17 | AB4: 18 | AC4: 19 | AD4: 20 | AE4: 21 | AF4: 22 | AG4: 23 | AH4: 24 | AI4: 25 | AJ4: 26 | AK4: 27 | AL4: 28 | AM4: 29 | AN4: 30 | AO4: 31 | AP4: 32 | AQ4: 33 | AR4: 34 | AS4: 35 | AT4: 36 | AU4: 37 | AV4: 38 | AW4: 39 | AX4: 40 | BF4: coppia | BG4: handicap
A5: =IF(J$2="","",IF($E5="","",IF($E5=MAX($E$5:$E$54),1,IF($E5=$E4,$A4,COUNT($E$5:$E5))))) -> 1 | B5: 4 | C5: Lilli | D5: Gianni | E5: =IF(J$2="","",IF(G5=0,0,F5+G5)) -> 61.46518519 | F5: =IF(C5="","",IF(BG5=0,0,BG5)) -> 1.28 | G5: =IF(J$2="","",IF($J5=0,0,(H5*$C$3/$J$3)*50)) -> 60.18518519 | H5: =IF(J$2="","",IF(SUM($K5:$AX5)=0,0,SUM($K5:$AX5)+$I5)) -> 65 | J5: =IF(B5="",0,IF(SUM($K5:$AX5)=0,0,SUM($K5:$AX5))) -> 65 | K5: 3 | L5: 6 | M5: 4 | N5: 2 | O5: 6 | P5: 2 | Q5: 3 | R5: 3 | S5: 3 | T5: 4 | U5: 4 | V5: 3 | W5: 2 | X5: 6 | Y5: 4 | Z5: 4 | AA5: 2 | AB5: 4 | BF5: 6 | BG5: 1.28
A6: =IF(J$2="","",IF($E6="","",IF($E6=MAX($E$5:$E$54),1,IF($E6=$E5,$A5,COUNT($E$5:$E6))))) -> 2 | B6: 1 | C6: Elena | D6: Stefano | E6: 57.61333333 | F6: -0.72 | G6: 58.33333333 | H6: 63 | J6: 63 | K6: 3 | L6: 3 | M6: 2 | N6: 4 | O6: 4 | P6: 4 | Q6: 5 | R6: 6 | S6: 6 | T6: 6 | U6: 2 | V6: 0 | W6: 4 | X6: 2 | Y6: 0 | Z6: 6 | AA6: 2 | AB6: 4 | BF6: 4 | BG6: -0.72
A7: =IF(J$2="","",IF($E7="","",IF($E7=MAX($E$5:$E$54),1,IF($E7=$E6,$A6,COUNT($E$5:$E7))))) -> 3 | B7: 2 | C7: Barbara | D7: Elio | E7: 57.29740741 | F7: -0.11 | G7: 57.40740741 | H7: 62 | J7: 62 | K7: 0 | L7: 4 | M7: 3 | N7: 3 | O7: 6 | P7: 4 | Q7: 5 | R7: 0 | S7: 6 | T7: 6 | U7: 2 | V7: 3 | W7: 2 | X7: 4 | Y7: 2 | Z7: 6 | AA7: 2 | AB7: 4 | BF7: 2 | BG7: -0.11
A8: =IF(J$2="","",IF($E8="","",IF($E8=MAX($E$5:$E$54),1,IF($E8=$E7,$A7,COUNT($E$5:$E8))))) -> 4 | B8: 8 | C8: Manuela | D8: Roberto | E8: 53.0637037 | F8: -0.64 | G8: 53.7037037 | H8: 58 | J8: 58 | K8: 3 | L8: 2 | M8: 6 | N8: 4 | O8: 2 | P8: 2 | Q8: 6 | R8: 3 | S8: 3 | T8: 2 | U8: 6 | V8: 3 | W8: 4 | X8: 0 | Y8: 3 | Z8: 3 | AA8: 4 | AB8: 2 | BF8: 7 | BG8: -0.64
A9: =IF(J$2="","",IF($E9="","",IF($E9=MAX($E$5:$E$54),1,IF($E9=$E8,$A8,COUNT($E$5:$E9))))) -> 5 | B9: 7 | C9: Renata | D9: Sandro | E9: 52.4837037 | F9: -1.22 | G9: 53.7037037 | H9: 58 | J9: 58 | K9: 6 | L9: 2 | M9: 4 | N9: 2 | O9: 4 | P9: 6 | Q9: 0 | R9: 3 | S9: 3 | T9: 2 | U9: 2 | V9: 6 | W9: 3 | X9: 3 | Y9: 6 | Z9: 0 | AA9: 0 | AB9: 6 | BF9: 9 | BG9: -1.22
A10: =IF(J$2="","",IF($E10="","",IF($E10=MAX($E$5:$E$54),1,IF($E10=$E9,$A9,COUNT($E$5:$E10))))) -> 6 | B10: 9 | C10: Isolde | D10: Letizia | E10: 50.85185185 | F10: -1 | G10: 51.85185185 | H10: 56 | J10: 56 | K10: 0 | L10: 2 | M10: 2 | N10: 4 | O10: 0 | P10: 4 | Q10: 1 | R10: 6 | S10: 3 | T10: 4 | U10: 4 | V10: 6 | W10: 6 | X10: 2 | Y10: 4 | Z10: 2 | AA10: 3 | AB10: 3 | BF10: 5 | BG10: -1
A11: =IF(J$2="","",IF($E11="","",IF($E11=MAX($E$5:$E$54),1,IF($E11=$E10,$A10,COUNT($E$5:$E11))))) -> 7 | B11: 6 | C11: Olimpia | D11: Sauro | E11: 43.67259259 | F11: 1.08 | G11: 42.59259259 | H11: 46 | J11: 46 | K11: 3 | L11: 4 | M11: 4 | N11: 6 | O11: 2 | P11: 0 | Q11: 4 | R11: 3 | S11: 0 | T11: 0 | U11: 3 | V11: 3 | W11: 0 | X11: 4 | Y11: 2 | Z11: 2 | AA11: 4 | AB11: 2 | BF11: 8 | BG11: 1.08
A12: =IF(J$2="","",IF($E12="","",IF($E12=MAX($E$5:$E$54),1,IF($E12=$E11,$A11,COUNT($E$5:$E12))))) -> 8 | B12: 3 | C12: Antonella | D12: Dino | E12: 40.35481481 | F12: 0.54 | G12: 39.81481481 | H12: 43 | J12: 43 | K12: 6 | L12: 4 | M12: 0 | N12: 2 | O12: 3 | P12: 3 | Q12: 2 | R12: 3 | S12: 0 | T12: 0 | U12: 4 | V12: 0 | W12: 0 | X12: 6 | Y12: 4 | Z12: 0 | AA12: 4 | AB12: 2 | BF12: 1 | BG12: 0.54
A13: =IF(J$2="","",IF($E13="","",IF($E13=MAX($E$5:$E$54),1,IF($E13=$E12,$A12,COUNT($E$5:$E13))))) -> 9 | B13: 5 | C13: Cesarina | D13: Gaetano | E13: 33.43740741 | F13: 1.03 | G13: 32.40740741 | H13: 35 | J13: 35 | K13: 3 | L13: 0 | M13: 2 | N13: 0 | O13: 0 | P13: 2 | Q13: 1 | R13: 0 | S13: 3 | T13: 3 | U13: 0 | V13: 3 | W13: 6 | X13: 0 | Y13: 2 | Z13: 4 | AA13: 6 | AB13: 0 | BF13: 3 | BG13: 1.03
A14: =IF(J$2="","",IF($E14="","",IF($E14=MAX($E$5:$E$54),1,IF($E14=$E13,$A13,COUNT($E$5:$E14))))) -> 10 | E14: 0 | G14: 0 | H14: 0 | J14: 0 | BF14: 10 | BG14: -2.57
A15: =IF(J$2="","",IF($E15="","",IF($E15=MAX($E$5:$E$54),1,IF($E15=$E14,$A14,COUNT($E$5:$E15))))) -> 10 | E15: 0 | G15: 0 | H15: 0 | J15: 0 | BF15: 11 | BG15: 0.41
A16: =IF(J$2="","",IF($E16="","",IF($E16=MAX($E$5:$E$54),1,IF($E16=$E15,$A15,COUNT($E$5:$E16))))) -> 10 | E16: 0 | G16: 0 | H16: 0 | J16: 0 | BF16: 12 | BG16: 0
A17: =IF(J$2="","",IF($E17="","",IF($E17=MAX($E$5:$E$54),1,IF($E17=$E16,$A16,COUNT($E$5:$E17))))) -> 10 | E17: 0 | G17: 0 | H17: 0 | J17: 0 | BF17: 13 | BG17: 0
A18: =IF(J$2="","",IF($E18="","",IF($E18=MAX($E$5:$E$54),1,IF($E18=$E17,$A17,COUNT($E$5:$E18))))) -> 10 | E18: 0 | G18: 0 | H18: 0 | J18: 0 | BF18: 14 | BG18: 0
A19: =IF(J$2="","",IF($E19="","",IF($E19=MAX($E$5:$E$54),1,IF($E19=$E18,$A18,COUNT($E$5:$E19))))) -> 10 | E19: 0 | G19: 0 | H19: 0 | J19: 0 | BF19: 15 | BG19: 0
A20: =IF(J$2="","",IF($E20="","",IF($E20=MAX($E$5:$E$54),1,IF($E20=$E19,$A19,COUNT($E$5:$E20))))) -> 10 | E20: 0 | G20: 0 | H20: 0 | J20: 0 | BF20: 16 | BG20: 0
A21: =IF(J$2="","",IF($E21="","",IF($E21=MAX($E$5:$E$54),1,IF($E21=$E20,$A20,COUNT($E$5:$E21))))) -> 10 | E21: 0 | G21: 0 | H21: 0 | J21: 0 | BF21: 17 | BG21: 0
A22: =IF(J$2="","",IF($E22="","",IF($E22=MAX($E$5:$E$54),1,IF($E22=$E21,$A21,COUNT($E$5:$E22))))) -> 10 | E22: 0 | G22: 0 | H22: 0 | J22: 0 | BF22: 18 | BG22: 0
A23: =IF(J$2="","",IF($E23="","",IF($E23=MAX($E$5:$E$54),1,IF($E23=$E22,$A22,COUNT($E$5:$E23))))) -> 10 | E23: 0 | G23: 0 | H23: 0 | J23: 0 | BF23: 19 | BG23: 0
A24: =IF(J$2="","",IF($E24="","",IF($E24=MAX($E$5:$E$54),1,IF($E24=$E23,$A23,COUNT($E$5:$E24))))) -> 10 | E24: 0 | G24: 0 | H24: 0 | J24: 0 | BF24: 20 | BG24: 0
A25: =IF(J$2="","",IF($E25="","",IF($E25=MAX($E$5:$E$54),1,IF($E25=$E24,$A24,COUNT($E$5:$E25))))) -> 10 | E25: 0 | G25: 0 | H25: 0 | J25: 0 | BF25: 21 | BG25: 0
A26: =IF(J$2="","",IF($E26="","",IF($E26=MAX($E$5:$E$54),1,IF($E26=$E25,$A25,COUNT($E$5:$E26))))) -> 10 | E26: 0 | G26: 0 | H26: 0 | J26: 0 | BF26: 22 | BG26: 0
A27: =IF(J$2="","",IF($E27="","",IF($E27=MAX($E$5:$E$54),1,IF($E27=$E26,$A26,COUNT($E$5:$E27))))) -> 10 | E27: 0 | G27: 0 | H27: 0 | J27: 0 | BF27: 23 | BG27: 0
A28: =IF(J$2="","",IF($E28="","",IF($E28=MAX($E$5:$E$54),1,IF($E28=$E27,$A27,COUNT($E$5:$E28))))) -> 10 | E28: 0 | G28: 0 | H28: 0 | J28: 0 | BF28: 24 | BG28: 0
A29: =IF(J$2="","",IF($E29="","",IF($E29=MAX($E$5:$E$54),1,IF($E29=$E28,$A28,COUNT($E$5:$E29))))) -> 10 | E29: 0 | G29: 0 | H29: 0 | J29: 0 | BF29: 25 | BG29: 0
A30: =IF(J$2="","",IF($E30="","",IF($E30=MAX($E$5:$E$54),1,IF($E30=$E29,$A29,COUNT($E$5:$E30))))) -> 10 | E30: 0 | G30: 0 | H30: 0 | J30: 0 | BF30: 26 | BG30: 0
A31: =IF(J$2="","",IF($E31="","",IF($E31=MAX($E$5:$E$54),1,IF($E31=$E30,$A30,COUNT($E$5:$E31))))) -> 10 | E31: 0 | G31: 0 | H31: 0 | J31: 0 | BF31: 27 | BG31: 0
A32: =IF(J$2="","",IF($E32="","",IF($E32=MAX($E$5:$E$54),1,IF($E32=$E31,$A31,COUNT($E$5:$E32))))) -> 10 | E32: 0 | G32: 0 | H32: 0 | J32: 0 | BF32: 28 | BG32: 0
A33: =IF(J$2="","",IF($E33="","",IF($E33=MAX($E$5:$E$54),1,IF($E33=$E32,$A32,COUNT($E$5:$E33))))) -> 10 | E33: 0 | G33: 0 | H33: 0 | J33: 0 | BF33: 29 | BG33: 0
A34: =IF(J$2="","",IF($E34="","",IF($E34=MAX($E$5:$E$54),1,IF($E34=$E33,$A33,COUNT($E$5:$E34))))) -> 10 | E34: 0 | G34: 0 | H34: 0 | J34: 0 | BF34: 30 | BG34: 0
A35: =IF(J$2="","",IF($E35="","",IF($E35=MAX($E$5:$E$54),1,IF($E35=$E34,$A34,COUNT($E$5:$E35))))) -> 10 | E35: 0 | G35: 0 | H35: 0 | J35: 0 | BF35: 31 | BG35: 0
A36: =IF(J$2="","",IF($E36="","",IF($E36=MAX($E$5:$E$54),1,IF($E36=$E35,$A35,COUNT($E$5:$E36))))) -> 10 | E36: 0 | G36: 0 | H36: 0 | J36: 0 | BF36: 32 | BG36: 0
A37: =IF(J$2="","",IF($E37="","",IF($E37=MAX($E$5:$E$54),1,IF($E37=$E36,$A36,COUNT($E$5:$E37))))) -> 10 | E37: 0 | G37: =IF(J$2="","",IF($J37=0,0,(H37*$C$3/$J$3)*50)) -> 0 | H37: =IF(J$2="","",IF(SUM($K37:$AX37)=0,0,SUM($K37:$AX37)+$I37)) -> 0 | J37: =IF(B37="",0,IF(SUM($K37:$AX37)=0,0,SUM($K37:$AX37))) -> 0 | BF37: 33 | BG37: 0
A38: =IF(J$2="","",IF($E38="","",IF($E38=MAX($E$5:$E$54),1,IF($E38=$E37,$A37,COUNT($E$5:$E38))))) -> 10 | E38: 0 | G38: 0 | H38: 0 | J38: 0 | BF38: 34 | BG38: 0
A39: =IF(J$2="","",IF($E39="","",IF($E39=MAX($E$5:$E$54),1,IF($E39=$E38,$A38,COUNT($E$5:$E39))))) -> 10 | E39: 0 | G39: 0 | H39: 0 | J39: 0 | BF39: 35 | BG39: 0
